Workbook

Sheet BTS_R 1
B1: =[1]DATOS!$B$3 -> ENSA
B2: Estudio de Caracterización de la Carga
B4: Categoría Unificada | F4: BTS_R
B5: Grupo Homogeneo | F5: BTS_R
B6: Estrato | F6: 1
B7: Identificador hora punta | F7: P
B8: Determinación de Parámetros de las Mediciones del Grupo Homogéneo y Estrato
E10: P | F10: =AVERAGE(K10:XFD10) -> 2.218928125 | H10: Estructura de Consumo | I10: ep | J10: =Energía Promedio Semanal en Punta | K10: =+IF(SUM(K$273:K$944)/4=0,"",SUMIF($E$273:$E$944,$E10,K$273:K$944)/4) -> 2.3231 | L10: =+IF(SUM(L$273:L$944)/4=0,"",SUMIF($E$273:$E$944,$E10,L$273:L$944)/4) -> 6.299675 | M10: 2.036625 | N10: 0.31485 | O10: 8.1622 | P10: 1.214625 | Q10: 1.362525 | R10: 1.51425 | S10: 1.144775 | T10: 0.785125 | U10: 0.23495 | V10: 1.76375 | W10: 1.331725 | X10: 1.00335 | Y10: 1.21625 | Z10: 5.010975 | AA10: 8.384075 | AB10: =+IF(SUM(AB$273:AB$944)/4=0,"",SUMIF($E$273:$E$944,$E10,AB$273:AB$944)/4) -> 0.83505 | AC10: 1.43825 | AD10: 0.35925 | AE10: 0.604275 | AF10: 0.175475 | AG10: 1.16845 | AH10: 1.41235 | AI10: 0.461875 | AJ10: 0.93155 | AK10: 0.20425 | AL10: 0.31165 | AM10: 1.12895 | AN10: 4.1746 | AO10: 6.274375 | AP10: 7.422525
E11: R | F11: =AVERAGE(K11:XFD11) -> 3.477175 | I11: er | J11: =Energía Promedio Semanal en Resto | K11: =+IF(SUM(K$273:K$944)/4=0,"",SUMIF($E$273:$E$944,$E11,K$273:K$944)/4) -> 4.1306 | L11: 10.337125 | M11: 3.6561 | N11: 0.667 | O11: 11.919475 | P11: 2.28245 | Q11: 3.68235 | R11: 2.255775 | S11: 1.3305 | T11: 1.287525 | U11: 0.362375 | V11: 2.6558 | W11: 2.29905 | X11: 1.1313 | Y11: 1.63345 | Z11: 6.099375 | AA11: 10.761225 | AB11: 1.530325 | AC11: 1.22205 | AD11: 1.650325 | AE11: 1.69815 | AF11: 0.444425 | AG11: 1.7004 | AH11: 1.6434 | AI11: 1.18885 | AJ11: 2.32295 | AK11: 0.304075 | AL11: 0.62085 | AM11: 1.73075 | AN11: 5.94255 | AO11: 12.581975 | AP11: 10.19705
E12: V | F12: =AVERAGE(K12:XFD12) -> 4.177561719 | I12: ev | J12: =Energía Promedio Semanal en Valle | K12: =+IF(SUM(K$273:K$944)/4=0,"",SUMIF($E$273:$E$944,$E12,K$273:K$944)/4) -> 5.383825 | L12: 15.015675 | M12: 3.886625 | N12: 0.62265 | O12: 12.82865 | P12: 3.29725 | Q12: 4.7499 | R12: 3.210325 | S12: 1.275475 | T12: 1.576475 | U12: 0.4749 | V12: 2.506775 | W12: 2.832925 | X12: 1.6114 | Y12: 1.806675 | Z12: 8.111925 | AA12: 14.5063 | AB12: 1.9755 | AC12: 1.093625 | AD12: 1.5558 | AE12: 1.468675 | AF12: 0.514625 | AG12: 1.289725 | AH12: 1.73115 | AI12: 1.05085 | AJ12: 3.38535 | AK12: 0.347875 | AL12: 0.791625 | AM12: 1.8454 | AN12: 11.7367 | AO12: 10.5867 | AP12: 10.610625
F13: =AVERAGE(K13:XFD13) -> 9.873664844 | I13: et | J13: =Energía Promedio Semanal (Total) | K13: =+IF(SUM(K273:K944)/4=0,"",SUM(K273:K944)/4) -> 11.837525 | L13: 31.652475 | M13: 9.57935 | N13: 1.6045 | O13: 32.910325 | P13: 6.794325 | Q13: 9.794775 | R13: 6.98035 | S13: 3.75075 | T13: =+IF(SUM(T273:T944)/4=0,"",SUM(T273:T944)/4) -> 3.649125 | U13: 1.072225 | V13: 6.926325 | W13: 6.4637 | X13: 3.74605 | Y13: 4.656375 | Z13: 19.222275 | AA13: 33.6516 | AB13: 4.340875 | AC13: 3.753925 | AD13: 3.565375 | AE13: 3.7711 | AF13: 1.134525 | AG13: 4.158575 | AH13: 4.7869 | AI13: 2.701575 | AJ13: 6.63985 | AK13: 0.8562 | AL13: 1.724125 | AM13: 4.7051 | AN13: 21.85385 | AO13: 29.44305 | AP13: 28.2302
F14: =VAR(K10:XFD10) -> 6.122860751 | I14: Var (ep) | J14: =Varianza de la Energía Semanal en Punta
F15: =VAR(K11:XFD11) -> 13.31371641 | I15: Var (er) | J15: =Varianza de la Energía Semanal en Resto
F16: =VAR(K12:XFD12) -> 19.81534081 | I16: Var (ev) | J16: =Varianza de la Energía Semanal en Valle
F17: =VAR(K13:XFD13) -> 108.598486 | I17: Var (et) | J17: =Varianza de la Energía Semanal (Total)
F18: =COVAR(K10:XFD10,$K$13:$XFD$13) -> 24.56564601 | I18: Cov (ep,et) | J18: =Covarianza entre la Energía en Punta y Total
F19: =COVAR(K11:XFD11,$K$13:$XFD$13) -> 36.34215382 | I19: Cov (er,et) | J19: =Covarianza entre la Energía en Resto y Total
F20: =COVAR(K12:XFD12,$K$13:$XFD$13) -> 44.29698346 | I20: Cov (ev,et) | J20: =Covarianza entre la Energía en Valle y Total
F22: =AVERAGE(K22:XFD22) -> 39.49465937 | H22: FC | I22: Pj | J22: = Promedio de la Suma de Potencia de cada usuario | K22: =+IF(SUM(K$273:K$944)=0,"",SUM(K$273:K$944)) -> 47.3501 | L22: 126.6099 | M22: 38.3174 | N22: 6.418 | O22: 131.6413 | P22: 27.1773 | Q22: 39.1791 | R22: 27.9214 | S22: 15.003 | T22: 14.5965 | U22: 4.2889 | V22: 27.7053 | W22: 25.8548 | X22: 14.9842 | Y22: 18.6255 | Z22: 76.8891 | AA22: 134.6064 | AB22: 17.3635 | AC22: 15.0157 | AD22: 14.2615 | AE22: 15.0844 | AF22: 4.5381 | AG22: 16.6343 | AH22: 19.1476 | AI22: 10.8063 | AJ22: 26.5594 | AK22: 3.4248 | AL22: 6.8965 | AM22: 18.8204 | AN22: 87.4154 | AO22: 117.7722 | AP22: 112.9208
C23: =INDEX('[2]Balance de Potencia'!$CC$683:$CV$683,1,MATCH($F$5,'[2]Balance de Potencia'!$CC$5:$CV$5,0)) -> Miércoles | D23: =INDEX('[2]Balance de Potencia'!$CC$682:$CV$682,1,MATCH($F$5,'[2]Balance de Potencia'!$CC$5:$CV$5,0)) -> 21:45:00 | E23: =MATCH(C23&ROUND(D23,10),$A$273:$A$944,0) -> 376 | F23: =AVERAGE(K23:XFD23) -> 0.069828125 | I23: P(h*) | J23: = Potencia promedio coincidente con la máx de la Categoría | K23: =IF(K$22="","",OFFSET($A$273,$E23-1,COLUMN()-1,)) -> 0 | L23: =IF(L$22="","",OFFSET($A$273,$E23-1,COLUMN()-1,)) -> 0.1985 | M23: 0.082 | N23: 0.0001 | O23: 0.1796 | P23: 0.0465 | Q23: 0.0468 | R23: 0.0422 | S23: 0.0069 | T23: 0.0264 | U23: 0.0052 | V23: 0.0481 | W23: 0.0421 | X23: 0.0255 | Y23: 0.0196 | Z23: 0.0959 | AA23: 0.2323 | AB23: 0.0325 | AC23: 0.0202 | AD23: 0.0314 | AE23: 0.0296 | AF23: 0.0104 | AG23: 0.0744 | AH23: 0.0461 | AI23: 0.0194 | AJ23: 0.0432 | AK23: 0.0065 | AL23: 0.0156 | AM23: 0.0411 | AN23: 0.3088 | AO23: 0.2116 | AP23: 0.246
C24: =INDEX('[2]Balance de Potencia'!$BY$683:$CA$683,1,MATCH($F$4,'[2]Balance de Potencia'!$BY$5:$CA$5,0)) ->  | D24: =INDEX('[2]Balance de Potencia'!$BY$682:$CA$682,1,MATCH($F$4,'[2]Balance de Potencia'!$BY$5:$CA$5,0)) ->  | E24: =MATCH(C24&ROUND(D24,10),$A$273:$A$944,0) ->  | F24: =AVERAGE(K24:XFD24) ->  | I24: P(h**) | J24: = Potencia promedio coincidente con la máx de la Categoría Unificada | K24: =IF(K$22="","",OFFSET($A$273,$E24-1,COLUMN()-1,)) -> 
F25: =VAR(K22:XFD22) -> 1737.575776 | I25: Var (Pj) | J25: =Varianza de la Potencia Media
F26: =VAR(K23:XFD23) -> 0.00688701628 | I26: Var (Ph*) | J26: =Varianza de la Potencia Coincidente con la máx de la Categ.
F27: =VAR(K24:XFD24) ->  | I27: Var (Ph**) | J27: =Varianza de la Potencia Coincidente con la máx de la Categ.Unificada
F28: =COVAR(K23:XFD23,$K$22:$XFD$22) -> 3.004602222 | I28: Cov (Pj;Ph*) | J28: =Covarianza entre la Potencia Media y la Coincidente
F29: =COVAR(K24:XFD24,$K$22:$XFD$22) ->  | I29: Cov (Pj;Ph**) | J29: =Covarianza entre la Potencia Media y la Coincidente de la Categ. Unificada
F31: =F22 -> 39.49465937 | H31: FC-estrato | I31: Pj | J31: = Promedio de la Suma de Potencia de cada usuario
E32: =MATCH(F32,$F$273:$F$944,0) -> 656 | F32: =F271 -> 0.0861875 | I32: P(h*) | J32: = Potencia promedio coincidente con la máx del estrato | K32: =IF(K$22="","",OFFSET($A$273,$E32-1,COLUMN()-1,)) -> 0.1324 | L32: 0.2136 | M32: 0.0695 | N32: 0.0135 | O32: 0.2813 | P32: 0.0522 | Q32: 0.238 | R32: 0.0063 | S32: 0.0455 | T32: 0.0103 | U32: 0.0071 | V32: 0.1049 | W32: 0.0633 | X32: 0.0229 | Y32: 0.0251 | Z32: 0.1081 | AA32: 0.1543 | AB32: 0.0515 | AC32: 0.0252 | AD32: 0.058 | AE32: 0.0807 | AF32: 0.0089 | AG32: 0.0443 | AH32: 0.015 | AI32: 0.0502 | AJ32: 0.0696 | AK32: 0.0069 | AL32: 0.0218 | AM32: 0.0326 | AN32: 0.0192 | AO32: 0.5446 | AP32: 0.1812
F33: =F25 -> 1737.575776 | I33: Var (Pj) | J33: =Varianza de la Potencia Media
F34: =VAR(K32:XFD32) -> 0.01216316177 | I34: Var (Ph*) | J34: =Varianza de la Potencia Coincidente con la máx del estrato
F35: =COVAR(K32:XFD32,$K$22:$XFD$22) -> 3.256977455 | I35: Cov (Pj;Ph*) | J35: =Covarianza entre la Potencia Media y la Coincidente
F37: =+AVERAGE(K37:XFD37) -> 0.187328125 | H37: FSI | I37: Pj | J37: = Promedio de la Potencia Máxima de cada usuario | K37: =+IF(SUM(K273:K944)=0,"",MAX(K273:K944)) -> 0.1589 | L37: 0.4859 | M37: 0.143 | N37: 0.0367 | O37: 0.6299 | P37: 0.0783 | Q37: 0.238 | R37: 0.1486 | S37: 0.0686 | T37: =+IF(SUM(T273:T944)=0,"",MAX(T273:T944)) -> 0.0485 | U37: 0.0124 | V37: 0.1428 | W37: 0.0942 | X37: 0.062 | Y37: 0.1647 | Z37: 0.4885 | AA37: 0.3238 | AB37: 0.1084 | AC37: 0.2853 | AD37: 0.0697 | AE37: 0.0863 | AF37: 0.031 | AG37: 0.26 | AH37: 0.0858 | AI37: 0.1172 | AJ37: 0.1079 | AK37: 0.0081 | AL37: 0.0341 | AM37: 0.0844 | AN37: 0.3313 | AO37: 0.7862 | AP37: 0.274
F38: =+AVERAGE(K38:XFD38) -> 0.1717875 | I38: PjFP | J38: = Promedio de la Potencia Máxima de cada usuario en horas FP | K38: =IF(SUM(K273:K944)=0,"",MAX(IF($E273:$E944<>"P",K273:K944,""))) -> 0.1589 | L38: =IF(SUM(L273:L944)=0,"",MAX(IF($E273:$E944<>"P",L273:L944,""))) -> 0.4859 | M38: =IF(SUM(M273:M944)=0,"",MAX(IF($E273:$E944<>"P",M273:M944,""))) -> 0.143 | N38: =IF(SUM(N273:N944)=0,"",MAX(IF($E273:$E944<>"P",N273:N944,""))) -> 0.0367 | O38: =IF(SUM(O273:O944)=0,"",MAX(IF($E273:$E944<>"P",O273:O944,""))) -> 0.6299 | P38: =IF(SUM(P273:P944)=0,"",MAX(IF($E273:$E944<>"P",P273:P944,""))) -> 0.0783 | Q38: =IF(SUM(Q273:Q944)=0,"",MAX(IF($E273:$E944<>"P",Q273:Q944,""))) -> 0.238 | R38: =IF(SUM(R273:R944)=0,"",MAX(IF($E273:$E944<>"P",R273:R944,""))) -> 0.1486 | S38: =IF(SUM(S273:S944)=0,"",MAX(IF($E273:$E944<>"P",S273:S944,""))) -> 0.0686 | T38: =IF(SUM(T273:T944)=0,"",MAX(IF($E273:$E944<>"P",T273:T944,""))) -> 0.0468 | U38: =IF(SUM(U273:U944)=0,"",MAX(IF($E273:$E944<>"P",U273:U944,""))) -> 0.0124 | V38: =IF(SUM(V273:V944)=0,"",MAX(IF($E273:$E944<>"P",V273:V944,""))) -> 0.1258 | W38: =IF(SUM(W273:W944)=0,"",MAX(IF($E273:$E944<>"P",W273:W944,""))) -> 0.0942 | X38: =IF(SUM(X273:X944)=0,"",MAX(IF($E273:$E944<>"P",X273:X944,""))) -> 0.062 | Y38: =IF(SUM(Y273:Y944)=0,"",MAX(IF($E273:$E944<>"P",Y273:Y944,""))) -> 0.1095 | Z38: =IF(SUM(Z273:Z944)=0,"",MAX(IF($E273:$E944<>"P",Z273:Z944,""))) -> 0.4637 | AA38: =IF(SUM(AA273:AA944)=0,"",MAX(IF($E273:$E944<>"P",AA273:AA944,""))) -> 0.3238 | AB38: =IF(SUM(AB273:AB944)=0,"",MAX(IF($E273:$E944<>"P",AB273:AB944,""))) -> 0.1084 | AC38: =IF(SUM(AC273:AC944)=0,"",MAX(IF($E273:$E944<>"P",AC273:AC944,""))) -> 0.1325 | AD38: =IF(SUM(AD273:AD944)=0,"",MAX(IF($E273:$E944<>"P",AD273:AD944,""))) -> 0.0697 | AE38: =IF(SUM(AE273:AE944)=0,"",MAX(IF($E273:$E944<>"P",AE273:AE944,""))) -> 0.0863 | AF38: =IF(SUM(AF273:AF944)=0,"",MAX(IF($E273:$E944<>"P",AF273:AF944,""))) -> 0.031 | AG38: =IF(SUM(AG273:AG944)=0,"",MAX(IF($E273:$E944<>"P",AG273:AG944,""))) -> 0.1582 | AH38: =IF(SUM(AH273:AH944)=0,"",MAX(IF($E273:$E944<>"P",AH273:AH944,""))) -> 0.0486 | AI38: =IF(SUM(AI273:AI944)=0,"",MAX(IF($E273:$E944<>"P",AI273:AI944,""))) -> 0.1172 | AJ38: =IF(SUM(AJ273:AJ944)=0,"",MAX(IF($E273:$E944<>"P",AJ273:AJ944,""))) -> 0.1079 | AK38: =IF(SUM(AK273:AK944)=0,"",MAX(IF($E273:$E944<>"P",AK273:AK944,""))) -> 0.0081 | AL38: =IF(SUM(AL273:AL944)=0,"",MAX(IF($E273:$E944<>"P",AL273:AL944,""))) -> 0.0341 | AM38: =IF(SUM(AM273:AM944)=0,"",MAX(IF($E273:$E944<>"P",AM273:AM944,""))) -> 0.0844 | AN38: =IF(SUM(AN273:AN944)=0,"",MAX(IF($E273:$E944<>"P",AN273:AN944,""))) -> 0.3313 | AO38: =IF(SUM(AO273:AO944)=0,"",MAX(IF($E273:$E944<>"P",AO273:AO944,""))) -> 0.6794 | AP38: =IF(SUM(AP273:AP944)=0,"",MAX(IF($E273:$E944<>"P",AP273:AP944,""))) -> 0.274
F39: =F23 -> 0.069828125 | I39: P(h*) | J39: = Potencia promedio coincidente con la máx de la Categoría
F40: =F24 ->  | I40: P(h**) | J40: = Potencia promedio coincidente con la máx de la Categoría Unificada
F41: =VAR(K37:XFD37) -> 0.03454238015 | I41: Var (Pj) | J41: =Varianza de la Potencia Máxima de cada Usuario
F42: =F26 -> 0.00688701628 | I42: Var (Ph*) | J42: =Varianza de la Potencia Coincidente con la máx de la Categ.
F43: =F27 ->  | I43: Var (Ph**) | J43: =Varianza de la Potencia Coincidente con la máx de la Categ. Unificada
F44: =COVAR(K23:XFD23,$K$37:$XFD$37) -> 0.01087540108 | I44: Cov (Pj;Ph*) | J44: =Covarianza entre la Potencia Máxima y la Coincidente
F45: =COVAR(K24:XFD24,$K$37:$XFD$37) ->  | I45: Cov (Pj;Ph**) | J45: =Covarianza entre la Potencia Máxima y la Coincidente de la Categ. Unificada
F47: =F37 -> 0.187328125 | H47: FCT-BT | I47: Pj | J47: = Promedio de la Potencia Máxima de cada usuario
F48: =F85 -> 0.05243125 | I48: P(h*) | J48: = Potencia promedio coincidente con la máx de la Baja Tensión
F49: =F41 -> 0.03454238015 | I49: Var(Pj) | J49: =Varianza de la Potencia Máxima de cada Usuario
F50: =F88 -> 0.003598502218 | I50: Var(Ph*) | J50: =Varianza de la Potencia Coincidente con el máx de BT
F51: =COVAR(K37:XFD37,K85:XFD85) -> 0.008798716621 | I51: Cov(Pj;Ph* | J51: =Covarianza entre la Potencia Máxima y la Coinc con máx de BT
F53: =F37 -> 0.187328125 | H53: FCT-MT | I53: Pj | J53: = Promedio de la Potencia Máxima de cada usuario
F54: =F94 -> 0.05243125 | I54: P(h*) | J54: = Potencia promedio coincidente con la máx de la Media Tensión
F55: =F41 -> 0.03454238015 | I55: Var(Pj) | J55: =Varianza de la Potencia Máxima de cada Usuario
F56: =F97 -> 0.003598502218 | I56: Var(Ph*) | J56: =Varianza de la Potencia Coincidente con el máx de MT
F57: =COVAR(K37:XFD37,K94:XFD94) -> 0.008798716621 | I57: Cov(Pj;Ph* | J57: =Covarianza entre la Potencia Máxima y la Coinc con máx de MT
F59: =F37 -> 0.187328125 | H59: FCT-AT | I59: Pj | J59: = Promedio de la Potencia Máxima de cada usuario
F60: =F103 -> 0.05243125 | I60: P(h*) | J60: = Potencia promedio coincidente con la máx de la Alta Tensión
F61: =F41 -> 0.03454238015 | I61: Var(Pj) | J61: =Varianza de la Potencia Máxima de cada Usuario
F62: =F106 -> 0.003598502218 | I62: Var(Ph*) | J62: =Varianza de la Potencia Coincidente con el máx de AT
F63: =COVAR(K37:XFD37,K103:XFD103) -> 0.008798716621 | I63: Cov(Pj;Ph* | J63: =Covarianza entre la Potencia Máxima y la Coinc con máx de AT
F65: =AVERAGE(K65:XFD65) -> 0.152953125 | H65: FSI-P | I65: Pj | J65: = Promedio de la Potencia Máxima de cada usuario en Punta | K65: =+IF(SUM(K273:K944)=0,"",MAX(IF($E273:$E944=$F$7,K273:K944))) -> 0.1186 | L65: =+IF(SUM(L273:L944)=0,"",MAX(IF($E273:$E944=$F$7,L273:L944))) -> 0.4672 | M65: =+IF(SUM(M273:M944)=0,"",MAX(IF($E273:$E944=$F$7,M273:M944))) -> 0.1251 | N65: =+IF(SUM(N273:N944)=0,"",MAX(IF($E273:$E944=$F$7,N273:N944))) -> 0.0229 | O65: =+IF(SUM(O273:O944)=0,"",MAX(IF($E273:$E944=$F$7,O273:O944))) -> 0.2881 | P65: =+IF(SUM(P273:P944)=0,"",MAX(IF($E273:$E944=$F$7,P273:P944))) -> 0.0602 | Q65: =+IF(SUM(Q273:Q944)=0,"",MAX(IF($E273:$E944=$F$7,Q273:Q944))) -> 0.0577 | R65: =+IF(SUM(R273:R944)=0,"",MAX(IF($E273:$E944=$F$7,R273:R944))) -> 0.0738 | S65: =+IF(SUM(S273:S944)=0,"",MAX(IF($E273:$E944=$F$7,S273:S944))) -> 0.0675 | T65: =+IF(SUM(T273:T944)=0,"",MAX(IF($E273:$E944=$F$7,T273:T944))) -> 0.0485 | U65: =+IF(SUM(U273:U944)=0,"",MAX(IF($E273:$E944=$F$7,U273:U944))) -> 0.0067 | V65: =+IF(SUM(V273:V944)=0,"",MAX(IF($E273:$E944=$F$7,V273:V944))) -> 0.1428 | W65: =+IF(SUM(W273:W944)=0,"",MAX(IF($E273:$E944=$F$7,W273:W944))) -> 0.0449 | X65: =+IF(SUM(X273:X944)=0,"",MAX(IF($E273:$E944=$F$7,X273:X944))) -> 0.0564 | Y65: =+IF(SUM(Y273:Y944)=0,"",MAX(IF($E273:$E944=$F$7,Y273:Y944))) -> 0.1647 | Z65: =+IF(SUM(Z273:Z944)=0,"",MAX(IF($E273:$E944=$F$7,Z273:Z944))) -> 0.4885 | AA65: =+IF(SUM(AA273:AA944)=0,"",MAX(IF($E273:$E944=$F$7,AA273:AA944))) -> 0.2773 | AB65: =+IF(SUM(AB273:AB944)=0,"",MAX(IF($E273:$E944=$F$7,AB273:AB944))) -> 0.0926 | AC65: =+IF(SUM(AC273:AC944)=0,"",MAX(IF($E273:$E944=$F$7,AC273:AC944))) -> 0.2853 | AD65: =+IF(SUM(AD273:AD944)=0,"",MAX(IF($E273:$E944=$F$7,AD273:AD944))) -> 0.0219 | AE65: =+IF(SUM(AE273:AE944)=0,"",MAX(IF($E273:$E944=$F$7,AE273:AE944))) -> 0.0574 | AF65: =+IF(SUM(AF273:AF944)=0,"",MAX(IF($E273:$E944=$F$7,AF273:AF944))) -> 0.0105 | AG65: =+IF(SUM(AG273:AG944)=0,"",MAX(IF($E273:$E944=$F$7,AG273:AG944))) -> 0.26 | AH65: =+IF(SUM(AH273:AH944)=0,"",MAX(IF($E273:$E944=$F$7,AH273:AH944))) -> 0.0858 | AI65: =+IF(SUM(AI273:AI944)=0,"",MAX(IF($E273:$E944=$F$7,AI273:AI944))) -> 0.0328 | AJ65: =+IF(SUM(AJ273:AJ944)=0,"",MAX(IF($E273:$E944=$F$7,AJ273:AJ944))) -> 0.0777 | AK65: =+IF(SUM(AK273:AK944)=0,"",MAX(IF($E273:$E944=$F$7,AK273:AK944))) -> 0.008 | AL65: =+IF(SUM(AL273:AL944)=0,"",MAX(IF($E273:$E944=$F$7,AL273:AL944))) -> 0.0224 | AM65: =+IF(SUM(AM273:AM944)=0,"",MAX(IF($E273:$E944=$F$7,AM273:AM944))) -> 0.0682 | AN65: =+IF(SUM(AN273:AN944)=0,"",MAX(IF($E273:$E944=$F$7,AN273:AN944))) -> 0.3015 | AO65: =+IF(SUM(AO273:AO944)=0,"",MAX(IF($E273:$E944=$F$7,AO273:AO944))) -> 0.7862 | AP65: =+IF(SUM(AP273:AP944)=0,"",MAX(IF($E273:$E944=$F$7,AP273:AP944))) -> 0.2733
C66: =INDEX('[2]Balance de Potencia'!$CC$690:$CV$690,1,MATCH($F$5,'[2]Balance de Potencia'!$CC$5:$CV$5,0)) -> Miércoles | D66: =INDEX('[2]Balance de Potencia'!$CC$689:$CV$689,1,MATCH($F$5,'[2]Balance de Potencia'!$CC$5:$CV$5,0)) -> 15:45:00 | E66: =MATCH(C66&ROUND(D66,10),$A$273:$A$944,0) -> 352 | F66: =AVERAGE(K66:XFD66) -> 0.051309375 | I66: P(h*) | J66: = Potencia promedio coincidente con la máx de la Categoría en Punta | K66: =IF(K$22="","",OFFSET($A$273,$E66-1,COLUMN()-1,)) -> 0.1054 | L66: =IF(L$22="","",OFFSET($A$273,$E66-1,COLUMN()-1,)) -> 0.1249 | M66: 0.0519 | N66: 0.0068 | O66: 0.1491 | P66: 0.0228 | Q66: 0.0315 | R66: 0.0508 | S66: 0.0094 | T66: 0.0402 | U66: 0.0054 | V66: 0.0385 | W66: 0.0308 | X66: 0.0149 | Y66: 0.018 | Z66: 0.1333 | AA66: 0.221 | AB66: =IF(AB$22="","",OFFSET($A$273,$E66-1,COLUMN()-1,)) -> 0.0238 | AC66: 0.0121 | AD66: 0.0105 | AE66: 0.0167 | AF66: 0.0049 | AG66: 0.0379 | AH66: 0.0452 | AI66: 0.0133 | AJ66: 0.0416 | AK66: 0.0051 | AL66: 0.0006 | AM66: 0.0296 | AN66: 0.0497 | AO66: 0.0896 | AP66: 0.2066
C67: =INDEX('[2]Balance de Potencia'!$BY$690:$CA$690,1,MATCH($F$4,'[2]Balance de Potencia'!$BY$5:$CA$5,0)) ->  | D67: =INDEX('[2]Balance de Potencia'!$BY$689:$CA$689,1,MATCH($F$4,'[2]Balance de Potencia'!$BY$5:$CA$5,0)) ->  | E67: =MATCH(C67&ROUND(D67,10),$A$273:$A$944,0) ->  | F67: =AVERAGE(K67:XFD67) ->  | I67: P(h**) | J67: = Potencia promedio coincidente con la máx de la Categoría Unificada en Punta | K67: =IF(K$22="","",OFFSET($A$273,$E67-1,COLUMN()-1,)) -> 
F68: =VAR(K65:XFD65) -> 0.03017216709 | I68: Var (Pj) | J68: =Varianza de la Potencia Máxima de cada Usuario en Punta
F69: =VAR(K66:XFD66) -> 0.003336944748 | I69: Var (Ph*) | J69: =Varianza de la Potencia Coincidente con la máx de la Categ. en Punta
F70: =VAR(K67:XFD67) ->  | I70: Var (Ph**) | J70: =Varianza de la Potencia Coincidente con la máx de la Categ. Unificada en Punta
F71: =COVAR(K$65:XFD$65,K66:XFD66) -> 0.005757224502 | I71: Cov (Pj;Ph*) | J71: =Covarianza entre la Potencia Máxima y la Coincidente
F72: =COVAR(K$65:XFD$65,K67:XFD67) ->  | I72: Cov (Pj;Ph**) | J72: =Covarianza entre la Potencia Máxima y la Coincidente de la Categ. Unificada
F74: =AVERAGE(K74:XFD74) -> 0.1717875 | H74: FSI-FP | I74: Pj | J74: = Promedio de la Potencia Máxima de cada usuario | K74: =+IF(SUM(K273:K944)=0,"",MAX(IF($E273:$E944<>$F$7,K273:K944))) -> 0.1589 | L74: =+IF(SUM(L273:L944)=0,"",MAX(IF($E273:$E944<>$F$7,L273:L944))) -> 0.4859 | M74: =+IF(SUM(M273:M944)=0,"",MAX(IF($E273:$E944<>$F$7,M273:M944))) -> 0.143 | N74: =+IF(SUM(N273:N944)=0,"",MAX(IF($E273:$E944<>$F$7,N273:N944))) -> 0.0367 | O74: =+IF(SUM(O273:O944)=0,"",MAX(IF($E273:$E944<>$F$7,O273:O944))) -> 0.6299 | P74: =+IF(SUM(P273:P944)=0,"",MAX(IF($E273:$E944<>$F$7,P273:P944))) -> 0.0783 | Q74: =+IF(SUM(Q273:Q944)=0,"",MAX(IF($E273:$E944<>$F$7,Q273:Q944))) -> 0.238 | R74: =+IF(SUM(R273:R944)=0,"",MAX(IF($E273:$E944<>$F$7,R273:R944))) -> 0.1486 | S74: =+IF(SUM(S273:S944)=0,"",MAX(IF($E273:$E944<>$F$7,S273:S944))) -> 0.0686 | T74: =+IF(SUM(T273:T944)=0,"",MAX(IF($E273:$E944<>$F$7,T273:T944))) -> 0.0468 | U74: =+IF(SUM(U273:U944)=0,"",MAX(IF($E273:$E944<>$F$7,U273:U944))) -> 0.0124 | V74: =+IF(SUM(V273:V944)=0,"",MAX(IF($E273:$E944<>$F$7,V273:V944))) -> 0.1258 | W74: =+IF(SUM(W273:W944)=0,"",MAX(IF($E273:$E944<>$F$7,W273:W944))) -> 0.0942 | X74: =+IF(SUM(X273:X944)=0,"",MAX(IF($E273:$E944<>$F$7,X273:X944))) -> 0.062 | Y74: =+IF(SUM(Y273:Y944)=0,"",MAX(IF($E273:$E944<>$F$7,Y273:Y944))) -> 0.1095 | Z74: =+IF(SUM(Z273:Z944)=0,"",MAX(IF($E273:$E944<>$F$7,Z273:Z944))) -> 0.4637 | AA74: =+IF(SUM(AA273:AA944)=0,"",MAX(IF($E273:$E944<>$F$7,AA273:AA944))) -> 0.3238 | AB74: =+IF(SUM(AB273:AB944)=0,"",MAX(IF($E273:$E944<>$F$7,AB273:AB944))) -> 0.1084 | AC74: =+IF(SUM(AC273:AC944)=0,"",MAX(IF($E273:$E944<>$F$7,AC273:AC944))) -> 0.1325 | AD74: =+IF(SUM(AD273:AD944)=0,"",MAX(IF($E273:$E944<>$F$7,AD273:AD944))) -> 0.0697 | AE74: =+IF(SUM(AE273:AE944)=0,"",MAX(IF($E273:$E944<>$F$7,AE273:AE944))) -> 0.0863 | AF74: =+IF(SUM(AF273:AF944)=0,"",MAX(IF($E273:$E944<>$F$7,AF273:AF944))) -> 0.031 | AG74: =+IF(SUM(AG273:AG944)=0,"",MAX(IF($E273:$E944<>$F$7,AG273:AG944))) -> 0.1582 | AH74: =+IF(SUM(AH273:AH944)=0,"",MAX(IF($E273:$E944<>$F$7,AH273:AH944))) -> 0.0486 | AI74: =+IF(SUM(AI273:AI944)=0,"",MAX(IF($E273:$E944<>$F$7,AI273:AI944))) -> 0.1172 | AJ74: =+IF(SUM(AJ273:AJ944)=0,"",MAX(IF($E273:$E944<>$F$7,AJ273:AJ944))) -> 0.1079 | AK74: =+IF(SUM(AK273:AK944)=0,"",MAX(IF($E273:$E944<>$F$7,AK273:AK944))) -> 0.0081 | AL74: =+IF(SUM(AL273:AL944)=0,"",MAX(IF($E273:$E944<>$F$7,AL273:AL944))) -> 0.0341 | AM74: =+IF(SUM(AM273:AM944)=0,"",MAX(IF($E273:$E944<>$F$7,AM273:AM944))) -> 0.0844 | AN74: =+IF(SUM(AN273:AN944)=0,"",MAX(IF($E273:$E944<>$F$7,AN273:AN944))) -> 0.3313 | AO74: =+IF(SUM(AO273:AO944)=0,"",MAX(IF($E273:$E944<>$F$7,AO273:AO944))) -> 0.6794 | AP74: =+IF(SUM(AP273:AP944)=0,"",MAX(IF($E273:$E944<>$F$7,AP273:AP944))) -> 0.274
C75: =INDEX('[2]Balance de Potencia'!$CC$697:$CV$697,1,MATCH($F$5,'[2]Balance de Potencia'!$CC$5:$CV$5,0)) -> Miércoles | D75: =INDEX('[2]Balance de Potencia'!$CC$696:$CV$696,1,MATCH($F$5,'[2]Balance de Potencia'!$CC$5:$CV$5,0)) -> 21:45:00 | E75: =MATCH(C75&ROUND(D75,10),$A$273:$A$944,0) -> 376 | F75: =AVERAGE(K75:XFD75) -> 0.069828125 | I75: P(h*) | J75: = Potencia promedio coincidente con la máx de la Categoría | K75: =IF(K$22="","",OFFSET($A$273,$E75-1,COLUMN()-1,)) -> 0 | L75: =IF(L$22="","",OFFSET($A$273,$E75-1,COLUMN()-1,)) -> 0.1985 | M75: 0.082 | N75: 0.0001 | O75: 0.1796 | P75: 0.0465 | Q75: 0.0468 | R75: 0.0422 | S75: 0.0069 | T75: 0.0264 | U75: 0.0052 | V75: 0.0481 | W75: 0.0421 | X75: 0.0255 | Y75: 0.0196 | Z75: 0.0959 | AA75: 0.2323 | AB75: =IF(AB$22="","",OFFSET($A$273,$E75-1,COLUMN()-1,)) -> 0.0325 | AC75: 0.0202 | AD75: 0.0314 | AE75: 0.0296 | AF75: 0.0104 | AG75: 0.0744 | AH75: 0.0461 | AI75: 0.0194 | AJ75: 0.0432 | AK75: 0.0065 | AL75: 0.0156 | AM75: 0.0411 | AN75: 0.3088 | AO75: 0.2116 | AP75: 0.246
C76: =INDEX('[2]Balance de Potencia'!$BY$697:$CA$697,1,MATCH($F$4,'[2]Balance de Potencia'!$BY$5:$CA$5,0)) ->  | D76: =INDEX('[2]Balance de Potencia'!$BY$696:$CA$696,1,MATCH($F$4,'[2]Balance de Potencia'!$BY$5:$CA$5,0)) ->  | E76: =MATCH(C76&ROUND(D76,10),$A$272:$A$943,0) ->  | F76: =AVERAGE(K76:XFD76) ->  | I76: P(h**) | J76: = Potencia promedio coincidente con la máx de la Categoría Unificada | K76: =IF(K$22="","",OFFSET($A$273,$E76-1,COLUMN()-1,)) -> 
F77: =VAR(K74:XFD74) -> 0.03025758113 | I77: Var (Pj) | J77: =Varianza de la Potencia Máxima de cada Usuario
F78: =VAR(K75:XFD75) -> 0.00688701628 | I78: Var (Ph*) | J78: =Varianza de la Potencia Coincidente con la máx de la Categ.
F79: =VAR(K76:XFD76) ->  | I79: Var (Ph**) | J79: =Varianza de la Potencia Coincidente con la máx de la Categ. Unificada
F80: =COVAR(K$74:XFD$74,K75:XFD75) -> 0.01073253941 | I80: Cov (Pj;Ph*) | J80: =Covarianza entre la Potencia Máxima y la Coincidente
F81: =COVAR(K$74:XFD$74,K76:XFD76) ->  | I81: Cov (Pj;Ph**) | J81: =Covarianza entre la Potencia Máxima y la Coincidente de la Categ. Unificada
F83: =F23 -> 0.069828125 | H83: FSE(BT) | I83: Pj | J83: = Potencia promedio coincidente con la máx de la Categoría
F84: =F24 ->  | I84: Pj* | J84: = Potencia promedio coincidente con la máx de la Categoría Unificada
C85: ='[2]Balance de Potencia'!$E$683 -> Lunes | D85: ='[2]Balance de Potencia'!$E$682 -> 13:45:00 | E85: =MATCH(C85&ROUND(D85,10),$A$273:$A$944,0) -> 152 | F85: =AVERAGE(K85:XFD85) -> 0.05243125 | I85: P(h*) | J85: = Potencia promedio coincidente con el máx de BT | K85: =IF(K$22="","",OFFSET($A$273,$E85-1,COLUMN()-1,)) -> 0.0176 | L85: 0.1714 | M85: 0.0498 | N85: 0.0006 | O85: 0.177 | P85: 0.0544 | Q85: 0.0284 | R85: 0.0173 | S85: 0.0325 | T85: 0.0123 | U85: 0.0057 | V85: 0.0368 | W85: 0.0435 | X85: 0.0335 | Y85: 0.009 | Z85: 0.0683 | AA85: 0.1573 | AB85: 0.0441 | AC85: 0.0908 | AD85: 0.012 | AE85: 0.0052 | AF85: 0.0035 | AG85: 0.0434 | AH85: 0.0215 | AI85: 0.0138 | AJ85: 0.0204 | AK85: 0.0044 | AL85: 0.0026 | AM85: 0.001 | AN85: 0.18 | AO85: 0.1581 | AP85: 0.1616
F86: =F26 -> 0.00688701628 | I86: Var(Pj) | J86: = Varianza de la Potencia coincidente con la máx de la Categoría
F87: =F27 ->  | I87: Var(Pj*) | J87: = Varianza de la Potencia coincidente con la máx de la Categoría Unificada
F88: =VAR(K85:XFD85) -> 0.003598502218 | I88: Var (Ph*) | J88: =Varianza de la Potencia Coincidente con el máx de BT
F89: =COVAR(K$23:XFD$23,K85:XFD85) -> 0.004491681934 | I89: Cov (Pj;Ph*) | J89: =Covarianza entre la Pot Coinc con máx Categ y la Coinc con máx de BT
F90: =COVAR(K$24:XFD$24,K85:XFD85) ->  | I90: Cov (Pj*;Ph*) | J90: =Covarianza entre la Pot Coinc con máx Categ Unif y la Coinc con máx de BT
F92: =F23 -> 0.069828125 | H92: FSE(MT) | I92: Pj | J92: = Potencia promedio coincidente con la máx de la Categoría
F93: =F24 ->  | I93: Pj* | J93: = Potencia promedio coincidente con la máx de la Categoría Unificada
C94: ='[2]Balance de Potencia'!$F$683 -> Lunes | D94: ='[2]Balance de Potencia'!$F$682 -> 13:45:00 | E94: =MATCH(C94&ROUND(D94,10),$A$273:$A$944,0) -> 152 | F94: =AVERAGE(K94:XFD94) -> 0.05243125 | I94: P(h*) | J94: = Potencia promedio coincidente con el máx de MT | K94: =IF(K$22="","",OFFSET($A$273,$E94-1,COLUMN()-1,)) -> 0.0176 | L94: 0.1714 | M94: 0.0498 | N94: 0.0006 | O94: 0.177 | P94: 0.0544 | Q94: 0.0284 | R94: 0.0173 | S94: 0.0325 | T94: 0.0123 | U94: 0.0057 | V94: 0.0368 | W94: 0.0435 | X94: 0.0335 | Y94: 0.009 | Z94: 0.0683 | AA94: 0.1573 | AB94: 0.0441 | AC94: 0.0908 | AD94: 0.012 | AE94: 0.0052 | AF94: 0.0035 | AG94: 0.0434 | AH94: 0.0215 | AI94: 0.0138 | AJ94: 0.0204 | AK94: 0.0044 | AL94: 0.0026 | AM94: 0.001 | AN94: 0.18 | AO94: 0.1581 | AP94: 0.1616
F95: =F26 -> 0.00688701628 | I95: Var(Pj) | J95: = Varianza de la Potencia coincidente con la máx de la Categoría
F96: =F27 ->  | I96: Var(Pj*) | J96: = Varianza de la Potencia coincidente con la máx de la Categoría Unificada
F97: =VAR(K94:XFD94) -> 0.003598502218 | I97: Var (Ph*) | J97: =Varianza de la Potencia Coincidente con el máx de MT
F98: =COVAR(K$23:XFD$23,K94:XFD94) -> 0.004491681934 | I98: Cov (Pj;Ph*) | J98: =Covarianza entre la Pot Coinc con máx Categ y la Coinc con máx de MT
F99: =COVAR(K$24:XFD$24,K94:XFD94) ->  | I99: Cov (Pj*;Ph*) | J99: =Covarianza entre la Pot Coinc con máx Categ Unif y la Coinc con máx de MT
F101: =F23 -> 0.069828125 | H101: FSE(AT) | I101: Pj | J101: = Potencia promedio coincidente con la máx de la Categoría
F102: =F24 ->  | I102: Pj* | J102: = Potencia promedio coincidente con la máx de la Categoría Unificada
C103: ='[2]Balance de Potencia'!$G$683 -> Lunes | D103: ='[2]Balance de Potencia'!$G$682 -> 13:45:00 | E103: =MATCH(C103&ROUND(D103,10),$A$273:$A$944,0) -> 152 | F103: =AVERAGE(K103:XFD103) -> 0.05243125 | I103: P(h*) | J103: = Potencia promedio coincidente con el máx de AT | K103: =IF(K$22="","",OFFSET($A$273,$E103-1,COLUMN()-1,)) -> 0.0176 | L103: 0.1714 | M103: 0.0498 | N103: 0.0006 | O103: 0.177 | P103: 0.0544 | Q103: 0.0284 | R103: 0.0173 | S103: 0.0325 | T103: 0.0123 | U103: 0.0057 | V103: 0.0368 | W103: 0.0435 | X103: 0.0335 | Y103: 0.009 | Z103: 0.0683 | AA103: 0.1573 | AB103: 0.0441 | AC103: 0.0908 | AD103: 0.012 | AE103: 0.0052 | AF103: 0.0035 | AG103: 0.0434 | AH103: 0.0215 | AI103: 0.0138 | AJ103: 0.0204 | AK103: 0.0044 | AL103: 0.0026 | AM103: 0.001 | AN103: 0.18 | AO103: 0.1581 | AP103: 0.1616
F104: =F26 -> 0.00688701628 | I104: Var(Pj) | J104: = Varianza de la Potencia coincidente con la máx de la Categoría
F105: =F27 ->  | I105: Var(Pj*) | J105: = Varianza de la Potencia coincidente con la máx de la Categoría Unificada
F106: =VAR(K103:XFD103) -> 0.003598502218 | I106: Var (Ph*) | J106: =Varianza de la Potencia Coincidente con el máx de AT
F107: =COVAR(K$23:XFD$23,K103:XFD103) -> 0.004491681934 | I107: Cov (Pj;Ph*) | J107: =Covarianza entre la Pot Coinc con máx Categ y la Coinc con máx de AT
F108: =COVAR(K$24:XFD$24,K103:XFD103) ->  | I108: Cov (Pj*;Ph*) | J108: =Covarianza entre la Pot Coinc con máx Categ Unif y la Coinc con máx de AT
F110: =F66 -> 0.051309375 | H110: FSE(BT)P | I110: Pj | J110: = Potencia promedio coincidente con la máx de la Categoría en Punta
F111: =F67 ->  | I111: Pj* | J111: = Potencia promedio coincidente con la máx de la Categoría Unificada en Punta
C112: ='[2]Balance de Potencia'!$E$690 -> Lunes | D112: ='[2]Balance de Potencia'!$E$689 -> 13:45:00 | E112: =MATCH(C112&ROUND(D112,10),$A$273:$A$944,0) -> 152 | F112: =AVERAGE(K112:XFD112) -> 0.05243125 | I112: P(h*) | J112: = Potencia promedio coincidente con el máx de BT en Punta | K112: =IF(K$22="","",OFFSET($A$273,$E112-1,COLUMN()-1,)) -> 0.0176 | L112: =IF(L$22="","",OFFSET($A$273,$E112-1,COLUMN()-1,)) -> 0.1714 | M112: 0.0498 | N112: 0.0006 | O112: 0.177 | P112: 0.0544 | Q112: 0.0284 | R112: 0.0173 | S112: 0.0325 | T112: 0.0123 | U112: 0.0057 | V112: 0.0368 | W112: 0.0435 | X112: 0.0335 | Y112: 0.009 | Z112: 0.0683 | AA112: 0.1573 | AB112: 0.0441 | AC112: 0.0908 | AD112: 0.012 | AE112: 0.0052 | AF112: 0.0035 | AG112: 0.0434 | AH112: 0.0215 | AI112: 0.0138 | AJ112: 0.0204 | AK112: 0.0044 | AL112: 0.0026 | AM112: 0.001 | AN112: 0.18 | AO112: 0.1581 | AP112: 0.1616
F113: =F69 -> 0.003336944748 | I113: Var(Pj) | J113: = Varianza de la Potencia coincidente con la máx de la Categoría
F114: =F70 ->  | I114: Var(Pj*) | J114: = Varianza de la Potencia coincidente con la máx de la Categoría Unificada
F115: =VAR(K112:XFD112) -> 0.003598502218 | I115: Var (Ph*) | J115: =Varianza de la Potencia Coincidente con el máx de BT en Punta
F116: =COVAR(K66:XFD66,K112:XFD112) -> 0.002495761895 | I116: Cov (Pj;Ph*) | J116: =Covarianza entre la Pot Coinc con máx Categ y la Coinc con máx de BT
F117: =COVAR(K67:XFD67,K112:XFD112) ->  | I117: Cov (Pj*;Ph*) | J117: =Covarianza entre la Pot Coinc con máx Categ Unif y la Coinc con máx de BT
F119: =F66 -> 0.051309375 | H119: FSE(MT)P | I119: Pj | J119: = Potencia promedio coincidente con la máx de la Categoría en Punta
F120: =F67 ->  | I120: Pj* | J120: = Potencia promedio coincidente con la máx de la Categoría Unificada en Punta
C121: ='[2]Balance de Potencia'!$F$690 -> Lunes | D121: ='[2]Balance de Potencia'!$F$689 -> 13:45:00 | E121: =MATCH(C121&ROUND(D121,10),$A$273:$A$944,0) -> 152 | F121: =AVERAGE(K121:XFD121) -> 0.05243125 | I121: P(h*) | J121: = Potencia promedio coincidente con el máx de MT en Punta | K121: =IF(K$22="","",OFFSET($A$273,$E121-1,COLUMN()-1,)) -> 0.0176 | L121: =IF(L$22="","",OFFSET($A$273,$E121-1,COLUMN()-1,)) -> 0.1714 | M121: 0.0498 | N121: 0.0006 | O121: 0.177 | P121: 0.0544 | Q121: 0.0284 | R121: 0.0173 | S121: 0.0325 | T121: 0.0123 | U121: 0.0057 | V121: 0.0368 | W121: 0.0435 | X121: 0.0335 | Y121: 0.009 | Z121: 0.0683 | AA121: 0.1573 | AB121: 0.0441 | AC121: 0.0908 | AD121: 0.012 | AE121: 0.0052 | AF121: 0.0035 | AG121: 0.0434 | AH121: 0.0215 | AI121: 0.0138 | AJ121: 0.0204 | AK121: 0.0044 | AL121: 0.0026 | AM121: 0.001 | AN121: 0.18 | AO121: 0.1581 | AP121: 0.1616
F122: =F69 -> 0.003336944748 | I122: Var(Pj) | J122: = Varianza de la Potencia coincidente con la máx de la Categoría
F123: =F70 ->  | I123: Var(Pj*) | J123: = Varianza de la Potencia coincidente con la máx de la Categoría Unificada
F124: =VAR(K121:XFD121) -> 0.003598502218 | I124: Var (Ph*) | J124: =Varianza de la Potencia Coincidente con el máx de MT en Punta
F125: =COVAR(K66:XFD66,K121:XFD121) -> 0.002495761895 | I125: Cov (Pj;Ph*) | J125: =Covarianza entre la Pot Coinc con máx Categ y la Coinc con máx de MT
F126: =COVAR(K67:XFD67,K121:XFD121) ->  | I126: Cov (Pj*;Ph*) | J126: =Covarianza entre la Pot Coinc con máx Categ Unif y la Coinc con máx de MT
F128: =F66 -> 0.051309375 | H128: FSE(AT)P | I128: Pj | J128: = Potencia promedio coincidente con la máx de la Categoría en Punta
F129: =F67 ->  | I129: Pj* | J129: = Potencia promedio coincidente con la máx de la Categoría Unificada en Punta
C130: ='[2]Balance de Potencia'!$G$690 -> Lunes | D130: ='[2]Balance de Potencia'!$G$689 -> 13:45:00 | E130: =MATCH(C130&ROUND(D130,10),$A$273:$A$944,0) -> 152 | F130: =AVERAGE(K130:XFD130) -> 0.05243125 | I130: P(h*) | J130: = Potencia promedio coincidente con el máx de AT en Punta | K130: =IF(K$22="","",OFFSET($A$273,$E130-1,COLUMN()-1,)) -> 0.0176 | L130: =IF(L$22="","",OFFSET($A$273,$E130-1,COLUMN()-1,)) -> 0.1714 | M130: 0.0498 | N130: 0.0006 | O130: 0.177 | P130: 0.0544 | Q130: 0.0284 | R130: 0.0173 | S130: 0.0325 | T130: 0.0123 | U130: 0.0057 | V130: 0.0368 | W130: 0.0435 | X130: 0.0335 | Y130: 0.009 | Z130: 0.0683 | AA130: 0.1573 | AB130: 0.0441 | AC130: 0.0908 | AD130: 0.012 | AE130: 0.0052 | AF130: 0.0035 | AG130: 0.0434 | AH130: 0.0215 | AI130: 0.0138 | AJ130: 0.0204 | AK130: 0.0044 | AL130: 0.0026 | AM130: 0.001 | AN130: 0.18 | AO130: 0.1581 | AP130: 0.1616
F131: =F69 -> 0.003336944748 | I131: Var(Pj) | J131: = Varianza de la Potencia coincidente con la máx de la Categoría
F132: =F70 ->  | I132: Var(Pj*) | J132: = Varianza de la Potencia coincidente con la máx de la Categoría Unificada
F133: =VAR(K130:XFD130) -> 0.003598502218 | I133: Var (Ph*) | J133: =Varianza de la Potencia Coincidente con el máx de AT en Punta
F134: =COVAR(K66:XFD66,K130:XFD130) -> 0.002495761895 | I134: Cov (Pj;Ph*) | J134: =Covarianza entre la Pot Coinc con máx Categ y la Coinc con máx de AT
F135: =COVAR(K67:XFD67,K130:XFD130) ->  | I135: Cov (Pj*;Ph*) | J135: =Covarianza entre la Pot Coinc con máx Categ Unif y la Coinc con máx de AT
F137: =F75 -> 0.069828125 | H137: FSE(BT)FP | I137: Pj | J137: = Potencia promedio coincidente con la máx de la Categoría en Fuera de Punta
F138: =F76 ->  | I138: Pj* | J138: = Potencia promedio coincidente con la máx de la Categoría Unificada en Fuera de Punta
C139: ='[2]Balance de Potencia'!$E$697 -> Martes | D139: ='[2]Balance de Potencia'!$E$696 -> 20:30:00 | E139: =MATCH(C139&ROUND(D139,10),$A$273:$A$944,0) -> 275 | F139: =AVERAGE(K139:XFD139) -> 0.0743625 | I139: P(h*) | J139: = Potencia promedio coincidente con el máx de BT en Fuera de Punta | K139: =IF(K$22="","",OFFSET($A$273,$E139-1,COLUMN()-1,)) -> 0.0499 | L139: =IF(L$22="","",OFFSET($A$273,$E139-1,COLUMN()-1,)) -> 0.2118 | M139: 0.087 | N139: 0.0206 | O139: 0.2232 | P139: 0.0586 | Q139: 0.0479 | R139: 0.0648 | S139: 0.0247 | T139: 0.0292 | U139: 0.0055 | V139: 0.0573 | W139: 0.0443 | X139: 0.0199 | Y139: 0.0656 | Z139: 0.2243 | AA139: 0.2061 | AB139: 0.024 | AC139: 0.0236 | AD139: 0.036 | AE139: 0.0441 | AF139: 0.0102 | AG139: 0.0388 | AH139: 0.0224 | AI139: 0.0268 | AJ139: 0.0541 | AK139: 0.0055 | AL139: 0.0016 | AM139: 0.0403 | AN139: 0.152 | AO139: 0.28 | AP139: 0.1795
F140: =F78 -> 0.00688701628 | I140: Var(Pj) | J140: = Varianza de la Potencia coincidente con la máx de la Categoría
F141: =F79 ->  | I141: Var(Pj*) | J141: = Varianza de la Potencia coincidente con la máx de la Categoría Unificada
F142: =VAR(K139:XFD139) -> 0.006060396613 | I142: Var (Ph*) | J142: =Varianza de la Potencia Coincidente con el máx de BT en Fuera de Punta
F143: =COVAR(K75:XFD75,K139:XFD139) -> 0.00531904793 | I143: Cov (Pj;Ph*) | J143: =Covarianza entre la Pot Coinc con máx Categ y la Coinc con máx de BT
F144: =COVAR(K76:XFD76,K139:XFD139) ->  | I144: Cov (Pj*;Ph*) | J144: =Covarianza entre la Pot Coinc con máx Categ Unif y la Coinc con máx de BT
F146: =F75 -> 0.069828125 | H146: FSE(MT)FP | I146: Pj | J146: = Potencia promedio coincidente con la máx de la Categoría en Fuera de Punta
F147: =F76 ->  | I147: Pj* | J147: = Potencia promedio coincidente con la máx de la Categoría Unificada en Fuera de Punta
C148: ='[2]Balance de Potencia'!$F$697 -> Viernes | D148: ='[2]Balance de Potencia'!$F$696 -> 19:15:00 | E148: =MATCH(C148&ROUND(D148,10),$A$273:$A$944,0) -> 558 | F148: =AVERAGE(K148:XFD148) -> 0.058834375 | I148: P(h*) | J148: = Potencia promedio coincidente con el máx de MT en Fuera de Punta | K148: =IF(K$22="","",OFFSET($A$273,$E148-1,COLUMN()-1,)) -> 0.1343 | L148: =IF(L$22="","",OFFSET($A$273,$E148-1,COLUMN()-1,)) -> 0.1945 | M148: 0.0863 | N148: 0.0163 | O148: 0.255 | P148: 0.0191 | Q148: 0.0305 | R148: 0.0612 | S148: 0.0046 | T148: 0.0126 | U148: 0.0063 | V148: 0.0228 | W148: 0.0386 | X148: 0.0062 | Y148: 0.0355 | Z148: 0.0821 | AA148: 0.208 | AB148: 0.0166 | AC148: 0.01 | AD148: 0.0362 | AE148: 0.0153 | AF148: 0.0087 | AG148: 0.006 | AH148: 0.0242 | AI148: 0.0063 | AJ148: 0.0571 | AK148: 0.0054 | AL148: 0.0174 | AM148: 0.0441 | AN148: 0.0457 | AO148: 0.1942 | AP148: 0.1816
F149: =F78 -> 0.00688701628 | I149: Var(Pj) | J149: = Varianza de la Potencia coincidente con la máx de la Categoría
F150: =F79 ->  | I150: Var(Pj*) | J150: = Varianza de la Potencia coincidente con la máx de la Categoría Unificada
F151: =VAR(K148:XFD148) -> 0.005076954587 | I151: Var (Ph*) | J151: =Varianza de la Potencia Coincidente con el máx de MT en Fuera de Punta
F152: =COVAR(K75:XFD75,K148:XFD148) -> 0.004176620596 | I152: Cov (Pj;Ph*) | J152: =Covarianza entre la Pot Coinc con máx Categ y la Coinc con máx de MT
F153: =COVAR(K76:XFD76,K148:XFD148) ->  | I153: Cov (Pj*;Ph*) | J153: =Covarianza entre la Pot Coinc con máx Categ Unif y la Coinc con máx de MT
F155: =F75 -> 0.069828125 | H155: FSE(AT)FP | I155: Pj | J155: = Potencia promedio coincidente con la máx de la Categoría en Fuera de Punta
F156: =F76 ->  | I156: Pj* | J156: = Potencia promedio coincidente con la máx de la Categoría Unificada en Fuera de Punta
C157: ='[2]Balance de Potencia'!$G$697 -> Viernes | D157: ='[2]Balance de Potencia'!$G$696 -> 19:15:00 | E157: =MATCH(C157&ROUND(D157,10),$A$273:$A$944,0) -> 558 | F157: =AVERAGE(K157:XFD157) -> 0.058834375 | I157: P(h*) | J157: = Potencia promedio coincidente con el máx de AT en Fuera de Punta | K157: =IF(K$22="","",OFFSET($A$273,$E157-1,COLUMN()-1,)) -> 0.1343 | L157: =IF(L$22="","",OFFSET($A$273,$E157-1,COLUMN()-1,)) -> 0.1945 | M157: 0.0863 | N157: 0.0163 | O157: 0.255 | P157: 0.0191 | Q157: 0.0305 | R157: 0.0612 | S157: 0.0046 | T157: 0.0126 | U157: 0.0063 | V157: 0.0228 | W157: 0.0386 | X157: 0.0062 | Y157: 0.0355 | Z157: 0.0821 | AA157: 0.208 | AB157: 0.0166 | AC157: 0.01 | AD157: 0.0362 | AE157: 0.0153 | AF157: 0.0087 | AG157: 0.006 | AH157: 0.0242 | AI157: 0.0063 | AJ157: 0.0571 | AK157: 0.0054 | AL157: 0.0174 | AM157: 0.0441 | AN157: 0.0457 | AO157: 0.1942 | AP157: 0.1816
F158: =F78 -> 0.00688701628 | I158: Var(Pj) | J158: = Varianza de la Potencia coincidente con la máx de la Categoría
F159: =F79 ->  | I159: Var(Pj*) | J159: = Varianza de la Potencia coincidente con la máx de la Categoría Unificada
F160: =VAR(K157:XFD157) -> 0.005076954587 | I160: Var (Ph*) | J160: =Varianza de la Potencia Coincidente con el máx de AT en Punta
F161: =COVAR(K75:XFD75,K157:XFD157) -> 0.004176620596 | I161: Cov (Pj;Ph*) | J161: =Covarianza entre la Pot Coinc con máx Categ y la Coinc con máx de AT
F162: =COVAR(K76:XFD76,K157:XFD157) ->  | I162: Cov (Pj*;Ph*) | J162: =Covarianza entre la Pot Coinc con máx Categ Unif y la Coinc con máx de AT
F164: =AVERAGE(K164:XFD164) -> 39.49465937 | H164: FdeP | I164: Pj | J164: = Potencia activa | K164: =+IF(SUM(K$273:K$944)=0,"",SUM(K$273:K$944)) -> 47.3501 | L164: =+IF(SUM(L$273:L$944)=0,"",SUM(L$273:L$944)) -> 126.6099 | M164: 38.3174 | N164: 6.418 | O164: 131.6413 | P164: 27.1773 | Q164: 39.1791 | R164: 27.9214 | S164: 15.003 | T164: 14.5965 | U164: 4.2889 | V164: 27.7053 | W164: 25.8548 | X164: 14.9842 | Y164: 18.6255 | Z164: 76.8891 | AA164: 134.6064 | AB164: 17.3635 | AC164: 15.0157 | AD164: 14.2615 | AE164: 15.0844 | AF164: 4.5381 | AG164: 16.6343 | AH164: 19.1476 | AI164: 10.8063 | AJ164: 26.5594 | AK164: 3.4248 | AL164: 6.8965 | AM164: 18.8204 | AN164: 87.4154 | AO164: 117.7722 | AP164: 112.9208
F165: =AVERAGE(K165:XFD165) ->  | I165: P(h*) | J165: = Potencia aparente | K165: =IF(SUM(K$273:K$944)=0,"",(K164^2+K169^2)^0.5) ->  | L165: =IF(SUM(L$273:L$944)=0,"",(L164^2+L169^2)^0.5) ->  | T165: =IF(SUM(T$273:T$944)=0,"",(T164^2+T169^2)^0.5) -> 
F166: =VAR(K164:XFD164) -> 1737.575776 | I166: Var(Pj) | J166: =Varianza de la Potencia Activa
F167: =VAR(K165:XFD165) ->  | I167: Var(Ph*) | J167: =Varianza de la Potencia Aparente
F168: =COVAR(K164:XFD164,K165:XFD165) ->  | I168: Cov(Pj;Ph*) | J168: =Covarianza entre la Potencia Activa y la Potencia Aparente
J169: =Potencia reactiva | K169: =INDEX([3]resumen!$E$8:$SJ$207,MATCH($F$5&" "&$F$6,[3]resumen!$C$8:$C$207,0),MATCH(K264,[3]resumen!$E$2:$SJ$2,0)) ->  | L169: =INDEX([3]resumen!$E$8:$SJ$207,MATCH($F$5&" "&$F$6,[3]resumen!$C$8:$C$207,0),MATCH(L264,[3]resumen!$E$2:$SJ$2,0)) ->  | M169: =INDEX([3]resumen!$E$8:$SJ$207,MATCH($F$5&" "&$F$6,[3]resumen!$C$8:$C$207,0),MATCH(M264,[3]resumen!$E$2:$SJ$2,0)) ->  | N169: =INDEX([3]resumen!$E$8:$SJ$207,MATCH($F$5&" "&$F$6,[3]resumen!$C$8:$C$207,0),MATCH(N264,[3]resumen!$E$2:$SJ$2,0)) ->  | O169: =INDEX([3]resumen!$E$8:$SJ$207,MATCH($F$5&" "&$F$6,[3]resumen!$C$8:$C$207,0),MATCH(O264,[3]resumen!$E$2:$SJ$2,0)) ->  | P169: =INDEX([3]resumen!$E$8:$SJ$207,MATCH($F$5&" "&$F$6,[3]resumen!$C$8:$C$207,0),MATCH(P264,[3]resumen!$E$2:$SJ$2,0)) ->  | Q169: =INDEX([3]resumen!$E$8:$SJ$207,MATCH($F$5&" "&$F$6,[3]resumen!$C$8:$C$207,0),MATCH(Q264,[3]resumen!$E$2:$SJ$2,0)) ->  | R169: =INDEX([3]resumen!$E$8:$SJ$207,MATCH($F$5&" "&$F$6,[3]resumen!$C$8:$C$207,0),MATCH(R264,[3]resumen!$E$2:$SJ$2,0)) ->  | S169: =INDEX([3]resumen!$E$8:$SJ$207,MATCH($F$5&" "&$F$6,[3]resumen!$C$8:$C$207,0),MATCH(S264,[3]resumen!$E$2:$SJ$2,0)) ->  | T169: =INDEX([3]resumen!$E$8:$SJ$207,MATCH($F$5&" "&$F$6,[3]resumen!$C$8:$C$207,0),MATCH(T264,[3]resumen!$E$2:$SJ$2,0)) ->  | U169: =INDEX([3]resumen!$E$8:$SJ$207,MATCH($F$5&" "&$F$6,[3]resumen!$C$8:$C$207,0),MATCH(U264,[3]resumen!$E$2:$SJ$2,0)) ->  | V169: =INDEX([3]resumen!$E$8:$SJ$207,MATCH($F$5&" "&$F$6,[3]resumen!$C$8:$C$207,0),MATCH(V264,[3]resumen!$E$2:$SJ$2,0)) ->  | W169: =INDEX([3]resumen!$E$8:$SJ$207,MATCH($F$5&" "&$F$6,[3]resumen!$C$8:$C$207,0),MATCH(W264,[3]resumen!$E$2:$SJ$2,0)) ->  | X169: =INDEX([3]resumen!$E$8:$SJ$207,MATCH($F$5&" "&$F$6,[3]resumen!$C$8:$C$207,0),MATCH(X264,[3]resumen!$E$2:$SJ$2,0)) ->  | Y169: =INDEX([3]resumen!$E$8:$SJ$207,MATCH($F$5&" "&$F$6,[3]resumen!$C$8:$C$207,0),MATCH(Y264,[3]resumen!$E$2:$SJ$2,0)) ->  | Z169: =INDEX([3]resumen!$E$8:$SJ$207,MATCH($F$5&" "&$F$6,[3]resumen!$C$8:$C$207,0),MATCH(Z264,[3]resumen!$E$2:$SJ$2,0)) ->  | AA169: =INDEX([3]resumen!$E$8:$SJ$207,MATCH($F$5&" "&$F$6,[3]resumen!$C$8:$C$207,0),MATCH(AA264,[3]resumen!$E$2:$SJ$2,0)) ->  | AB169: =INDEX([3]resumen!$E$8:$SJ$207,MATCH($F$5&" "&$F$6,[3]resumen!$C$8:$C$207,0),MATCH(AB264,[3]resumen!$E$2:$SJ$2,0)) ->  | AC169: =INDEX([3]resumen!$E$8:$SJ$207,MATCH($F$5&" "&$F$6,[3]resumen!$C$8:$C$207,0),MATCH(AC264,[3]resumen!$E$2:$SJ$2,0)) ->  | AD169: =INDEX([3]resumen!$E$8:$SJ$207,MATCH($F$5&" "&$F$6,[3]resumen!$C$8:$C$207,0),MATCH(AD264,[3]resumen!$E$2:$SJ$2,0)) ->  | AE169: =INDEX([3]resumen!$E$8:$SJ$207,MATCH($F$5&" "&$F$6,[3]resumen!$C$8:$C$207,0),MATCH(AE264,[3]resumen!$E$2:$SJ$2,0)) ->  | AF169: =INDEX([3]resumen!$E$8:$SJ$207,MATCH($F$5&" "&$F$6,[3]resumen!$C$8:$C$207,0),MATCH(AF264,[3]resumen!$E$2:$SJ$2,0)) ->  | AG169: =INDEX([3]resumen!$E$8:$SJ$207,MATCH($F$5&" "&$F$6,[3]resumen!$C$8:$C$207,0),MATCH(AG264,[3]resumen!$E$2:$SJ$2,0)) ->  | AH169: =INDEX([3]resumen!$E$8:$SJ$207,MATCH($F$5&" "&$F$6,[3]resumen!$C$8:$C$207,0),MATCH(AH264,[3]resumen!$E$2:$SJ$2,0)) ->  | AI169: =INDEX([3]resumen!$E$8:$SJ$207,MATCH($F$5&" "&$F$6,[3]resumen!$C$8:$C$207,0),MATCH(AI264,[3]resumen!$E$2:$SJ$2,0)) ->  | AJ169: =INDEX([3]resumen!$E$8:$SJ$207,MATCH($F$5&" "&$F$6,[3]resumen!$C$8:$C$207,0),MATCH(AJ264,[3]resumen!$E$2:$SJ$2,0)) ->  | AK169: =INDEX([3]resumen!$E$8:$SJ$207,MATCH($F$5&" "&$F$6,[3]resumen!$C$8:$C$207,0),MATCH(AK264,[3]resumen!$E$2:$SJ$2,0)) ->  | AL169: =INDEX([3]resumen!$E$8:$SJ$207,MATCH($F$5&" "&$F$6,[3]resumen!$C$8:$C$207,0),MATCH(AL264,[3]resumen!$E$2:$SJ$2,0)) ->  | AM169: =INDEX([3]resumen!$E$8:$SJ$207,MATCH($F$5&" "&$F$6,[3]resumen!$C$8:$C$207,0),MATCH(AM264,[3]resumen!$E$2:$SJ$2,0)) ->  | AN169: =INDEX([3]resumen!$E$8:$SJ$207,MATCH($F$5&" "&$F$6,[3]resumen!$C$8:$C$207,0),MATCH(AN264,[3]resumen!$E$2:$SJ$2,0)) ->  | AO169: =INDEX([3]resumen!$E$8:$SJ$207,MATCH($F$5&" "&$F$6,[3]resumen!$C$8:$C$207,0),MATCH(AO264,[3]resumen!$E$2:$SJ$2,0)) ->  | AP169: =INDEX([3]resumen!$E$8:$SJ$207,MATCH($F$5&" "&$F$6,[3]resumen!$C$8:$C$207,0),MATCH(AP264,[3]resumen!$E$2:$SJ$2,0)) -> 
F170: CATEGORÍAS CON MEDICIÓN DE ENERGÍA
F171: =F23 -> 0.069828125 | H171: FSE(BT)P | I171: Pj | J171: = Potencia promedio coincidente con la máx de la Categoría
F172: =F24 ->  | I172: Pj* | J172: = Potencia promedio coincidente con la máx de la Categoría Unificada
C173: ='[2]Balance de Potencia'!$E$690 -> Lunes | D173: ='[2]Balance de Potencia'!$E$689 -> 13:45:00 | E173: =MATCH(C173&ROUND(D173,10),$A$273:$A$944,0) -> 152 | F173: =F112 -> 0.05243125 | I173: P(h*) | J173: = Potencia promedio coincidente con el máx de BT en Punta
F174: =F26 -> 0.00688701628 | I174: Var(Pj) | J174: = Varianza de la Potencia coincidente con la máx de la Categoría
F175: =F27 ->  | I175: Var(Pj*) | J175: = Varianza de la Potencia coincidente con la máx de la Categoría Unificada
F176: =F115 -> 0.003598502218 | I176: Var (Ph*) | J176: =Varianza de la Potencia Coincidente con el máx de BT en Punta
F177: =COVAR(K23:XFD23,K112:XFD112) -> 0.004491681934 | I177: Cov (Pj;Ph*) | J177: =Covarianza entre la Pot Coinc con máx Categ y la Coinc con máx de BT
F178: =COVAR(K24:XFD24,K112:XFD112) ->  | I178: Cov (Pj*;Ph*) | J178: =Covarianza entre la Pot Coinc con máx Categ Unif y la Coinc con máx de BT
F180: =F23 -> 0.069828125 | H180: FSE(MT)P | I180: Pj | J180: = Potencia promedio coincidente con la máx de la Categoría
F181: =F24 ->  | I181: Pj* | J181: = Potencia promedio coincidente con la máx de la Categoría Unificada
C182: ='[2]Balance de Potencia'!$F$690 -> Lunes | D182: ='[2]Balance de Potencia'!$F$689 -> 13:45:00 | E182: =MATCH(C182&ROUND(D182,10),$A$273:$A$944,0) -> 152 | F182: =F121 -> 0.05243125 | I182: P(h*) | J182: = Potencia promedio coincidente con el máx de MT en Punta
F183: =F26 -> 0.00688701628 | I183: Var(Pj) | J183: = Varianza de la Potencia coincidente con la máx de la Categoría
F184: =F27 ->  | I184: Var(Pj*) | J184: = Varianza de la Potencia coincidente con la máx de la Categoría Unificada
F185: =F124 -> 0.003598502218 | I185: Var (Ph*) | J185: =Varianza de la Potencia Coincidente con el máx de MT en Punta
F186: =COVAR(K23:XFD23,K121:XFD121) -> 0.004491681934 | I186: Cov (Pj;Ph*) | J186: =Covarianza entre la Pot Coinc con máx Categ y la Coinc con máx de MT
F187: =COVAR(K24:XFD24,K121:XFD121) ->  | I187: Cov (Pj*;Ph*) | J187: =Covarianza entre la Pot Coinc con máx Categ Unif y la Coinc con máx de MT
F189: =F23 -> 0.069828125 | H189: FSE(AT)P | I189: Pj | J189: = Potencia promedio coincidente con la máx de la Categoría
F190: =F24 ->  | I190: Pj* | J190: = Potencia promedio coincidente con la máx de la Categoría Unificada
C191: ='[2]Balance de Potencia'!$G$690 -> Lunes | D191: ='[2]Balance de Potencia'!$G$689 -> 13:45:00 | E191: =MATCH(C191&ROUND(D191,10),$A$273:$A$944,0) -> 152 | F191: =F130 -> 0.05243125 | I191: P(h*) | J191: = Potencia promedio coincidente con el máx de AT en Punta
F192: =F26 -> 0.00688701628 | I192: Var(Pj) | J192: = Varianza de la Potencia coincidente con la máx de la Categoría
F193: =F27 ->  | I193: Var(Pj*) | J193: = Varianza de la Potencia coincidente con la máx de la Categoría Unificada
F194: =F133 -> 0.003598502218 | I194: Var (Ph*) | J194: =Varianza de la Potencia Coincidente con el máx de AT en Punta
F195: =COVAR(K23:XFD23,K130:XFD130) -> 0.004491681934 | I195: Cov (Pj;Ph*) | J195: =Covarianza entre la Pot Coinc con máx Categ y la Coinc con máx de AT
F196: =COVAR(K24:XFD24,K130:XFD130) ->  | I196: Cov (Pj*;Ph*) | J196: =Covarianza entre la Pot Coinc con máx Categ Unif y la Coinc con máx de AT
F198: =F23 -> 0.069828125 | H198: FSE(BT)FP | I198: Pj | J198: = Potencia promedio coincidente con la máx de la Categoría
F199: =F24 ->  | I199: Pj* | J199: = Potencia promedio coincidente con la máx de la Categoría Unificada
C200: ='[2]Balance de Potencia'!$E$697 -> Martes | D200: ='[2]Balance de Potencia'!$E$696 -> 20:30:00 | E200: =MATCH(C200&ROUND(D200,10),$A$273:$A$944,0) -> 275 | F200: =F139 -> 0.0743625 | I200: P(h*) | J200: = Potencia promedio coincidente con el máx de BT en Fuera de Punta
F201: =F26 -> 0.00688701628 | I201: Var(Pj) | J201: = Varianza de la Potencia coincidente con la máx de la Categoría
F202: =F27 ->  | I202: Var(Pj*) | J202: = Varianza de la Potencia coincidente con la máx de la Categoría Unificada
F203: =F142 -> 0.006060396613 | I203: Var (Ph*) | J203: =Varianza de la Potencia Coincidente con el máx de BT en Fuera de Punta
F204: =COVAR(K23:XFD23,K139:XFD139) -> 0.00531904793 | I204: Cov (Pj;Ph*) | J204: =Covarianza entre la Pot Coinc con máx Categ y la Coinc con máx de BT
F205: =COVAR(K24:XFD24,K139:XFD139) ->  | I205: Cov (Pj*;Ph*) | J205: =Covarianza entre la Pot Coinc con máx Categ Unif y la Coinc con máx de BT
F207: =F23 -> 0.069828125 | H207: FSE(MT)FP | I207: Pj | J207: = Potencia promedio coincidente con la máx de la Categoría
F208: =F24 ->  | I208: Pj* | J208: = Potencia promedio coincidente con la máx de la Categoría Unificada
C209: ='[2]Balance de Potencia'!$F$697 -> Viernes | D209: ='[2]Balance de Potencia'!$F$696 -> 19:15:00 | E209: =MATCH(C209&ROUND(D209,10),$A$273:$A$944,0) -> 558 | F209: =F148 -> 0.058834375 | I209: P(h*) | J209: = Potencia promedio coincidente con el máx de MT en Fuera de Punta
F210: =F26 -> 0.00688701628 | I210: Var(Pj) | J210: = Varianza de la Potencia coincidente con la máx de la Categoría
F211: =F27 ->  | I211: Var(Pj*) | J211: = Varianza de la Potencia coincidente con la máx de la Categoría Unificada
F212: =F151 -> 0.005076954587 | I212: Var (Ph*) | J212: =Varianza de la Potencia Coincidente con el máx de MT en Fuera de Punta
F213: =COVAR(K23:XFD23,K148:XFD148) -> 0.004176620596 | I213: Cov (Pj;Ph*) | J213: =Covarianza entre la Pot Coinc con máx Categ y la Coinc con máx de MT
F214: =COVAR(K24:XFD24,K148:XFD148) ->  | I214: Cov (Pj*;Ph*) | J214: =Covarianza entre la Pot Coinc con máx Categ Unif y la Coinc con máx de MT
F216: =F23 -> 0.069828125 | H216: FSE(AT)FP | I216: Pj | J216: = Potencia promedio coincidente con la máx de la Categoría
F217: =F24 ->  | I217: Pj* | J217: = Potencia promedio coincidente con la máx de la Categoría Unificada
C218: ='[2]Balance de Potencia'!$G$697 -> Viernes | D218: ='[2]Balance de Potencia'!$G$696 -> 19:15:00 | E218: =MATCH(C218&ROUND(D218,10),$A$273:$A$944,0) -> 558 | F218: =F157 -> 0.058834375 | I218: P(h*) | J218: = Potencia promedio coincidente con el máx de AT en Fuera de Punta
F219: =F26 -> 0.00688701628 | I219: Var(Pj) | J219: = Varianza de la Potencia coincidente con la máx de la Categoría
F220: =F27 ->  | I220: Var(Pj*) | J220: = Varianza de la Potencia coincidente con la máx de la Categoría Unificada
F221: =F160 -> 0.005076954587 | I221: Var (Ph*) | J221: =Varianza de la Potencia Coincidente con el máx de AT en Punta
F222: =COVAR(K23:XFD23,K157:XFD157) -> 0.004176620596 | I222: Cov (Pj;Ph*) | J222: =Covarianza entre la Pot Coinc con máx Categ y la Coinc con máx de AT
F223: =COVAR(K24:XFD24,K157:XFD157) ->  | I223: Cov (Pj*;Ph*) | J223: =Covarianza entre la Pot Coinc con máx Categ Unif y la Coinc con máx de AT
F224: CATEGORÍAS CON MEDICIÓN DE POTENCIA MÁXIMA
F225: =F37 -> 0.187328125 | H225: FSI-P | I225: Pj | J225: = Promedio de la Potencia Máxima de cada usuario
... 713 more rows

Sheet BTS_R 2
B1: =[1]DATOS!$B$3 -> ENSA
B2: Estudio de Caracterización de la Carga
B4: Categoría Unificada | F4: BTS_R
B5: Grupo Homogeneo | F5: BTS_R
B6: Estrato | F6: 2
B7: Identificador hora punta | F7: P
B8: Determinación de Parámetros de las Mediciones del Grupo Homogéneo y Estrato
E10: P | F10: =AVERAGE(K10:XFD10) -> 5.989044937 | H10: Estructura de Consumo | I10: ep | J10: =Energía Promedio Semanal en Punta | K10: =+IF(SUM(K$273:K$944)/4=0,"",SUMIF($E$273:$E$944,$E10,K$273:K$944)/4) -> 15.842875 | L10: =+IF(SUM(L$273:L$944)/4=0,"",SUMIF($E$273:$E$944,$E10,L$273:L$944)/4) -> 12.014825 | M10: 6.91725 | N10: 2.932475 | O10: 7.829675 | P10: 3.1193 | Q10: 3.92065 | R10: 7.909125 | S10: 2.34055 | T10: 5.207275 | U10: 3.233575 | V10: 3.972125 | W10: 5.464075 | X10: 3.75365 | Y10: 2.76495 | Z10: 12.43635 | AA10: 3.9044 | AB10: =+IF(SUM(AB$273:AB$944)/4=0,"",SUMIF($E$273:$E$944,$E10,AB$273:AB$944)/4) -> 3.205625 | AC10: 2.52215 | AD10: 2.9418 | AE10: 5.37125 | AF10: 4.686375 | AG10: 11.550425 | AH10: 3.348875 | AI10: 3.309375 | AJ10: 2.9098 | AK10: 12.6434 | AL10: 20.5745 | AM10: 2.9417 | AN10: 2.4855 | AO10: 4.53015 | AP10: 2.49075 | AQ10: 4.6762 | AR10: 1.99555 | AS10: 4.96355 | AT10: 5.990625 | AU10: 3.704775 | AV10: 3.891125 | AW10: 2.8229 | AX10: 3.23915 | AY10: 6.69955 | AZ10: 12.13435 | BA10: 2.546075 | BB10: 3.447475 | BC10: 5.02715 | BD10: 5.564925 | BE10: 10.24095 | BF10: 13.324925 | BG10: 3.7861 | BH10: 6.077025 | BI10: 3.9576 | BJ10: 3.595875 | BK10: 2.43945 | BL10: 3.2499 | BM10: 9.204675 | BN10: 8.985775 | BO10: 4.201925 | BP10: 7.32785 | BQ10: 5.056875 | BR10: 2.744275 | BS10: 7.38685 | BT10: 11.9015 | BU10: 3.3831 | BV10: 4.6134 | BW10: 8.842775 | BX10: 2.26525 | BY10: 3.981725 | BZ10: 3.418525 | CA10: 4.768575 | CB10: 8.803 | CC10: 4.651275 | CD10: 6.434875 | CE10: 1.013325 | CF10: 18.293 | CG10: 2.0932 | CH10: 11.51005 | CI10: 9.597875 | CJ10: 11.4362 | CK10: 8.76865
E11: R | F11: =AVERAGE(K11:XFD11) -> 9.614546835 | I11: er | J11: =Energía Promedio Semanal en Resto | K11: =+IF(SUM(K$273:K$944)/4=0,"",SUMIF($E$273:$E$944,$E11,K$273:K$944)/4) -> 22.884875 | L11: 18.810425 | M11: 12.153475 | N11: 6.7917 | O11: 17.026675 | P11: 4.61055 | Q11: 6.9885 | R11: 11.0634 | S11: 3.441575 | T11: 7.569975 | U11: =+IF(SUM(U$273:U$944)/4=0,"",SUMIF($E$273:$E$944,$E11,U$273:U$944)/4) -> 4.76795 | V11: 7.564425 | W11: 6.545025 | X11: 7.369 | Y11: 4.892875 | Z11: 16.810275 | AA11: 5.8404 | AB11: 5.037125 | AC11: 3.7876 | AD11: 4.4477 | AE11: 5.88885 | AF11: 8.46565 | AG11: 20.302175 | AH11: 6.970875 | AI11: 6.96865 | AJ11: 4.77745 | AK11: 21.29825 | AL11: 14.732225 | AM11: 4.432725 | AN11: 3.8077 | AO11: 7.6773 | AP11: 5.626625 | AQ11: 6.8411 | AR11: 3.8433 | AS11: 8.82675 | AT11: 8.92625 | AU11: 5.43585 | AV11: 7.142825 | AW11: 4.231525 | AX11: 5.8776 | AY11: 15.667175 | AZ11: 19.5859 | BA11: 4.9954 | BB11: 4.870875 | BC11: 7.9565 | BD11: 10.177575 | BE11: 15.29805 | BF11: 16.5795 | BG11: 6.049325 | BH11: 9.2074 | BI11: 7.664725 | BJ11: 5.907075 | BK11: 3.7682 | BL11: 6.764675 | BM11: 14.127 | BN11: 10.0696 | BO11: 8.0001 | BP11: 12.279475 | BQ11: 7.82705 | BR11: 4.7466 | BS11: 12.418175 | BT11: 20.703925 | BU11: 3.97155 | BV11: 7.754875 | BW11: 13.83775 | BX11: 4.314525 | BY11: 7.26955 | BZ11: 6.127875 | CA11: 7.20075 | CB11: 16.565925 | CC11: 5.6937 | CD11: 11.6494 | CE11: 6.368825 | CF11: 25.02815 | CG11: 4.219175 | CH11: 19.942925 | CI11: 19.81225 | CJ11: 18.26 | CK11: 16.390475
E12: V | F12: =AVERAGE(K12:XFD12) -> 11.26067373 | I12: ev | J12: =Energía Promedio Semanal en Valle | K12: =+IF(SUM(K$273:K$944)/4=0,"",SUMIF($E$273:$E$944,$E12,K$273:K$944)/4) -> 26.997575 | L12: 14.4116 | M12: 6.142875 | N12: 9.2349 | O12: 25.42615 | P12: 4.98695 | Q12: 7.045775 | R12: 14.18875 | S12: 4.6368 | T12: 6.783775 | U12: 4.571075 | V12: 8.724225 | W12: 8.7147 | X12: 9.190525 | Y12: 5.3748 | Z12: 19.138125 | AA12: 8.68405 | AB12: 7.40865 | AC12: 6.036425 | AD12: 4.634575 | AE12: 8.39385 | AF12: 6.378675 | AG12: 23.6048 | AH12: 8.397175 | AI12: 12.00275 | AJ12: 4.7902 | AK12: 20.7977 | AL12: 13.140375 | AM12: 4.391675 | AN12: 3.862975 | AO12: 10.084575 | AP12: 6.09715 | AQ12: 6.66855 | AR12: 5.41925 | AS12: 9.636325 | AT12: 10.737975 | AU12: 6.782075 | AV12: 7.436725 | AW12: 5.0325 | AX12: 7.31865 | AY12: 23.81645 | AZ12: 22.2246 | BA12: 6.801975 | BB12: 6.05905 | BC12: 7.804825 | BD12: 10.0035 | BE12: 18.43595 | BF12: 20.983425 | BG12: 7.02025 | BH12: 14.724775 | BI12: 9.247 | BJ12: 8.331675 | BK12: 5.251125 | BL12: 8.8126 | BM12: 19.743 | BN12: 13.870225 | BO12: 10.4986 | BP12: 13.23135 | BQ12: 7.600975 | BR12: 5.390225 | BS12: 13.947275 | BT12: 24.279125 | BU12: 4.4231 | BV12: 7.927125 | BW12: 17.138625 | BX12: 4.2306 | BY12: 7.59255 | BZ12: 8.360525 | CA12: 8.359975 | CB12: 20.526725 | CC12: 9.653575 | CD12: 12.816175 | CE12: 10.08185 | CF12: 24.553125 | CG12: 6.496375 | CH12: 22.784225 | CI12: 20.263875 | CJ12: 24.465275 | CK12: 18.5353
F13: =AVERAGE(K13:XFD13) -> 26.86426551 | I13: et | J13: =Energía Promedio Semanal (Total) | K13: =+IF(SUM(K273:K944)/4=0,"",SUM(K273:K944)/4) -> 65.725325 | L13: 45.23685 | M13: 25.2136 | N13: 18.959075 | O13: 50.2825 | P13: 12.7168 | Q13: 17.954925 | R13: 33.161275 | S13: 10.418925 | T13: =+IF(SUM(T273:T944)/4=0,"",SUM(T273:T944)/4) -> 19.561025 | U13: 12.5726 | V13: 20.260775 | W13: 20.7238 | X13: 20.313175 | Y13: 13.032625 | Z13: 48.38475 | AA13: 18.42885 | AB13: 15.6514 | AC13: 12.346175 | AD13: 12.024075 | AE13: 19.65395 | AF13: 19.5307 | AG13: 55.4574 | AH13: 18.716925 | AI13: 22.280775 | AJ13: 12.47745 | AK13: 54.73935 | AL13: 48.4471 | AM13: 11.7661 | AN13: 10.156175 | AO13: 22.292025 | AP13: 14.214525 | AQ13: 18.18585 | AR13: 11.2581 | AS13: 23.426625 | AT13: 25.65485 | AU13: 15.9227 | AV13: 18.470675 | AW13: 12.086925 | AX13: 16.4354 | AY13: 46.183175 | AZ13: 53.94485 | BA13: 14.34345 | BB13: 14.3774 | BC13: 20.788475 | BD13: 25.746 | BE13: 43.97495 | BF13: 50.88785 | BG13: 16.855675 | BH13: 30.0092 | BI13: 20.869325 | BJ13: 17.834625 | BK13: 11.458775 | BL13: 18.827175 | BM13: 43.074675 | BN13: 32.9256 | BO13: 22.700625 | BP13: 32.838675 | BQ13: 20.4849 | BR13: 12.8811 | BS13: 33.7523 | BT13: 56.88455 | BU13: 11.77775 | BV13: 20.2954 | BW13: 39.81915 | BX13: 10.810375 | BY13: 18.843825 | BZ13: 17.906925 | CA13: 20.3293 | CB13: 45.89565 | CC13: 19.99855 | CD13: 30.90045 | CE13: 17.464 | CF13: =+IF(SUM(CF273:CF944)/4=0,"",SUM(CF273:CF944)/4) -> 67.874275 | CG13: 12.80875 | CH13: 54.2372 | CI13: 49.674 | CJ13: 54.161475 | CK13: 43.694425
F14: =VAR(K10:XFD10) -> 15.85765531 | I14: Var (ep) | J14: =Varianza de la Energía Semanal en Punta
F15: =VAR(K11:XFD11) -> 31.31241142 | I15: Var (er) | J15: =Varianza de la Energía Semanal en Resto
F16: =VAR(K12:XFD12) -> 41.76690028 | I16: Var (ev) | J16: =Varianza de la Energía Semanal en Valle
F17: =VAR(K13:XFD13) -> 239.5168041 | I17: Var (et) | J17: =Varianza de la Energía Semanal (Total)
F18: =COVAR(K10:XFD10,$K$13:$XFD$13) -> 56.4011978 | I18: Cov (ep,et) | J18: =Covarianza entre la Energía en Punta y Total
F19: =COVAR(K11:XFD11,$K$13:$XFD$13) -> 84.42545533 | I19: Cov (er,et) | J19: =Covarianza entre la Energía en Resto y Total
F20: =COVAR(K12:XFD12,$K$13:$XFD$13) -> 95.65829269 | I20: Cov (ev,et) | J20: =Covarianza entre la Energía en Valle y Total
F22: =AVERAGE(K22:XFD22) -> 107.457062 | H22: FC | I22: Pj | J22: = Promedio de la Suma de Potencia de cada usuario | K22: =+IF(SUM(K$273:K$944)=0,"",SUM(K$273:K$944)) -> 262.9013 | L22: 180.9474 | M22: 100.8544 | N22: 75.8363 | O22: 201.13 | P22: 50.8672 | Q22: 71.8197 | R22: 132.6451 | S22: 41.6757 | T22: 78.2441 | U22: 50.2904 | V22: 81.0431 | W22: 82.8952 | X22: 81.2527 | Y22: 52.1305 | Z22: 193.539 | AA22: 73.7154 | AB22: 62.6056 | AC22: 49.3847 | AD22: 48.0963 | AE22: 78.6158 | AF22: 78.1228 | AG22: 221.8296 | AH22: 74.8677 | AI22: 89.1231 | AJ22: 49.9098 | AK22: 218.9574 | AL22: 193.7884 | AM22: 47.0644 | AN22: 40.6247 | AO22: 89.1681 | AP22: 56.8581 | AQ22: 72.7434 | AR22: 45.0324 | AS22: 93.7065 | AT22: 102.6194 | AU22: 63.6908 | AV22: 73.8827 | AW22: 48.3477 | AX22: 65.7416 | AY22: 184.7327 | AZ22: 215.7794 | BA22: 57.3738 | BB22: 57.5096 | BC22: 83.1539 | BD22: 102.984 | BE22: 175.8998 | BF22: 203.5514 | BG22: 67.4227 | BH22: 120.0368 | BI22: 83.4773 | BJ22: 71.3385 | BK22: 45.8351 | BL22: 75.3087 | BM22: 172.2987 | BN22: 131.7024 | BO22: 90.8025 | BP22: 131.3547 | BQ22: 81.9396 | BR22: 51.5244 | BS22: 135.0092 | BT22: 227.5382 | BU22: 47.111 | BV22: 81.1816 | BW22: =+IF(SUM(BW$273:BW$944)=0,"",SUM(BW$273:BW$944)) -> 159.2766 | BX22: 43.2415 | BY22: 75.3753 | BZ22: 71.6277 | CA22: 81.3172 | CB22: 183.5826 | CC22: 79.9942 | CD22: 123.6018 | CE22: 69.856 | CF22: 271.4971 | CG22: 51.235 | CH22: 216.9488 | CI22: 198.696 | CJ22: 216.6459 | CK22: 174.7777
C23: =INDEX('[2]Balance de Potencia'!$CC$683:$CV$683,1,MATCH($F$5,'[2]Balance de Potencia'!$CC$5:$CV$5,0)) -> Miércoles | D23: =INDEX('[2]Balance de Potencia'!$CC$682:$CV$682,1,MATCH($F$5,'[2]Balance de Potencia'!$CC$5:$CV$5,0)) -> 21:45:00 | E23: =MATCH(C23&ROUND(D23,10),$A$273:$A$944,0) -> 376 | F23: =AVERAGE(K23:XFD23) -> 0.1946278481 | I23: P(h*) | J23: = Potencia promedio coincidente con la máx de la Categoría | K23: =IF(K$22="","",OFFSET($A$273,$E23-1,COLUMN()-1,)) -> 0.3966 | L23: =IF(L$22="","",OFFSET($A$273,$E23-1,COLUMN()-1,)) -> 0.2543 | M23: 0.2674 | N23: 0.2322 | O23: 0.4396 | P23: 0.0963 | Q23: 0.1449 | R23: 0.096 | S23: 0.0675 | T23: 0.1489 | U23: 0.0792 | V23: 0.1488 | W23: 0.1385 | X23: 0.1052 | Y23: 0.0832 | Z23: 0.414 | AA23: 0.1566 | AB23: 0.1237 | AC23: 0.0618 | AD23: 0.0721 | AE23: 0.0865 | AF23: 0.2168 | AG23: 0.4144 | AH23: 0.1234 | AI23: 0.0847 | AJ23: 0.0945 | AK23: 0.541 | AL23: 0.2384 | AM23: 0.0589 | AN23: 0.0885 | AO23: 0.1371 | AP23: 0.0862 | AQ23: 0.268 | AR23: 0.0521 | AS23: 0.2153 | AT23: 0.1775 | AU23: 0.1133 | AV23: 0.119 | AW23: 0.0806 | AX23: 0.0877 | AY23: 0.1863 | AZ23: 0.1404 | BA23: 0.053 | BB23: 0.0738 | BC23: 0.0562 | BD23: 0.2024 | BE23: 0.3436 | BF23: 0.3183 | BG23: 0.1223 | BH23: 0.1651 | BI23: 0.0276 | BJ23: 0.1234 | BK23: 0.0608 | BL23: 0.141 | BM23: 0.2877 | BN23: 0.1872 | BO23: 0.2243 | BP23: 0.2088 | BQ23: 0.0404 | BR23: 0.1249 | BS23: 0.2158 | BT23: 0.5809 | BU23: 0.0418 | BV23: 0.059 | BW23: 0.2554 | BX23: =IF(BX$22="","",OFFSET($A$273,$E23-1,COLUMN()-1,)) -> 0.0586 | BY23: 0.1444 | BZ23: 0.1615 | CA23: 0.1358 | CB23: 0.4511 | CC23: 0.0593 | CD23: 0.1341 | CE23: 1.3501 | CF23: 0.4167 | CG23: 0.1409 | CH23: 0.3906 | CI23: 0.1643 | CJ23: 0.4052 | CK23: 0.3119
C24: =INDEX('[2]Balance de Potencia'!$BY$683:$CA$683,1,MATCH($F$4,'[2]Balance de Potencia'!$BY$5:$CA$5,0)) ->  | D24: =INDEX('[2]Balance de Potencia'!$BY$682:$CA$682,1,MATCH($F$4,'[2]Balance de Potencia'!$BY$5:$CA$5,0)) ->  | E24: =MATCH(C24&ROUND(D24,10),$A$273:$A$944,0) ->  | F24: =AVERAGE(K24:XFD24) ->  | I24: P(h**) | J24: = Potencia promedio coincidente con la máx de la Categoría Unificada | K24: =IF(K$22="","",OFFSET($A$273,$E24-1,COLUMN()-1,)) -> 
F25: =VAR(K22:XFD22) -> 3832.268866 | I25: Var (Pj) | J25: =Varianza de la Potencia Media
F26: =VAR(K23:XFD23) -> 0.03308711614 | I26: Var (Ph*) | J26: =Varianza de la Potencia Coincidente con la máx de la Categ.
F27: =VAR(K24:XFD24) ->  | I27: Var (Ph**) | J27: =Varianza de la Potencia Coincidente con la máx de la Categ.Unificada
F28: =COVAR(K23:XFD23,$K$22:$XFD$22) -> 5.841332467 | I28: Cov (Pj;Ph*) | J28: =Covarianza entre la Potencia Media y la Coincidente
F29: =COVAR(K24:XFD24,$K$22:$XFD$22) ->  | I29: Cov (Pj;Ph**) | J29: =Covarianza entre la Potencia Media y la Coincidente de la Categ. Unificada
F31: =F22 -> 107.457062 | H31: FC-estrato | I31: Pj | J31: = Promedio de la Suma de Potencia de cada usuario
E32: =MATCH(F32,$F$273:$F$944,0) -> 378 | F32: =F271 -> 0.2088683544 | I32: P(h*) | J32: = Potencia promedio coincidente con la máx del estrato | K32: =IF(K$22="","",OFFSET($A$273,$E32-1,COLUMN()-1,)) -> 0.3974 | L32: 0.2269 | M32: 0.2539 | N32: 0.1598 | O32: 0.3331 | P32: 0.0935 | Q32: 0.3575 | R32: 0.1347 | S32: 0.0669 | T32: 0.1337 | U32: 0.0647 | V32: 0.1655 | W32: 0.1103 | X32: 0.1012 | Y32: 0.0764 | Z32: 0.4119 | AA32: 0.1557 | AB32: 0.1236 | AC32: 0.0613 | AD32: 0.082 | AE32: 0.1178 | AF32: 0.2308 | AG32: 0.4204 | AH32: 0.1253 | AI32: 0.2158 | AJ32: 0.083 | AK32: 0.5303 | AL32: 0.2394 | AM32: 0.0852 | AN32: 0.0859 | AO32: 0.1211 | AP32: 0.0903 | AQ32: 0.2765 | AR32: 0.0686 | AS32: 0.2056 | AT32: 0.155 | AU32: 0.1068 | AV32: 0.0981 | AW32: 0.0917 | AX32: 0.0941 | AY32: 0.1522 | AZ32: 1.2554 | BA32: 0.0452 | BB32: 0.12 | BC32: 0.025 | BD32: 0.271 | BE32: 0.3533 | BF32: 0.2816 | BG32: 0.1506 | BH32: 0.2219 | BI32: 0.0935 | BJ32: 0.1207 | BK32: 0.0615 | BL32: 0.1404 | BM32: 0.3162 | BN32: 0.2054 | BO32: 0.2265 | BP32: 0.147 | BQ32: 0.0642 | BR32: 0.0768 | BS32: 0.24 | BT32: 0.5451 | BU32: 0.0812 | BV32: 0.0371 | BW32: =IF(BW$22="","",OFFSET($A$273,$E32-1,COLUMN()-1,)) -> 0.2823 | BX32: 0.0645 | BY32: 0.1179 | BZ32: 0.1413 | CA32: 0.1314 | CB32: 0.4014 | CC32: 0.059 | CD32: 0.1377 | CE32: 1.3315 | CF32: 0.3973 | CG32: 0.0221 | CH32: 0.4524 | CI32: 0.1453 | CJ32: 0.4085 | CK32: 0.2245
F33: =F25 -> 3832.268866 | I33: Var (Pj) | J33: =Varianza de la Potencia Media
F34: =VAR(K32:XFD32) -> 0.04600512783 | I34: Var (Ph*) | J34: =Varianza de la Potencia Coincidente con la máx del estrato
F35: =COVAR(K32:XFD32,$K$22:$XFD$22) -> 6.999959385 | I35: Cov (Pj;Ph*) | J35: =Covarianza entre la Potencia Media y la Coincidente
F37: =+AVERAGE(K37:XFD37) -> 0.5182177215 | H37: FSI | I37: Pj | J37: = Promedio de la Potencia Máxima de cada usuario | K37: =+IF(SUM(K273:K944)=0,"",MAX(K273:K944)) -> 0.5587 | L37: 0.5736 | M37: 0.6861 | N37: 1.5414 | O37: 0.7037 | P37: 0.1021 | Q37: 0.4615 | R37: 0.4882 | S37: 0.1085 | T37: =+IF(SUM(T273:T944)=0,"",MAX(T273:T944)) -> 0.2513 | U37: 0.2625 | V37: 0.2084 | W37: 0.2707 | X37: 0.3735 | Y37: 0.1672 | Z37: 0.5624 | AA37: 0.2201 | AB37: 0.2022 | AC37: 0.349 | AD37: 0.1119 | AE37: 0.3198 | AF37: 1.2316 | AG37: 0.6041 | AH37: 0.2428 | AI37: 0.4028 | AJ37: 0.3547 | AK37: 0.6569 | AL37: 2.2028 | AM37: 0.1686 | AN37: 0.1243 | AO37: 0.5069 | AP37: 0.2769 | AQ37: 0.2856 | AR37: 0.1508 | AS37: 0.2822 | AT37: 0.621 | AU37: 0.1512 | AV37: 0.3704 | AW37: 0.2028 | AX37: 0.2932 | AY37: 1.0947 | AZ37: 1.5394 | BA37: 0.2629 | BB37: 0.1507 | BC37: 0.6381 | BD37: 0.3884 | BE37: 0.418 | BF37: 1.2921 | BG37: 0.161 | BH37: 0.3306 | BI37: 0.4204 | BJ37: 0.1962 | BK37: 0.1225 | BL37: 0.2032 | BM37: 0.6981 | BN37: 0.4699 | BO37: 0.2705 | BP37: 0.8345 | BQ37: 0.3253 | BR37: 0.2886 | BS37: 0.4772 | BT37: 0.6211 | BU37: 0.2144 | BV37: 0.3369 | BW37: 0.4625 | BX37: 0.281 | BY37: 0.2201 | BZ37: 0.1799 | CA37: 0.2856 | CB37: 0.6883 | CC37: 0.3159 | CD37: 0.6494 | CE37: 1.3712 | CF37: =+IF(SUM(CF273:CF944)=0,"",MAX(CF273:CF944)) -> 0.9256 | CG37: 0.2634 | CH37: 0.7476 | CI37: 3.2749 | CJ37: 1.3427 | CK37: 0.524
F38: =+AVERAGE(K38:XFD38) -> 0.4933265823 | I38: PjFP | J38: = Promedio de la Potencia Máxima de cada usuario en horas FP | K38: =IF(SUM(K273:K944)=0,"",MAX(IF($E273:$E944<>"P",K273:K944,""))) -> 0.5587 | L38: =IF(SUM(L273:L944)=0,"",MAX(IF($E273:$E944<>"P",L273:L944,""))) -> 0.5736 | M38: =IF(SUM(M273:M944)=0,"",MAX(IF($E273:$E944<>"P",M273:M944,""))) -> 0.6861 | N38: =IF(SUM(N273:N944)=0,"",MAX(IF($E273:$E944<>"P",N273:N944,""))) -> 1.5414 | O38: =IF(SUM(O273:O944)=0,"",MAX(IF($E273:$E944<>"P",O273:O944,""))) -> 0.7037 | P38: =IF(SUM(P273:P944)=0,"",MAX(IF($E273:$E944<>"P",P273:P944,""))) -> 0.1021 | Q38: =IF(SUM(Q273:Q944)=0,"",MAX(IF($E273:$E944<>"P",Q273:Q944,""))) -> 0.3859 | R38: =IF(SUM(R273:R944)=0,"",MAX(IF($E273:$E944<>"P",R273:R944,""))) -> 0.4882 | S38: =IF(SUM(S273:S944)=0,"",MAX(IF($E273:$E944<>"P",S273:S944,""))) -> 0.1085 | T38: =IF(SUM(T273:T944)=0,"",MAX(IF($E273:$E944<>"P",T273:T944,""))) -> 0.2513 | U38: =IF(SUM(U273:U944)=0,"",MAX(IF($E273:$E944<>"P",U273:U944,""))) -> 0.2625 | V38: =IF(SUM(V273:V944)=0,"",MAX(IF($E273:$E944<>"P",V273:V944,""))) -> 0.2084 | W38: =IF(SUM(W273:W944)=0,"",MAX(IF($E273:$E944<>"P",W273:W944,""))) -> 0.2707 | X38: =IF(SUM(X273:X944)=0,"",MAX(IF($E273:$E944<>"P",X273:X944,""))) -> 0.3735 | Y38: =IF(SUM(Y273:Y944)=0,"",MAX(IF($E273:$E944<>"P",Y273:Y944,""))) -> 0.1672 | Z38: =IF(SUM(Z273:Z944)=0,"",MAX(IF($E273:$E944<>"P",Z273:Z944,""))) -> 0.5094 | AA38: =IF(SUM(AA273:AA944)=0,"",MAX(IF($E273:$E944<>"P",AA273:AA944,""))) -> 0.1785 | AB38: =IF(SUM(AB273:AB944)=0,"",MAX(IF($E273:$E944<>"P",AB273:AB944,""))) -> 0.2022 | AC38: =IF(SUM(AC273:AC944)=0,"",MAX(IF($E273:$E944<>"P",AC273:AC944,""))) -> 0.349 | AD38: =IF(SUM(AD273:AD944)=0,"",MAX(IF($E273:$E944<>"P",AD273:AD944,""))) -> 0.1107 | AE38: =IF(SUM(AE273:AE944)=0,"",MAX(IF($E273:$E944<>"P",AE273:AE944,""))) -> 0.2965 | AF38: =IF(SUM(AF273:AF944)=0,"",MAX(IF($E273:$E944<>"P",AF273:AF944,""))) -> 0.881 | AG38: =IF(SUM(AG273:AG944)=0,"",MAX(IF($E273:$E944<>"P",AG273:AG944,""))) -> 0.6041 | AH38: =IF(SUM(AH273:AH944)=0,"",MAX(IF($E273:$E944<>"P",AH273:AH944,""))) -> 0.2428 | AI38: =IF(SUM(AI273:AI944)=0,"",MAX(IF($E273:$E944<>"P",AI273:AI944,""))) -> 0.4028 | AJ38: =IF(SUM(AJ273:AJ944)=0,"",MAX(IF($E273:$E944<>"P",AJ273:AJ944,""))) -> 0.3547 | AK38: =IF(SUM(AK273:AK944)=0,"",MAX(IF($E273:$E944<>"P",AK273:AK944,""))) -> 0.6569 | AL38: =IF(SUM(AL273:AL944)=0,"",MAX(IF($E273:$E944<>"P",AL273:AL944,""))) -> 1.3235 | AM38: =IF(SUM(AM273:AM944)=0,"",MAX(IF($E273:$E944<>"P",AM273:AM944,""))) -> 0.1686 | AN38: =IF(SUM(AN273:AN944)=0,"",MAX(IF($E273:$E944<>"P",AN273:AN944,""))) -> 0.1243 | AO38: =IF(SUM(AO273:AO944)=0,"",MAX(IF($E273:$E944<>"P",AO273:AO944,""))) -> 0.5069 | AP38: =IF(SUM(AP273:AP944)=0,"",MAX(IF($E273:$E944<>"P",AP273:AP944,""))) -> 0.2769 | AQ38: =IF(SUM(AQ273:AQ944)=0,"",MAX(IF($E273:$E944<>"P",AQ273:AQ944,""))) -> 0.2856 | AR38: =IF(SUM(AR273:AR944)=0,"",MAX(IF($E273:$E944<>"P",AR273:AR944,""))) -> 0.1508 | AS38: =IF(SUM(AS273:AS944)=0,"",MAX(IF($E273:$E944<>"P",AS273:AS944,""))) -> 0.2317 | AT38: =IF(SUM(AT273:AT944)=0,"",MAX(IF($E273:$E944<>"P",AT273:AT944,""))) -> 0.6059 | AU38: =IF(SUM(AU273:AU944)=0,"",MAX(IF($E273:$E944<>"P",AU273:AU944,""))) -> 0.1512 | AV38: =IF(SUM(AV273:AV944)=0,"",MAX(IF($E273:$E944<>"P",AV273:AV944,""))) -> 0.3704 | AW38: =IF(SUM(AW273:AW944)=0,"",MAX(IF($E273:$E944<>"P",AW273:AW944,""))) -> 0.2028 | AX38: =IF(SUM(AX273:AX944)=0,"",MAX(IF($E273:$E944<>"P",AX273:AX944,""))) -> 0.2932 | AY38: =IF(SUM(AY273:AY944)=0,"",MAX(IF($E273:$E944<>"P",AY273:AY944,""))) -> 1.0947 | AZ38: =IF(SUM(AZ273:AZ944)=0,"",MAX(IF($E273:$E944<>"P",AZ273:AZ944,""))) -> 1.5394 | BA38: =IF(SUM(BA273:BA944)=0,"",MAX(IF($E273:$E944<>"P",BA273:BA944,""))) -> 0.2629 | BB38: =IF(SUM(BB273:BB944)=0,"",MAX(IF($E273:$E944<>"P",BB273:BB944,""))) -> 0.1507 | BC38: =IF(SUM(BC273:BC944)=0,"",MAX(IF($E273:$E944<>"P",BC273:BC944,""))) -> 0.6381 | BD38: =IF(SUM(BD273:BD944)=0,"",MAX(IF($E273:$E944<>"P",BD273:BD944,""))) -> 0.3884 | BE38: =IF(SUM(BE273:BE944)=0,"",MAX(IF($E273:$E944<>"P",BE273:BE944,""))) -> 0.418 | BF38: =IF(SUM(BF273:BF944)=0,"",MAX(IF($E273:$E944<>"P",BF273:BF944,""))) -> 1.2921 | BG38: =IF(SUM(BG273:BG944)=0,"",MAX(IF($E273:$E944<>"P",BG273:BG944,""))) -> 0.1564 | BH38: =IF(SUM(BH273:BH944)=0,"",MAX(IF($E273:$E944<>"P",BH273:BH944,""))) -> 0.3306 | BI38: =IF(SUM(BI273:BI944)=0,"",MAX(IF($E273:$E944<>"P",BI273:BI944,""))) -> 0.4204 | BJ38: =IF(SUM(BJ273:BJ944)=0,"",MAX(IF($E273:$E944<>"P",BJ273:BJ944,""))) -> 0.1883 | BK38: =IF(SUM(BK273:BK944)=0,"",MAX(IF($E273:$E944<>"P",BK273:BK944,""))) -> 0.1225 | BL38: =IF(SUM(BL273:BL944)=0,"",MAX(IF($E273:$E944<>"P",BL273:BL944,""))) -> 0.1913 | BM38: =IF(SUM(BM273:BM944)=0,"",MAX(IF($E273:$E944<>"P",BM273:BM944,""))) -> 0.4763 | BN38: =IF(SUM(BN273:BN944)=0,"",MAX(IF($E273:$E944<>"P",BN273:BN944,""))) -> 0.3908 | BO38: =IF(SUM(BO273:BO944)=0,"",MAX(IF($E273:$E944<>"P",BO273:BO944,""))) -> 0.2696 | BP38: =IF(SUM(BP273:BP944)=0,"",MAX(IF($E273:$E944<>"P",BP273:BP944,""))) -> 0.8345 | BQ38: =IF(SUM(BQ273:BQ944)=0,"",MAX(IF($E273:$E944<>"P",BQ273:BQ944,""))) -> 0.3253 | BR38: =IF(SUM(BR273:BR944)=0,"",MAX(IF($E273:$E944<>"P",BR273:BR944,""))) -> 0.2886 | BS38: =IF(SUM(BS273:BS944)=0,"",MAX(IF($E273:$E944<>"P",BS273:BS944,""))) -> 0.4772 | BT38: =IF(SUM(BT273:BT944)=0,"",MAX(IF($E273:$E944<>"P",BT273:BT944,""))) -> 0.6211 | BU38: =IF(SUM(BU273:BU944)=0,"",MAX(IF($E273:$E944<>"P",BU273:BU944,""))) -> 0.1618 | BV38: =IF(SUM(BV273:BV944)=0,"",MAX(IF($E273:$E944<>"P",BV273:BV944,""))) -> 0.3369 | BW38: =IF(SUM(BW273:BW944)=0,"",MAX(IF($E273:$E944<>"P",BW273:BW944,""))) -> 0.4625 | BX38: =IF(SUM(BX273:BX944)=0,"",MAX(IF($E273:$E944<>"P",BX273:BX944,""))) -> 0.281 | BY38: =IF(SUM(BY273:BY944)=0,"",MAX(IF($E273:$E944<>"P",BY273:BY944,""))) -> 0.2201 | BZ38: =IF(SUM(BZ273:BZ944)=0,"",MAX(IF($E273:$E944<>"P",BZ273:BZ944,""))) -> 0.1799 | CA38: =IF(SUM(CA273:CA944)=0,"",MAX(IF($E273:$E944<>"P",CA273:CA944,""))) -> 0.2856 | CB38: =IF(SUM(CB273:CB944)=0,"",MAX(IF($E273:$E944<>"P",CB273:CB944,""))) -> 0.6883 | CC38: =IF(SUM(CC273:CC944)=0,"",MAX(IF($E273:$E944<>"P",CC273:CC944,""))) -> 0.2185 | CD38: =IF(SUM(CD273:CD944)=0,"",MAX(IF($E273:$E944<>"P",CD273:CD944,""))) -> 0.6494 | CE38: =IF(SUM(CE273:CE944)=0,"",MAX(IF($E273:$E944<>"P",CE273:CE944,""))) -> 1.3712 | CF38: =IF(SUM(CF273:CF944)=0,"",MAX(IF($E273:$E944<>"P",CF273:CF944,""))) -> 0.9256 | CG38: =IF(SUM(CG273:CG944)=0,"",MAX(IF($E273:$E944<>"P",CG273:CG944,""))) -> 0.2634 | CH38: =IF(SUM(CH273:CH944)=0,"",MAX(IF($E273:$E944<>"P",CH273:CH944,""))) -> 0.7476 | CI38: =IF(SUM(CI273:CI944)=0,"",MAX(IF($E273:$E944<>"P",CI273:CI944,""))) -> 3.2749 | CJ38: =IF(SUM(CJ273:CJ944)=0,"",MAX(IF($E273:$E944<>"P",CJ273:CJ944,""))) -> 1.3427 | CK38: =IF(SUM(CK273:CK944)=0,"",MAX(IF($E273:$E944<>"P",CK273:CK944,""))) -> 0.524
F39: =F23 -> 0.1946278481 | I39: P(h*) | J39: = Potencia promedio coincidente con la máx de la Categoría
F40: =F24 ->  | I40: P(h**) | J40: = Potencia promedio coincidente con la máx de la Categoría Unificada
F41: =VAR(K37:XFD37) -> 0.2509392758 | I41: Var (Pj) | J41: =Varianza de la Potencia Máxima de cada Usuario
F42: =F26 -> 0.03308711614 | I42: Var (Ph*) | J42: =Varianza de la Potencia Coincidente con la máx de la Categ.
F43: =F27 ->  | I43: Var (Ph**) | J43: =Varianza de la Potencia Coincidente con la máx de la Categ. Unificada
F44: =COVAR(K23:XFD23,$K$37:$XFD$37) -> 0.03376567242 | I44: Cov (Pj;Ph*) | J44: =Covarianza entre la Potencia Máxima y la Coincidente
F45: =COVAR(K24:XFD24,$K$37:$XFD$37) ->  | I45: Cov (Pj;Ph**) | J45: =Covarianza entre la Potencia Máxima y la Coincidente de la Categ. Unificada
F47: =F37 -> 0.5182177215 | H47: FCT-BT | I47: Pj | J47: = Promedio de la Potencia Máxima de cada usuario
F48: =F85 -> 0.1669898734 | I48: P(h*) | J48: = Potencia promedio coincidente con la máx de la Baja Tensión
F49: =F41 -> 0.2509392758 | I49: Var(Pj) | J49: =Varianza de la Potencia Máxima de cada Usuario
F50: =F88 -> 0.02906032656 | I50: Var(Ph*) | J50: =Varianza de la Potencia Coincidente con el máx de BT
F51: =COVAR(K37:XFD37,K85:XFD85) -> 0.04801385309 | I51: Cov(Pj;Ph* | J51: =Covarianza entre la Potencia Máxima y la Coinc con máx de BT
F53: =F37 -> 0.5182177215 | H53: FCT-MT | I53: Pj | J53: = Promedio de la Potencia Máxima de cada usuario
F54: =F94 -> 0.1669898734 | I54: P(h*) | J54: = Potencia promedio coincidente con la máx de la Media Tensión
F55: =F41 -> 0.2509392758 | I55: Var(Pj) | J55: =Varianza de la Potencia Máxima de cada Usuario
F56: =F97 -> 0.02906032656 | I56: Var(Ph*) | J56: =Varianza de la Potencia Coincidente con el máx de MT
F57: =COVAR(K37:XFD37,K94:XFD94) -> 0.04801385309 | I57: Cov(Pj;Ph* | J57: =Covarianza entre la Potencia Máxima y la Coinc con máx de MT
F59: =F37 -> 0.5182177215 | H59: FCT-AT | I59: Pj | J59: = Promedio de la Potencia Máxima de cada usuario
F60: =F103 -> 0.1669898734 | I60: P(h*) | J60: = Potencia promedio coincidente con la máx de la Alta Tensión
F61: =F41 -> 0.2509392758 | I61: Var(Pj) | J61: =Varianza de la Potencia Máxima de cada Usuario
F62: =F106 -> 0.02906032656 | I62: Var(Ph*) | J62: =Varianza de la Potencia Coincidente con el máx de AT
F63: =COVAR(K37:XFD37,K103:XFD103) -> 0.04801385309 | I63: Cov(Pj;Ph* | J63: =Covarianza entre la Potencia Máxima y la Coinc con máx de AT
F65: =AVERAGE(K65:XFD65) -> 0.3740721519 | H65: FSI-P | I65: Pj | J65: = Promedio de la Potencia Máxima de cada usuario en Punta | K65: =+IF(SUM(K273:K944)=0,"",MAX(IF($E273:$E944=$F$7,K273:K944))) -> 0.5573 | L65: =+IF(SUM(L273:L944)=0,"",MAX(IF($E273:$E944=$F$7,L273:L944))) -> 0.4966 | M65: =+IF(SUM(M273:M944)=0,"",MAX(IF($E273:$E944=$F$7,M273:M944))) -> 0.5453 | N65: =+IF(SUM(N273:N944)=0,"",MAX(IF($E273:$E944=$F$7,N273:N944))) -> 0.3464 | O65: =+IF(SUM(O273:O944)=0,"",MAX(IF($E273:$E944=$F$7,O273:O944))) -> 0.5409 | P65: =+IF(SUM(P273:P944)=0,"",MAX(IF($E273:$E944=$F$7,P273:P944))) -> 0.0924 | Q65: =+IF(SUM(Q273:Q944)=0,"",MAX(IF($E273:$E944=$F$7,Q273:Q944))) -> 0.4615 | R65: =+IF(SUM(R273:R944)=0,"",MAX(IF($E273:$E944=$F$7,R273:R944))) -> 0.3721 | S65: =+IF(SUM(S273:S944)=0,"",MAX(IF($E273:$E944=$F$7,S273:S944))) -> 0.0954 | T65: =+IF(SUM(T273:T944)=0,"",MAX(IF($E273:$E944=$F$7,T273:T944))) -> 0.2091 | U65: =+IF(SUM(U273:U944)=0,"",MAX(IF($E273:$E944=$F$7,U273:U944))) -> 0.167 | V65: =+IF(SUM(V273:V944)=0,"",MAX(IF($E273:$E944=$F$7,V273:V944))) -> 0.2005 | W65: =+IF(SUM(W273:W944)=0,"",MAX(IF($E273:$E944=$F$7,W273:W944))) -> 0.251 | X65: =+IF(SUM(X273:X944)=0,"",MAX(IF($E273:$E944=$F$7,X273:X944))) -> 0.3415 | Y65: =+IF(SUM(Y273:Y944)=0,"",MAX(IF($E273:$E944=$F$7,Y273:Y944))) -> 0.1336 | Z65: =+IF(SUM(Z273:Z944)=0,"",MAX(IF($E273:$E944=$F$7,Z273:Z944))) -> 0.5624 | AA65: =+IF(SUM(AA273:AA944)=0,"",MAX(IF($E273:$E944=$F$7,AA273:AA944))) -> 0.2201 | AB65: =+IF(SUM(AB273:AB944)=0,"",MAX(IF($E273:$E944=$F$7,AB273:AB944))) -> 0.1956 | AC65: =+IF(SUM(AC273:AC944)=0,"",MAX(IF($E273:$E944=$F$7,AC273:AC944))) -> 0.2169 | AD65: =+IF(SUM(AD273:AD944)=0,"",MAX(IF($E273:$E944=$F$7,AD273:AD944))) -> 0.1119 | AE65: =+IF(SUM(AE273:AE944)=0,"",MAX(IF($E273:$E944=$F$7,AE273:AE944))) -> 0.3198 | AF65: =+IF(SUM(AF273:AF944)=0,"",MAX(IF($E273:$E944=$F$7,AF273:AF944))) -> 1.2316 | AG65: =+IF(SUM(AG273:AG944)=0,"",MAX(IF($E273:$E944=$F$7,AG273:AG944))) -> 0.4568 | AH65: =+IF(SUM(AH273:AH944)=0,"",MAX(IF($E273:$E944=$F$7,AH273:AH944))) -> 0.1848 | AI65: =+IF(SUM(AI273:AI944)=0,"",MAX(IF($E273:$E944=$F$7,AI273:AI944))) -> 0.2961 | AJ65: =+IF(SUM(AJ273:AJ944)=0,"",MAX(IF($E273:$E944=$F$7,AJ273:AJ944))) -> 0.1189 | AK65: =+IF(SUM(AK273:AK944)=0,"",MAX(IF($E273:$E944=$F$7,AK273:AK944))) -> 0.5128 | AL65: =+IF(SUM(AL273:AL944)=0,"",MAX(IF($E273:$E944=$F$7,AL273:AL944))) -> 2.2028 | AM65: =+IF(SUM(AM273:AM944)=0,"",MAX(IF($E273:$E944=$F$7,AM273:AM944))) -> 0.158 | AN65: =+IF(SUM(AN273:AN944)=0,"",MAX(IF($E273:$E944=$F$7,AN273:AN944))) -> 0.1186 | AO65: =+IF(SUM(AO273:AO944)=0,"",MAX(IF($E273:$E944=$F$7,AO273:AO944))) -> 0.417 | AP65: =+IF(SUM(AP273:AP944)=0,"",MAX(IF($E273:$E944=$F$7,AP273:AP944))) -> 0.2504 | AQ65: =+IF(SUM(AQ273:AQ944)=0,"",MAX(IF($E273:$E944=$F$7,AQ273:AQ944))) -> 0.2316 | AR65: =+IF(SUM(AR273:AR944)=0,"",MAX(IF($E273:$E944=$F$7,AR273:AR944))) -> 0.0758 | AS65: =+IF(SUM(AS273:AS944)=0,"",MAX(IF($E273:$E944=$F$7,AS273:AS944))) -> 0.2822 | AT65: =+IF(SUM(AT273:AT944)=0,"",MAX(IF($E273:$E944=$F$7,AT273:AT944))) -> 0.621 | AU65: =+IF(SUM(AU273:AU944)=0,"",MAX(IF($E273:$E944=$F$7,AU273:AU944))) -> 0.1343 | AV65: =+IF(SUM(AV273:AV944)=0,"",MAX(IF($E273:$E944=$F$7,AV273:AV944))) -> 0.2869 | AW65: =+IF(SUM(AW273:AW944)=0,"",MAX(IF($E273:$E944=$F$7,AW273:AW944))) -> 0.1245 | AX65: =+IF(SUM(AX273:AX944)=0,"",MAX(IF($E273:$E944=$F$7,AX273:AX944))) -> 0.2749 | AY65: =+IF(SUM(AY273:AY944)=0,"",MAX(IF($E273:$E944=$F$7,AY273:AY944))) -> 0.3346 | AZ65: =+IF(SUM(AZ273:AZ944)=0,"",MAX(IF($E273:$E944=$F$7,AZ273:AZ944))) -> 1.3916 | BA65: =+IF(SUM(BA273:BA944)=0,"",MAX(IF($E273:$E944=$F$7,BA273:BA944))) -> 0.1587 | BB65: =+IF(SUM(BB273:BB944)=0,"",MAX(IF($E273:$E944=$F$7,BB273:BB944))) -> 0.1302 | BC65: =+IF(SUM(BC273:BC944)=0,"",MAX(IF($E273:$E944=$F$7,BC273:BC944))) -> 0.5804 | BD65: =+IF(SUM(BD273:BD944)=0,"",MAX(IF($E273:$E944=$F$7,BD273:BD944))) -> 0.3262 | BE65: =+IF(SUM(BE273:BE944)=0,"",MAX(IF($E273:$E944=$F$7,BE273:BE944))) -> 0.3516 | BF65: =+IF(SUM(BF273:BF944)=0,"",MAX(IF($E273:$E944=$F$7,BF273:BF944))) -> 0.9618 | BG65: =+IF(SUM(BG273:BG944)=0,"",MAX(IF($E273:$E944=$F$7,BG273:BG944))) -> 0.161 | BH65: =+IF(SUM(BH273:BH944)=0,"",MAX(IF($E273:$E944=$F$7,BH273:BH944))) -> 0.2789 | BI65: =+IF(SUM(BI273:BI944)=0,"",MAX(IF($E273:$E944=$F$7,BI273:BI944))) -> 0.2384 | BJ65: =+IF(SUM(BJ273:BJ944)=0,"",MAX(IF($E273:$E944=$F$7,BJ273:BJ944))) -> 0.1962 | BK65: =+IF(SUM(BK273:BK944)=0,"",MAX(IF($E273:$E944=$F$7,BK273:BK944))) -> 0.1158 | BL65: =+IF(SUM(BL273:BL944)=0,"",MAX(IF($E273:$E944=$F$7,BL273:BL944))) -> 0.2032 | BM65: =+IF(SUM(BM273:BM944)=0,"",MAX(IF($E273:$E944=$F$7,BM273:BM944))) -> 0.6981 | BN65: =+IF(SUM(BN273:BN944)=0,"",MAX(IF($E273:$E944=$F$7,BN273:BN944))) -> 0.4699 | BO65: =+IF(SUM(BO273:BO944)=0,"",MAX(IF($E273:$E944=$F$7,BO273:BO944))) -> 0.2705 | BP65: =+IF(SUM(BP273:BP944)=0,"",MAX(IF($E273:$E944=$F$7,BP273:BP944))) -> 0.7722 | BQ65: =+IF(SUM(BQ273:BQ944)=0,"",MAX(IF($E273:$E944=$F$7,BQ273:BQ944))) -> 0.2676 | BR65: =+IF(SUM(BR273:BR944)=0,"",MAX(IF($E273:$E944=$F$7,BR273:BR944))) -> 0.2002 | BS65: =+IF(SUM(BS273:BS944)=0,"",MAX(IF($E273:$E944=$F$7,BS273:BS944))) -> 0.4352 | BT65: =+IF(SUM(BT273:BT944)=0,"",MAX(IF($E273:$E944=$F$7,BT273:BT944))) -> 0.5257 | BU65: =+IF(SUM(BU273:BU944)=0,"",MAX(IF($E273:$E944=$F$7,BU273:BU944))) -> 0.2144 | BV65: =+IF(SUM(BV273:BV944)=0,"",MAX(IF($E273:$E944=$F$7,BV273:BV944))) -> 0.2896 | BW65: =+IF(SUM(BW273:BW944)=0,"",MAX(IF($E273:$E944=$F$7,BW273:BW944))) -> 0.3486 | BX65: =+IF(SUM(BX273:BX944)=0,"",MAX(IF($E273:$E944=$F$7,BX273:BX944))) -> 0.1099 | BY65: =+IF(SUM(BY273:BY944)=0,"",MAX(IF($E273:$E944=$F$7,BY273:BY944))) -> 0.1605 | BZ65: =+IF(SUM(BZ273:BZ944)=0,"",MAX(IF($E273:$E944=$F$7,BZ273:BZ944))) -> 0.1457 | CA65: =+IF(SUM(CA273:CA944)=0,"",MAX(IF($E273:$E944=$F$7,CA273:CA944))) -> 0.1946 | CB65: =+IF(SUM(CB273:CB944)=0,"",MAX(IF($E273:$E944=$F$7,CB273:CB944))) -> 0.6181 | CC65: =+IF(SUM(CC273:CC944)=0,"",MAX(IF($E273:$E944=$F$7,CC273:CC944))) -> 0.3159 | CD65: =+IF(SUM(CD273:CD944)=0,"",MAX(IF($E273:$E944=$F$7,CD273:CD944))) -> 0.5595 | CE65: =+IF(SUM(CE273:CE944)=0,"",MAX(IF($E273:$E944=$F$7,CE273:CE944))) -> 0.0411 | CF65: =+IF(SUM(CF273:CF944)=0,"",MAX(IF($E273:$E944=$F$7,CF273:CF944))) -> 0.6815 | CG65: =+IF(SUM(CG273:CG944)=0,"",MAX(IF($E273:$E944=$F$7,CG273:CG944))) -> 0.2336 | CH65: =+IF(SUM(CH273:CH944)=0,"",MAX(IF($E273:$E944=$F$7,CH273:CH944))) -> 0.5769 | CI65: =+IF(SUM(CI273:CI944)=0,"",MAX(IF($E273:$E944=$F$7,CI273:CI944))) -> 0.4901 | CJ65: =+IF(SUM(CJ273:CJ944)=0,"",MAX(IF($E273:$E944=$F$7,CJ273:CJ944))) -> 0.6444 | CK65: =+IF(SUM(CK273:CK944)=0,"",MAX(IF($E273:$E944=$F$7,CK273:CK944))) -> 0.443
C66: =INDEX('[2]Balance de Potencia'!$CC$690:$CV$690,1,MATCH($F$5,'[2]Balance de Potencia'!$CC$5:$CV$5,0)) -> Miércoles | D66: =INDEX('[2]Balance de Potencia'!$CC$689:$CV$689,1,MATCH($F$5,'[2]Balance de Potencia'!$CC$5:$CV$5,0)) -> 15:45:00 | E66: =MATCH(C66&ROUND(D66,10),$A$273:$A$944,0) -> 352 | F66: =AVERAGE(K66:XFD66) -> 0.1414810127 | I66: P(h*) | J66: = Potencia promedio coincidente con la máx de la Categoría en Punta | K66: =IF(K$22="","",OFFSET($A$273,$E66-1,COLUMN()-1,)) -> 0.2677 | L66: =IF(L$22="","",OFFSET($A$273,$E66-1,COLUMN()-1,)) -> 0.2188 | M66: 0.0488 | N66: 0.1981 | O66: 0.125 | P66: 0.0924 | Q66: 0.1224 | R66: 0.0972 | S66: 0.0557 | T66: 0.1536 | U66: 0.0833 | V66: 0.1112 | W66: 0.1358 | X66: 0.2884 | Y66: 0.0805 | Z66: 0.2895 | AA66: 0.0645 | AB66: =IF(AB$22="","",OFFSET($A$273,$E66-1,COLUMN()-1,)) -> 0.0551 | AC66: 0.0602 | AD66: 0.0608 | AE66: 0.075 | AF66: 0.0698 | AG66: 0.2976 | AH66: 0.0772 | AI66: 0.0763 | AJ66: 0.0407 | AK66: 0.3554 | AL66: 0.3675 | AM66: 0.1128 | AN66: 0.0592 | AO66: 0.1064 | AP66: 0.0405 | AQ66: 0.1263 | AR66: 0.0317 | AS66: 0.1176 | AT66: 0.142 | AU66: 0.0853 | AV66: 0.1773 | AW66: 0.0362 | AX66: 0.0721 | AY66: 0.1451 | AZ66: 0.2948 | BA66: 0.0348 | BB66: 0.0687 | BC66: 0.0463 | BD66: 0.0104 | BE66: 0.3324 | BF66: 0.3403 | BG66: 0.0656 | BH66: 0.2379 | BI66: 0.1409 | BJ66: 0.0751 | BK66: 0.0597 | BL66: 0.1136 | BM66: 0.2259 | BN66: 0.1007 | BO66: 0.1658 | BP66: 0.1223 | BQ66: 0.0889 | BR66: 0.0947 | BS66: 0.231 | BT66: 0.3613 | BU66: 0.0662 | BV66: 0.0986 | BW66: 0.1874 | BX66: 0.057 | BY66: 0.0686 | BZ66: 0.0788 | CA66: 0.0979 | CB66: 0.213 | CC66: 0.117 | CD66: 0.1234 | CE66: 0.0249 | CF66: 0.4698 | CG66: 0.1294 | CH66: 0.3265 | CI66: 0.1502 | CJ66: 0.3467 | CK66: 0.1895
C67: =INDEX('[2]Balance de Potencia'!$BY$690:$CA$690,1,MATCH($F$4,'[2]Balance de Potencia'!$BY$5:$CA$5,0)) ->  | D67: =INDEX('[2]Balance de Potencia'!$BY$689:$CA$689,1,MATCH($F$4,'[2]Balance de Potencia'!$BY$5:$CA$5,0)) ->  | E67: =MATCH(C67&ROUND(D67,10),$A$273:$A$944,0) ->  | F67: =AVERAGE(K67:XFD67) ->  | I67: P(h**) | J67: = Potencia promedio coincidente con la máx de la Categoría Unificada en Punta | K67: =IF(K$22="","",OFFSET($A$273,$E67-1,COLUMN()-1,)) ->  | U67: =IF(U$22="","",OFFSET($A$273,$E67-1,COLUMN()-1,)) -> 
F68: =VAR(K65:XFD65) -> 0.1033857159 | I68: Var (Pj) | J68: =Varianza de la Potencia Máxima de cada Usuario en Punta
F69: =VAR(K66:XFD66) -> 0.01026109592 | I69: Var (Ph*) | J69: =Varianza de la Potencia Coincidente con la máx de la Categ. en Punta
F70: =VAR(K67:XFD67) ->  | I70: Var (Ph**) | J70: =Varianza de la Potencia Coincidente con la máx de la Categ. Unificada en Punta
F71: =COVAR(K$65:XFD$65,K66:XFD66) -> 0.01846384441 | I71: Cov (Pj;Ph*) | J71: =Covarianza entre la Potencia Máxima y la Coincidente
F72: =COVAR(K$65:XFD$65,K67:XFD67) ->  | I72: Cov (Pj;Ph**) | J72: =Covarianza entre la Potencia Máxima y la Coincidente de la Categ. Unificada
F74: =AVERAGE(K74:XFD74) -> 0.4933265823 | H74: FSI-FP | I74: Pj | J74: = Promedio de la Potencia Máxima de cada usuario | K74: =+IF(SUM(K273:K944)=0,"",MAX(IF($E273:$E944<>$F$7,K273:K944))) -> 0.5587 | L74: =+IF(SUM(L273:L944)=0,"",MAX(IF($E273:$E944<>$F$7,L273:L944))) -> 0.5736 | M74: =+IF(SUM(M273:M944)=0,"",MAX(IF($E273:$E944<>$F$7,M273:M944))) -> 0.6861 | N74: =+IF(SUM(N273:N944)=0,"",MAX(IF($E273:$E944<>$F$7,N273:N944))) -> 1.5414 | O74: =+IF(SUM(O273:O944)=0,"",MAX(IF($E273:$E944<>$F$7,O273:O944))) -> 0.7037 | P74: =+IF(SUM(P273:P944)=0,"",MAX(IF($E273:$E944<>$F$7,P273:P944))) -> 0.1021 | Q74: =+IF(SUM(Q273:Q944)=0,"",MAX(IF($E273:$E944<>$F$7,Q273:Q944))) -> 0.3859 | R74: =+IF(SUM(R273:R944)=0,"",MAX(IF($E273:$E944<>$F$7,R273:R944))) -> 0.4882 | S74: =+IF(SUM(S273:S944)=0,"",MAX(IF($E273:$E944<>$F$7,S273:S944))) -> 0.1085 | T74: =+IF(SUM(T273:T944)=0,"",MAX(IF($E273:$E944<>$F$7,T273:T944))) -> 0.2513 | U74: =+IF(SUM(U273:U944)=0,"",MAX(IF($E273:$E944<>$F$7,U273:U944))) -> 0.2625 | V74: =+IF(SUM(V273:V944)=0,"",MAX(IF($E273:$E944<>$F$7,V273:V944))) -> 0.2084 | W74: =+IF(SUM(W273:W944)=0,"",MAX(IF($E273:$E944<>$F$7,W273:W944))) -> 0.2707 | X74: =+IF(SUM(X273:X944)=0,"",MAX(IF($E273:$E944<>$F$7,X273:X944))) -> 0.3735 | Y74: =+IF(SUM(Y273:Y944)=0,"",MAX(IF($E273:$E944<>$F$7,Y273:Y944))) -> 0.1672 | Z74: =+IF(SUM(Z273:Z944)=0,"",MAX(IF($E273:$E944<>$F$7,Z273:Z944))) -> 0.5094 | AA74: =+IF(SUM(AA273:AA944)=0,"",MAX(IF($E273:$E944<>$F$7,AA273:AA944))) -> 0.1785 | AB74: =+IF(SUM(AB273:AB944)=0,"",MAX(IF($E273:$E944<>$F$7,AB273:AB944))) -> 0.2022 | AC74: =+IF(SUM(AC273:AC944)=0,"",MAX(IF($E273:$E944<>$F$7,AC273:AC944))) -> 0.349 | AD74: =+IF(SUM(AD273:AD944)=0,"",MAX(IF($E273:$E944<>$F$7,AD273:AD944))) -> 0.1107 | AE74: =+IF(SUM(AE273:AE944)=0,"",MAX(IF($E273:$E944<>$F$7,AE273:AE944))) -> 0.2965 | AF74: =+IF(SUM(AF273:AF944)=0,"",MAX(IF($E273:$E944<>$F$7,AF273:AF944))) -> 0.881 | AG74: =+IF(SUM(AG273:AG944)=0,"",MAX(IF($E273:$E944<>$F$7,AG273:AG944))) -> 0.6041 | AH74: =+IF(SUM(AH273:AH944)=0,"",MAX(IF($E273:$E944<>$F$7,AH273:AH944))) -> 0.2428 | AI74: =+IF(SUM(AI273:AI944)=0,"",MAX(IF($E273:$E944<>$F$7,AI273:AI944))) -> 0.4028 | AJ74: =+IF(SUM(AJ273:AJ944)=0,"",MAX(IF($E273:$E944<>$F$7,AJ273:AJ944))) -> 0.3547 | AK74: =+IF(SUM(AK273:AK944)=0,"",MAX(IF($E273:$E944<>$F$7,AK273:AK944))) -> 0.6569 | AL74: =+IF(SUM(AL273:AL944)=0,"",MAX(IF($E273:$E944<>$F$7,AL273:AL944))) -> 1.3235 | AM74: =+IF(SUM(AM273:AM944)=0,"",MAX(IF($E273:$E944<>$F$7,AM273:AM944))) -> 0.1686 | AN74: =+IF(SUM(AN273:AN944)=0,"",MAX(IF($E273:$E944<>$F$7,AN273:AN944))) -> 0.1243 | AO74: =+IF(SUM(AO273:AO944)=0,"",MAX(IF($E273:$E944<>$F$7,AO273:AO944))) -> 0.5069 | AP74: =+IF(SUM(AP273:AP944)=0,"",MAX(IF($E273:$E944<>$F$7,AP273:AP944))) -> 0.2769 | AQ74: =+IF(SUM(AQ273:AQ944)=0,"",MAX(IF($E273:$E944<>$F$7,AQ273:AQ944))) -> 0.2856 | AR74: =+IF(SUM(AR273:AR944)=0,"",MAX(IF($E273:$E944<>$F$7,AR273:AR944))) -> 0.1508 | AS74: =+IF(SUM(AS273:AS944)=0,"",MAX(IF($E273:$E944<>$F$7,AS273:AS944))) -> 0.2317 | AT74: =+IF(SUM(AT273:AT944)=0,"",MAX(IF($E273:$E944<>$F$7,AT273:AT944))) -> 0.6059 | AU74: =+IF(SUM(AU273:AU944)=0,"",MAX(IF($E273:$E944<>$F$7,AU273:AU944))) -> 0.1512 | AV74: =+IF(SUM(AV273:AV944)=0,"",MAX(IF($E273:$E944<>$F$7,AV273:AV944))) -> 0.3704 | AW74: =+IF(SUM(AW273:AW944)=0,"",MAX(IF($E273:$E944<>$F$7,AW273:AW944))) -> 0.2028 | AX74: =+IF(SUM(AX273:AX944)=0,"",MAX(IF($E273:$E944<>$F$7,AX273:AX944))) -> 0.2932 | AY74: =+IF(SUM(AY273:AY944)=0,"",MAX(IF($E273:$E944<>$F$7,AY273:AY944))) -> 1.0947 | AZ74: =+IF(SUM(AZ273:AZ944)=0,"",MAX(IF($E273:$E944<>$F$7,AZ273:AZ944))) -> 1.5394 | BA74: =+IF(SUM(BA273:BA944)=0,"",MAX(IF($E273:$E944<>$F$7,BA273:BA944))) -> 0.2629 | BB74: =+IF(SUM(BB273:BB944)=0,"",MAX(IF($E273:$E944<>$F$7,BB273:BB944))) -> 0.1507 | BC74: =+IF(SUM(BC273:BC944)=0,"",MAX(IF($E273:$E944<>$F$7,BC273:BC944))) -> 0.6381 | BD74: =+IF(SUM(BD273:BD944)=0,"",MAX(IF($E273:$E944<>$F$7,BD273:BD944))) -> 0.3884 | BE74: =+IF(SUM(BE273:BE944)=0,"",MAX(IF($E273:$E944<>$F$7,BE273:BE944))) -> 0.418 | BF74: =+IF(SUM(BF273:BF944)=0,"",MAX(IF($E273:$E944<>$F$7,BF273:BF944))) -> 1.2921 | BG74: =+IF(SUM(BG273:BG944)=0,"",MAX(IF($E273:$E944<>$F$7,BG273:BG944))) -> 0.1564 | BH74: =+IF(SUM(BH273:BH944)=0,"",MAX(IF($E273:$E944<>$F$7,BH273:BH944))) -> 0.3306 | BI74: =+IF(SUM(BI273:BI944)=0,"",MAX(IF($E273:$E944<>$F$7,BI273:BI944))) -> 0.4204 | BJ74: =+IF(SUM(BJ273:BJ944)=0,"",MAX(IF($E273:$E944<>$F$7,BJ273:BJ944))) -> 0.1883 | BK74: =+IF(SUM(BK273:BK944)=0,"",MAX(IF($E273:$E944<>$F$7,BK273:BK944))) -> 0.1225 | BL74: =+IF(SUM(BL273:BL944)=0,"",MAX(IF($E273:$E944<>$F$7,BL273:BL944))) -> 0.1913 | BM74: =+IF(SUM(BM273:BM944)=0,"",MAX(IF($E273:$E944<>$F$7,BM273:BM944))) -> 0.4763 | BN74: =+IF(SUM(BN273:BN944)=0,"",MAX(IF($E273:$E944<>$F$7,BN273:BN944))) -> 0.3908 | BO74: =+IF(SUM(BO273:BO944)=0,"",MAX(IF($E273:$E944<>$F$7,BO273:BO944))) -> 0.2696 | BP74: =+IF(SUM(BP273:BP944)=0,"",MAX(IF($E273:$E944<>$F$7,BP273:BP944))) -> 0.8345 | BQ74: =+IF(SUM(BQ273:BQ944)=0,"",MAX(IF($E273:$E944<>$F$7,BQ273:BQ944))) -> 0.3253 | BR74: =+IF(SUM(BR273:BR944)=0,"",MAX(IF($E273:$E944<>$F$7,BR273:BR944))) -> 0.2886 | BS74: =+IF(SUM(BS273:BS944)=0,"",MAX(IF($E273:$E944<>$F$7,BS273:BS944))) -> 0.4772 | BT74: =+IF(SUM(BT273:BT944)=0,"",MAX(IF($E273:$E944<>$F$7,BT273:BT944))) -> 0.6211 | BU74: =+IF(SUM(BU273:BU944)=0,"",MAX(IF($E273:$E944<>$F$7,BU273:BU944))) -> 0.1618 | BV74: =+IF(SUM(BV273:BV944)=0,"",MAX(IF($E273:$E944<>$F$7,BV273:BV944))) -> 0.3369 | BW74: =+IF(SUM(BW273:BW944)=0,"",MAX(IF($E273:$E944<>$F$7,BW273:BW944))) -> 0.4625 | BX74: =+IF(SUM(BX273:BX944)=0,"",MAX(IF($E273:$E944<>$F$7,BX273:BX944))) -> 0.281 | BY74: =+IF(SUM(BY273:BY944)=0,"",MAX(IF($E273:$E944<>$F$7,BY273:BY944))) -> 0.2201 | BZ74: =+IF(SUM(BZ273:BZ944)=0,"",MAX(IF($E273:$E944<>$F$7,BZ273:BZ944))) -> 0.1799 | CA74: =+IF(SUM(CA273:CA944)=0,"",MAX(IF($E273:$E944<>$F$7,CA273:CA944))) -> 0.2856 | CB74: =+IF(SUM(CB273:CB944)=0,"",MAX(IF($E273:$E944<>$F$7,CB273:CB944))) -> 0.6883 | CC74: =+IF(SUM(CC273:CC944)=0,"",MAX(IF($E273:$E944<>$F$7,CC273:CC944))) -> 0.2185 | CD74: =+IF(SUM(CD273:CD944)=0,"",MAX(IF($E273:$E944<>$F$7,CD273:CD944))) -> 0.6494 | CE74: =+IF(SUM(CE273:CE944)=0,"",MAX(IF($E273:$E944<>$F$7,CE273:CE944))) -> 1.3712 | CF74: =+IF(SUM(CF273:CF944)=0,"",MAX(IF($E273:$E944<>$F$7,CF273:CF944))) -> 0.9256 | CG74: =+IF(SUM(CG273:CG944)=0,"",MAX(IF($E273:$E944<>$F$7,CG273:CG944))) -> 0.2634 | CH74: =+IF(SUM(CH273:CH944)=0,"",MAX(IF($E273:$E944<>$F$7,CH273:CH944))) -> 0.7476 | CI74: =+IF(SUM(CI273:CI944)=0,"",MAX(IF($E273:$E944<>$F$7,CI273:CI944))) -> 3.2749 | CJ74: =+IF(SUM(CJ273:CJ944)=0,"",MAX(IF($E273:$E944<>$F$7,CJ273:CJ944))) -> 1.3427 | CK74: =+IF(SUM(CK273:CK944)=0,"",MAX(IF($E273:$E944<>$F$7,CK273:CK944))) -> 0.524
C75: =INDEX('[2]Balance de Potencia'!$CC$697:$CV$697,1,MATCH($F$5,'[2]Balance de Potencia'!$CC$5:$CV$5,0)) -> Miércoles | D75: =INDEX('[2]Balance de Potencia'!$CC$696:$CV$696,1,MATCH($F$5,'[2]Balance de Potencia'!$CC$5:$CV$5,0)) -> 21:45:00 | E75: =MATCH(C75&ROUND(D75,10),$A$273:$A$944,0) -> 376 | F75: =AVERAGE(K75:XFD75) -> 0.1946278481 | I75: P(h*) | J75: = Potencia promedio coincidente con la máx de la Categoría | K75: =IF(K$22="","",OFFSET($A$273,$E75-1,COLUMN()-1,)) -> 0.3966 | L75: =IF(L$22="","",OFFSET($A$273,$E75-1,COLUMN()-1,)) -> 0.2543 | M75: 0.2674 | N75: 0.2322 | O75: 0.4396 | P75: 0.0963 | Q75: 0.1449 | R75: 0.096 | S75: 0.0675 | T75: 0.1489 | U75: 0.0792 | V75: 0.1488 | W75: 0.1385 | X75: 0.1052 | Y75: 0.0832 | Z75: 0.414 | AA75: 0.1566 | AB75: =IF(AB$22="","",OFFSET($A$273,$E75-1,COLUMN()-1,)) -> 0.1237 | AC75: 0.0618 | AD75: 0.0721 | AE75: 0.0865 | AF75: 0.2168 | AG75: 0.4144 | AH75: 0.1234 | AI75: 0.0847 | AJ75: 0.0945 | AK75: 0.541 | AL75: 0.2384 | AM75: 0.0589 | AN75: 0.0885 | AO75: 0.1371 | AP75: 0.0862 | AQ75: 0.268 | AR75: 0.0521 | AS75: 0.2153 | AT75: 0.1775 | AU75: 0.1133 | AV75: 0.119 | AW75: 0.0806 | AX75: 0.0877 | AY75: 0.1863 | AZ75: 0.1404 | BA75: 0.053 | BB75: 0.0738 | BC75: 0.0562 | BD75: 0.2024 | BE75: 0.3436 | BF75: 0.3183 | BG75: 0.1223 | BH75: 0.1651 | BI75: 0.0276 | BJ75: 0.1234 | BK75: 0.0608 | BL75: 0.141 | BM75: 0.2877 | BN75: 0.1872 | BO75: 0.2243 | BP75: 0.2088 | BQ75: 0.0404 | BR75: 0.1249 | BS75: 0.2158 | BT75: 0.5809 | BU75: 0.0418 | BV75: 0.059 | BW75: 0.2554 | BX75: 0.0586 | BY75: 0.1444 | BZ75: 0.1615 | CA75: 0.1358 | CB75: 0.4511 | CC75: 0.0593 | CD75: 0.1341 | CE75: 1.3501 | CF75: 0.4167 | CG75: 0.1409 | CH75: 0.3906 | CI75: 0.1643 | CJ75: 0.4052 | CK75: 0.3119
C76: =INDEX('[2]Balance de Potencia'!$BY$697:$CA$697,1,MATCH($F$4,'[2]Balance de Potencia'!$BY$5:$CA$5,0)) ->  | D76: =INDEX('[2]Balance de Potencia'!$BY$696:$CA$696,1,MATCH($F$4,'[2]Balance de Potencia'!$BY$5:$CA$5,0)) ->  | E76: =MATCH(C76&ROUND(D76,10),$A$272:$A$943,0) ->  | F76: =AVERAGE(K76:XFD76) ->  | I76: P(h**) | J76: = Potencia promedio coincidente con la máx de la Categoría Unificada | K76: =IF(K$22="","",OFFSET($A$273,$E76-1,COLUMN()-1,)) ->  | U76: =IF(U$22="","",OFFSET($A$273,$E76-1,COLUMN()-1,)) -> 
F77: =VAR(K74:XFD74) -> 0.2194150671 | I77: Var (Pj) | J77: =Varianza de la Potencia Máxima de cada Usuario
F78: =VAR(K75:XFD75) -> 0.03308711614 | I78: Var (Ph*) | J78: =Varianza de la Potencia Coincidente con la máx de la Categ.
F79: =VAR(K76:XFD76) ->  | I79: Var (Ph**) | J79: =Varianza de la Potencia Coincidente con la máx de la Categ. Unificada
F80: =COVAR(K$74:XFD$74,K75:XFD75) -> 0.03315812863 | I80: Cov (Pj;Ph*) | J80: =Covarianza entre la Potencia Máxima y la Coincidente
F81: =COVAR(K$74:XFD$74,K76:XFD76) ->  | I81: Cov (Pj;Ph**) | J81: =Covarianza entre la Potencia Máxima y la Coincidente de la Categ. Unificada
F83: =F23 -> 0.1946278481 | H83: FSE(BT) | I83: Pj | J83: = Potencia promedio coincidente con la máx de la Categoría
F84: =F24 ->  | I84: Pj* | J84: = Potencia promedio coincidente con la máx de la Categoría Unificada
C85: ='[2]Balance de Potencia'!$E$683 -> Lunes | D85: ='[2]Balance de Potencia'!$E$682 -> 13:45:00 | E85: =MATCH(C85&ROUND(D85,10),$A$273:$A$944,0) -> 152 | F85: =AVERAGE(K85:XFD85) -> 0.1669898734 | I85: P(h*) | J85: = Potencia promedio coincidente con el máx de BT | K85: =IF(K$22="","",OFFSET($A$273,$E85-1,COLUMN()-1,)) -> 0.3999 | L85: 0.2306 | M85: 0.2756 | N85: 0.0577 | O85: 0.137 | P85: 0.089 | Q85: 0.1398 | R85: 0.337 | S85: 0.0648 | T85: 0.1432 | U85: 0.0912 | V85: 0.0976 | W85: 0.2382 | X85: 0.0941 | Y85: 0.0227 | Z85: 0.3406 | AA85: 0.125 | AB85: 0.0286 | AC85: 0.0842 | AD85: 0.086 | AE85: 0.2364 | AF85: 0.1093 | AG85: 0.2699 | AH85: 0.0841 | AI85: 0.0766 | AJ85: 0.0726 | AK85: 0.2721 | AL85: 1.3266 | AM85: 0.0692 | AN85: 0.0718 | AO85: 0.109 | AP85: 0.0257 | AQ85: 0.0522 | AR85: 0.0551 | AS85: 0.082 | AT85: 0.1373 | AU85: 0.1089 | AV85: 0.0633 | AW85: 0.0868 | AX85: 0.0618 | AY85: 0.2056 | AZ85: 0.345 | BA85: 0.0334 | BB85: 0.0769 | BC85: 0.231 | BD85: 0.1044 | BE85: 0.2796 | BF85: 0.3846 | BG85: 0.0973 | BH85: 0.1682 | BI85: 0.1355 | BJ85: 0.0839 | BK85: 0.0495 | BL85: 0.0677 | BM85: 0.2097 | BN85: 0.2153 | BO85: 0.0293 | BP85: 0.1933 | BQ85: 0.1817 | BR85: 0.0558 | BS85: 0.1348 | BT85: 0.4754 | BU85: 0.0932 | BV85: 0.13 | BW85: =IF(BW$22="","",OFFSET($A$273,$E85-1,COLUMN()-1,)) -> 0.2114 | BX85: 0.0449 | BY85: 0.0719 | BZ85: 0.0703 | CA85: 0.1047 | CB85: 0.2357 | CC85: 0.2057 | CD85: 0.1504 | CE85: 0.0254 | CF85: 0.4747 | CG85: 0.0578 | CH85: 0.2652 | CI85: 0.3144 | CJ85: 0.2698 | CK85: 0.2553
F86: =F26 -> 0.03308711614 | I86: Var(Pj) | J86: = Varianza de la Potencia coincidente con la máx de la Categoría
F87: =F27 ->  | I87: Var(Pj*) | J87: = Varianza de la Potencia coincidente con la máx de la Categoría Unificada
F88: =VAR(K85:XFD85) -> 0.02906032656 | I88: Var (Ph*) | J88: =Varianza de la Potencia Coincidente con el máx de BT
F89: =COVAR(K$23:XFD$23,K85:XFD85) -> 0.00753633256 | I89: Cov (Pj;Ph*) | J89: =Covarianza entre la Pot Coinc con máx Categ y la Coinc con máx de BT
F90: =COVAR(K$24:XFD$24,K85:XFD85) ->  | I90: Cov (Pj*;Ph*) | J90: =Covarianza entre la Pot Coinc con máx Categ Unif y la Coinc con máx de BT
F92: =F23 -> 0.1946278481 | H92: FSE(MT) | I92: Pj | J92: = Potencia promedio coincidente con la máx de la Categoría
F93: =F24 ->  | I93: Pj* | J93: = Potencia promedio coincidente con la máx de la Categoría Unificada
C94: ='[2]Balance de Potencia'!$F$683 -> Lunes | D94: ='[2]Balance de Potencia'!$F$682 -> 13:45:00 | E94: =MATCH(C94&ROUND(D94,10),$A$273:$A$944,0) -> 152 | F94: =AVERAGE(K94:XFD94) -> 0.1669898734 | I94: P(h*) | J94: = Potencia promedio coincidente con el máx de MT | K94: =IF(K$22="","",OFFSET($A$273,$E94-1,COLUMN()-1,)) -> 0.3999 | L94: 0.2306 | M94: 0.2756 | N94: 0.0577 | O94: 0.137 | P94: 0.089 | Q94: 0.1398 | R94: 0.337 | S94: 0.0648 | T94: 0.1432 | U94: 0.0912 | V94: 0.0976 | W94: 0.2382 | X94: 0.0941 | Y94: 0.0227 | Z94: 0.3406 | AA94: 0.125 | AB94: 0.0286 | AC94: 0.0842 | AD94: 0.086 | AE94: 0.2364 | AF94: 0.1093 | AG94: 0.2699 | AH94: 0.0841 | AI94: 0.0766 | AJ94: 0.0726 | AK94: 0.2721 | AL94: 1.3266 | AM94: 0.0692 | AN94: 0.0718 | AO94: 0.109 | AP94: 0.0257 | AQ94: 0.0522 | AR94: 0.0551 | AS94: 0.082 | AT94: 0.1373 | AU94: 0.1089 | AV94: 0.0633 | AW94: 0.0868 | AX94: 0.0618 | AY94: 0.2056 | AZ94: 0.345 | BA94: 0.0334 | BB94: 0.0769 | BC94: 0.231 | BD94: 0.1044 | BE94: 0.2796 | BF94: 0.3846 | BG94: 0.0973 | BH94: 0.1682 | BI94: 0.1355 | BJ94: 0.0839 | BK94: 0.0495 | BL94: 0.0677 | BM94: 0.2097 | BN94: 0.2153 | BO94: 0.0293 | BP94: 0.1933 | BQ94: 0.1817 | BR94: 0.0558 | BS94: 0.1348 | BT94: 0.4754 | BU94: 0.0932 | BV94: 0.13 | BW94: =IF(BW$22="","",OFFSET($A$273,$E94-1,COLUMN()-1,)) -> 0.2114 | BX94: 0.0449 | BY94: 0.0719 | BZ94: 0.0703 | CA94: 0.1047 | CB94: 0.2357 | CC94: 0.2057 | CD94: 0.1504 | CE94: 0.0254 | CF94: 0.4747 | CG94: 0.0578 | CH94: 0.2652 | CI94: 0.3144 | CJ94: 0.2698 | CK94: 0.2553
F95: =F26 -> 0.03308711614 | I95: Var(Pj) | J95: = Varianza de la Potencia coincidente con la máx de la Categoría
F96: =F27 ->  | I96: Var(Pj*) | J96: = Varianza de la Potencia coincidente con la máx de la Categoría Unificada
F97: =VAR(K94:XFD94) -> 0.02906032656 | I97: Var (Ph*) | J97: =Varianza de la Potencia Coincidente con el máx de MT
F98: =COVAR(K$23:XFD$23,K94:XFD94) -> 0.00753633256 | I98: Cov (Pj;Ph*) | J98: =Covarianza entre la Pot Coinc con máx Categ y la Coinc con máx de MT
F99: =COVAR(K$24:XFD$24,K94:XFD94) ->  | I99: Cov (Pj*;Ph*) | J99: =Covarianza entre la Pot Coinc con máx Categ Unif y la Coinc con máx de MT
F101: =F23 -> 0.1946278481 | H101: FSE(AT) | I101: Pj | J101: = Potencia promedio coincidente con la máx de la Categoría
F102: =F24 ->  | I102: Pj* | J102: = Potencia promedio coincidente con la máx de la Categoría Unificada
C103: ='[2]Balance de Potencia'!$G$683 -> Lunes | D103: ='[2]Balance de Potencia'!$G$682 -> 13:45:00 | E103: =MATCH(C103&ROUND(D103,10),$A$273:$A$944,0) -> 152 | F103: =AVERAGE(K103:XFD103) -> 0.1669898734 | I103: P(h*) | J103: = Potencia promedio coincidente con el máx de AT | K103: =IF(K$22="","",OFFSET($A$273,$E103-1,COLUMN()-1,)) -> 0.3999 | L103: 0.2306 | M103: 0.2756 | N103: 0.0577 | O103: 0.137 | P103: 0.089 | Q103: 0.1398 | R103: 0.337 | S103: 0.0648 | T103: 0.1432 | U103: 0.0912 | V103: 0.0976 | W103: 0.2382 | X103: 0.0941 | Y103: 0.0227 | Z103: 0.3406 | AA103: 0.125 | AB103: 0.0286 | AC103: 0.0842 | AD103: 0.086 | AE103: 0.2364 | AF103: 0.1093 | AG103: 0.2699 | AH103: 0.0841 | AI103: 0.0766 | AJ103: 0.0726 | AK103: 0.2721 | AL103: 1.3266 | AM103: 0.0692 | AN103: 0.0718 | AO103: 0.109 | AP103: 0.0257 | AQ103: 0.0522 | AR103: 0.0551 | AS103: 0.082 | AT103: 0.1373 | AU103: 0.1089 | AV103: 0.0633 | AW103: 0.0868 | AX103: 0.0618 | AY103: 0.2056 | AZ103: 0.345 | BA103: 0.0334 | BB103: 0.0769 | BC103: 0.231 | BD103: 0.1044 | BE103: 0.2796 | BF103: 0.3846 | BG103: 0.0973 | BH103: 0.1682 | BI103: 0.1355 | BJ103: 0.0839 | BK103: 0.0495 | BL103: 0.0677 | BM103: 0.2097 | BN103: 0.2153 | BO103: 0.0293 | BP103: 0.1933 | BQ103: 0.1817 | BR103: 0.0558 | BS103: 0.1348 | BT103: 0.4754 | BU103: 0.0932 | BV103: 0.13 | BW103: =IF(BW$22="","",OFFSET($A$273,$E103-1,COLUMN()-1,)) -> 0.2114 | BX103: 0.0449 | BY103: 0.0719 | BZ103: 0.0703 | CA103: 0.1047 | CB103: 0.2357 | CC103: 0.2057 | CD103: 0.1504 | CE103: 0.0254 | CF103: 0.4747 | CG103: 0.0578 | CH103: 0.2652 | CI103: 0.3144 | CJ103: 0.2698 | CK103: 0.2553
F104: =F26 -> 0.03308711614 | I104: Var(Pj) | J104: = Varianza de la Potencia coincidente con la máx de la Categoría
F105: =F27 ->  | I105: Var(Pj*) | J105: = Varianza de la Potencia coincidente con la máx de la Categoría Unificada
F106: =VAR(K103:XFD103) -> 0.02906032656 | I106: Var (Ph*) | J106: =Varianza de la Potencia Coincidente con el máx de AT
F107: =COVAR(K$23:XFD$23,K103:XFD103) -> 0.00753633256 | I107: Cov (Pj;Ph*) | J107: =Covarianza entre la Pot Coinc con máx Categ y la Coinc con máx de AT
F108: =COVAR(K$24:XFD$24,K103:XFD103) ->  | I108: Cov (Pj*;Ph*) | J108: =Covarianza entre la Pot Coinc con máx Categ Unif y la Coinc con máx de AT
F110: =F66 -> 0.1414810127 | H110: FSE(BT)P | I110: Pj | J110: = Potencia promedio coincidente con la máx de la Categoría en Punta
F111: =F67 ->  | I111: Pj* | J111: = Potencia promedio coincidente con la máx de la Categoría Unificada en Punta
C112: ='[2]Balance de Potencia'!$E$690 -> Lunes | D112: ='[2]Balance de Potencia'!$E$689 -> 13:45:00 | E112: =MATCH(C112&ROUND(D112,10),$A$273:$A$944,0) -> 152 | F112: =AVERAGE(K112:XFD112) -> 0.1669898734 | I112: P(h*) | J112: = Potencia promedio coincidente con el máx de BT en Punta | K112: =IF(K$22="","",OFFSET($A$273,$E112-1,COLUMN()-1,)) -> 0.3999 | L112: =IF(L$22="","",OFFSET($A$273,$E112-1,COLUMN()-1,)) -> 0.2306 | M112: 0.2756 | N112: 0.0577 | O112: 0.137 | P112: 0.089 | Q112: 0.1398 | R112: 0.337 | S112: 0.0648 | T112: 0.1432 | U112: 0.0912 | V112: 0.0976 | W112: 0.2382 | X112: 0.0941 | Y112: 0.0227 | Z112: 0.3406 | AA112: 0.125 | AB112: 0.0286 | AC112: 0.0842 | AD112: 0.086 | AE112: 0.2364 | AF112: 0.1093 | AG112: 0.2699 | AH112: 0.0841 | AI112: 0.0766 | AJ112: 0.0726 | AK112: 0.2721 | AL112: 1.3266 | AM112: 0.0692 | AN112: 0.0718 | AO112: 0.109 | AP112: 0.0257 | AQ112: 0.0522 | AR112: 0.0551 | AS112: 0.082 | AT112: 0.1373 | AU112: 0.1089 | AV112: 0.0633 | AW112: 0.0868 | AX112: 0.0618 | AY112: 0.2056 | AZ112: 0.345 | BA112: 0.0334 | BB112: 0.0769 | BC112: 0.231 | BD112: 0.1044 | BE112: 0.2796 | BF112: 0.3846 | BG112: 0.0973 | BH112: 0.1682 | BI112: 0.1355 | BJ112: 0.0839 | BK112: 0.0495 | BL112: 0.0677 | BM112: 0.2097 | BN112: 0.2153 | BO112: 0.0293 | BP112: 0.1933 | BQ112: 0.1817 | BR112: 0.0558 | BS112: 0.1348 | BT112: 0.4754 | BU112: 0.0932 | BV112: 0.13 | BW112: 0.2114 | BX112: =IF(BX$22="","",OFFSET($A$273,$E112-1,COLUMN()-1,)) -> 0.0449 | BY112: 0.0719 | BZ112: 0.0703 | CA112: 0.1047 | CB112: 0.2357 | CC112: 0.2057 | CD112: 0.1504 | CE112: 0.0254 | CF112: 0.4747 | CG112: 0.0578 | CH112: 0.2652 | CI112: 0.3144 | CJ112: 0.2698 | CK112: 0.2553
F113: =F69 -> 0.01026109592 | I113: Var(Pj) | J113: = Varianza de la Potencia coincidente con la máx de la Categoría
F114: =F70 ->  | I114: Var(Pj*) | J114: = Varianza de la Potencia coincidente con la máx de la Categoría Unificada
F115: =VAR(K112:XFD112) -> 0.02906032656 | I115: Var (Ph*) | J115: =Varianza de la Potencia Coincidente con el máx de BT en Punta
F116: =COVAR(K66:XFD66,K112:XFD112) -> 0.01101309183 | I116: Cov (Pj;Ph*) | J116: =Covarianza entre la Pot Coinc con máx Categ y la Coinc con máx de BT
F117: =COVAR(K67:XFD67,K112:XFD112) ->  | I117: Cov (Pj*;Ph*) | J117: =Covarianza entre la Pot Coinc con máx Categ Unif y la Coinc con máx de BT
F119: =F66 -> 0.1414810127 | H119: FSE(MT)P | I119: Pj | J119: = Potencia promedio coincidente con la máx de la Categoría en Punta
F120: =F67 ->  | I120: Pj* | J120: = Potencia promedio coincidente con la máx de la Categoría Unificada en Punta
C121: ='[2]Balance de Potencia'!$F$690 -> Lunes | D121: ='[2]Balance de Potencia'!$F$689 -> 13:45:00 | E121: =MATCH(C121&ROUND(D121,10),$A$273:$A$944,0) -> 152 | F121: =AVERAGE(K121:XFD121) -> 0.1669898734 | I121: P(h*) | J121: = Potencia promedio coincidente con el máx de MT en Punta | K121: =IF(K$22="","",OFFSET($A$273,$E121-1,COLUMN()-1,)) -> 0.3999 | L121: =IF(L$22="","",OFFSET($A$273,$E121-1,COLUMN()-1,)) -> 0.2306 | M121: 0.2756 | N121: 0.0577 | O121: 0.137 | P121: 0.089 | Q121: 0.1398 | R121: 0.337 | S121: 0.0648 | T121: 0.1432 | U121: 0.0912 | V121: 0.0976 | W121: 0.2382 | X121: 0.0941 | Y121: 0.0227 | Z121: 0.3406 | AA121: 0.125 | AB121: 0.0286 | AC121: 0.0842 | AD121: 0.086 | AE121: 0.2364 | AF121: 0.1093 | AG121: 0.2699 | AH121: 0.0841 | AI121: 0.0766 | AJ121: 0.0726 | AK121: 0.2721 | AL121: 1.3266 | AM121: 0.0692 | AN121: 0.0718 | AO121: 0.109 | AP121: 0.0257 | AQ121: 0.0522 | AR121: 0.0551 | AS121: 0.082 | AT121: 0.1373 | AU121: 0.1089 | AV121: 0.0633 | AW121: 0.0868 | AX121: 0.0618 | AY121: 0.2056 | AZ121: 0.345 | BA121: 0.0334 | BB121: 0.0769 | BC121: 0.231 | BD121: 0.1044 | BE121: 0.2796 | BF121: 0.3846 | BG121: 0.0973 | BH121: 0.1682 | BI121: 0.1355 | BJ121: 0.0839 | BK121: 0.0495 | BL121: 0.0677 | BM121: 0.2097 | BN121: 0.2153 | BO121: 0.0293 | BP121: 0.1933 | BQ121: 0.1817 | BR121: 0.0558 | BS121: 0.1348 | BT121: 0.4754 | BU121: 0.0932 | BV121: 0.13 | BW121: 0.2114 | BX121: =IF(BX$22="","",OFFSET($A$273,$E121-1,COLUMN()-1,)) -> 0.0449 | BY121: 0.0719 | BZ121: 0.0703 | CA121: 0.1047 | CB121: 0.2357 | CC121: 0.2057 | CD121: 0.1504 | CE121: 0.0254 | CF121: 0.4747 | CG121: 0.0578 | CH121: 0.2652 | CI121: 0.3144 | CJ121: 0.2698 | CK121: 0.2553
F122: =F69 -> 0.01026109592 | I122: Var(Pj) | J122: = Varianza de la Potencia coincidente con la máx de la Categoría
F123: =F70 ->  | I123: Var(Pj*) | J123: = Varianza de la Potencia coincidente con la máx de la Categoría Unificada
F124: =VAR(K121:XFD121) -> 0.02906032656 | I124: Var (Ph*) | J124: =Varianza de la Potencia Coincidente con el máx de MT en Punta
F125: =COVAR(K66:XFD66,K121:XFD121) -> 0.01101309183 | I125: Cov (Pj;Ph*) | J125: =Covarianza entre la Pot Coinc con máx Categ y la Coinc con máx de MT
F126: =COVAR(K67:XFD67,K121:XFD121) ->  | I126: Cov (Pj*;Ph*) | J126: =Covarianza entre la Pot Coinc con máx Categ Unif y la Coinc con máx de MT
F128: =F66 -> 0.1414810127 | H128: FSE(AT)P | I128: Pj | J128: = Potencia promedio coincidente con la máx de la Categoría en Punta
F129: =F67 ->  | I129: Pj* | J129: = Potencia promedio coincidente con la máx de la Categoría Unificada en Punta
C130: ='[2]Balance de Potencia'!$G$690 -> Lunes | D130: ='[2]Balance de Potencia'!$G$689 -> 13:45:00 | E130: =MATCH(C130&ROUND(D130,10),$A$273:$A$944,0) -> 152 | F130: =AVERAGE(K130:XFD130) -> 0.1669898734 | I130: P(h*) | J130: = Potencia promedio coincidente con el máx de AT en Punta | K130: =IF(K$22="","",OFFSET($A$273,$E130-1,COLUMN()-1,)) -> 0.3999 | L130: =IF(L$22="","",OFFSET($A$273,$E130-1,COLUMN()-1,)) -> 0.2306 | M130: 0.2756 | N130: 0.0577 | O130: 0.137 | P130: 0.089 | Q130: 0.1398 | R130: 0.337 | S130: 0.0648 | T130: 0.1432 | U130: 0.0912 | V130: 0.0976 | W130: 0.2382 | X130: 0.0941 | Y130: 0.0227 | Z130: 0.3406 | AA130: 0.125 | AB130: 0.0286 | AC130: 0.0842 | AD130: 0.086 | AE130: 0.2364 | AF130: 0.1093 | AG130: 0.2699 | AH130: 0.0841 | AI130: 0.0766 | AJ130: 0.0726 | AK130: 0.2721 | AL130: 1.3266 | AM130: 0.0692 | AN130: 0.0718 | AO130: 0.109 | AP130: 0.0257 | AQ130: 0.0522 | AR130: 0.0551 | AS130: 0.082 | AT130: 0.1373 | AU130: 0.1089 | AV130: 0.0633 | AW130: 0.0868 | AX130: 0.0618 | AY130: 0.2056 | AZ130: 0.345 | BA130: 0.0334 | BB130: 0.0769 | BC130: 0.231 | BD130: 0.1044 | BE130: 0.2796 | BF130: 0.3846 | BG130: 0.0973 | BH130: 0.1682 | BI130: 0.1355 | BJ130: 0.0839 | BK130: 0.0495 | BL130: 0.0677 | BM130: 0.2097 | BN130: 0.2153 | BO130: 0.0293 | BP130: 0.1933 | BQ130: 0.1817 | BR130: 0.0558 | BS130: 0.1348 | BT130: 0.4754 | BU130: 0.0932 | BV130: 0.13 | BW130: 0.2114 | BX130: =IF(BX$22="","",OFFSET($A$273,$E130-1,COLUMN()-1,)) -> 0.0449 | BY130: 0.0719 | BZ130: 0.0703 | CA130: 0.1047 | CB130: 0.2357 | CC130: 0.2057 | CD130: 0.1504 | CE130: 0.0254 | CF130: 0.4747 | CG130: 0.0578 | CH130: 0.2652 | CI130: 0.3144 | CJ130: 0.2698 | CK130: 0.2553
F131: =F69 -> 0.01026109592 | I131: Var(Pj) | J131: = Varianza de la Potencia coincidente con la máx de la Categoría
F132: =F70 ->  | I132: Var(Pj*) | J132: = Varianza de la Potencia coincidente con la máx de la Categoría Unificada
F133: =VAR(K130:XFD130) -> 0.02906032656 | I133: Var (Ph*) | J133: =Varianza de la Potencia Coincidente con el máx de AT en Punta
F134: =COVAR(K66:XFD66,K130:XFD130) -> 0.01101309183 | I134: Cov (Pj;Ph*) | J134: =Covarianza entre la Pot Coinc con máx Categ y la Coinc con máx de AT
F135: =COVAR(K67:XFD67,K130:XFD130) ->  | I135: Cov (Pj*;Ph*) | J135: =Covarianza entre la Pot Coinc con máx Categ Unif y la Coinc con máx de AT
F137: =F75 -> 0.1946278481 | H137: FSE(BT)FP | I137: Pj | J137: = Potencia promedio coincidente con la máx de la Categoría en Fuera de Punta
F138: =F76 ->  | I138: Pj* | J138: = Potencia promedio coincidente con la máx de la Categoría Unificada en Fuera de Punta
C139: ='[2]Balance de Potencia'!$E$697 -> Martes | D139: ='[2]Balance de Potencia'!$E$696 -> 20:30:00 | E139: =MATCH(C139&ROUND(D139,10),$A$273:$A$944,0) -> 275 | F139: =AVERAGE(K139:XFD139) -> 0.1787924051 | I139: P(h*) | J139: = Potencia promedio coincidente con el máx de BT en Fuera de Punta | K139: =IF(K$22="","",OFFSET($A$273,$E139-1,COLUMN()-1,)) -> 0.3992 | L139: =IF(L$22="","",OFFSET($A$273,$E139-1,COLUMN()-1,)) -> 0.2755 | M139: 0.3443 | N139: 0.0892 | O139: 0.2833 | P139: 0.0978 | Q139: 0.1642 | R139: 0.3839 | S139: 0.0514 | T139: 0.1279 | U139: 0.0854 | V139: 0.1413 | W139: 0.1035 | X139: 0.1139 | Y139: 0.1574 | Z139: 0 | AA139: 0.1029 | AB139: 0.0671 | AC139: 0.0835 | AD139: 0.107 | AE139: 0.0919 | AF139: 0.3027 | AG139: 0.5188 | AH139: 0.1328 | AI139: 0.0414 | AJ139: 0.1086 | AK139: 0.3566 | AL139: 0.2475 | AM139: 0.127 | AN139: 0.0733 | AO139: 0.1128 | AP139: 0.1072 | AQ139: 0.169 | AR139: 0.085 | AS139: 0.1916 | AT139: 0.1562 | AU139: 0.1197 | AV139: 0.1791 | AW139: 0.1157 | AX139: 0.1034 | AY139: 0.2408 | AZ139: 0.3742 | BA139: 0.1499 | BB139: 0.1011 | BC139: 0.1043 | BD139: 0.1856 | BE139: 0.2867 | BF139: 0.3024 | BG139: 0.1203 | BH139: 0.1692 | BI139: 0.1854 | BJ139: 0.1321 | BK139: 0.0633 | BL139: 0.1166 | BM139: 0.2655 | BN139: 0.1862 | BO139: 0.1062 | BP139: 0.1675 | BQ139: 0.1691 | BR139: 0.0865 | BS139: 0.2419 | BT139: 0.3636 | BU139: 0.0871 | BV139: 0.2598 | BW139: 0.2443 | BX139: =IF(BX$22="","",OFFSET($A$273,$E139-1,COLUMN()-1,)) -> 0.1174 | BY139: 0.1469 | BZ139: 0.1493 | CA139: 0.1652 | CB139: 0.3616 | CC139: 0.0699 | CD139: 0.253 | CE139: 0.0351 | CF139: 0.4841 | CG139: 0.065 | CH139: 0.1448 | CI139: 0.249 | CJ139: 0.3405 | CK139: 0.3142
F140: =F78 -> 0.03308711614 | I140: Var(Pj) | J140: = Varianza de la Potencia coincidente con la máx de la Categoría
F141: =F79 ->  | I141: Var(Pj*) | J141: = Varianza de la Potencia coincidente con la máx de la Categoría Unificada
F142: =VAR(K139:XFD139) -> 0.01180715712 | I142: Var (Ph*) | J142: =Varianza de la Potencia Coincidente con el máx de BT en Fuera de Punta
F143: =COVAR(K75:XFD75,K139:XFD139) -> 0.006713363503 | I143: Cov (Pj;Ph*) | J143: =Covarianza entre la Pot Coinc con máx Categ y la Coinc con máx de BT
F144: =COVAR(K76:XFD76,K139:XFD139) ->  | I144: Cov (Pj*;Ph*) | J144: =Covarianza entre la Pot Coinc con máx Categ Unif y la Coinc con máx de BT
F146: =F75 -> 0.1946278481 | H146: FSE(MT)FP | I146: Pj | J146: = Potencia promedio coincidente con la máx de la Categoría en Fuera de Punta
F147: =F76 ->  | I147: Pj* | J147: = Potencia promedio coincidente con la máx de la Categoría Unificada en Fuera de Punta
C148: ='[2]Balance de Potencia'!$F$697 -> Viernes | D148: ='[2]Balance de Potencia'!$F$696 -> 19:15:00 | E148: =MATCH(C148&ROUND(D148,10),$A$273:$A$944,0) -> 558 | F148: =AVERAGE(K148:XFD148) -> 0.1780012658 | I148: P(h*) | J148: = Potencia promedio coincidente con el máx de MT en Fuera de Punta | K148: =IF(K$22="","",OFFSET($A$273,$E148-1,COLUMN()-1,)) -> 0.3988 | L148: =IF(L$22="","",OFFSET($A$273,$E148-1,COLUMN()-1,)) -> 0.432 | M148: 0.6861 | N148: 0.0917 | O148: 0.1963 | P148: 0.0864 | Q148: 0.1816 | R148: 0.1692 | S148: 0.0575 | T148: 0.1376 | U148: 0.1458 | V148: 0.1265 | W148: 0.1086 | X148: 0.1155 | Y148: 0.0761 | Z148: 0.296 | AA148: 0.0627 | AB148: 0.1268 | AC148: 0.0416 | AD148: 0.0795 | AE148: 0.0969 | AF148: 0.0398 | AG148: 0.3466 | AH148: 0.1516 | AI148: 0.1264 | AJ148: 0.0422 | AK148: 0.3258 | AL148: 0.1534 | AM148: 0.1145 | AN148: 0.066 | AO148: 0.1229 | AP148: 0.2258 | AQ148: 0.0582 | AR148: 0.0517 | AS148: 0.1191 | AT148: 0.0751 | AU148: 0.1034 | AV148: 0.1106 | AW148: 0.0643 | AX148: 0.2353 | AY148: 0.1478 | AZ148: 0.2399 | BA148: 0.0677 | BB148: 0.0773 | BC148: 0.128 | BD148: 0.2358 | BE148: 0.1166 | BF148: 0.3143 | BG148: 0.1105 | BH148: 0.2054 | BI148: 0.0994 | BJ148: 0.0734 | BK148: 0.0677 | BL148: 0.1497 | BM148: 0.2883 | BN148: 0.2086 | BO148: 0.1993 | BP148: 0.7557 | BQ148: 0.1773 | BR148: 0.0856 | BS148: 0.1799 | BT148: 0.4081 | BU148: 0.0703 | BV148: 0.239 | BW148: 0.3944 | BX148: =IF(BX$22="","",OFFSET($A$273,$E148-1,COLUMN()-1,)) -> 0.0763 | BY148: 0.1337 | BZ148: 0.0859 | CA148: 0.132 | CB148: 0.34 | CC148: 0.0752 | CD148: 0.2795 | CE148: 0.02 | CF148: 0.3788 | CG148: 0.1854 | CH148: 0.2912 | CI148: 0.1678 | CJ148: 0.3261 | CK148: 0.2843
F149: =F78 -> 0.03308711614 | I149: Var(Pj) | J149: = Varianza de la Potencia coincidente con la máx de la Categoría
F150: =F79 ->  | I150: Var(Pj*) | J150: = Varianza de la Potencia coincidente con la máx de la Categoría Unificada
F151: =VAR(K148:XFD148) -> 0.01818967192 | I151: Var (Ph*) | J151: =Varianza de la Potencia Coincidente con el máx de MT en Fuera de Punta
F152: =COVAR(K75:XFD75,K148:XFD148) -> 0.007485837813 | I152: Cov (Pj;Ph*) | J152: =Covarianza entre la Pot Coinc con máx Categ y la Coinc con máx de MT
F153: =COVAR(K76:XFD76,K148:XFD148) ->  | I153: Cov (Pj*;Ph*) | J153: =Covarianza entre la Pot Coinc con máx Categ Unif y la Coinc con máx de MT
F155: =F75 -> 0.1946278481 | H155: FSE(AT)FP | I155: Pj | J155: = Potencia promedio coincidente con la máx de la Categoría en Fuera de Punta
F156: =F76 ->  | I156: Pj* | J156: = Potencia promedio coincidente con la máx de la Categoría Unificada en Fuera de Punta
C157: ='[2]Balance de Potencia'!$G$697 -> Viernes | D157: ='[2]Balance de Potencia'!$G$696 -> 19:15:00 | E157: =MATCH(C157&ROUND(D157,10),$A$273:$A$944,0) -> 558 | F157: =AVERAGE(K157:XFD157) -> 0.1780012658 | I157: P(h*) | J157: = Potencia promedio coincidente con el máx de AT en Fuera de Punta | K157: =IF(K$22="","",OFFSET($A$273,$E157-1,COLUMN()-1,)) -> 0.3988 | L157: =IF(L$22="","",OFFSET($A$273,$E157-1,COLUMN()-1,)) -> 0.432 | M157: 0.6861 | N157: 0.0917 | O157: 0.1963 | P157: 0.0864 | Q157: 0.1816 | R157: 0.1692 | S157: 0.0575 | T157: 0.1376 | U157: 0.1458 | V157: 0.1265 | W157: 0.1086 | X157: 0.1155 | Y157: 0.0761 | Z157: 0.296 | AA157: 0.0627 | AB157: 0.1268 | AC157: 0.0416 | AD157: 0.0795 | AE157: 0.0969 | AF157: 0.0398 | AG157: 0.3466 | AH157: 0.1516 | AI157: 0.1264 | AJ157: 0.0422 | AK157: 0.3258 | AL157: 0.1534 | AM157: 0.1145 | AN157: 0.066 | AO157: 0.1229 | AP157: 0.2258 | AQ157: 0.0582 | AR157: 0.0517 | AS157: 0.1191 | AT157: 0.0751 | AU157: 0.1034 | AV157: 0.1106 | AW157: 0.0643 | AX157: 0.2353 | AY157: 0.1478 | AZ157: 0.2399 | BA157: 0.0677 | BB157: 0.0773 | BC157: 0.128 | BD157: 0.2358 | BE157: 0.1166 | BF157: 0.3143 | BG157: 0.1105 | BH157: 0.2054 | BI157: 0.0994 | BJ157: 0.0734 | BK157: 0.0677 | BL157: 0.1497 | BM157: 0.2883 | BN157: 0.2086 | BO157: 0.1993 | BP157: 0.7557 | BQ157: 0.1773 | BR157: 0.0856 | BS157: 0.1799 | BT157: 0.4081 | BU157: 0.0703 | BV157: 0.239 | BW157: 0.3944 | BX157: =IF(BX$22="","",OFFSET($A$273,$E157-1,COLUMN()-1,)) -> 0.0763 | BY157: 0.1337 | BZ157: 0.0859 | CA157: 0.132 | CB157: 0.34 | CC157: 0.0752 | CD157: 0.2795 | CE157: 0.02 | CF157: 0.3788 | CG157: 0.1854 | CH157: 0.2912 | CI157: 0.1678 | CJ157: 0.3261 | CK157: 0.2843
F158: =F78 -> 0.03308711614 | I158: Var(Pj) | J158: = Varianza de la Potencia coincidente con la máx de la Categoría
F159: =F79 ->  | I159: Var(Pj*) | J159: = Varianza de la Potencia coincidente con la máx de la Categoría Unificada
F160: =VAR(K157:XFD157) -> 0.01818967192 | I160: Var (Ph*) | J160: =Varianza de la Potencia Coincidente con el máx de AT en Punta
F161: =COVAR(K75:XFD75,K157:XFD157) -> 0.007485837813 | I161: Cov (Pj;Ph*) | J161: =Covarianza entre la Pot Coinc con máx Categ y la Coinc con máx de AT
F162: =COVAR(K76:XFD76,K157:XFD157) ->  | I162: Cov (Pj*;Ph*) | J162: =Covarianza entre la Pot Coinc con máx Categ Unif y la Coinc con máx de AT
F164: =AVERAGE(K164:XFD164) -> 107.457062 | H164: FdeP | I164: Pj | J164: = Potencia activa | K164: =+IF(SUM(K$273:K$944)=0,"",SUM(K$273:K$944)) -> 262.9013 | L164: =+IF(SUM(L$273:L$944)=0,"",SUM(L$273:L$944)) -> 180.9474 | M164: 100.8544 | N164: 75.8363 | O164: 201.13 | P164: 50.8672 | Q164: 71.8197 | R164: 132.6451 | S164: 41.6757 | T164: 78.2441 | U164: 50.2904 | V164: 81.0431 | W164: 82.8952 | X164: 81.2527 | Y164: 52.1305 | Z164: 193.539 | AA164: 73.7154 | AB164: 62.6056 | AC164: 49.3847 | AD164: 48.0963 | AE164: 78.6158 | AF164: 78.1228 | AG164: 221.8296 | AH164: 74.8677 | AI164: 89.1231 | AJ164: 49.9098 | AK164: 218.9574 | AL164: 193.7884 | AM164: 47.0644 | AN164: 40.6247 | AO164: 89.1681 | AP164: 56.8581 | AQ164: 72.7434 | AR164: 45.0324 | AS164: 93.7065 | AT164: 102.6194 | AU164: 63.6908 | AV164: 73.8827 | AW164: 48.3477 | AX164: 65.7416 | AY164: 184.7327 | AZ164: 215.7794 | BA164: 57.3738 | BB164: 57.5096 | BC164: 83.1539 | BD164: 102.984 | BE164: 175.8998 | BF164: 203.5514 | BG164: 67.4227 | BH164: 120.0368 | BI164: 83.4773 | BJ164: 71.3385 | BK164: 45.8351 | BL164: 75.3087 | BM164: 172.2987 | BN164: 131.7024 | BO164: 90.8025 | BP164: 131.3547 | BQ164: 81.9396 | BR164: 51.5244 | BS164: 135.0092 | BT164: 227.5382 | BU164: 47.111 | BV164: 81.1816 | BW164: 159.2766 | BX164: =+IF(SUM(BX$273:BX$944)=0,"",SUM(BX$273:BX$944)) -> 43.2415 | BY164: 75.3753 | BZ164: 71.6277 | CA164: 81.3172 | CB164: 183.5826 | CC164: 79.9942 | CD164: 123.6018 | CE164: 69.856 | CF164: 271.4971 | CG164: 51.235 | CH164: 216.9488 | CI164: 198.696 | CJ164: 216.6459 | CK164: 174.7777
F165: =AVERAGE(K165:XFD165) ->  | I165: P(h*) | J165: = Potencia aparente | K165: =IF(SUM(K$273:K$944)=0,"",(K164^2+K169^2)^0.5) ->  | L165: =IF(SUM(L$273:L$944)=0,"",(L164^2+L169^2)^0.5) ->  | U165: =IF(SUM(U$273:U$944)=0,"",(U164^2+U169^2)^0.5) ->  | CG165: =IF(SUM(CG$273:CG$944)=0,"",(CG164^2+CG169^2)^0.5) -> 
F166: =VAR(K164:XFD164) -> 3832.268866 | I166: Var(Pj) | J166: =Varianza de la Potencia Activa
F167: =VAR(K165:XFD165) ->  | I167: Var(Ph*) | J167: =Varianza de la Potencia Aparente
F168: =COVAR(K164:XFD164,K165:XFD165) ->  | I168: Cov(Pj;Ph*) | J168: =Covarianza entre la Potencia Activa y la Potencia Aparente
J169: =Potencia reactiva | K169: =INDEX([3]resumen!$E$8:$SJ$207,MATCH($F$5&" "&$F$6,[3]resumen!$C$8:$C$207,0),MATCH(K264,[3]resumen!$E$2:$SJ$2,0)) ->  | L169: =INDEX([3]resumen!$E$8:$SJ$207,MATCH($F$5&" "&$F$6,[3]resumen!$C$8:$C$207,0),MATCH(L264,[3]resumen!$E$2:$SJ$2,0)) ->  | M169: =INDEX([3]resumen!$E$8:$SJ$207,MATCH($F$5&" "&$F$6,[3]resumen!$C$8:$C$207,0),MATCH(M264,[3]resumen!$E$2:$SJ$2,0)) ->  | N169: =INDEX([3]resumen!$E$8:$SJ$207,MATCH($F$5&" "&$F$6,[3]resumen!$C$8:$C$207,0),MATCH(N264,[3]resumen!$E$2:$SJ$2,0)) ->  | O169: =INDEX([3]resumen!$E$8:$SJ$207,MATCH($F$5&" "&$F$6,[3]resumen!$C$8:$C$207,0),MATCH(O264,[3]resumen!$E$2:$SJ$2,0)) ->  | P169: =INDEX([3]resumen!$E$8:$SJ$207,MATCH($F$5&" "&$F$6,[3]resumen!$C$8:$C$207,0),MATCH(P264,[3]resumen!$E$2:$SJ$2,0)) ->  | Q169: =INDEX([3]resumen!$E$8:$SJ$207,MATCH($F$5&" "&$F$6,[3]resumen!$C$8:$C$207,0),MATCH(Q264,[3]resumen!$E$2:$SJ$2,0)) ->  | R169: =INDEX([3]resumen!$E$8:$SJ$207,MATCH($F$5&" "&$F$6,[3]resumen!$C$8:$C$207,0),MATCH(R264,[3]resumen!$E$2:$SJ$2,0)) ->  | S169: =INDEX([3]resumen!$E$8:$SJ$207,MATCH($F$5&" "&$F$6,[3]resumen!$C$8:$C$207,0),MATCH(S264,[3]resumen!$E$2:$SJ$2,0)) ->  | T169: =INDEX([3]resumen!$E$8:$SJ$207,MATCH($F$5&" "&$F$6,[3]resumen!$C$8:$C$207,0),MATCH(T264,[3]resumen!$E$2:$SJ$2,0)) ->  | U169: =INDEX([3]resumen!$E$8:$SJ$207,MATCH($F$5&" "&$F$6,[3]resumen!$C$8:$C$207,0),MATCH(U264,[3]resumen!$E$2:$SJ$2,0)) ->  | V169: =INDEX([3]resumen!$E$8:$SJ$207,MATCH($F$5&" "&$F$6,[3]resumen!$C$8:$C$207,0),MATCH(V264,[3]resumen!$E$2:$SJ$2,0)) ->  | W169: =INDEX([3]resumen!$E$8:$SJ$207,MATCH($F$5&" "&$F$6,[3]resumen!$C$8:$C$207,0),MATCH(W264,[3]resumen!$E$2:$SJ$2,0)) ->  | X169: =INDEX([3]resumen!$E$8:$SJ$207,MATCH($F$5&" "&$F$6,[3]resumen!$C$8:$C$207,0),MATCH(X264,[3]resumen!$E$2:$SJ$2,0)) ->  | Y169: =INDEX([3]resumen!$E$8:$SJ$207,MATCH($F$5&" "&$F$6,[3]resumen!$C$8:$C$207,0),MATCH(Y264,[3]resumen!$E$2:$SJ$2,0)) ->  | Z169: =INDEX([3]resumen!$E$8:$SJ$207,MATCH($F$5&" "&$F$6,[3]resumen!$C$8:$C$207,0),MATCH(Z264,[3]resumen!$E$2:$SJ$2,0)) ->  | AA169: =INDEX([3]resumen!$E$8:$SJ$207,MATCH($F$5&" "&$F$6,[3]resumen!$C$8:$C$207,0),MATCH(AA264,[3]resumen!$E$2:$SJ$2,0)) ->  | AB169: =INDEX([3]resumen!$E$8:$SJ$207,MATCH($F$5&" "&$F$6,[3]resumen!$C$8:$C$207,0),MATCH(AB264,[3]resumen!$E$2:$SJ$2,0)) ->  | AC169: =INDEX([3]resumen!$E$8:$SJ$207,MATCH($F$5&" "&$F$6,[3]resumen!$C$8:$C$207,0),MATCH(AC264,[3]resumen!$E$2:$SJ$2,0)) ->  | AD169: =INDEX([3]resumen!$E$8:$SJ$207,MATCH($F$5&" "&$F$6,[3]resumen!$C$8:$C$207,0),MATCH(AD264,[3]resumen!$E$2:$SJ$2,0)) ->  | AE169: =INDEX([3]resumen!$E$8:$SJ$207,MATCH($F$5&" "&$F$6,[3]resumen!$C$8:$C$207,0),MATCH(AE264,[3]resumen!$E$2:$SJ$2,0)) ->  | AF169: =INDEX([3]resumen!$E$8:$SJ$207,MATCH($F$5&" "&$F$6,[3]resumen!$C$8:$C$207,0),MATCH(AF264,[3]resumen!$E$2:$SJ$2,0)) ->  | AG169: =INDEX([3]resumen!$E$8:$SJ$207,MATCH($F$5&" "&$F$6,[3]resumen!$C$8:$C$207,0),MATCH(AG264,[3]resumen!$E$2:$SJ$2,0)) ->  | AH169: =INDEX([3]resumen!$E$8:$SJ$207,MATCH($F$5&" "&$F$6,[3]resumen!$C$8:$C$207,0),MATCH(AH264,[3]resumen!$E$2:$SJ$2,0)) ->  | AI169: =INDEX([3]resumen!$E$8:$SJ$207,MATCH($F$5&" "&$F$6,[3]resumen!$C$8:$C$207,0),MATCH(AI264,[3]resumen!$E$2:$SJ$2,0)) ->  | AJ169: =INDEX([3]resumen!$E$8:$SJ$207,MATCH($F$5&" "&$F$6,[3]resumen!$C$8:$C$207,0),MATCH(AJ264,[3]resumen!$E$2:$SJ$2,0)) ->  | AK169: =INDEX([3]resumen!$E$8:$SJ$207,MATCH($F$5&" "&$F$6,[3]resumen!$C$8:$C$207,0),MATCH(AK264,[3]resumen!$E$2:$SJ$2,0)) ->  | AL169: =INDEX([3]resumen!$E$8:$SJ$207,MATCH($F$5&" "&$F$6,[3]resumen!$C$8:$C$207,0),MATCH(AL264,[3]resumen!$E$2:$SJ$2,0)) ->  | AM169: =INDEX([3]resumen!$E$8:$SJ$207,MATCH($F$5&" "&$F$6,[3]resumen!$C$8:$C$207,0),MATCH(AM264,[3]resumen!$E$2:$SJ$2,0)) ->  | AN169: =INDEX([3]resumen!$E$8:$SJ$207,MATCH($F$5&" "&$F$6,[3]resumen!$C$8:$C$207,0),MATCH(AN264,[3]resumen!$E$2:$SJ$2,0)) ->  | AO169: =INDEX([3]resumen!$E$8:$SJ$207,MATCH($F$5&" "&$F$6,[3]resumen!$C$8:$C$207,0),MATCH(AO264,[3]resumen!$E$2:$SJ$2,0)) ->  | AP169: =INDEX([3]resumen!$E$8:$SJ$207,MATCH($F$5&" "&$F$6,[3]resumen!$C$8:$C$207,0),MATCH(AP264,[3]resumen!$E$2:$SJ$2,0)) ->  | AQ169: =INDEX([3]resumen!$E$8:$SJ$207,MATCH($F$5&" "&$F$6,[3]resumen!$C$8:$C$207,0),MATCH(AQ264,[3]resumen!$E$2:$SJ$2,0)) ->  | AR169: =INDEX([3]resumen!$E$8:$SJ$207,MATCH($F$5&" "&$F$6,[3]resumen!$C$8:$C$207,0),MATCH(AR264,[3]resumen!$E$2:$SJ$2,0)) ->  | AS169: =INDEX([3]resumen!$E$8:$SJ$207,MATCH($F$5&" "&$F$6,[3]resumen!$C$8:$C$207,0),MATCH(AS264,[3]resumen!$E$2:$SJ$2,0)) ->  | AT169: =INDEX([3]resumen!$E$8:$SJ$207,MATCH($F$5&" "&$F$6,[3]resumen!$C$8:$C$207,0),MATCH(AT264,[3]resumen!$E$2:$SJ$2,0)) ->  | AU169: =INDEX([3]resumen!$E$8:$SJ$207,MATCH($F$5&" "&$F$6,[3]resumen!$C$8:$C$207,0),MATCH(AU264,[3]resumen!$E$2:$SJ$2,0)) ->  | AV169: =INDEX([3]resumen!$E$8:$SJ$207,MATCH($F$5&" "&$F$6,[3]resumen!$C$8:$C$207,0),MATCH(AV264,[3]resumen!$E$2:$SJ$2,0)) ->  | AW169: =INDEX([3]resumen!$E$8:$SJ$207,MATCH($F$5&" "&$F$6,[3]resumen!$C$8:$C$207,0),MATCH(AW264,[3]resumen!$E$2:$SJ$2,0)) ->  | AX169: =INDEX([3]resumen!$E$8:$SJ$207,MATCH($F$5&" "&$F$6,[3]resumen!$C$8:$C$207,0),MATCH(AX264,[3]resumen!$E$2:$SJ$2,0)) ->  | AY169: =INDEX([3]resumen!$E$8:$SJ$207,MATCH($F$5&" "&$F$6,[3]resumen!$C$8:$C$207,0),MATCH(AY264,[3]resumen!$E$2:$SJ$2,0)) ->  | AZ169: =INDEX([3]resumen!$E$8:$SJ$207,MATCH($F$5&" "&$F$6,[3]resumen!$C$8:$C$207,0),MATCH(AZ264,[3]resumen!$E$2:$SJ$2,0)) ->  | BA169: =INDEX([3]resumen!$E$8:$SJ$207,MATCH($F$5&" "&$F$6,[3]resumen!$C$8:$C$207,0),MATCH(BA264,[3]resumen!$E$2:$SJ$2,0)) ->  | BB169: =INDEX([3]resumen!$E$8:$SJ$207,MATCH($F$5&" "&$F$6,[3]resumen!$C$8:$C$207,0),MATCH(BB264,[3]resumen!$E$2:$SJ$2,0)) ->  | BC169: =INDEX([3]resumen!$E$8:$SJ$207,MATCH($F$5&" "&$F$6,[3]resumen!$C$8:$C$207,0),MATCH(BC264,[3]resumen!$E$2:$SJ$2,0)) ->  | BD169: =INDEX([3]resumen!$E$8:$SJ$207,MATCH($F$5&" "&$F$6,[3]resumen!$C$8:$C$207,0),MATCH(BD264,[3]resumen!$E$2:$SJ$2,0)) ->  | BE169: =INDEX([3]resumen!$E$8:$SJ$207,MATCH($F$5&" "&$F$6,[3]resumen!$C$8:$C$207,0),MATCH(BE264,[3]resumen!$E$2:$SJ$2,0)) ->  | BF169: =INDEX([3]resumen!$E$8:$SJ$207,MATCH($F$5&" "&$F$6,[3]resumen!$C$8:$C$207,0),MATCH(BF264,[3]resumen!$E$2:$SJ$2,0)) ->  | BG169: =INDEX([3]resumen!$E$8:$SJ$207,MATCH($F$5&" "&$F$6,[3]resumen!$C$8:$C$207,0),MATCH(BG264,[3]resumen!$E$2:$SJ$2,0)) ->  | BH169: =INDEX([3]resumen!$E$8:$SJ$207,MATCH($F$5&" "&$F$6,[3]resumen!$C$8:$C$207,0),MATCH(BH264,[3]resumen!$E$2:$SJ$2,0)) ->  | BI169: =INDEX([3]resumen!$E$8:$SJ$207,MATCH($F$5&" "&$F$6,[3]resumen!$C$8:$C$207,0),MATCH(BI264,[3]resumen!$E$2:$SJ$2,0)) ->  | BJ169: =INDEX([3]resumen!$E$8:$SJ$207,MATCH($F$5&" "&$F$6,[3]resumen!$C$8:$C$207,0),MATCH(BJ264,[3]resumen!$E$2:$SJ$2,0)) ->  | BK169: =INDEX([3]resumen!$E$8:$SJ$207,MATCH($F$5&" "&$F$6,[3]resumen!$C$8:$C$207,0),MATCH(BK264,[3]resumen!$E$2:$SJ$2,0)) ->  | BL169: =INDEX([3]resumen!$E$8:$SJ$207,MATCH($F$5&" "&$F$6,[3]resumen!$C$8:$C$207,0),MATCH(BL264,[3]resumen!$E$2:$SJ$2,0)) ->  | BM169: =INDEX([3]resumen!$E$8:$SJ$207,MATCH($F$5&" "&$F$6,[3]resumen!$C$8:$C$207,0),MATCH(BM264,[3]resumen!$E$2:$SJ$2,0)) ->  | BN169: =INDEX([3]resumen!$E$8:$SJ$207,MATCH($F$5&" "&$F$6,[3]resumen!$C$8:$C$207,0),MATCH(BN264,[3]resumen!$E$2:$SJ$2,0)) ->  | BO169: =INDEX([3]resumen!$E$8:$SJ$207,MATCH($F$5&" "&$F$6,[3]resumen!$C$8:$C$207,0),MATCH(BO264,[3]resumen!$E$2:$SJ$2,0)) ->  | BP169: =INDEX([3]resumen!$E$8:$SJ$207,MATCH($F$5&" "&$F$6,[3]resumen!$C$8:$C$207,0),MATCH(BP264,[3]resumen!$E$2:$SJ$2,0)) ->  | BQ169: =INDEX([3]resumen!$E$8:$SJ$207,MATCH($F$5&" "&$F$6,[3]resumen!$C$8:$C$207,0),MATCH(BQ264,[3]resumen!$E$2:$SJ$2,0)) ->  | BR169: =INDEX([3]resumen!$E$8:$SJ$207,MATCH($F$5&" "&$F$6,[3]resumen!$C$8:$C$207,0),MATCH(BR264,[3]resumen!$E$2:$SJ$2,0)) ->  | BS169: =INDEX([3]resumen!$E$8:$SJ$207,MATCH($F$5&" "&$F$6,[3]resumen!$C$8:$C$207,0),MATCH(BS264,[3]resumen!$E$2:$SJ$2,0)) ->  | BT169: =INDEX([3]resumen!$E$8:$SJ$207,MATCH($F$5&" "&$F$6,[3]resumen!$C$8:$C$207,0),MATCH(BT264,[3]resumen!$E$2:$SJ$2,0)) ->  | BU169: =INDEX([3]resumen!$E$8:$SJ$207,MATCH($F$5&" "&$F$6,[3]resumen!$C$8:$C$207,0),MATCH(BU264,[3]resumen!$E$2:$SJ$2,0)) ->  | BV169: =INDEX([3]resumen!$E$8:$SJ$207,MATCH($F$5&" "&$F$6,[3]resumen!$C$8:$C$207,0),MATCH(BV264,[3]resumen!$E$2:$SJ$2,0)) ->  | BW169: =INDEX([3]resumen!$E$8:$SJ$207,MATCH($F$5&" "&$F$6,[3]resumen!$C$8:$C$207,0),MATCH(BW264,[3]resumen!$E$2:$SJ$2,0)) ->  | BX169: =INDEX([3]resumen!$E$8:$SJ$207,MATCH($F$5&" "&$F$6,[3]resumen!$C$8:$C$207,0),MATCH(BX264,[3]resumen!$E$2:$SJ$2,0)) ->  | BY169: =INDEX([3]resumen!$E$8:$SJ$207,MATCH($F$5&" "&$F$6,[3]resumen!$C$8:$C$207,0),MATCH(BY264,[3]resumen!$E$2:$SJ$2,0)) ->  | BZ169: =INDEX([3]resumen!$E$8:$SJ$207,MATCH($F$5&" "&$F$6,[3]resumen!$C$8:$C$207,0),MATCH(BZ264,[3]resumen!$E$2:$SJ$2,0)) ->  | CA169: =INDEX([3]resumen!$E$8:$SJ$207,MATCH($F$5&" "&$F$6,[3]resumen!$C$8:$C$207,0),MATCH(CA264,[3]resumen!$E$2:$SJ$2,0)) ->  | CB169: =INDEX([3]resumen!$E$8:$SJ$207,MATCH($F$5&" "&$F$6,[3]resumen!$C$8:$C$207,0),MATCH(CB264,[3]resumen!$E$2:$SJ$2,0)) ->  | CC169: =INDEX([3]resumen!$E$8:$SJ$207,MATCH($F$5&" "&$F$6,[3]resumen!$C$8:$C$207,0),MATCH(CC264,[3]resumen!$E$2:$SJ$2,0)) ->  | CD169: =INDEX([3]resumen!$E$8:$SJ$207,MATCH($F$5&" "&$F$6,[3]resumen!$C$8:$C$207,0),MATCH(CD264,[3]resumen!$E$2:$SJ$2,0)) ->  | CE169: =INDEX([3]resumen!$E$8:$SJ$207,MATCH($F$5&" "&$F$6,[3]resumen!$C$8:$C$207,0),MATCH(CE264,[3]resumen!$E$2:$SJ$2,0)) ->  | CF169: =INDEX([3]resumen!$E$8:$SJ$207,MATCH($F$5&" "&$F$6,[3]resumen!$C$8:$C$207,0),MATCH(CF264,[3]resumen!$E$2:$SJ$2,0)) ->  | CG169: =INDEX([3]resumen!$E$8:$SJ$207,MATCH($F$5&" "&$F$6,[3]resumen!$C$8:$C$207,0),MATCH(CG264,[3]resumen!$E$2:$SJ$2,0)) ->  | CH169: =INDEX([3]resumen!$E$8:$SJ$207,MATCH($F$5&" "&$F$6,[3]resumen!$C$8:$C$207,0),MATCH(CH264,[3]resumen!$E$2:$SJ$2,0)) ->  | CI169: =INDEX([3]resumen!$E$8:$SJ$207,MATCH($F$5&" "&$F$6,[3]resumen!$C$8:$C$207,0),MATCH(CI264,[3]resumen!$E$2:$SJ$2,0)) ->  | CJ169: =INDEX([3]resumen!$E$8:$SJ$207,MATCH($F$5&" "&$F$6,[3]resumen!$C$8:$C$207,0),MATCH(CJ264,[3]resumen!$E$2:$SJ$2,0)) ->  | CK169: =INDEX([3]resumen!$E$8:$SJ$207,MATCH($F$5&" "&$F$6,[3]resumen!$C$8:$C$207,0),MATCH(CK264,[3]resumen!$E$2:$SJ$2,0)) -> 
F170: CATEGORÍAS CON MEDICIÓN DE ENERGÍA
F171: =F23 -> 0.1946278481 | H171: FSE(BT)P | I171: Pj | J171: = Potencia promedio coincidente con la máx de la Categoría
F172: =F24 ->  | I172: Pj* | J172: = Potencia promedio coincidente con la máx de la Categoría Unificada
C173: ='[2]Balance de Potencia'!$E$690 -> Lunes | D173: ='[2]Balance de Potencia'!$E$689 -> 13:45:00 | E173: =MATCH(C173&ROUND(D173,10),$A$273:$A$944,0) -> 152 | F173: =F112 -> 0.1669898734 | I173: P(h*) | J173: = Potencia promedio coincidente con el máx de BT en Punta
F174: =F26 -> 0.03308711614 | I174: Var(Pj) | J174: = Varianza de la Potencia coincidente con la máx de la Categoría
F175: =F27 ->  | I175: Var(Pj*) | J175: = Varianza de la Potencia coincidente con la máx de la Categoría Unificada
F176: =F115 -> 0.02906032656 | I176: Var (Ph*) | J176: =Varianza de la Potencia Coincidente con el máx de BT en Punta
F177: =COVAR(K23:XFD23,K112:XFD112) -> 0.00753633256 | I177: Cov (Pj;Ph*) | J177: =Covarianza entre la Pot Coinc con máx Categ y la Coinc con máx de BT
F178: =COVAR(K24:XFD24,K112:XFD112) ->  | I178: Cov (Pj*;Ph*) | J178: =Covarianza entre la Pot Coinc con máx Categ Unif y la Coinc con máx de BT
F180: =F23 -> 0.1946278481 | H180: FSE(MT)P | I180: Pj | J180: = Potencia promedio coincidente con la máx de la Categoría
F181: =F24 ->  | I181: Pj* | J181: = Potencia promedio coincidente con la máx de la Categoría Unificada
C182: ='[2]Balance de Potencia'!$F$690 -> Lunes | D182: ='[2]Balance de Potencia'!$F$689 -> 13:45:00 | E182: =MATCH(C182&ROUND(D182,10),$A$273:$A$944,0) -> 152 | F182: =F121 -> 0.1669898734 | I182: P(h*) | J182: = Potencia promedio coincidente con el máx de MT en Punta
F183: =F26 -> 0.03308711614 | I183: Var(Pj) | J183: = Varianza de la Potencia coincidente con la máx de la Categoría
F184: =F27 ->  | I184: Var(Pj*) | J184: = Varianza de la Potencia coincidente con la máx de la Categoría Unificada
F185: =F124 -> 0.02906032656 | I185: Var (Ph*) | J185: =Varianza de la Potencia Coincidente con el máx de MT en Punta
F186: =COVAR(K23:XFD23,K121:XFD121) -> 0.00753633256 | I186: Cov (Pj;Ph*) | J186: =Covarianza entre la Pot Coinc con máx Categ y la Coinc con máx de MT
F187: =COVAR(K24:XFD24,K121:XFD121) ->  | I187: Cov (Pj*;Ph*) | J187: =Covarianza entre la Pot Coinc con máx Categ Unif y la Coinc con máx de MT
F189: =F23 -> 0.1946278481 | H189: FSE(AT)P | I189: Pj | J189: = Potencia promedio coincidente con la máx de la Categoría
F190: =F24 ->  | I190: Pj* | J190: = Potencia promedio coincidente con la máx de la Categoría Unificada
C191: ='[2]Balance de Potencia'!$G$690 -> Lunes | D191: ='[2]Balance de Potencia'!$G$689 -> 13:45:00 | E191: =MATCH(C191&ROUND(D191,10),$A$273:$A$944,0) -> 152 | F191: =F130 -> 0.1669898734 | I191: P(h*) | J191: = Potencia promedio coincidente con el máx de AT en Punta
F192: =F26 -> 0.03308711614 | I192: Var(Pj) | J192: = Varianza de la Potencia coincidente con la máx de la Categoría
F193: =F27 ->  | I193: Var(Pj*) | J193: = Varianza de la Potencia coincidente con la máx de la Categoría Unificada
F194: =F133 -> 0.02906032656 | I194: Var (Ph*) | J194: =Varianza de la Potencia Coincidente con el máx de AT en Punta
F195: =COVAR(K23:XFD23,K130:XFD130) -> 0.00753633256 | I195: Cov (Pj;Ph*) | J195: =Covarianza entre la Pot Coinc con máx Categ y la Coinc con máx de AT
F196: =COVAR(K24:XFD24,K130:XFD130) ->  | I196: Cov (Pj*;Ph*) | J196: =Covarianza entre la Pot Coinc con máx Categ Unif y la Coinc con máx de AT
F198: =F23 -> 0.1946278481 | H198: FSE(BT)FP | I198: Pj | J198: = Potencia promedio coincidente con la máx de la Categoría
F199: =F24 ->  | I199: Pj* | J199: = Potencia promedio coincidente con la máx de la Categoría Unificada
C200: ='[2]Balance de Potencia'!$E$697 -> Martes | D200: ='[2]Balance de Potencia'!$E$696 -> 20:30:00 | E200: =MATCH(C200&ROUND(D200,10),$A$273:$A$944,0) -> 275 | F200: =F139 -> 0.1787924051 | I200: P(h*) | J200: = Potencia promedio coincidente con el máx de BT en Fuera de Punta
F201: =F26 -> 0.03308711614 | I201: Var(Pj) | J201: = Varianza de la Potencia coincidente con la máx de la Categoría
F202: =F27 ->  | I202: Var(Pj*) | J202: = Varianza de la Potencia coincidente con la máx de la Categoría Unificada
F203: =F142 -> 0.01180715712 | I203: Var (Ph*) | J203: =Varianza de la Potencia Coincidente con el máx de BT en Fuera de Punta
F204: =COVAR(K23:XFD23,K139:XFD139) -> 0.006713363503 | I204: Cov (Pj;Ph*) | J204: =Covarianza entre la Pot Coinc con máx Categ y la Coinc con máx de BT
F205: =COVAR(K24:XFD24,K139:XFD139) ->  | I205: Cov (Pj*;Ph*) | J205: =Covarianza entre la Pot Coinc con máx Categ Unif y la Coinc con máx de BT
F207: =F23 -> 0.1946278481 | H207: FSE(MT)FP | I207: Pj | J207: = Potencia promedio coincidente con la máx de la Categoría
F208: =F24 ->  | I208: Pj* | J208: = Potencia promedio coincidente con la máx de la Categoría Unificada
C209: ='[2]Balance de Potencia'!$F$697 -> Viernes | D209: ='[2]Balance de Potencia'!$F$696 -> 19:15:00 | E209: =MATCH(C209&ROUND(D209,10),$A$273:$A$944,0) -> 558 | F209: =F148 -> 0.1780012658 | I209: P(h*) | J209: = Potencia promedio coincidente con el máx de MT en Fuera de Punta
F210: =F26 -> 0.03308711614 | I210: Var(Pj) | J210: = Varianza de la Potencia coincidente con la máx de la Categoría
F211: =F27 ->  | I211: Var(Pj*) | J211: = Varianza de la Potencia coincidente con la máx de la Categoría Unificada
F212: =F151 -> 0.01818967192 | I212: Var (Ph*) | J212: =Varianza de la Potencia Coincidente con el máx de MT en Fuera de Punta
F213: =COVAR(K23:XFD23,K148:XFD148) -> 0.007485837813 | I213: Cov (Pj;Ph*) | J213: =Covarianza entre la Pot Coinc con máx Categ y la Coinc con máx de MT
F214: =COVAR(K24:XFD24,K148:XFD148) ->  | I214: Cov (Pj*;Ph*) | J214: =Covarianza entre la Pot Coinc con máx Categ Unif y la Coinc con máx de MT
F216: =F23 -> 0.1946278481 | H216: FSE(AT)FP | I216: Pj | J216: = Potencia promedio coincidente con la máx de la Categoría
F217: =F24 ->  | I217: Pj* | J217: = Potencia promedio coincidente con la máx de la Categoría Unificada
C218: ='[2]Balance de Potencia'!$G$697 -> Viernes | D218: ='[2]Balance de Potencia'!$G$696 -> 19:15:00 | E218: =MATCH(C218&ROUND(D218,10),$A$273:$A$944,0) -> 558 | F218: =F157 -> 0.1780012658 | I218: P(h*) | J218: = Potencia promedio coincidente con el máx de AT en Fuera de Punta
F219: =F26 -> 0.03308711614 | I219: Var(Pj) | J219: = Varianza de la Potencia coincidente con la máx de la Categoría
F220: =F27 ->  | I220: Var(Pj*) | J220: = Varianza de la Potencia coincidente con la máx de la Categoría Unificada
F221: =F160 -> 0.01818967192 | I221: Var (Ph*) | J221: =Varianza de la Potencia Coincidente con el máx de AT en Punta
F222: =COVAR(K23:XFD23,K157:XFD157) -> 0.007485837813 | I222: Cov (Pj;Ph*) | J222: =Covarianza entre la Pot Coinc con máx Categ y la Coinc con máx de AT
F223: =COVAR(K24:XFD24,K157:XFD157) ->  | I223: Cov (Pj*;Ph*) | J223: =Covarianza entre la Pot Coinc con máx Categ Unif y la Coinc con máx de AT
F224: CATEGORÍAS CON MEDICIÓN DE POTENCIA MÁXIMA
F225: =F37 -> 0.5182177215 | H225: FSI-P | I225: Pj | J225: = Promedio de la Potencia Máxima de cada usuario
... 713 more rows

Sheet BTS_R 3
B1: =[1]DATOS!$B$3 -> ENSA
B2: Estudio de Caracterización de la Carga
B4: Categoría Unificada | F4: BTS_R
B5: Grupo Homogeneo | F5: BTS_R
B6: Estrato | F6: 3
B7: Identificador hora punta | F7: P
B8: Determinación de Parámetros de las Mediciones del Grupo Homogéneo y Estrato
E10: P | F10: =AVERAGE(K10:XFD10) -> 11.48899632 | H10: Estructura de Consumo | I10: ep | J10: =Energía Promedio Semanal en Punta | K10: =+IF(SUM(K$273:K$944)/4=0,"",SUMIF($E$273:$E$944,$E10,K$273:K$944)/4) -> 17.6989 | L10: =+IF(SUM(L$273:L$944)/4=0,"",SUMIF($E$273:$E$944,$E10,L$273:L$944)/4) -> 6.697725 | M10: 8.2452 | N10: 11.294725 | O10: 6.9654 | P10: 10.7179 | Q10: 4.024825 | R10: 9.86085 | S10: 13.6158 | T10: 14.8649 | U10: 8.46385 | V10: 5.6073 | W10: 6.31815 | X10: 11.416625 | Y10: 16.6249 | Z10: 12.9351 | AA10: 4.84715 | AB10: =+IF(SUM(AB$273:AB$944)/4=0,"",SUMIF($E$273:$E$944,$E10,AB$273:AB$944)/4) -> 15.455775 | AC10: 16.7658 | AD10: 9.02895 | AE10: 13.8529 | AF10: 7.565075 | AG10: 5.73255 | AH10: 6.115 | AI10: 13.14355 | AJ10: 20.65685 | AK10: 16.314675 | AL10: 17.641375 | AM10: 17.0264 | AN10: 14.2087 | AO10: 14.6345 | AP10: 10.0915 | AQ10: 4.612225 | AR10: 17.58075
E11: R | F11: =AVERAGE(K11:XFD11) -> 20.44477132 | I11: er | J11: =Energía Promedio Semanal en Resto | K11: =+IF(SUM(K$273:K$944)/4=0,"",SUMIF($E$273:$E$944,$E11,K$273:K$944)/4) -> 25.345825 | L11: 15.645775 | M11: 13.34835 | N11: 17.52675 | O11: 20.77315 | P11: 18.1948 | Q11: 9.92325 | R11: 25.78865 | S11: 25.351575 | T11: 29.6854 | U11: 11.390875 | V11: 13.24475 | W11: 10.59235 | X11: 16.536925 | Y11: 24.886625 | Z11: 23.743825 | AA11: 7.854475 | AB11: 27.173675 | AC11: 31.003825 | AD11: 12.863125 | AE11: 26.4933 | AF11: 17.58335 | AG11: 10.598525 | AH11: 10.030025 | AI11: 20.6406 | AJ11: 26.8477 | AK11: 24.641325 | AL11: 27.816375 | AM11: 37.201425 | AN11: 19.74995 | AO11: 27.006475 | AP11: 17.633025 | AQ11: 12.965825 | AR11: 35.04035
E12: V | F12: =AVERAGE(K12:XFD12) -> 23.79257868 | I12: ev | J12: =Energía Promedio Semanal en Valle | K12: =+IF(SUM(K$273:K$944)/4=0,"",SUMIF($E$273:$E$944,$E12,K$273:K$944)/4) -> 30.9766 | L12: 19.662825 | M12: 13.28255 | N12: 23.39105 | O12: 34.921075 | P12: 17.27785 | Q12: 15.75565 | R12: 32.82805 | S12: 24.4622 | T12: 35.653275 | U12: 12.446325 | V12: 10.618125 | W12: 11.71295 | X12: 20.9201 | Y12: 33.3398 | Z12: 24.17615 | AA12: 9.362825 | AB12: 29.286025 | AC12: 36.575075 | AD12: 16.4453 | AE12: 36.036075 | AF12: 17.17705 | AG12: 13.82065 | AH12: 10.321325 | AI12: 27.971875 | AJ12: 23.269975 | AK12: 28.1176 | AL12: 32.2845 | AM12: 33.862075 | AN12: 21.9282 | AO12: 34.430575 | AP12: 23.38155 | AQ12: 16.522875 | AR12: 36.72955
F13: =AVERAGE(K13:XFD13) -> 55.72634632 | I13: et | J13: =Energía Promedio Semanal (Total) | K13: =+IF(SUM(K273:K944)/4=0,"",SUM(K273:K944)/4) -> 74.021325 | L13: 42.006325 | M13: 34.8761 | N13: 52.212525 | O13: 62.659625 | P13: 46.19055 | Q13: 29.703725 | R13: 68.47755 | S13: 63.429575 | T13: =+IF(SUM(T273:T944)/4=0,"",SUM(T273:T944)/4) -> 80.203575 | U13: 32.30105 | V13: 29.470175 | W13: 28.62345 | X13: 48.87365 | Y13: 74.851325 | Z13: 60.855075 | AA13: 22.06445 | AB13: 71.915475 | AC13: 84.3447 | AD13: 38.337375 | AE13: 76.382275 | AF13: 42.325475 | AG13: 30.151725 | AH13: 26.46635 | AI13: 61.756025 | AJ13: 70.774525 | AK13: 69.0736 | AL13: 77.74225 | AM13: 88.0899 | AN13: 55.88685 | AO13: 76.07155 | AP13: 51.106075 | AQ13: 34.100925 | AR13: 89.35065
F14: =VAR(K10:XFD10) -> 21.98056976 | I14: Var (ep) | J14: =Varianza de la Energía Semanal en Punta
F15: =VAR(K11:XFD11) -> 59.80996001 | I15: Var (er) | J15: =Varianza de la Energía Semanal en Resto
F16: =VAR(K12:XFD12) -> 80.54632906 | I16: Var (ev) | J16: =Varianza de la Energía Semanal en Valle
F17: =VAR(K13:XFD13) -> 413.8988025 | I17: Var (et) | J17: =Varianza de la Energía Semanal (Total)
F18: =COVAR(K10:XFD10,$K$13:$XFD$13) -> 82.54773824 | I18: Cov (ep,et) | J18: =Covarianza entre la Energía en Punta y Total
F19: =COVAR(K11:XFD11,$K$13:$XFD$13) -> 149.5239564 | I19: Cov (er,et) | J19: =Covarianza entre la Energía en Resto y Total
F20: =COVAR(K12:XFD12,$K$13:$XFD$13) -> 169.6536136 | I20: Cov (ev,et) | J20: =Covarianza entre la Energía en Valle y Total
F22: =AVERAGE(K22:XFD22) -> 222.9053853 | H22: FC | I22: Pj | J22: = Promedio de la Suma de Potencia de cada usuario | K22: =+IF(SUM(K$273:K$944)=0,"",SUM(K$273:K$944)) -> 296.0853 | L22: 168.0253 | M22: 139.5044 | N22: 208.8501 | O22: 250.6385 | P22: 184.7622 | Q22: 118.8149 | R22: 273.9102 | S22: 253.7183 | T22: 320.8143 | U22: 129.2042 | V22: 117.8807 | W22: 114.4938 | X22: 195.4946 | Y22: 299.4053 | Z22: 243.4203 | AA22: 88.2578 | AB22: 287.6619 | AC22: 337.3788 | AD22: 153.3495 | AE22: 305.5291 | AF22: 169.3019 | AG22: 120.6069 | AH22: 105.8654 | AI22: 247.0241 | AJ22: 283.0981 | AK22: 276.2944 | AL22: 310.969 | AM22: 352.3596 | AN22: 223.5474 | AO22: 304.2862 | AP22: 204.4243 | AQ22: 136.4037 | AR22: 357.4026
C23: =INDEX('[2]Balance de Potencia'!$CC$683:$CV$683,1,MATCH($F$5,'[2]Balance de Potencia'!$CC$5:$CV$5,0)) -> Miércoles | D23: =INDEX('[2]Balance de Potencia'!$CC$682:$CV$682,1,MATCH($F$5,'[2]Balance de Potencia'!$CC$5:$CV$5,0)) -> 21:45:00 | E23: =MATCH(C23&ROUND(D23,10),$A$273:$A$944,0) -> 376 | F23: =AVERAGE(K23:XFD23) -> 0.4396264706 | I23: P(h*) | J23: = Potencia promedio coincidente con la máx de la Categoría | K23: =IF(K$22="","",OFFSET($A$273,$E23-1,COLUMN()-1,)) -> 0.4486 | L23: =IF(L$22="","",OFFSET($A$273,$E23-1,COLUMN()-1,)) -> 0.4011 | M23: 0.1963 | N23: 0.459 | O23: 0.4868 | P23: 0.3209 | Q23: 0.2078 | R23: 0.4224 | S23: 0.6484 | T23: 0.4856 | U23: 0.2958 | V23: 0.842 | W23: 0.1881 | X23: 0.4324 | Y23: 0.4249 | Z23: 0.493 | AA23: 0.1827 | AB23: 0.6392 | AC23: 0.6505 | AD23: 0.23 | AE23: 0.5079 | AF23: 0.6701 | AG23: 0.1781 | AH23: 0.1309 | AI23: 0.4036 | AJ23: 0.5132 | AK23: 0.3284 | AL23: 0.5893 | AM23: 1.1819 | AN23: 0.3994 | AO23: 0.5296 | AP23: 0.2079 | AQ23: 0.2487 | AR23: 0.6028
C24: =INDEX('[2]Balance de Potencia'!$BY$683:$CA$683,1,MATCH($F$4,'[2]Balance de Potencia'!$BY$5:$CA$5,0)) ->  | D24: =INDEX('[2]Balance de Potencia'!$BY$682:$CA$682,1,MATCH($F$4,'[2]Balance de Potencia'!$BY$5:$CA$5,0)) ->  | E24: =MATCH(C24&ROUND(D24,10),$A$273:$A$944,0) ->  | F24: =AVERAGE(K24:XFD24) ->  | I24: P(h**) | J24: = Potencia promedio coincidente con la máx de la Categoría Unificada | K24: =IF(K$22="","",OFFSET($A$273,$E24-1,COLUMN()-1,)) -> 
F25: =VAR(K22:XFD22) -> 6622.380839 | I25: Var (Pj) | J25: =Varianza de la Potencia Media
F26: =VAR(K23:XFD23) -> 0.0472989711 | I26: Var (Ph*) | J26: =Varianza de la Potencia Coincidente con la máx de la Categ.
F27: =VAR(K24:XFD24) ->  | I27: Var (Ph**) | J27: =Varianza de la Potencia Coincidente con la máx de la Categ.Unificada
F28: =COVAR(K23:XFD23,$K$22:$XFD$22) -> 10.612169 | I28: Cov (Pj;Ph*) | J28: =Covarianza entre la Potencia Media y la Coincidente
F29: =COVAR(K24:XFD24,$K$22:$XFD$22) ->  | I29: Cov (Pj;Ph**) | J29: =Covarianza entre la Potencia Media y la Coincidente de la Categ. Unificada
F31: =F22 -> 222.9053853 | H31: FC-estrato | I31: Pj | J31: = Promedio de la Suma de Potencia de cada usuario
E32: =MATCH(F32,$F$273:$F$944,0) -> 571 | F32: =F271 -> 0.4767852941 | I32: P(h*) | J32: = Potencia promedio coincidente con la máx del estrato | K32: =IF(K$22="","",OFFSET($A$273,$E32-1,COLUMN()-1,)) -> 0.4528 | L32: 0.2589 | M32: 0.2494 | N32: 0.1782 | O32: 0.6361 | P32: 0.3793 | Q32: 0.2641 | R32: 0.9242 | S32: 0.3242 | T32: 0.5173 | U32: 0.1685 | V32: 0.2284 | W32: 0.215 | X32: 0.3026 | Y32: 0.4521 | Z32: 0.4145 | AA32: 0.1466 | AB32: 0.8673 | AC32: 0.6172 | AD32: 0.2128 | AE32: 0.5342 | AF32: 0.6841 | AG32: 0.3103 | AH32: 0.1607 | AI32: 0.3175 | AJ32: 0.1167 | AK32: 0.5059 | AL32: 0.4312 | AM32: 2.9385 | AN32: 0.3635 | AO32: 0.574 | AP32: 0.4365 | AQ32: 0.1735 | AR32: 0.8546
F33: =F25 -> 6622.380839 | I33: Var (Pj) | J33: =Varianza de la Potencia Media
F34: =VAR(K32:XFD32) -> 0.2350208698 | I34: Var (Ph*) | J34: =Varianza de la Potencia Coincidente con la máx del estrato
F35: =COVAR(K32:XFD32,$K$22:$XFD$22) -> 20.55474634 | I35: Cov (Pj;Ph*) | J35: =Covarianza entre la Potencia Media y la Coincidente
F37: =+AVERAGE(K37:XFD37) -> 0.9670029412 | H37: FSI | I37: Pj | J37: = Promedio de la Potencia Máxima de cada usuario | K37: =+IF(SUM(K273:K944)=0,"",MAX(K273:K944)) -> 0.5211 | L37: 0.7119 | M37: 0.7109 | N37: 0.7719 | O37: 0.7248 | P37: 0.8927 | Q37: 0.499 | R37: 2.7434 | S37: 2.0422 | T37: =+IF(SUM(T273:T944)=0,"",MAX(T273:T944)) -> 0.8021 | U37: 0.454 | V37: 0.8841 | W37: 0.2884 | X37: 0.6568 | Y37: 1.5009 | Z37: 0.9075 | AA37: 0.3555 | AB37: 0.9345 | AC37: 1.2677 | AD37: 0.2859 | AE37: 0.9551 | AF37: 1.2051 | AG37: 0.3928 | AH37: 0.4121 | AI37: 0.8669 | AJ37: 1.489 | AK37: 0.7002 | AL37: 1.0077 | AM37: 2.9385 | AN37: 0.9369 | AO37: 1.4221 | AP37: 0.5746 | AQ37: 0.6888 | AR37: 1.333
F38: =+AVERAGE(K38:XFD38) -> 0.9401970588 | I38: PjFP | J38: = Promedio de la Potencia Máxima de cada usuario en horas FP | K38: =IF(SUM(K273:K944)=0,"",MAX(IF($E273:$E944<>"P",K273:K944,""))) -> 0.4656 | L38: =IF(SUM(L273:L944)=0,"",MAX(IF($E273:$E944<>"P",L273:L944,""))) -> 0.7119 | M38: =IF(SUM(M273:M944)=0,"",MAX(IF($E273:$E944<>"P",M273:M944,""))) -> 0.7109 | N38: =IF(SUM(N273:N944)=0,"",MAX(IF($E273:$E944<>"P",N273:N944,""))) -> 0.6407 | O38: =IF(SUM(O273:O944)=0,"",MAX(IF($E273:$E944<>"P",O273:O944,""))) -> 0.7248 | P38: =IF(SUM(P273:P944)=0,"",MAX(IF($E273:$E944<>"P",P273:P944,""))) -> 0.8927 | Q38: =IF(SUM(Q273:Q944)=0,"",MAX(IF($E273:$E944<>"P",Q273:Q944,""))) -> 0.499 | R38: =IF(SUM(R273:R944)=0,"",MAX(IF($E273:$E944<>"P",R273:R944,""))) -> 2.7434 | S38: =IF(SUM(S273:S944)=0,"",MAX(IF($E273:$E944<>"P",S273:S944,""))) -> 1.6288 | T38: =IF(SUM(T273:T944)=0,"",MAX(IF($E273:$E944<>"P",T273:T944,""))) -> 0.8021 | U38: =IF(SUM(U273:U944)=0,"",MAX(IF($E273:$E944<>"P",U273:U944,""))) -> 0.3895 | V38: =IF(SUM(V273:V944)=0,"",MAX(IF($E273:$E944<>"P",V273:V944,""))) -> 0.8841 | W38: =IF(SUM(W273:W944)=0,"",MAX(IF($E273:$E944<>"P",W273:W944,""))) -> 0.2884 | X38: =IF(SUM(X273:X944)=0,"",MAX(IF($E273:$E944<>"P",X273:X944,""))) -> 0.5533 | Y38: =IF(SUM(Y273:Y944)=0,"",MAX(IF($E273:$E944<>"P",Y273:Y944,""))) -> 1.5009 | Z38: =IF(SUM(Z273:Z944)=0,"",MAX(IF($E273:$E944<>"P",Z273:Z944,""))) -> 0.9075 | AA38: =IF(SUM(AA273:AA944)=0,"",MAX(IF($E273:$E944<>"P",AA273:AA944,""))) -> 0.3555 | AB38: =IF(SUM(AB273:AB944)=0,"",MAX(IF($E273:$E944<>"P",AB273:AB944,""))) -> 0.9345 | AC38: =IF(SUM(AC273:AC944)=0,"",MAX(IF($E273:$E944<>"P",AC273:AC944,""))) -> 1.2677 | AD38: =IF(SUM(AD273:AD944)=0,"",MAX(IF($E273:$E944<>"P",AD273:AD944,""))) -> 0.2859 | AE38: =IF(SUM(AE273:AE944)=0,"",MAX(IF($E273:$E944<>"P",AE273:AE944,""))) -> 0.9551 | AF38: =IF(SUM(AF273:AF944)=0,"",MAX(IF($E273:$E944<>"P",AF273:AF944,""))) -> 1.2051 | AG38: =IF(SUM(AG273:AG944)=0,"",MAX(IF($E273:$E944<>"P",AG273:AG944,""))) -> 0.3928 | AH38: =IF(SUM(AH273:AH944)=0,"",MAX(IF($E273:$E944<>"P",AH273:AH944,""))) -> 0.3856 | AI38: =IF(SUM(AI273:AI944)=0,"",MAX(IF($E273:$E944<>"P",AI273:AI944,""))) -> 0.8669 | AJ38: =IF(SUM(AJ273:AJ944)=0,"",MAX(IF($E273:$E944<>"P",AJ273:AJ944,""))) -> 1.3722 | AK38: =IF(SUM(AK273:AK944)=0,"",MAX(IF($E273:$E944<>"P",AK273:AK944,""))) -> 0.7002 | AL38: =IF(SUM(AL273:AL944)=0,"",MAX(IF($E273:$E944<>"P",AL273:AL944,""))) -> 1.0077 | AM38: =IF(SUM(AM273:AM944)=0,"",MAX(IF($E273:$E944<>"P",AM273:AM944,""))) -> 2.9385 | AN38: =IF(SUM(AN273:AN944)=0,"",MAX(IF($E273:$E944<>"P",AN273:AN944,""))) -> 0.9369 | AO38: =IF(SUM(AO273:AO944)=0,"",MAX(IF($E273:$E944<>"P",AO273:AO944,""))) -> 1.4221 | AP38: =IF(SUM(AP273:AP944)=0,"",MAX(IF($E273:$E944<>"P",AP273:AP944,""))) -> 0.5746 | AQ38: =IF(SUM(AQ273:AQ944)=0,"",MAX(IF($E273:$E944<>"P",AQ273:AQ944,""))) -> 0.6888 | AR38: =IF(SUM(AR273:AR944)=0,"",MAX(IF($E273:$E944<>"P",AR273:AR944,""))) -> 1.333
F39: =F23 -> 0.4396264706 | I39: P(h*) | J39: = Potencia promedio coincidente con la máx de la Categoría
F40: =F24 ->  | I40: P(h**) | J40: = Potencia promedio coincidente con la máx de la Categoría Unificada
F41: =VAR(K37:XFD37) -> 0.3801279191 | I41: Var (Pj) | J41: =Varianza de la Potencia Máxima de cada Usuario
F42: =F26 -> 0.0472989711 | I42: Var (Ph*) | J42: =Varianza de la Potencia Coincidente con la máx de la Categ.
F43: =F27 ->  | I43: Var (Ph**) | J43: =Varianza de la Potencia Coincidente con la máx de la Categ. Unificada
F44: =COVAR(K23:XFD23,$K$37:$XFD$37) -> 0.09053854316 | I44: Cov (Pj;Ph*) | J44: =Covarianza entre la Potencia Máxima y la Coincidente
F45: =COVAR(K24:XFD24,$K$37:$XFD$37) ->  | I45: Cov (Pj;Ph**) | J45: =Covarianza entre la Potencia Máxima y la Coincidente de la Categ. Unificada
F47: =F37 -> 0.9670029412 | H47: FCT-BT | I47: Pj | J47: = Promedio de la Potencia Máxima de cada usuario
F48: =F85 -> 0.3131147059 | I48: P(h*) | J48: = Potencia promedio coincidente con la máx de la Baja Tensión
F49: =F41 -> 0.3801279191 | I49: Var(Pj) | J49: =Varianza de la Potencia Máxima de cada Usuario
F50: =F88 -> 0.04577300008 | I50: Var(Ph*) | J50: =Varianza de la Potencia Coincidente con el máx de BT
F51: =COVAR(K37:XFD37,K85:XFD85) -> 0.03286456084 | I51: Cov(Pj;Ph* | J51: =Covarianza entre la Potencia Máxima y la Coinc con máx de BT
F53: =F37 -> 0.9670029412 | H53: FCT-MT | I53: Pj | J53: = Promedio de la Potencia Máxima de cada usuario
F54: =F94 -> 0.3131147059 | I54: P(h*) | J54: = Potencia promedio coincidente con la máx de la Media Tensión
F55: =F41 -> 0.3801279191 | I55: Var(Pj) | J55: =Varianza de la Potencia Máxima de cada Usuario
F56: =F97 -> 0.04577300008 | I56: Var(Ph*) | J56: =Varianza de la Potencia Coincidente con el máx de MT
F57: =COVAR(K37:XFD37,K94:XFD94) -> 0.03286456084 | I57: Cov(Pj;Ph* | J57: =Covarianza entre la Potencia Máxima y la Coinc con máx de MT
F59: =F37 -> 0.9670029412 | H59: FCT-AT | I59: Pj | J59: = Promedio de la Potencia Máxima de cada usuario
F60: =F103 -> 0.3131147059 | I60: P(h*) | J60: = Potencia promedio coincidente con la máx de la Alta Tensión
F61: =F41 -> 0.3801279191 | I61: Var(Pj) | J61: =Varianza de la Potencia Máxima de cada Usuario
F62: =F106 -> 0.04577300008 | I62: Var(Ph*) | J62: =Varianza de la Potencia Coincidente con el máx de AT
F63: =COVAR(K37:XFD37,K103:XFD103) -> 0.03286456084 | I63: Cov(Pj;Ph* | J63: =Covarianza entre la Potencia Máxima y la Coinc con máx de AT
F65: =AVERAGE(K65:XFD65) -> 0.6887470588 | H65: FSI-P | I65: Pj | J65: = Promedio de la Potencia Máxima de cada usuario en Punta | K65: =+IF(SUM(K273:K944)=0,"",MAX(IF($E273:$E944=$F$7,K273:K944))) -> 0.5211 | L65: =+IF(SUM(L273:L944)=0,"",MAX(IF($E273:$E944=$F$7,L273:L944))) -> 0.3947 | M65: =+IF(SUM(M273:M944)=0,"",MAX(IF($E273:$E944=$F$7,M273:M944))) -> 0.5021 | N65: =+IF(SUM(N273:N944)=0,"",MAX(IF($E273:$E944=$F$7,N273:N944))) -> 0.7719 | O65: =+IF(SUM(O273:O944)=0,"",MAX(IF($E273:$E944=$F$7,O273:O944))) -> 0.4521 | P65: =+IF(SUM(P273:P944)=0,"",MAX(IF($E273:$E944=$F$7,P273:P944))) -> 0.7093 | Q65: =+IF(SUM(Q273:Q944)=0,"",MAX(IF($E273:$E944=$F$7,Q273:Q944))) -> 0.2209 | R65: =+IF(SUM(R273:R944)=0,"",MAX(IF($E273:$E944=$F$7,R273:R944))) -> 1.0612 | S65: =+IF(SUM(S273:S944)=0,"",MAX(IF($E273:$E944=$F$7,S273:S944))) -> 2.0422 | T65: =+IF(SUM(T273:T944)=0,"",MAX(IF($E273:$E944=$F$7,T273:T944))) -> 0.6575 | U65: =+IF(SUM(U273:U944)=0,"",MAX(IF($E273:$E944=$F$7,U273:U944))) -> 0.454 | V65: =+IF(SUM(V273:V944)=0,"",MAX(IF($E273:$E944=$F$7,V273:V944))) -> 0.6254 | W65: =+IF(SUM(W273:W944)=0,"",MAX(IF($E273:$E944=$F$7,W273:W944))) -> 0.2156 | X65: =+IF(SUM(X273:X944)=0,"",MAX(IF($E273:$E944=$F$7,X273:X944))) -> 0.6568 | Y65: =+IF(SUM(Y273:Y944)=0,"",MAX(IF($E273:$E944=$F$7,Y273:Y944))) -> 0.6658 | Z65: =+IF(SUM(Z273:Z944)=0,"",MAX(IF($E273:$E944=$F$7,Z273:Z944))) -> 0.655 | AA65: =+IF(SUM(AA273:AA944)=0,"",MAX(IF($E273:$E944=$F$7,AA273:AA944))) -> 0.2852 | AB65: =+IF(SUM(AB273:AB944)=0,"",MAX(IF($E273:$E944=$F$7,AB273:AB944))) -> 0.6596 | AC65: =+IF(SUM(AC273:AC944)=0,"",MAX(IF($E273:$E944=$F$7,AC273:AC944))) -> 0.9206 | AD65: =+IF(SUM(AD273:AD944)=0,"",MAX(IF($E273:$E944=$F$7,AD273:AD944))) -> 0.275 | AE65: =+IF(SUM(AE273:AE944)=0,"",MAX(IF($E273:$E944=$F$7,AE273:AE944))) -> 0.8829 | AF65: =+IF(SUM(AF273:AF944)=0,"",MAX(IF($E273:$E944=$F$7,AF273:AF944))) -> 0.474 | AG65: =+IF(SUM(AG273:AG944)=0,"",MAX(IF($E273:$E944=$F$7,AG273:AG944))) -> 0.2652 | AH65: =+IF(SUM(AH273:AH944)=0,"",MAX(IF($E273:$E944=$F$7,AH273:AH944))) -> 0.4121 | AI65: =+IF(SUM(AI273:AI944)=0,"",MAX(IF($E273:$E944=$F$7,AI273:AI944))) -> 0.5251 | AJ65: =+IF(SUM(AJ273:AJ944)=0,"",MAX(IF($E273:$E944=$F$7,AJ273:AJ944))) -> 1.489 | AK65: =+IF(SUM(AK273:AK944)=0,"",MAX(IF($E273:$E944=$F$7,AK273:AK944))) -> 0.6444 | AL65: =+IF(SUM(AL273:AL944)=0,"",MAX(IF($E273:$E944=$F$7,AL273:AL944))) -> 0.7845 | AM65: =+IF(SUM(AM273:AM944)=0,"",MAX(IF($E273:$E944=$F$7,AM273:AM944))) -> 1.5754 | AN65: =+IF(SUM(AN273:AN944)=0,"",MAX(IF($E273:$E944=$F$7,AN273:AN944))) -> 0.6537 | AO65: =+IF(SUM(AO273:AO944)=0,"",MAX(IF($E273:$E944=$F$7,AO273:AO944))) -> 1.0702 | AP65: =+IF(SUM(AP273:AP944)=0,"",MAX(IF($E273:$E944=$F$7,AP273:AP944))) -> 0.433 | AQ65: =+IF(SUM(AQ273:AQ944)=0,"",MAX(IF($E273:$E944=$F$7,AQ273:AQ944))) -> 0.286 | AR65: =+IF(SUM(AR273:AR944)=0,"",MAX(IF($E273:$E944=$F$7,AR273:AR944))) -> 1.1759
C66: =INDEX('[2]Balance de Potencia'!$CC$690:$CV$690,1,MATCH($F$5,'[2]Balance de Potencia'!$CC$5:$CV$5,0)) -> Miércoles | D66: =INDEX('[2]Balance de Potencia'!$CC$689:$CV$689,1,MATCH($F$5,'[2]Balance de Potencia'!$CC$5:$CV$5,0)) -> 15:45:00 | E66: =MATCH(C66&ROUND(D66,10),$A$273:$A$944,0) -> 352 | F66: =AVERAGE(K66:XFD66) -> 0.2949941176 | I66: P(h*) | J66: = Potencia promedio coincidente con la máx de la Categoría en Punta | K66: =IF(K$22="","",OFFSET($A$273,$E66-1,COLUMN()-1,)) -> 0.4492 | L66: =IF(L$22="","",OFFSET($A$273,$E66-1,COLUMN()-1,)) -> 0.1718 | M66: 0.2126 | N66: 0.1931 | O66: 0.096 | P66: 0.1769 | Q66: 0.104 | R66: 0.4252 | S66: 0.1322 | T66: 0.3944 | U66: 0.2651 | V66: 0.0894 | W66: 0.157 | X66: 0.312 | Y66: 0.3162 | Z66: 0.3368 | AA66: 0.1408 | AB66: =IF(AB$22="","",OFFSET($A$273,$E66-1,COLUMN()-1,)) -> 0.4043 | AC66: 0.4244 | AD66: 0.237 | AE66: 0 | AF66: 0.1452 | AG66: 0.1937 | AH66: 0.1463 | AI66: 0.3493 | AJ66: 1.0968 | AK66: 0.4052 | AL66: 0.4158 | AM66: 0.4074 | AN66: 0.375 | AO66: 0.3203 | AP66: 0.275 | AQ66: 0.1147 | AR66: 0.7467
C67: =INDEX('[2]Balance de Potencia'!$BY$690:$CA$690,1,MATCH($F$4,'[2]Balance de Potencia'!$BY$5:$CA$5,0)) ->  | D67: =INDEX('[2]Balance de Potencia'!$BY$689:$CA$689,1,MATCH($F$4,'[2]Balance de Potencia'!$BY$5:$CA$5,0)) ->  | E67: =MATCH(C67&ROUND(D67,10),$A$273:$A$944,0) ->  | F67: =AVERAGE(K67:XFD67) ->  | I67: P(h**) | J67: = Potencia promedio coincidente con la máx de la Categoría Unificada en Punta | K67: =IF(K$22="","",OFFSET($A$273,$E67-1,COLUMN()-1,)) -> 
F68: =VAR(K65:XFD65) -> 0.1664651311 | I68: Var (Pj) | J68: =Varianza de la Potencia Máxima de cada Usuario en Punta
F69: =VAR(K66:XFD66) -> 0.04215285754 | I69: Var (Ph*) | J69: =Varianza de la Potencia Coincidente con la máx de la Categ. en Punta
F70: =VAR(K67:XFD67) ->  | I70: Var (Ph**) | J70: =Varianza de la Potencia Coincidente con la máx de la Categ. Unificada en Punta
F71: =COVAR(K$65:XFD$65,K66:XFD66) -> 0.03749841939 | I71: Cov (Pj;Ph*) | J71: =Covarianza entre la Potencia Máxima y la Coincidente
F72: =COVAR(K$65:XFD$65,K67:XFD67) ->  | I72: Cov (Pj;Ph**) | J72: =Covarianza entre la Potencia Máxima y la Coincidente de la Categ. Unificada
F74: =AVERAGE(K74:XFD74) -> 0.9401970588 | H74: FSI-FP | I74: Pj | J74: = Promedio de la Potencia Máxima de cada usuario | K74: =+IF(SUM(K273:K944)=0,"",MAX(IF($E273:$E944<>$F$7,K273:K944))) -> 0.4656 | L74: =+IF(SUM(L273:L944)=0,"",MAX(IF($E273:$E944<>$F$7,L273:L944))) -> 0.7119 | M74: =+IF(SUM(M273:M944)=0,"",MAX(IF($E273:$E944<>$F$7,M273:M944))) -> 0.7109 | N74: =+IF(SUM(N273:N944)=0,"",MAX(IF($E273:$E944<>$F$7,N273:N944))) -> 0.6407 | O74: =+IF(SUM(O273:O944)=0,"",MAX(IF($E273:$E944<>$F$7,O273:O944))) -> 0.7248 | P74: =+IF(SUM(P273:P944)=0,"",MAX(IF($E273:$E944<>$F$7,P273:P944))) -> 0.8927 | Q74: =+IF(SUM(Q273:Q944)=0,"",MAX(IF($E273:$E944<>$F$7,Q273:Q944))) -> 0.499 | R74: =+IF(SUM(R273:R944)=0,"",MAX(IF($E273:$E944<>$F$7,R273:R944))) -> 2.7434 | S74: =+IF(SUM(S273:S944)=0,"",MAX(IF($E273:$E944<>$F$7,S273:S944))) -> 1.6288 | T74: =+IF(SUM(T273:T944)=0,"",MAX(IF($E273:$E944<>$F$7,T273:T944))) -> 0.8021 | U74: =+IF(SUM(U273:U944)=0,"",MAX(IF($E273:$E944<>$F$7,U273:U944))) -> 0.3895 | V74: =+IF(SUM(V273:V944)=0,"",MAX(IF($E273:$E944<>$F$7,V273:V944))) -> 0.8841 | W74: =+IF(SUM(W273:W944)=0,"",MAX(IF($E273:$E944<>$F$7,W273:W944))) -> 0.2884 | X74: =+IF(SUM(X273:X944)=0,"",MAX(IF($E273:$E944<>$F$7,X273:X944))) -> 0.5533 | Y74: =+IF(SUM(Y273:Y944)=0,"",MAX(IF($E273:$E944<>$F$7,Y273:Y944))) -> 1.5009 | Z74: =+IF(SUM(Z273:Z944)=0,"",MAX(IF($E273:$E944<>$F$7,Z273:Z944))) -> 0.9075 | AA74: =+IF(SUM(AA273:AA944)=0,"",MAX(IF($E273:$E944<>$F$7,AA273:AA944))) -> 0.3555 | AB74: =+IF(SUM(AB273:AB944)=0,"",MAX(IF($E273:$E944<>$F$7,AB273:AB944))) -> 0.9345 | AC74: =+IF(SUM(AC273:AC944)=0,"",MAX(IF($E273:$E944<>$F$7,AC273:AC944))) -> 1.2677 | AD74: =+IF(SUM(AD273:AD944)=0,"",MAX(IF($E273:$E944<>$F$7,AD273:AD944))) -> 0.2859 | AE74: =+IF(SUM(AE273:AE944)=0,"",MAX(IF($E273:$E944<>$F$7,AE273:AE944))) -> 0.9551 | AF74: =+IF(SUM(AF273:AF944)=0,"",MAX(IF($E273:$E944<>$F$7,AF273:AF944))) -> 1.2051 | AG74: =+IF(SUM(AG273:AG944)=0,"",MAX(IF($E273:$E944<>$F$7,AG273:AG944))) -> 0.3928 | AH74: =+IF(SUM(AH273:AH944)=0,"",MAX(IF($E273:$E944<>$F$7,AH273:AH944))) -> 0.3856 | AI74: =+IF(SUM(AI273:AI944)=0,"",MAX(IF($E273:$E944<>$F$7,AI273:AI944))) -> 0.8669 | AJ74: =+IF(SUM(AJ273:AJ944)=0,"",MAX(IF($E273:$E944<>$F$7,AJ273:AJ944))) -> 1.3722 | AK74: =+IF(SUM(AK273:AK944)=0,"",MAX(IF($E273:$E944<>$F$7,AK273:AK944))) -> 0.7002 | AL74: =+IF(SUM(AL273:AL944)=0,"",MAX(IF($E273:$E944<>$F$7,AL273:AL944))) -> 1.0077 | AM74: =+IF(SUM(AM273:AM944)=0,"",MAX(IF($E273:$E944<>$F$7,AM273:AM944))) -> 2.9385 | AN74: =+IF(SUM(AN273:AN944)=0,"",MAX(IF($E273:$E944<>$F$7,AN273:AN944))) -> 0.9369 | AO74: =+IF(SUM(AO273:AO944)=0,"",MAX(IF($E273:$E944<>$F$7,AO273:AO944))) -> 1.4221 | AP74: =+IF(SUM(AP273:AP944)=0,"",MAX(IF($E273:$E944<>$F$7,AP273:AP944))) -> 0.5746 | AQ74: =+IF(SUM(AQ273:AQ944)=0,"",MAX(IF($E273:$E944<>$F$7,AQ273:AQ944))) -> 0.6888 | AR74: =+IF(SUM(AR273:AR944)=0,"",MAX(IF($E273:$E944<>$F$7,AR273:AR944))) -> 1.333
C75: =INDEX('[2]Balance de Potencia'!$CC$697:$CV$697,1,MATCH($F$5,'[2]Balance de Potencia'!$CC$5:$CV$5,0)) -> Miércoles | D75: =INDEX('[2]Balance de Potencia'!$CC$696:$CV$696,1,MATCH($F$5,'[2]Balance de Potencia'!$CC$5:$CV$5,0)) -> 21:45:00 | E75: =MATCH(C75&ROUND(D75,10),$A$273:$A$944,0) -> 376 | F75: =AVERAGE(K75:XFD75) -> 0.4396264706 | I75: P(h*) | J75: = Potencia promedio coincidente con la máx de la Categoría | K75: =IF(K$22="","",OFFSET($A$273,$E75-1,COLUMN()-1,)) -> 0.4486 | L75: =IF(L$22="","",OFFSET($A$273,$E75-1,COLUMN()-1,)) -> 0.4011 | M75: 0.1963 | N75: 0.459 | O75: 0.4868 | P75: 0.3209 | Q75: 0.2078 | R75: 0.4224 | S75: 0.6484 | T75: 0.4856 | U75: 0.2958 | V75: 0.842 | W75: 0.1881 | X75: 0.4324 | Y75: 0.4249 | Z75: 0.493 | AA75: 0.1827 | AB75: =IF(AB$22="","",OFFSET($A$273,$E75-1,COLUMN()-1,)) -> 0.6392 | AC75: 0.6505 | AD75: 0.23 | AE75: 0.5079 | AF75: 0.6701 | AG75: 0.1781 | AH75: 0.1309 | AI75: 0.4036 | AJ75: 0.5132 | AK75: 0.3284 | AL75: 0.5893 | AM75: 1.1819 | AN75: 0.3994 | AO75: 0.5296 | AP75: 0.2079 | AQ75: 0.2487 | AR75: 0.6028
C76: =INDEX('[2]Balance de Potencia'!$BY$697:$CA$697,1,MATCH($F$4,'[2]Balance de Potencia'!$BY$5:$CA$5,0)) ->  | D76: =INDEX('[2]Balance de Potencia'!$BY$696:$CA$696,1,MATCH($F$4,'[2]Balance de Potencia'!$BY$5:$CA$5,0)) ->  | E76: =MATCH(C76&ROUND(D76,10),$A$272:$A$943,0) ->  | F76: =AVERAGE(K76:XFD76) ->  | I76: P(h**) | J76: = Potencia promedio coincidente con la máx de la Categoría Unificada | K76: =IF(K$22="","",OFFSET($A$273,$E76-1,COLUMN()-1,)) -> 
F77: =VAR(K74:XFD74) -> 0.3633266282 | I77: Var (Pj) | J77: =Varianza de la Potencia Máxima de cada Usuario
F78: =VAR(K75:XFD75) -> 0.0472989711 | I78: Var (Ph*) | J78: =Varianza de la Potencia Coincidente con la máx de la Categ.
F79: =VAR(K76:XFD76) ->  | I79: Var (Ph**) | J79: =Varianza de la Potencia Coincidente con la máx de la Categ. Unificada
F80: =COVAR(K$74:XFD$74,K75:XFD75) -> 0.08819341949 | I80: Cov (Pj;Ph*) | J80: =Covarianza entre la Potencia Máxima y la Coincidente
F81: =COVAR(K$74:XFD$74,K76:XFD76) ->  | I81: Cov (Pj;Ph**) | J81: =Covarianza entre la Potencia Máxima y la Coincidente de la Categ. Unificada
F83: =F23 -> 0.4396264706 | H83: FSE(BT) | I83: Pj | J83: = Potencia promedio coincidente con la máx de la Categoría
F84: =F24 ->  | I84: Pj* | J84: = Potencia promedio coincidente con la máx de la Categoría Unificada
C85: ='[2]Balance de Potencia'!$E$683 -> Lunes | D85: ='[2]Balance de Potencia'!$E$682 -> 13:45:00 | E85: =MATCH(C85&ROUND(D85,10),$A$273:$A$944,0) -> 152 | F85: =AVERAGE(K85:XFD85) -> 0.3131147059 | I85: P(h*) | J85: = Potencia promedio coincidente con el máx de BT | K85: =IF(K$22="","",OFFSET($A$273,$E85-1,COLUMN()-1,)) -> 0.4525 | L85: 0.1809 | M85: 0.1969 | N85: 0.2828 | O85: 0.1535 | P85: 0.6672 | Q85: 0.0915 | R85: 0.1196 | S85: 0.4167 | T85: 0.3342 | U85: 0.2122 | V85: 0.1245 | W85: 0.1476 | X85: 0.2889 | Y85: 0.478 | Z85: 0.322 | AA85: 0.0533 | AB85: 0.4141 | AC85: 0.5332 | AD85: 0.2097 | AE85: 0.7302 | AF85: 0.0813 | AG85: 0.1819 | AH85: 0.1144 | AI85: 0.4057 | AJ85: 1.0719 | AK85: 0.3724 | AL85: 0.4435 | AM85: 0.3429 | AN85: 0.2877 | AO85: 0.409 | AP85: 0.2399 | AQ85: 0.0741 | AR85: 0.2117
F86: =F26 -> 0.0472989711 | I86: Var(Pj) | J86: = Varianza de la Potencia coincidente con la máx de la Categoría
F87: =F27 ->  | I87: Var(Pj*) | J87: = Varianza de la Potencia coincidente con la máx de la Categoría Unificada
F88: =VAR(K85:XFD85) -> 0.04577300008 | I88: Var (Ph*) | J88: =Varianza de la Potencia Coincidente con el máx de BT
F89: =COVAR(K$23:XFD$23,K85:XFD85) -> 0.01203458667 | I89: Cov (Pj;Ph*) | J89: =Covarianza entre la Pot Coinc con máx Categ y la Coinc con máx de BT
F90: =COVAR(K$24:XFD$24,K85:XFD85) ->  | I90: Cov (Pj*;Ph*) | J90: =Covarianza entre la Pot Coinc con máx Categ Unif y la Coinc con máx de BT
F92: =F23 -> 0.4396264706 | H92: FSE(MT) | I92: Pj | J92: = Potencia promedio coincidente con la máx de la Categoría
F93: =F24 ->  | I93: Pj* | J93: = Potencia promedio coincidente con la máx de la Categoría Unificada
C94: ='[2]Balance de Potencia'!$F$683 -> Lunes | D94: ='[2]Balance de Potencia'!$F$682 -> 13:45:00 | E94: =MATCH(C94&ROUND(D94,10),$A$273:$A$944,0) -> 152 | F94: =AVERAGE(K94:XFD94) -> 0.3131147059 | I94: P(h*) | J94: = Potencia promedio coincidente con el máx de MT | K94: =IF(K$22="","",OFFSET($A$273,$E94-1,COLUMN()-1,)) -> 0.4525 | L94: 0.1809 | M94: 0.1969 | N94: 0.2828 | O94: 0.1535 | P94: 0.6672 | Q94: 0.0915 | R94: 0.1196 | S94: 0.4167 | T94: 0.3342 | U94: 0.2122 | V94: 0.1245 | W94: 0.1476 | X94: 0.2889 | Y94: 0.478 | Z94: 0.322 | AA94: 0.0533 | AB94: 0.4141 | AC94: 0.5332 | AD94: 0.2097 | AE94: 0.7302 | AF94: 0.0813 | AG94: 0.1819 | AH94: 0.1144 | AI94: 0.4057 | AJ94: 1.0719 | AK94: 0.3724 | AL94: 0.4435 | AM94: 0.3429 | AN94: 0.2877 | AO94: 0.409 | AP94: 0.2399 | AQ94: 0.0741 | AR94: 0.2117
F95: =F26 -> 0.0472989711 | I95: Var(Pj) | J95: = Varianza de la Potencia coincidente con la máx de la Categoría
F96: =F27 ->  | I96: Var(Pj*) | J96: = Varianza de la Potencia coincidente con la máx de la Categoría Unificada
F97: =VAR(K94:XFD94) -> 0.04577300008 | I97: Var (Ph*) | J97: =Varianza de la Potencia Coincidente con el máx de MT
F98: =COVAR(K$23:XFD$23,K94:XFD94) -> 0.01203458667 | I98: Cov (Pj;Ph*) | J98: =Covarianza entre la Pot Coinc con máx Categ y la Coinc con máx de MT
F99: =COVAR(K$24:XFD$24,K94:XFD94) ->  | I99: Cov (Pj*;Ph*) | J99: =Covarianza entre la Pot Coinc con máx Categ Unif y la Coinc con máx de MT
F101: =F23 -> 0.4396264706 | H101: FSE(AT) | I101: Pj | J101: = Potencia promedio coincidente con la máx de la Categoría
F102: =F24 ->  | I102: Pj* | J102: = Potencia promedio coincidente con la máx de la Categoría Unificada
C103: ='[2]Balance de Potencia'!$G$683 -> Lunes | D103: ='[2]Balance de Potencia'!$G$682 -> 13:45:00 | E103: =MATCH(C103&ROUND(D103,10),$A$273:$A$944,0) -> 152 | F103: =AVERAGE(K103:XFD103) -> 0.3131147059 | I103: P(h*) | J103: = Potencia promedio coincidente con el máx de AT | K103: =IF(K$22="","",OFFSET($A$273,$E103-1,COLUMN()-1,)) -> 0.4525 | L103: 0.1809 | M103: 0.1969 | N103: 0.2828 | O103: 0.1535 | P103: 0.6672 | Q103: 0.0915 | R103: 0.1196 | S103: 0.4167 | T103: 0.3342 | U103: 0.2122 | V103: 0.1245 | W103: 0.1476 | X103: 0.2889 | Y103: 0.478 | Z103: 0.322 | AA103: 0.0533 | AB103: 0.4141 | AC103: 0.5332 | AD103: 0.2097 | AE103: 0.7302 | AF103: 0.0813 | AG103: 0.1819 | AH103: 0.1144 | AI103: 0.4057 | AJ103: 1.0719 | AK103: 0.3724 | AL103: 0.4435 | AM103: 0.3429 | AN103: 0.2877 | AO103: 0.409 | AP103: 0.2399 | AQ103: 0.0741 | AR103: 0.2117
F104: =F26 -> 0.0472989711 | I104: Var(Pj) | J104: = Varianza de la Potencia coincidente con la máx de la Categoría
F105: =F27 ->  | I105: Var(Pj*) | J105: = Varianza de la Potencia coincidente con la máx de la Categoría Unificada
F106: =VAR(K103:XFD103) -> 0.04577300008 | I106: Var (Ph*) | J106: =Varianza de la Potencia Coincidente con el máx de AT
F107: =COVAR(K$23:XFD$23,K103:XFD103) -> 0.01203458667 | I107: Cov (Pj;Ph*) | J107: =Covarianza entre la Pot Coinc con máx Categ y la Coinc con máx de AT
F108: =COVAR(K$24:XFD$24,K103:XFD103) ->  | I108: Cov (Pj*;Ph*) | J108: =Covarianza entre la Pot Coinc con máx Categ Unif y la Coinc con máx de AT
F110: =F66 -> 0.2949941176 | H110: FSE(BT)P | I110: Pj | J110: = Potencia promedio coincidente con la máx de la Categoría en Punta
F111: =F67 ->  | I111: Pj* | J111: = Potencia promedio coincidente con la máx de la Categoría Unificada en Punta
C112: ='[2]Balance de Potencia'!$E$690 -> Lunes | D112: ='[2]Balance de Potencia'!$E$689 -> 13:45:00 | E112: =MATCH(C112&ROUND(D112,10),$A$273:$A$944,0) -> 152 | F112: =AVERAGE(K112:XFD112) -> 0.3131147059 | I112: P(h*) | J112: = Potencia promedio coincidente con el máx de BT en Punta | K112: =IF(K$22="","",OFFSET($A$273,$E112-1,COLUMN()-1,)) -> 0.4525 | L112: =IF(L$22="","",OFFSET($A$273,$E112-1,COLUMN()-1,)) -> 0.1809 | M112: 0.1969 | N112: 0.2828 | O112: 0.1535 | P112: 0.6672 | Q112: 0.0915 | R112: 0.1196 | S112: 0.4167 | T112: 0.3342 | U112: 0.2122 | V112: 0.1245 | W112: 0.1476 | X112: 0.2889 | Y112: 0.478 | Z112: 0.322 | AA112: 0.0533 | AB112: 0.4141 | AC112: 0.5332 | AD112: 0.2097 | AE112: 0.7302 | AF112: 0.0813 | AG112: 0.1819 | AH112: 0.1144 | AI112: 0.4057 | AJ112: 1.0719 | AK112: 0.3724 | AL112: 0.4435 | AM112: 0.3429 | AN112: 0.2877 | AO112: 0.409 | AP112: 0.2399 | AQ112: 0.0741 | AR112: 0.2117
F113: =F69 -> 0.04215285754 | I113: Var(Pj) | J113: = Varianza de la Potencia coincidente con la máx de la Categoría
F114: =F70 ->  | I114: Var(Pj*) | J114: = Varianza de la Potencia coincidente con la máx de la Categoría Unificada
F115: =VAR(K112:XFD112) -> 0.04577300008 | I115: Var (Ph*) | J115: =Varianza de la Potencia Coincidente con el máx de BT en Punta
F116: =COVAR(K66:XFD66,K112:XFD112) -> 0.0232103292 | I116: Cov (Pj;Ph*) | J116: =Covarianza entre la Pot Coinc con máx Categ y la Coinc con máx de BT
F117: =COVAR(K67:XFD67,K112:XFD112) ->  | I117: Cov (Pj*;Ph*) | J117: =Covarianza entre la Pot Coinc con máx Categ Unif y la Coinc con máx de BT
F119: =F66 -> 0.2949941176 | H119: FSE(MT)P | I119: Pj | J119: = Potencia promedio coincidente con la máx de la Categoría en Punta
F120: =F67 ->  | I120: Pj* | J120: = Potencia promedio coincidente con la máx de la Categoría Unificada en Punta
C121: ='[2]Balance de Potencia'!$F$690 -> Lunes | D121: ='[2]Balance de Potencia'!$F$689 -> 13:45:00 | E121: =MATCH(C121&ROUND(D121,10),$A$273:$A$944,0) -> 152 | F121: =AVERAGE(K121:XFD121) -> 0.3131147059 | I121: P(h*) | J121: = Potencia promedio coincidente con el máx de MT en Punta | K121: =IF(K$22="","",OFFSET($A$273,$E121-1,COLUMN()-1,)) -> 0.4525 | L121: =IF(L$22="","",OFFSET($A$273,$E121-1,COLUMN()-1,)) -> 0.1809 | M121: 0.1969 | N121: 0.2828 | O121: 0.1535 | P121: 0.6672 | Q121: 0.0915 | R121: 0.1196 | S121: 0.4167 | T121: 0.3342 | U121: 0.2122 | V121: 0.1245 | W121: 0.1476 | X121: 0.2889 | Y121: 0.478 | Z121: 0.322 | AA121: 0.0533 | AB121: 0.4141 | AC121: 0.5332 | AD121: 0.2097 | AE121: 0.7302 | AF121: 0.0813 | AG121: 0.1819 | AH121: 0.1144 | AI121: 0.4057 | AJ121: 1.0719 | AK121: 0.3724 | AL121: 0.4435 | AM121: 0.3429 | AN121: 0.2877 | AO121: 0.409 | AP121: 0.2399 | AQ121: 0.0741 | AR121: 0.2117
F122: =F69 -> 0.04215285754 | I122: Var(Pj) | J122: = Varianza de la Potencia coincidente con la máx de la Categoría
F123: =F70 ->  | I123: Var(Pj*) | J123: = Varianza de la Potencia coincidente con la máx de la Categoría Unificada
F124: =VAR(K121:XFD121) -> 0.04577300008 | I124: Var (Ph*) | J124: =Varianza de la Potencia Coincidente con el máx de MT en Punta
F125: =COVAR(K66:XFD66,K121:XFD121) -> 0.0232103292 | I125: Cov (Pj;Ph*) | J125: =Covarianza entre la Pot Coinc con máx Categ y la Coinc con máx de MT
F126: =COVAR(K67:XFD67,K121:XFD121) ->  | I126: Cov (Pj*;Ph*) | J126: =Covarianza entre la Pot Coinc con máx Categ Unif y la Coinc con máx de MT
F128: =F66 -> 0.2949941176 | H128: FSE(AT)P | I128: Pj | J128: = Potencia promedio coincidente con la máx de la Categoría en Punta
F129: =F67 ->  | I129: Pj* | J129: = Potencia promedio coincidente con la máx de la Categoría Unificada en Punta
C130: ='[2]Balance de Potencia'!$G$690 -> Lunes | D130: ='[2]Balance de Potencia'!$G$689 -> 13:45:00 | E130: =MATCH(C130&ROUND(D130,10),$A$273:$A$944,0) -> 152 | F130: =AVERAGE(K130:XFD130) -> 0.3131147059 | I130: P(h*) | J130: = Potencia promedio coincidente con el máx de AT en Punta | K130: =IF(K$22="","",OFFSET($A$273,$E130-1,COLUMN()-1,)) -> 0.4525 | L130: =IF(L$22="","",OFFSET($A$273,$E130-1,COLUMN()-1,)) -> 0.1809 | M130: 0.1969 | N130: 0.2828 | O130: 0.1535 | P130: 0.6672 | Q130: 0.0915 | R130: 0.1196 | S130: 0.4167 | T130: 0.3342 | U130: 0.2122 | V130: 0.1245 | W130: 0.1476 | X130: 0.2889 | Y130: 0.478 | Z130: 0.322 | AA130: 0.0533 | AB130: 0.4141 | AC130: 0.5332 | AD130: 0.2097 | AE130: 0.7302 | AF130: 0.0813 | AG130: 0.1819 | AH130: 0.1144 | AI130: 0.4057 | AJ130: 1.0719 | AK130: 0.3724 | AL130: 0.4435 | AM130: 0.3429 | AN130: 0.2877 | AO130: 0.409 | AP130: 0.2399 | AQ130: 0.0741 | AR130: 0.2117
F131: =F69 -> 0.04215285754 | I131: Var(Pj) | J131: = Varianza de la Potencia coincidente con la máx de la Categoría
F132: =F70 ->  | I132: Var(Pj*) | J132: = Varianza de la Potencia coincidente con la máx de la Categoría Unificada
F133: =VAR(K130:XFD130) -> 0.04577300008 | I133: Var (Ph*) | J133: =Varianza de la Potencia Coincidente con el máx de AT en Punta
F134: =COVAR(K66:XFD66,K130:XFD130) -> 0.0232103292 | I134: Cov (Pj;Ph*) | J134: =Covarianza entre la Pot Coinc con máx Categ y la Coinc con máx de AT
F135: =COVAR(K67:XFD67,K130:XFD130) ->  | I135: Cov (Pj*;Ph*) | J135: =Covarianza entre la Pot Coinc con máx Categ Unif y la Coinc con máx de AT
F137: =F75 -> 0.4396264706 | H137: FSE(BT)FP | I137: Pj | J137: = Potencia promedio coincidente con la máx de la Categoría en Fuera de Punta
F138: =F76 ->  | I138: Pj* | J138: = Potencia promedio coincidente con la máx de la Categoría Unificada en Fuera de Punta
C139: ='[2]Balance de Potencia'!$E$697 -> Martes | D139: ='[2]Balance de Potencia'!$E$696 -> 20:30:00 | E139: =MATCH(C139&ROUND(D139,10),$A$273:$A$944,0) -> 275 | F139: =AVERAGE(K139:XFD139) -> 0.4414558824 | I139: P(h*) | J139: = Potencia promedio coincidente con el máx de BT en Fuera de Punta | K139: =IF(K$22="","",OFFSET($A$273,$E139-1,COLUMN()-1,)) -> 0.4519 | L139: =IF(L$22="","",OFFSET($A$273,$E139-1,COLUMN()-1,)) -> 0.2424 | M139: 0.2392 | N139: 0.3529 | O139: 0.2014 | P139: 0.2496 | Q139: 0.157 | R139: 0.3441 | S139: 0.3509 | T139: 0.5808 | U139: 0.2537 | V139: 0.3062 | W139: 0.1919 | X139: 0.2629 | Y139: 0.4733 | Z139: 0.3549 | AA139: 0.0596 | AB139: 0.5273 | AC139: 0.6263 | AD139: 0.2221 | AE139: 0.6615 | AF139: 0.9223 | AG139: 0.138 | AH139: 0.2193 | AI139: 0.5088 | AJ139: 0.9408 | AK139: 0.5083 | AL139: 0.6215 | AM139: 0.5923 | AN139: 0.4194 | AO139: 1.4221 | AP139: 0.3396 | AQ139: 0.3884 | AR139: 0.8788
F140: =F78 -> 0.0472989711 | I140: Var(Pj) | J140: = Varianza de la Potencia coincidente con la máx de la Categoría
F141: =F79 ->  | I141: Var(Pj*) | J141: = Varianza de la Potencia coincidente con la máx de la Categoría Unificada
F142: =VAR(K139:XFD139) -> 0.07860011527 | I142: Var (Ph*) | J142: =Varianza de la Potencia Coincidente con el máx de BT en Fuera de Punta
F143: =COVAR(K75:XFD75,K139:XFD139) -> 0.02904094381 | I143: Cov (Pj;Ph*) | J143: =Covarianza entre la Pot Coinc con máx Categ y la Coinc con máx de BT
F144: =COVAR(K76:XFD76,K139:XFD139) ->  | I144: Cov (Pj*;Ph*) | J144: =Covarianza entre la Pot Coinc con máx Categ Unif y la Coinc con máx de BT
F146: =F75 -> 0.4396264706 | H146: FSE(MT)FP | I146: Pj | J146: = Potencia promedio coincidente con la máx de la Categoría en Fuera de Punta
F147: =F76 ->  | I147: Pj* | J147: = Potencia promedio coincidente con la máx de la Categoría Unificada en Fuera de Punta
C148: ='[2]Balance de Potencia'!$F$697 -> Viernes | D148: ='[2]Balance de Potencia'!$F$696 -> 19:15:00 | E148: =MATCH(C148&ROUND(D148,10),$A$273:$A$944,0) -> 558 | F148: =AVERAGE(K148:XFD148) -> 0.4488323529 | I148: P(h*) | J148: = Potencia promedio coincidente con el máx de MT en Fuera de Punta | K148: =IF(K$22="","",OFFSET($A$273,$E148-1,COLUMN()-1,)) -> 0.452 | L148: =IF(L$22="","",OFFSET($A$273,$E148-1,COLUMN()-1,)) -> 0.2183 | M148: 0.2062 | N148: 0.17 | O148: 0.6358 | P148: 0.3215 | Q148: 0.1962 | R148: 2.7434 | S148: 0.4808 | T148: 0.4229 | U148: 0.1947 | V148: 0.1012 | W148: 0.206 | X148: 0.3125 | Y148: 0.5347 | Z148: 0.4824 | AA148: 0.2162 | AB148: 0.6358 | AC148: 0.5303 | AD148: 0.199 | AE148: 0.4803 | AF148: 0.1684 | AG148: 0.1794 | AH148: 0.1877 | AI148: 0.4163 | AJ148: 0.2263 | AK148: 0.3405 | AL148: 0.5047 | AM148: 0.5778 | AN148: 0.4297 | AO148: 0.6994 | AP148: 0.4554 | AQ148: 0.2906 | AR148: 1.0439
F149: =F78 -> 0.0472989711 | I149: Var(Pj) | J149: = Varianza de la Potencia coincidente con la máx de la Categoría
F150: =F79 ->  | I150: Var(Pj*) | J150: = Varianza de la Potencia coincidente con la máx de la Categoría Unificada
F151: =VAR(K148:XFD148) -> 0.2044223259 | I151: Var (Ph*) | J151: =Varianza de la Potencia Coincidente con el máx de MT en Fuera de Punta
F152: =COVAR(K75:XFD75,K148:XFD148) -> 0.01692778356 | I152: Cov (Pj;Ph*) | J152: =Covarianza entre la Pot Coinc con máx Categ y la Coinc con máx de MT
F153: =COVAR(K76:XFD76,K148:XFD148) ->  | I153: Cov (Pj*;Ph*) | J153: =Covarianza entre la Pot Coinc con máx Categ Unif y la Coinc con máx de MT
F155: =F75 -> 0.4396264706 | H155: FSE(AT)FP | I155: Pj | J155: = Potencia promedio coincidente con la máx de la Categoría en Fuera de Punta
F156: =F76 ->  | I156: Pj* | J156: = Potencia promedio coincidente con la máx de la Categoría Unificada en Fuera de Punta
C157: ='[2]Balance de Potencia'!$G$697 -> Viernes | D157: ='[2]Balance de Potencia'!$G$696 -> 19:15:00 | E157: =MATCH(C157&ROUND(D157,10),$A$273:$A$944,0) -> 558 | F157: =AVERAGE(K157:XFD157) -> 0.4488323529 | I157: P(h*) | J157: = Potencia promedio coincidente con el máx de AT en Fuera de Punta | K157: =IF(K$22="","",OFFSET($A$273,$E157-1,COLUMN()-1,)) -> 0.452 | L157: =IF(L$22="","",OFFSET($A$273,$E157-1,COLUMN()-1,)) -> 0.2183 | M157: 0.2062 | N157: 0.17 | O157: 0.6358 | P157: 0.3215 | Q157: 0.1962 | R157: 2.7434 | S157: 0.4808 | T157: 0.4229 | U157: 0.1947 | V157: 0.1012 | W157: 0.206 | X157: 0.3125 | Y157: 0.5347 | Z157: 0.4824 | AA157: 0.2162 | AB157: 0.6358 | AC157: 0.5303 | AD157: 0.199 | AE157: 0.4803 | AF157: 0.1684 | AG157: 0.1794 | AH157: 0.1877 | AI157: 0.4163 | AJ157: 0.2263 | AK157: 0.3405 | AL157: 0.5047 | AM157: 0.5778 | AN157: 0.4297 | AO157: 0.6994 | AP157: 0.4554 | AQ157: 0.2906 | AR157: 1.0439
F158: =F78 -> 0.0472989711 | I158: Var(Pj) | J158: = Varianza de la Potencia coincidente con la máx de la Categoría
F159: =F79 ->  | I159: Var(Pj*) | J159: = Varianza de la Potencia coincidente con la máx de la Categoría Unificada
F160: =VAR(K157:XFD157) -> 0.2044223259 | I160: Var (Ph*) | J160: =Varianza de la Potencia Coincidente con el máx de AT en Punta
F161: =COVAR(K75:XFD75,K157:XFD157) -> 0.01692778356 | I161: Cov (Pj;Ph*) | J161: =Covarianza entre la Pot Coinc con máx Categ y la Coinc con máx de AT
F162: =COVAR(K76:XFD76,K157:XFD157) ->  | I162: Cov (Pj*;Ph*) | J162: =Covarianza entre la Pot Coinc con máx Categ Unif y la Coinc con máx de AT
F164: =AVERAGE(K164:XFD164) -> 222.9053853 | H164: FdeP | I164: Pj | J164: = Potencia activa | K164: =+IF(SUM(K$273:K$944)=0,"",SUM(K$273:K$944)) -> 296.0853 | L164: =+IF(SUM(L$273:L$944)=0,"",SUM(L$273:L$944)) -> 168.0253 | M164: 139.5044 | N164: 208.8501 | O164: 250.6385 | P164: 184.7622 | Q164: 118.8149 | R164: 273.9102 | S164: 253.7183 | T164: 320.8143 | U164: 129.2042 | V164: 117.8807 | W164: 114.4938 | X164: 195.4946 | Y164: 299.4053 | Z164: 243.4203 | AA164: 88.2578 | AB164: 287.6619 | AC164: 337.3788 | AD164: 153.3495 | AE164: 305.5291 | AF164: 169.3019 | AG164: 120.6069 | AH164: 105.8654 | AI164: 247.0241 | AJ164: 283.0981 | AK164: 276.2944 | AL164: 310.969 | AM164: 352.3596 | AN164: 223.5474 | AO164: 304.2862 | AP164: 204.4243 | AQ164: 136.4037 | AR164: 357.4026
F165: =AVERAGE(K165:XFD165) ->  | I165: P(h*) | J165: = Potencia aparente | K165: =IF(SUM(K$273:K$944)=0,"",(K164^2+K169^2)^0.5) ->  | L165: =IF(SUM(L$273:L$944)=0,"",(L164^2+L169^2)^0.5) ->  | T165: =IF(SUM(T$273:T$944)=0,"",(T164^2+T169^2)^0.5) -> 
F166: =VAR(K164:XFD164) -> 6622.380839 | I166: Var(Pj) | J166: =Varianza de la Potencia Activa
F167: =VAR(K165:XFD165) ->  | I167: Var(Ph*) | J167: =Varianza de la Potencia Aparente
F168: =COVAR(K164:XFD164,K165:XFD165) ->  | I168: Cov(Pj;Ph*) | J168: =Covarianza entre la Potencia Activa y la Potencia Aparente
J169: =Potencia reactiva | K169: =INDEX([3]resumen!$E$8:$SJ$207,MATCH($F$5&" "&$F$6,[3]resumen!$C$8:$C$207,0),MATCH(K264,[3]resumen!$E$2:$SJ$2,0)) ->  | L169: =INDEX([3]resumen!$E$8:$SJ$207,MATCH($F$5&" "&$F$6,[3]resumen!$C$8:$C$207,0),MATCH(L264,[3]resumen!$E$2:$SJ$2,0)) ->  | M169: =INDEX([3]resumen!$E$8:$SJ$207,MATCH($F$5&" "&$F$6,[3]resumen!$C$8:$C$207,0),MATCH(M264,[3]resumen!$E$2:$SJ$2,0)) ->  | N169: =INDEX([3]resumen!$E$8:$SJ$207,MATCH($F$5&" "&$F$6,[3]resumen!$C$8:$C$207,0),MATCH(N264,[3]resumen!$E$2:$SJ$2,0)) ->  | O169: =INDEX([3]resumen!$E$8:$SJ$207,MATCH($F$5&" "&$F$6,[3]resumen!$C$8:$C$207,0),MATCH(O264,[3]resumen!$E$2:$SJ$2,0)) ->  | P169: =INDEX([3]resumen!$E$8:$SJ$207,MATCH($F$5&" "&$F$6,[3]resumen!$C$8:$C$207,0),MATCH(P264,[3]resumen!$E$2:$SJ$2,0)) ->  | Q169: =INDEX([3]resumen!$E$8:$SJ$207,MATCH($F$5&" "&$F$6,[3]resumen!$C$8:$C$207,0),MATCH(Q264,[3]resumen!$E$2:$SJ$2,0)) ->  | R169: =INDEX([3]resumen!$E$8:$SJ$207,MATCH($F$5&" "&$F$6,[3]resumen!$C$8:$C$207,0),MATCH(R264,[3]resumen!$E$2:$SJ$2,0)) ->  | S169: =INDEX([3]resumen!$E$8:$SJ$207,MATCH($F$5&" "&$F$6,[3]resumen!$C$8:$C$207,0),MATCH(S264,[3]resumen!$E$2:$SJ$2,0)) ->  | T169: =INDEX([3]resumen!$E$8:$SJ$207,MATCH($F$5&" "&$F$6,[3]resumen!$C$8:$C$207,0),MATCH(T264,[3]resumen!$E$2:$SJ$2,0)) ->  | U169: =INDEX([3]resumen!$E$8:$SJ$207,MATCH($F$5&" "&$F$6,[3]resumen!$C$8:$C$207,0),MATCH(U264,[3]resumen!$E$2:$SJ$2,0)) ->  | V169: =INDEX([3]resumen!$E$8:$SJ$207,MATCH($F$5&" "&$F$6,[3]resumen!$C$8:$C$207,0),MATCH(V264,[3]resumen!$E$2:$SJ$2,0)) ->  | W169: =INDEX([3]resumen!$E$8:$SJ$207,MATCH($F$5&" "&$F$6,[3]resumen!$C$8:$C$207,0),MATCH(W264,[3]resumen!$E$2:$SJ$2,0)) ->  | X169: =INDEX([3]resumen!$E$8:$SJ$207,MATCH($F$5&" "&$F$6,[3]resumen!$C$8:$C$207,0),MATCH(X264,[3]resumen!$E$2:$SJ$2,0)) ->  | Y169: =INDEX([3]resumen!$E$8:$SJ$207,MATCH($F$5&" "&$F$6,[3]resumen!$C$8:$C$207,0),MATCH(Y264,[3]resumen!$E$2:$SJ$2,0)) ->  | Z169: =INDEX([3]resumen!$E$8:$SJ$207,MATCH($F$5&" "&$F$6,[3]resumen!$C$8:$C$207,0),MATCH(Z264,[3]resumen!$E$2:$SJ$2,0)) ->  | AA169: =INDEX([3]resumen!$E$8:$SJ$207,MATCH($F$5&" "&$F$6,[3]resumen!$C$8:$C$207,0),MATCH(AA264,[3]resumen!$E$2:$SJ$2,0)) ->  | AB169: =INDEX([3]resumen!$E$8:$SJ$207,MATCH($F$5&" "&$F$6,[3]resumen!$C$8:$C$207,0),MATCH(AB264,[3]resumen!$E$2:$SJ$2,0)) ->  | AC169: =INDEX([3]resumen!$E$8:$SJ$207,MATCH($F$5&" "&$F$6,[3]resumen!$C$8:$C$207,0),MATCH(AC264,[3]resumen!$E$2:$SJ$2,0)) ->  | AD169: =INDEX([3]resumen!$E$8:$SJ$207,MATCH($F$5&" "&$F$6,[3]resumen!$C$8:$C$207,0),MATCH(AD264,[3]resumen!$E$2:$SJ$2,0)) ->  | AE169: =INDEX([3]resumen!$E$8:$SJ$207,MATCH($F$5&" "&$F$6,[3]resumen!$C$8:$C$207,0),MATCH(AE264,[3]resumen!$E$2:$SJ$2,0)) ->  | AF169: =INDEX([3]resumen!$E$8:$SJ$207,MATCH($F$5&" "&$F$6,[3]resumen!$C$8:$C$207,0),MATCH(AF264,[3]resumen!$E$2:$SJ$2,0)) ->  | AG169: =INDEX([3]resumen!$E$8:$SJ$207,MATCH($F$5&" "&$F$6,[3]resumen!$C$8:$C$207,0),MATCH(AG264,[3]resumen!$E$2:$SJ$2,0)) ->  | AH169: =INDEX([3]resumen!$E$8:$SJ$207,MATCH($F$5&" "&$F$6,[3]resumen!$C$8:$C$207,0),MATCH(AH264,[3]resumen!$E$2:$SJ$2,0)) ->  | AI169: =INDEX([3]resumen!$E$8:$SJ$207,MATCH($F$5&" "&$F$6,[3]resumen!$C$8:$C$207,0),MATCH(AI264,[3]resumen!$E$2:$SJ$2,0)) ->  | AJ169: =INDEX([3]resumen!$E$8:$SJ$207,MATCH($F$5&" "&$F$6,[3]resumen!$C$8:$C$207,0),MATCH(AJ264,[3]resumen!$E$2:$SJ$2,0)) ->  | AK169: =INDEX([3]resumen!$E$8:$SJ$207,MATCH($F$5&" "&$F$6,[3]resumen!$C$8:$C$207,0),MATCH(AK264,[3]resumen!$E$2:$SJ$2,0)) ->  | AL169: =INDEX([3]resumen!$E$8:$SJ$207,MATCH($F$5&" "&$F$6,[3]resumen!$C$8:$C$207,0),MATCH(AL264,[3]resumen!$E$2:$SJ$2,0)) ->  | AM169: =INDEX([3]resumen!$E$8:$SJ$207,MATCH($F$5&" "&$F$6,[3]resumen!$C$8:$C$207,0),MATCH(AM264,[3]resumen!$E$2:$SJ$2,0)) ->  | AN169: =INDEX([3]resumen!$E$8:$SJ$207,MATCH($F$5&" "&$F$6,[3]resumen!$C$8:$C$207,0),MATCH(AN264,[3]resumen!$E$2:$SJ$2,0)) ->  | AO169: =INDEX([3]resumen!$E$8:$SJ$207,MATCH($F$5&" "&$F$6,[3]resumen!$C$8:$C$207,0),MATCH(AO264,[3]resumen!$E$2:$SJ$2,0)) ->  | AP169: =INDEX([3]resumen!$E$8:$SJ$207,MATCH($F$5&" "&$F$6,[3]resumen!$C$8:$C$207,0),MATCH(AP264,[3]resumen!$E$2:$SJ$2,0)) ->  | AQ169: =INDEX([3]resumen!$E$8:$SJ$207,MATCH($F$5&" "&$F$6,[3]resumen!$C$8:$C$207,0),MATCH(AQ264,[3]resumen!$E$2:$SJ$2,0)) ->  | AR169: =INDEX([3]resumen!$E$8:$SJ$207,MATCH($F$5&" "&$F$6,[3]resumen!$C$8:$C$207,0),MATCH(AR264,[3]resumen!$E$2:$SJ$2,0)) -> 
F170: CATEGORÍAS CON MEDICIÓN DE ENERGÍA
F171: =F23 -> 0.4396264706 | H171: FSE(BT)P | I171: Pj | J171: = Potencia promedio coincidente con la máx de la Categoría
F172: =F24 ->  | I172: Pj* | J172: = Potencia promedio coincidente con la máx de la Categoría Unificada
C173: ='[2]Balance de Potencia'!$E$690 -> Lunes | D173: ='[2]Balance de Potencia'!$E$689 -> 13:45:00 | E173: =MATCH(C173&ROUND(D173,10),$A$273:$A$944,0) -> 152 | F173: =F112 -> 0.3131147059 | I173: P(h*) | J173: = Potencia promedio coincidente con el máx de BT en Punta
F174: =F26 -> 0.0472989711 | I174: Var(Pj) | J174: = Varianza de la Potencia coincidente con la máx de la Categoría
F175: =F27 ->  | I175: Var(Pj*) | J175: = Varianza de la Potencia coincidente con la máx de la Categoría Unificada
F176: =F115 -> 0.04577300008 | I176: Var (Ph*) | J176: =Varianza de la Potencia Coincidente con el máx de BT en Punta
F177: =COVAR(K23:XFD23,K112:XFD112) -> 0.01203458667 | I177: Cov (Pj;Ph*) | J177: =Covarianza entre la Pot Coinc con máx Categ y la Coinc con máx de BT
F178: =COVAR(K24:XFD24,K112:XFD112) ->  | I178: Cov (Pj*;Ph*) | J178: =Covarianza entre la Pot Coinc con máx Categ Unif y la Coinc con máx de BT
F180: =F23 -> 0.4396264706 | H180: FSE(MT)P | I180: Pj | J180: = Potencia promedio coincidente con la máx de la Categoría
F181: =F24 ->  | I181: Pj* | J181: = Potencia promedio coincidente con la máx de la Categoría Unificada
C182: ='[2]Balance de Potencia'!$F$690 -> Lunes | D182: ='[2]Balance de Potencia'!$F$689 -> 13:45:00 | E182: =MATCH(C182&ROUND(D182,10),$A$273:$A$944,0) -> 152 | F182: =F121 -> 0.3131147059 | I182: P(h*) | J182: = Potencia promedio coincidente con el máx de MT en Punta
F183: =F26 -> 0.0472989711 | I183: Var(Pj) | J183: = Varianza de la Potencia coincidente con la máx de la Categoría
F184: =F27 ->  | I184: Var(Pj*) | J184: = Varianza de la Potencia coincidente con la máx de la Categoría Unificada
F185: =F124 -> 0.04577300008 | I185: Var (Ph*) | J185: =Varianza de la Potencia Coincidente con el máx de MT en Punta
F186: =COVAR(K23:XFD23,K121:XFD121) -> 0.01203458667 | I186: Cov (Pj;Ph*) | J186: =Covarianza entre la Pot Coinc con máx Categ y la Coinc con máx de MT
F187: =COVAR(K24:XFD24,K121:XFD121) ->  | I187: Cov (Pj*;Ph*) | J187: =Covarianza entre la Pot Coinc con máx Categ Unif y la Coinc con máx de MT
F189: =F23 -> 0.4396264706 | H189: FSE(AT)P | I189: Pj | J189: = Potencia promedio coincidente con la máx de la Categoría
F190: =F24 ->  | I190: Pj* | J190: = Potencia promedio coincidente con la máx de la Categoría Unificada
C191: ='[2]Balance de Potencia'!$G$690 -> Lunes | D191: ='[2]Balance de Potencia'!$G$689 -> 13:45:00 | E191: =MATCH(C191&ROUND(D191,10),$A$273:$A$944,0) -> 152 | F191: =F130 -> 0.3131147059 | I191: P(h*) | J191: = Potencia promedio coincidente con el máx de AT en Punta
F192: =F26 -> 0.0472989711 | I192: Var(Pj) | J192: = Varianza de la Potencia coincidente con la máx de la Categoría
F193: =F27 ->  | I193: Var(Pj*) | J193: = Varianza de la Potencia coincidente con la máx de la Categoría Unificada
F194: =F133 -> 0.04577300008 | I194: Var (Ph*) | J194: =Varianza de la Potencia Coincidente con el máx de AT en Punta
F195: =COVAR(K23:XFD23,K130:XFD130) -> 0.01203458667 | I195: Cov (Pj;Ph*) | J195: =Covarianza entre la Pot Coinc con máx Categ y la Coinc con máx de AT
F196: =COVAR(K24:XFD24,K130:XFD130) ->  | I196: Cov (Pj*;Ph*) | J196: =Covarianza entre la Pot Coinc con máx Categ Unif y la Coinc con máx de AT
F198: =F23 -> 0.4396264706 | H198: FSE(BT)FP | I198: Pj | J198: = Potencia promedio coincidente con la máx de la Categoría
F199: =F24 ->  | I199: Pj* | J199: = Potencia promedio coincidente con la máx de la Categoría Unificada
C200: ='[2]Balance de Potencia'!$E$697 -> Martes | D200: ='[2]Balance de Potencia'!$E$696 -> 20:30:00 | E200: =MATCH(C200&ROUND(D200,10),$A$273:$A$944,0) -> 275 | F200: =F139 -> 0.4414558824 | I200: P(h*) | J200: = Potencia promedio coincidente con el máx de BT en Fuera de Punta
F201: =F26 -> 0.0472989711 | I201: Var(Pj) | J201: = Varianza de la Potencia coincidente con la máx de la Categoría
F202: =F27 ->  | I202: Var(Pj*) | J202: = Varianza de la Potencia coincidente con la máx de la Categoría Unificada
F203: =F142 -> 0.07860011527 | I203: Var (Ph*) | J203: =Varianza de la Potencia Coincidente con el máx de BT en Fuera de Punta
F204: =COVAR(K23:XFD23,K139:XFD139) -> 0.02904094381 | I204: Cov (Pj;Ph*) | J204: =Covarianza entre la Pot Coinc con máx Categ y la Coinc con máx de BT
F205: =COVAR(K24:XFD24,K139:XFD139) ->  | I205: Cov (Pj*;Ph*) | J205: =Covarianza entre la Pot Coinc con máx Categ Unif y la Coinc con máx de BT
F207: =F23 -> 0.4396264706 | H207: FSE(MT)FP | I207: Pj | J207: = Potencia promedio coincidente con la máx de la Categoría
F208: =F24 ->  | I208: Pj* | J208: = Potencia promedio coincidente con la máx de la Categoría Unificada
C209: ='[2]Balance de Potencia'!$F$697 -> Viernes | D209: ='[2]Balance de Potencia'!$F$696 -> 19:15:00 | E209: =MATCH(C209&ROUND(D209,10),$A$273:$A$944,0) -> 558 | F209: =F148 -> 0.4488323529 | I209: P(h*) | J209: = Potencia promedio coincidente con el máx de MT en Fuera de Punta
F210: =F26 -> 0.0472989711 | I210: Var(Pj) | J210: = Varianza de la Potencia coincidente con la máx de la Categoría
F211: =F27 ->  | I211: Var(Pj*) | J211: = Varianza de la Potencia coincidente con la máx de la Categoría Unificada
F212: =F151 -> 0.2044223259 | I212: Var (Ph*) | J212: =Varianza de la Potencia Coincidente con el máx de MT en Fuera de Punta
F213: =COVAR(K23:XFD23,K148:XFD148) -> 0.01692778356 | I213: Cov (Pj;Ph*) | J213: =Covarianza entre la Pot Coinc con máx Categ y la Coinc con máx de MT
F214: =COVAR(K24:XFD24,K148:XFD148) ->  | I214: Cov (Pj*;Ph*) | J214: =Covarianza entre la Pot Coinc con máx Categ Unif y la Coinc con máx de MT
F216: =F23 -> 0.4396264706 | H216: FSE(AT)FP | I216: Pj | J216: = Potencia promedio coincidente con la máx de la Categoría
F217: =F24 ->  | I217: Pj* | J217: = Potencia promedio coincidente con la máx de la Categoría Unificada
C218: ='[2]Balance de Potencia'!$G$697 -> Viernes | D218: ='[2]Balance de Potencia'!$G$696 -> 19:15:00 | E218: =MATCH(C218&ROUND(D218,10),$A$273:$A$944,0) -> 558 | F218: =F157 -> 0.4488323529 | I218: P(h*) | J218: = Potencia promedio coincidente con el máx de AT en Fuera de Punta
F219: =F26 -> 0.0472989711 | I219: Var(Pj) | J219: = Varianza de la Potencia coincidente con la máx de la Categoría
F220: =F27 ->  | I220: Var(Pj*) | J220: = Varianza de la Potencia coincidente con la máx de la Categoría Unificada
F221: =F160 -> 0.2044223259 | I221: Var (Ph*) | J221: =Varianza de la Potencia Coincidente con el máx de AT en Punta
F222: =COVAR(K23:XFD23,K157:XFD157) -> 0.01692778356 | I222: Cov (Pj;Ph*) | J222: =Covarianza entre la Pot Coinc con máx Categ y la Coinc con máx de AT
F223: =COVAR(K24:XFD24,K157:XFD157) ->  | I223: Cov (Pj*;Ph*) | J223: =Covarianza entre la Pot Coinc con máx Categ Unif y la Coinc con máx de AT
F224: CATEGORÍAS CON MEDICIÓN DE POTENCIA MÁXIMA
F225: =F37 -> 0.9670029412 | H225: FSI-P | I225: Pj | J225: = Promedio de la Potencia Máxima de cada usuario
... 713 more rows

Sheet BTS_R 4
B1: =[1]DATOS!$B$3 -> ENSA
B2: Estudio de Caracterización de la Carga
B4: Categoría Unificada | F4: BTS_R
B5: Grupo Homogeneo | F5: BTS_R
B6: Estrato | F6: 4
B7: Identificador hora punta | F7: P
B8: Determinación de Parámetros de las Mediciones del Grupo Homogéneo y Estrato
E10: P | F10: =AVERAGE(K10:XFD10) -> 18.024627 | H10: Estructura de Consumo | I10: ep | J10: =Energía Promedio Semanal en Punta | K10: =+IF(SUM(K$273:K$944)/4=0,"",SUMIF($E$273:$E$944,$E10,K$273:K$944)/4) -> 55.4272 | L10: =+IF(SUM(L$273:L$944)/4=0,"",SUMIF($E$273:$E$944,$E10,L$273:L$944)/4) -> 22.1509 | M10: 23.48095 | N10: 9.956675 | O10: 8.59495 | P10: 7.40385 | Q10: 5.963025 | R10: 10.41655 | S10: 19.5412 | T10: 12.2607 | U10: 13.227575 | V10: 11.350525 | W10: 9.9284 | X10: 10.57425 | Y10: 24.313925 | Z10: 27.3528 | AA10: 6.49785 | AB10: =+IF(SUM(AB$273:AB$944)/4=0,"",SUMIF($E$273:$E$944,$E10,AB$273:AB$944)/4) -> 20.328425 | AC10: 18.311 | AD10: 20.8615 | AE10: 16.063325 | AF10: 31.292225 | AG10: 21.551475 | AH10: 28.248125 | AI10: 15.518275
E11: R | F11: =AVERAGE(K11:XFD11) -> 29.221967 | I11: er | J11: =Energía Promedio Semanal en Resto | K11: =+IF(SUM(K$273:K$944)/4=0,"",SUMIF($E$273:$E$944,$E11,K$273:K$944)/4) -> 36.9285 | L11: 35.814675 | M11: 46.1901 | N11: 17.860725 | O11: 15.751075 | P11: 14.9447 | Q11: 18.9718 | R11: 12.576125 | S11: 22.161525 | T11: 22.2722 | U11: 11.65175 | V11: 25.096525 | W11: 23.4531 | X11: 19.982425 | Y11: 33.466125 | Z11: 35.880975 | AA11: 20.331025 | AB11: 27.3635 | AC11: 35.102525 | AD11: 54.887675 | AE11: 33.303275 | AF11: 54.09875 | AG11: 40.24155 | AH11: 41.2025 | AI11: 31.01605
E12: V | F12: =AVERAGE(K12:XFD12) -> 31.575235 | I12: ev | J12: =Energía Promedio Semanal en Valle | K12: =+IF(SUM(K$273:K$944)/4=0,"",SUMIF($E$273:$E$944,$E12,K$273:K$944)/4) -> 30.3652 | L12: 29.47775 | M12: 53.6828 | N12: 28.464975 | O12: 20.49265 | P12: 15.676075 | Q12: 18.633225 | R12: 14.313425 | S12: 17.120375 | T12: 21.997925 | U12: 15.532775 | V12: 24.0015 | W12: 17.69635 | X12: 23.2188 | Y12: 39.04175 | Z12: 48.739775 | AA12: 17.5956 | AB12: 28.440175 | AC12: 42.674825 | AD12: 55.880025 | AE12: 49.504375 | AF12: 47.404975 | AG12: 50.06445 | AH12: 49.847425 | AI12: 29.513675
F13: =AVERAGE(K13:XFD13) -> 78.821829 | I13: et | J13: =Energía Promedio Semanal (Total) | K13: =+IF(SUM(K273:K944)/4=0,"",SUM(K273:K944)/4) -> 122.7209 | L13: 87.443325 | M13: 123.35385 | N13: 56.282375 | O13: 44.838675 | P13: 38.024625 | Q13: 43.56805 | R13: 37.3061 | S13: 58.8231 | T13: 56.530825 | U13: 40.4121 | V13: 60.44855 | W13: 51.07785 | X13: =+IF(SUM(X273:X944)/4=0,"",SUM(X273:X944)/4) -> 53.775475 | Y13: 96.8218 | Z13: 111.97355 | AA13: 44.424475 | AB13: 76.1321 | AC13: 96.08835 | AD13: 131.6292 | AE13: 98.870975 | AF13: 132.79595 | AG13: 111.857475 | AH13: 119.29805 | AI13: 76.048
F14: =VAR(K10:XFD10) -> 113.1688393 | I14: Var (ep) | J14: =Varianza de la Energía Semanal en Punta
F15: =VAR(K11:XFD11) -> 148.8207083 | I15: Var (er) | J15: =Varianza de la Energía Semanal en Resto
F16: =VAR(K12:XFD12) -> 197.6983039 | I16: Var (ev) | J16: =Varianza de la Energía Semanal en Valle
F17: =VAR(K13:XFD13) -> 1089.073106 | I17: Var (et) | J17: =Varianza de la Energía Semanal (Total)
F18: =COVAR(K10:XFD10,$K$13:$XFD$13) -> 263.7990413 | I18: Cov (ep,et) | J18: =Covarianza entre la Energía en Punta y Total
F19: =COVAR(K11:XFD11,$K$13:$XFD$13) -> 370.8459091 | I19: Cov (er,et) | J19: =Covarianza entre la Energía en Resto y Total
F20: =COVAR(K12:XFD12,$K$13:$XFD$13) -> 410.8652315 | I20: Cov (ev,et) | J20: =Covarianza entre la Energía en Valle y Total
F22: =AVERAGE(K22:XFD22) -> 315.287316 | H22: FC | I22: Pj | J22: = Promedio de la Suma de Potencia de cada usuario | K22: =+IF(SUM(K$273:K$944)=0,"",SUM(K$273:K$944)) -> 490.8836 | L22: 349.7733 | M22: 493.4154 | N22: 225.1295 | O22: 179.3547 | P22: 152.0985 | Q22: 174.2722 | R22: 149.2244 | S22: 235.2924 | T22: 226.1233 | U22: 161.6484 | V22: 241.7942 | W22: 204.3114 | X22: 215.1019 | Y22: 387.2872 | Z22: 447.8942 | AA22: 177.6979 | AB22: 304.5284 | AC22: 384.3534 | AD22: 526.5168 | AE22: 395.4839 | AF22: 531.1838 | AG22: 447.4299 | AH22: 477.1922 | AI22: 304.192
C23: =INDEX('[2]Balance de Potencia'!$CC$683:$CV$683,1,MATCH($F$5,'[2]Balance de Potencia'!$CC$5:$CV$5,0)) -> Miércoles | D23: =INDEX('[2]Balance de Potencia'!$CC$682:$CV$682,1,MATCH($F$5,'[2]Balance de Potencia'!$CC$5:$CV$5,0)) -> 21:45:00 | E23: =MATCH(C23&ROUND(D23,10),$A$273:$A$944,0) -> 376 | F23: =AVERAGE(K23:XFD23) -> 0.711436 | I23: P(h*) | J23: = Potencia promedio coincidente con la máx de la Categoría | K23: =IF(K$22="","",OFFSET($A$273,$E23-1,COLUMN()-1,)) -> 0.162 | L23: =IF(L$22="","",OFFSET($A$273,$E23-1,COLUMN()-1,)) -> 2.3203 | M23: 1.2311 | N23: 0.3242 | O23: 0.3553 | P23: 0.3479 | Q23: 0.4106 | R23: 0.2869 | S23: 0.3025 | T23: 0.3869 | U23: 0.1943 | V23: 0.6491 | W23: 0.5146 | X23: 0.265 | Y23: 0.5403 | Z23: 0.5393 | AA23: 0.193 | AB23: 0.2495 | AC23: 1.106 | AD23: 1.6183 | AE23: 1.0106 | AF23: 2.2379 | AG23: 0.9621 | AH23: 0.7659 | AI23: 0.8123
C24: =INDEX('[2]Balance de Potencia'!$BY$683:$CA$683,1,MATCH($F$4,'[2]Balance de Potencia'!$BY$5:$CA$5,0)) ->  | D24: =INDEX('[2]Balance de Potencia'!$BY$682:$CA$682,1,MATCH($F$4,'[2]Balance de Potencia'!$BY$5:$CA$5,0)) ->  | E24: =MATCH(C24&ROUND(D24,10),$A$273:$A$944,0) ->  | F24: =AVERAGE(K24:XFD24) ->  | I24: P(h**) | J24: = Potencia promedio coincidente con la máx de la Categoría Unificada | K24: =IF(K$22="","",OFFSET($A$273,$E24-1,COLUMN()-1,)) -> 
F25: =VAR(K22:XFD22) -> 17425.1697 | I25: Var (Pj) | J25: =Varianza de la Potencia Media
F26: =VAR(K23:XFD23) -> 0.3598622157 | I26: Var (Ph*) | J26: =Varianza de la Potencia Coincidente con la máx de la Categ.
F27: =VAR(K24:XFD24) ->  | I27: Var (Ph**) | J27: =Varianza de la Potencia Coincidente con la máx de la Categ.Unificada
F28: =COVAR(K23:XFD23,$K$22:$XFD$22) -> 46.94910234 | I28: Cov (Pj;Ph*) | J28: =Covarianza entre la Potencia Media y la Coincidente
F29: =COVAR(K24:XFD24,$K$22:$XFD$22) ->  | I29: Cov (Pj;Ph**) | J29: =Covarianza entre la Potencia Media y la Coincidente de la Categ. Unificada
F31: =F22 -> 315.287316 | H31: FC-estrato | I31: Pj | J31: = Promedio de la Suma de Potencia de cada usuario
E32: =MATCH(F32,$F$273:$F$944,0) -> 376 | F32: =F271 -> 0.711436 | I32: P(h*) | J32: = Potencia promedio coincidente con la máx del estrato | K32: =IF(K$22="","",OFFSET($A$273,$E32-1,COLUMN()-1,)) -> 0.162 | L32: 2.3203 | M32: 1.2311 | N32: 0.3242 | O32: 0.3553 | P32: 0.3479 | Q32: 0.4106 | R32: 0.2869 | S32: 0.3025 | T32: 0.3869 | U32: 0.1943 | V32: 0.6491 | W32: 0.5146 | X32: 0.265 | Y32: 0.5403 | Z32: 0.5393 | AA32: 0.193 | AB32: 0.2495 | AC32: 1.106 | AD32: 1.6183 | AE32: 1.0106 | AF32: 2.2379 | AG32: 0.9621 | AH32: 0.7659 | AI32: 0.8123
F33: =F25 -> 17425.1697 | I33: Var (Pj) | J33: =Varianza de la Potencia Media
F34: =VAR(K32:XFD32) -> 0.3598622157 | I34: Var (Ph*) | J34: =Varianza de la Potencia Coincidente con la máx del estrato
F35: =COVAR(K32:XFD32,$K$22:$XFD$22) -> 46.94910234 | I35: Cov (Pj;Ph*) | J35: =Covarianza entre la Potencia Media y la Coincidente
F37: =+AVERAGE(K37:XFD37) -> 1.526144 | H37: FSI | I37: Pj | J37: = Promedio de la Potencia Máxima de cada usuario | K37: =+IF(SUM(K273:K944)=0,"",MAX(K273:K944)) -> 1.936 | L37: 2.8101 | M37: 1.8322 | N37: 1.7927 | O37: 0.8473 | P37: 0.7858 | Q37: 0.5195 | R37: 0.5845 | S37: 1.0519 | T37: 0.7629 | U37: 0.6702 | V37: 1.0767 | W37: 0.9698 | X37: =+IF(SUM(X273:X944)=0,"",MAX(X273:X944)) -> 1.0368 | Y37: 1.0972 | Z37: 1.1195 | AA37: 2.6966 | AB37: 1.1972 | AC37: 2.3377 | AD37: 2.7982 | AE37: 1.7618 | AF37: 5.17 | AG37: 1.1116 | AH37: 1.2235 | AI37: 0.9639
F38: =+AVERAGE(K38:XFD38) -> 1.43222 | I38: PjFP | J38: = Promedio de la Potencia Máxima de cada usuario en horas FP | K38: =IF(SUM(K273:K944)=0,"",MAX(IF($E273:$E944<>"P",K273:K944,""))) -> 1.936 | L38: =IF(SUM(L273:L944)=0,"",MAX(IF($E273:$E944<>"P",L273:L944,""))) -> 2.7227 | M38: =IF(SUM(M273:M944)=0,"",MAX(IF($E273:$E944<>"P",M273:M944,""))) -> 1.8322 | N38: =IF(SUM(N273:N944)=0,"",MAX(IF($E273:$E944<>"P",N273:N944,""))) -> 0.8934 | O38: =IF(SUM(O273:O944)=0,"",MAX(IF($E273:$E944<>"P",O273:O944,""))) -> 0.8473 | P38: =IF(SUM(P273:P944)=0,"",MAX(IF($E273:$E944<>"P",P273:P944,""))) -> 0.6906 | Q38: =IF(SUM(Q273:Q944)=0,"",MAX(IF($E273:$E944<>"P",Q273:Q944,""))) -> 0.5195 | R38: =IF(SUM(R273:R944)=0,"",MAX(IF($E273:$E944<>"P",R273:R944,""))) -> 0.5277 | S38: =IF(SUM(S273:S944)=0,"",MAX(IF($E273:$E944<>"P",S273:S944,""))) -> 0.8506 | T38: =IF(SUM(T273:T944)=0,"",MAX(IF($E273:$E944<>"P",T273:T944,""))) -> 0.7345 | U38: =IF(SUM(U273:U944)=0,"",MAX(IF($E273:$E944<>"P",U273:U944,""))) -> 0.5155 | V38: =IF(SUM(V273:V944)=0,"",MAX(IF($E273:$E944<>"P",V273:V944,""))) -> 1.0767 | W38: =IF(SUM(W273:W944)=0,"",MAX(IF($E273:$E944<>"P",W273:W944,""))) -> 0.9698 | X38: =IF(SUM(X273:X944)=0,"",MAX(IF($E273:$E944<>"P",X273:X944,""))) -> 1.0368 | Y38: =IF(SUM(Y273:Y944)=0,"",MAX(IF($E273:$E944<>"P",Y273:Y944,""))) -> 0.8936 | Z38: =IF(SUM(Z273:Z944)=0,"",MAX(IF($E273:$E944<>"P",Z273:Z944,""))) -> 1.019 | AA38: =IF(SUM(AA273:AA944)=0,"",MAX(IF($E273:$E944<>"P",AA273:AA944,""))) -> 2.6966 | AB38: =IF(SUM(AB273:AB944)=0,"",MAX(IF($E273:$E944<>"P",AB273:AB944,""))) -> 1.1696 | AC38: =IF(SUM(AC273:AC944)=0,"",MAX(IF($E273:$E944<>"P",AC273:AC944,""))) -> 1.8444 | AD38: =IF(SUM(AD273:AD944)=0,"",MAX(IF($E273:$E944<>"P",AD273:AD944,""))) -> 2.7982 | AE38: =IF(SUM(AE273:AE944)=0,"",MAX(IF($E273:$E944<>"P",AE273:AE944,""))) -> 1.7618 | AF38: =IF(SUM(AF273:AF944)=0,"",MAX(IF($E273:$E944<>"P",AF273:AF944,""))) -> 5.17 | AG38: =IF(SUM(AG273:AG944)=0,"",MAX(IF($E273:$E944<>"P",AG273:AG944,""))) -> 1.1116 | AH38: =IF(SUM(AH273:AH944)=0,"",MAX(IF($E273:$E944<>"P",AH273:AH944,""))) -> 1.2235 | AI38: =IF(SUM(AI273:AI944)=0,"",MAX(IF($E273:$E944<>"P",AI273:AI944,""))) -> 0.9639
F39: =F23 -> 0.711436 | I39: P(h*) | J39: = Potencia promedio coincidente con la máx de la Categoría
F40: =F24 ->  | I40: P(h**) | J40: = Potencia promedio coincidente con la máx de la Categoría Unificada
F41: =VAR(K37:XFD37) -> 1.049930348 | I41: Var (Pj) | J41: =Varianza de la Potencia Máxima de cada Usuario
F42: =F26 -> 0.3598622157 | I42: Var (Ph*) | J42: =Varianza de la Potencia Coincidente con la máx de la Categ.
F43: =F27 ->  | I43: Var (Ph**) | J43: =Varianza de la Potencia Coincidente con la máx de la Categ. Unificada
F44: =COVAR(K23:XFD23,$K$37:$XFD$37) -> 0.4387224072 | I44: Cov (Pj;Ph*) | J44: =Covarianza entre la Potencia Máxima y la Coincidente
F45: =COVAR(K24:XFD24,$K$37:$XFD$37) ->  | I45: Cov (Pj;Ph**) | J45: =Covarianza entre la Potencia Máxima y la Coincidente de la Categ. Unificada
F47: =F37 -> 1.526144 | H47: FCT-BT | I47: Pj | J47: = Promedio de la Potencia Máxima de cada usuario
F48: =F85 -> 0.61166 | I48: P(h*) | J48: = Potencia promedio coincidente con la máx de la Baja Tensión
F49: =F41 -> 1.049930348 | I49: Var(Pj) | J49: =Varianza de la Potencia Máxima de cada Usuario
F50: =F88 -> 0.36217082 | I50: Var(Ph*) | J50: =Varianza de la Potencia Coincidente con el máx de BT
F51: =COVAR(K37:XFD37,K85:XFD85) -> 0.2275872906 | I51: Cov(Pj;Ph* | J51: =Covarianza entre la Potencia Máxima y la Coinc con máx de BT
F53: =F37 -> 1.526144 | H53: FCT-MT | I53: Pj | J53: = Promedio de la Potencia Máxima de cada usuario
F54: =F94 -> 0.61166 | I54: P(h*) | J54: = Potencia promedio coincidente con la máx de la Media Tensión
F55: =F41 -> 1.049930348 | I55: Var(Pj) | J55: =Varianza de la Potencia Máxima de cada Usuario
F56: =F97 -> 0.36217082 | I56: Var(Ph*) | J56: =Varianza de la Potencia Coincidente con el máx de MT
F57: =COVAR(K37:XFD37,K94:XFD94) -> 0.2275872906 | I57: Cov(Pj;Ph* | J57: =Covarianza entre la Potencia Máxima y la Coinc con máx de MT
F59: =F37 -> 1.526144 | H59: FCT-AT | I59: Pj | J59: = Promedio de la Potencia Máxima de cada usuario
F60: =F103 -> 0.61166 | I60: P(h*) | J60: = Potencia promedio coincidente con la máx de la Alta Tensión
F61: =F41 -> 1.049930348 | I61: Var(Pj) | J61: =Varianza de la Potencia Máxima de cada Usuario
F62: =F106 -> 0.36217082 | I62: Var(Ph*) | J62: =Varianza de la Potencia Coincidente con el máx de AT
F63: =COVAR(K37:XFD37,K103:XFD103) -> 0.2275872906 | I63: Cov(Pj;Ph* | J63: =Covarianza entre la Potencia Máxima y la Coinc con máx de AT
F65: =AVERAGE(K65:XFD65) -> 1.241304 | H65: FSI-P | I65: Pj | J65: = Promedio de la Potencia Máxima de cada usuario en Punta | K65: =+IF(SUM(K273:K944)=0,"",MAX(IF($E273:$E944=$F$7,K273:K944))) -> 1.9032 | L65: =+IF(SUM(L273:L944)=0,"",MAX(IF($E273:$E944=$F$7,L273:L944))) -> 2.8101 | M65: =+IF(SUM(M273:M944)=0,"",MAX(IF($E273:$E944=$F$7,M273:M944))) -> 1.7817 | N65: =+IF(SUM(N273:N944)=0,"",MAX(IF($E273:$E944=$F$7,N273:N944))) -> 1.7927 | O65: =+IF(SUM(O273:O944)=0,"",MAX(IF($E273:$E944=$F$7,O273:O944))) -> 0.7166 | P65: =+IF(SUM(P273:P944)=0,"",MAX(IF($E273:$E944=$F$7,P273:P944))) -> 0.7858 | Q65: =+IF(SUM(Q273:Q944)=0,"",MAX(IF($E273:$E944=$F$7,Q273:Q944))) -> 0.4348 | R65: =+IF(SUM(R273:R944)=0,"",MAX(IF($E273:$E944=$F$7,R273:R944))) -> 0.5845 | S65: =+IF(SUM(S273:S944)=0,"",MAX(IF($E273:$E944=$F$7,S273:S944))) -> 1.0519 | T65: =+IF(SUM(T273:T944)=0,"",MAX(IF($E273:$E944=$F$7,T273:T944))) -> 0.7629 | U65: =+IF(SUM(U273:U944)=0,"",MAX(IF($E273:$E944=$F$7,U273:U944))) -> 0.6702 | V65: =+IF(SUM(V273:V944)=0,"",MAX(IF($E273:$E944=$F$7,V273:V944))) -> 0.6763 | W65: =+IF(SUM(W273:W944)=0,"",MAX(IF($E273:$E944=$F$7,W273:W944))) -> 0.9607 | X65: =+IF(SUM(X273:X944)=0,"",MAX(IF($E273:$E944=$F$7,X273:X944))) -> 0.4104 | Y65: =+IF(SUM(Y273:Y944)=0,"",MAX(IF($E273:$E944=$F$7,Y273:Y944))) -> 1.0972 | Z65: =+IF(SUM(Z273:Z944)=0,"",MAX(IF($E273:$E944=$F$7,Z273:Z944))) -> 1.1195 | AA65: =+IF(SUM(AA273:AA944)=0,"",MAX(IF($E273:$E944=$F$7,AA273:AA944))) -> 0.2683 | AB65: =+IF(SUM(AB273:AB944)=0,"",MAX(IF($E273:$E944=$F$7,AB273:AB944))) -> 1.1972 | AC65: =+IF(SUM(AC273:AC944)=0,"",MAX(IF($E273:$E944=$F$7,AC273:AC944))) -> 2.3377 | AD65: =+IF(SUM(AD273:AD944)=0,"",MAX(IF($E273:$E944=$F$7,AD273:AD944))) -> 2.4649 | AE65: =+IF(SUM(AE273:AE944)=0,"",MAX(IF($E273:$E944=$F$7,AE273:AE944))) -> 1.3062 | AF65: =+IF(SUM(AF273:AF944)=0,"",MAX(IF($E273:$E944=$F$7,AF273:AF944))) -> 3.3843 | AG65: =+IF(SUM(AG273:AG944)=0,"",MAX(IF($E273:$E944=$F$7,AG273:AG944))) -> 0.8324 | AH65: =+IF(SUM(AH273:AH944)=0,"",MAX(IF($E273:$E944=$F$7,AH273:AH944))) -> 0.9108 | AI65: =+IF(SUM(AI273:AI944)=0,"",MAX(IF($E273:$E944=$F$7,AI273:AI944))) -> 0.7723
C66: =INDEX('[2]Balance de Potencia'!$CC$690:$CV$690,1,MATCH($F$5,'[2]Balance de Potencia'!$CC$5:$CV$5,0)) -> Miércoles | D66: =INDEX('[2]Balance de Potencia'!$CC$689:$CV$689,1,MATCH($F$5,'[2]Balance de Potencia'!$CC$5:$CV$5,0)) -> 15:45:00 | E66: =MATCH(C66&ROUND(D66,10),$A$273:$A$944,0) -> 352 | F66: =AVERAGE(K66:XFD66) -> 0.587108 | I66: P(h*) | J66: = Potencia promedio coincidente con la máx de la Categoría en Punta | K66: =IF(K$22="","",OFFSET($A$273,$E66-1,COLUMN()-1,)) -> 1.5672 | L66: =IF(L$22="","",OFFSET($A$273,$E66-1,COLUMN()-1,)) -> 2.7308 | M66: 0.2274 | N66: 0.3744 | O66: 0.1875 | P66: 0.0795 | Q66: 0.1181 | R66: 0.3052 | S66: 0.4664 | T66: 0.3388 | U66: 0.3267 | V66: 0.4821 | W66: 0.0758 | X66: 0.2205 | Y66: 0.5479 | Z66: 0.5166 | AA66: 0.1374 | AB66: =IF(AB$22="","",OFFSET($A$273,$E66-1,COLUMN()-1,)) -> 0.5804 | AC66: 0.3439 | AD66: 2.0313 | AE66: 0.4689 | AF66: 0.8088 | AG66: 0.5894 | AH66: 0.7063 | AI66: 0.4464
C67: =INDEX('[2]Balance de Potencia'!$BY$690:$CA$690,1,MATCH($F$4,'[2]Balance de Potencia'!$BY$5:$CA$5,0)) ->  | D67: =INDEX('[2]Balance de Potencia'!$BY$689:$CA$689,1,MATCH($F$4,'[2]Balance de Potencia'!$BY$5:$CA$5,0)) ->  | E67: =MATCH(C67&ROUND(D67,10),$A$273:$A$944,0) ->  | F67: =AVERAGE(K67:XFD67) ->  | I67: P(h**) | J67: = Potencia promedio coincidente con la máx de la Categoría Unificada en Punta | K67: =IF(K$22="","",OFFSET($A$273,$E67-1,COLUMN()-1,)) -> 
F68: =VAR(K65:XFD65) -> 0.6464918146 | I68: Var (Pj) | J68: =Varianza de la Potencia Máxima de cada Usuario en Punta
F69: =VAR(K66:XFD66) -> 0.3937120708 | I69: Var (Ph*) | J69: =Varianza de la Potencia Coincidente con la máx de la Categ. en Punta
F70: =VAR(K67:XFD67) ->  | I70: Var (Ph**) | J70: =Varianza de la Potencia Coincidente con la máx de la Categ. Unificada en Punta
F71: =COVAR(K$65:XFD$65,K66:XFD66) -> 0.3179119948 | I71: Cov (Pj;Ph*) | J71: =Covarianza entre la Potencia Máxima y la Coincidente
F72: =COVAR(K$65:XFD$65,K67:XFD67) ->  | I72: Cov (Pj;Ph**) | J72: =Covarianza entre la Potencia Máxima y la Coincidente de la Categ. Unificada
F74: =AVERAGE(K74:XFD74) -> 1.43222 | H74: FSI-FP | I74: Pj | J74: = Promedio de la Potencia Máxima de cada usuario | K74: =+IF(SUM(K273:K944)=0,"",MAX(IF($E273:$E944<>$F$7,K273:K944))) -> 1.936 | L74: =+IF(SUM(L273:L944)=0,"",MAX(IF($E273:$E944<>$F$7,L273:L944))) -> 2.7227 | M74: =+IF(SUM(M273:M944)=0,"",MAX(IF($E273:$E944<>$F$7,M273:M944))) -> 1.8322 | N74: =+IF(SUM(N273:N944)=0,"",MAX(IF($E273:$E944<>$F$7,N273:N944))) -> 0.8934 | O74: =+IF(SUM(O273:O944)=0,"",MAX(IF($E273:$E944<>$F$7,O273:O944))) -> 0.8473 | P74: =+IF(SUM(P273:P944)=0,"",MAX(IF($E273:$E944<>$F$7,P273:P944))) -> 0.6906 | Q74: =+IF(SUM(Q273:Q944)=0,"",MAX(IF($E273:$E944<>$F$7,Q273:Q944))) -> 0.5195 | R74: =+IF(SUM(R273:R944)=0,"",MAX(IF($E273:$E944<>$F$7,R273:R944))) -> 0.5277 | S74: =+IF(SUM(S273:S944)=0,"",MAX(IF($E273:$E944<>$F$7,S273:S944))) -> 0.8506 | T74: =+IF(SUM(T273:T944)=0,"",MAX(IF($E273:$E944<>$F$7,T273:T944))) -> 0.7345 | U74: =+IF(SUM(U273:U944)=0,"",MAX(IF($E273:$E944<>$F$7,U273:U944))) -> 0.5155 | V74: =+IF(SUM(V273:V944)=0,"",MAX(IF($E273:$E944<>$F$7,V273:V944))) -> 1.0767 | W74: =+IF(SUM(W273:W944)=0,"",MAX(IF($E273:$E944<>$F$7,W273:W944))) -> 0.9698 | X74: =+IF(SUM(X273:X944)=0,"",MAX(IF($E273:$E944<>$F$7,X273:X944))) -> 1.0368 | Y74: =+IF(SUM(Y273:Y944)=0,"",MAX(IF($E273:$E944<>$F$7,Y273:Y944))) -> 0.8936 | Z74: =+IF(SUM(Z273:Z944)=0,"",MAX(IF($E273:$E944<>$F$7,Z273:Z944))) -> 1.019 | AA74: =+IF(SUM(AA273:AA944)=0,"",MAX(IF($E273:$E944<>$F$7,AA273:AA944))) -> 2.6966 | AB74: =+IF(SUM(AB273:AB944)=0,"",MAX(IF($E273:$E944<>$F$7,AB273:AB944))) -> 1.1696 | AC74: =+IF(SUM(AC273:AC944)=0,"",MAX(IF($E273:$E944<>$F$7,AC273:AC944))) -> 1.8444 | AD74: =+IF(SUM(AD273:AD944)=0,"",MAX(IF($E273:$E944<>$F$7,AD273:AD944))) -> 2.7982 | AE74: =+IF(SUM(AE273:AE944)=0,"",MAX(IF($E273:$E944<>$F$7,AE273:AE944))) -> 1.7618 | AF74: =+IF(SUM(AF273:AF944)=0,"",MAX(IF($E273:$E944<>$F$7,AF273:AF944))) -> 5.17 | AG74: =+IF(SUM(AG273:AG944)=0,"",MAX(IF($E273:$E944<>$F$7,AG273:AG944))) -> 1.1116 | AH74: =+IF(SUM(AH273:AH944)=0,"",MAX(IF($E273:$E944<>$F$7,AH273:AH944))) -> 1.2235 | AI74: =+IF(SUM(AI273:AI944)=0,"",MAX(IF($E273:$E944<>$F$7,AI273:AI944))) -> 0.9639
C75: =INDEX('[2]Balance de Potencia'!$CC$697:$CV$697,1,MATCH($F$5,'[2]Balance de Potencia'!$CC$5:$CV$5,0)) -> Miércoles | D75: =INDEX('[2]Balance de Potencia'!$CC$696:$CV$696,1,MATCH($F$5,'[2]Balance de Potencia'!$CC$5:$CV$5,0)) -> 21:45:00 | E75: =MATCH(C75&ROUND(D75,10),$A$273:$A$944,0) -> 376 | F75: =AVERAGE(K75:XFD75) -> 0.711436 | I75: P(h*) | J75: = Potencia promedio coincidente con la máx de la Categoría | K75: =IF(K$22="","",OFFSET($A$273,$E75-1,COLUMN()-1,)) -> 0.162 | L75: =IF(L$22="","",OFFSET($A$273,$E75-1,COLUMN()-1,)) -> 2.3203 | M75: 1.2311 | N75: 0.3242 | O75: 0.3553 | P75: 0.3479 | Q75: 0.4106 | R75: 0.2869 | S75: 0.3025 | T75: 0.3869 | U75: 0.1943 | V75: 0.6491 | W75: 0.5146 | X75: 0.265 | Y75: 0.5403 | Z75: 0.5393 | AA75: 0.193 | AB75: =IF(AB$22="","",OFFSET($A$273,$E75-1,COLUMN()-1,)) -> 0.2495 | AC75: 1.106 | AD75: 1.6183 | AE75: 1.0106 | AF75: 2.2379 | AG75: 0.9621 | AH75: 0.7659 | AI75: 0.8123
C76: =INDEX('[2]Balance de Potencia'!$BY$697:$CA$697,1,MATCH($F$4,'[2]Balance de Potencia'!$BY$5:$CA$5,0)) ->  | D76: =INDEX('[2]Balance de Potencia'!$BY$696:$CA$696,1,MATCH($F$4,'[2]Balance de Potencia'!$BY$5:$CA$5,0)) ->  | E76: =MATCH(C76&ROUND(D76,10),$A$272:$A$943,0) ->  | F76: =AVERAGE(K76:XFD76) ->  | I76: P(h**) | J76: = Potencia promedio coincidente con la máx de la Categoría Unificada | K76: =IF(K$22="","",OFFSET($A$273,$E76-1,COLUMN()-1,)) -> 
F77: =VAR(K74:XFD74) -> 1.070184718 | I77: Var (Pj) | J77: =Varianza de la Potencia Máxima de cada Usuario
F78: =VAR(K75:XFD75) -> 0.3598622157 | I78: Var (Ph*) | J78: =Varianza de la Potencia Coincidente con la máx de la Categ.
F79: =VAR(K76:XFD76) ->  | I79: Var (Ph**) | J79: =Varianza de la Potencia Coincidente con la máx de la Categ. Unificada
F80: =COVAR(K$74:XFD$74,K75:XFD75) -> 0.4510479849 | I80: Cov (Pj;Ph*) | J80: =Covarianza entre la Potencia Máxima y la Coincidente
F81: =COVAR(K$74:XFD$74,K76:XFD76) ->  | I81: Cov (Pj;Ph**) | J81: =Covarianza entre la Potencia Máxima y la Coincidente de la Categ. Unificada
F83: =F23 -> 0.711436 | H83: FSE(BT) | I83: Pj | J83: = Potencia promedio coincidente con la máx de la Categoría
F84: =F24 ->  | I84: Pj* | J84: = Potencia promedio coincidente con la máx de la Categoría Unificada
C85: ='[2]Balance de Potencia'!$E$683 -> Lunes | D85: ='[2]Balance de Potencia'!$E$682 -> 13:45:00 | E85: =MATCH(C85&ROUND(D85,10),$A$273:$A$944,0) -> 152 | F85: =AVERAGE(K85:XFD85) -> 0.61166 | I85: P(h*) | J85: = Potencia promedio coincidente con el máx de BT | K85: =IF(K$22="","",OFFSET($A$273,$E85-1,COLUMN()-1,)) -> 1.7588 | L85: 2.5416 | M85: 0.5116 | N85: 1.7927 | O85: 0.2142 | P85: 0.0742 | Q85: 0.148 | R85: 0.2677 | S85: 0.4004 | T85: 0.3558 | U85: 0.1453 | V85: 0.2762 | W85: 0.0625 | X85: 0.3369 | Y85: 1.0374 | Z85: 0.7746 | AA85: 0.1281 | AB85: 0.4213 | AC85: 0.5131 | AD85: 0.4938 | AE85: 0.4118 | AF85: 0.8008 | AG85: 0.6092 | AH85: 0.7976 | AI85: 0.4179
F86: =F26 -> 0.3598622157 | I86: Var(Pj) | J86: = Varianza de la Potencia coincidente con la máx de la Categoría
F87: =F27 ->  | I87: Var(Pj*) | J87: = Varianza de la Potencia coincidente con la máx de la Categoría Unificada
F88: =VAR(K85:XFD85) -> 0.36217082 | I88: Var (Ph*) | J88: =Varianza de la Potencia Coincidente con el máx de BT
F89: =COVAR(K$23:XFD$23,K85:XFD85) -> 0.1424378682 | I89: Cov (Pj;Ph*) | J89: =Covarianza entre la Pot Coinc con máx Categ y la Coinc con máx de BT
F90: =COVAR(K$24:XFD$24,K85:XFD85) ->  | I90: Cov (Pj*;Ph*) | J90: =Covarianza entre la Pot Coinc con máx Categ Unif y la Coinc con máx de BT
F92: =F23 -> 0.711436 | H92: FSE(MT) | I92: Pj | J92: = Potencia promedio coincidente con la máx de la Categoría
F93: =F24 ->  | I93: Pj* | J93: = Potencia promedio coincidente con la máx de la Categoría Unificada
C94: ='[2]Balance de Potencia'!$F$683 -> Lunes | D94: ='[2]Balance de Potencia'!$F$682 -> 13:45:00 | E94: =MATCH(C94&ROUND(D94,10),$A$273:$A$944,0) -> 152 | F94: =AVERAGE(K94:XFD94) -> 0.61166 | I94: P(h*) | J94: = Potencia promedio coincidente con el máx de MT | K94: =IF(K$22="","",OFFSET($A$273,$E94-1,COLUMN()-1,)) -> 1.7588 | L94: 2.5416 | M94: 0.5116 | N94: 1.7927 | O94: 0.2142 | P94: 0.0742 | Q94: 0.148 | R94: 0.2677 | S94: 0.4004 | T94: 0.3558 | U94: 0.1453 | V94: 0.2762 | W94: 0.0625 | X94: 0.3369 | Y94: 1.0374 | Z94: 0.7746 | AA94: 0.1281 | AB94: 0.4213 | AC94: 0.5131 | AD94: 0.4938 | AE94: 0.4118 | AF94: 0.8008 | AG94: 0.6092 | AH94: 0.7976 | AI94: 0.4179
F95: =F26 -> 0.3598622157 | I95: Var(Pj) | J95: = Varianza de la Potencia coincidente con la máx de la Categoría
F96: =F27 ->  | I96: Var(Pj*) | J96: = Varianza de la Potencia coincidente con la máx de la Categoría Unificada
F97: =VAR(K94:XFD94) -> 0.36217082 | I97: Var (Ph*) | J97: =Varianza de la Potencia Coincidente con el máx de MT
F98: =COVAR(K$23:XFD$23,K94:XFD94) -> 0.1424378682 | I98: Cov (Pj;Ph*) | J98: =Covarianza entre la Pot Coinc con máx Categ y la Coinc con máx de MT
F99: =COVAR(K$24:XFD$24,K94:XFD94) ->  | I99: Cov (Pj*;Ph*) | J99: =Covarianza entre la Pot Coinc con máx Categ Unif y la Coinc con máx de MT
F101: =F23 -> 0.711436 | H101: FSE(AT) | I101: Pj | J101: = Potencia promedio coincidente con la máx de la Categoría
F102: =F24 ->  | I102: Pj* | J102: = Potencia promedio coincidente con la máx de la Categoría Unificada
C103: ='[2]Balance de Potencia'!$G$683 -> Lunes | D103: ='[2]Balance de Potencia'!$G$682 -> 13:45:00 | E103: =MATCH(C103&ROUND(D103,10),$A$273:$A$944,0) -> 152 | F103: =AVERAGE(K103:XFD103) -> 0.61166 | I103: P(h*) | J103: = Potencia promedio coincidente con el máx de AT | K103: =IF(K$22="","",OFFSET($A$273,$E103-1,COLUMN()-1,)) -> 1.7588 | L103: 2.5416 | M103: 0.5116 | N103: 1.7927 | O103: 0.2142 | P103: 0.0742 | Q103: 0.148 | R103: 0.2677 | S103: 0.4004 | T103: 0.3558 | U103: 0.1453 | V103: 0.2762 | W103: 0.0625 | X103: 0.3369 | Y103: 1.0374 | Z103: 0.7746 | AA103: 0.1281 | AB103: 0.4213 | AC103: 0.5131 | AD103: 0.4938 | AE103: 0.4118 | AF103: 0.8008 | AG103: 0.6092 | AH103: 0.7976 | AI103: 0.4179
F104: =F26 -> 0.3598622157 | I104: Var(Pj) | J104: = Varianza de la Potencia coincidente con la máx de la Categoría
F105: =F27 ->  | I105: Var(Pj*) | J105: = Varianza de la Potencia coincidente con la máx de la Categoría Unificada
F106: =VAR(K103:XFD103) -> 0.36217082 | I106: Var (Ph*) | J106: =Varianza de la Potencia Coincidente con el máx de AT
F107: =COVAR(K$23:XFD$23,K103:XFD103) -> 0.1424378682 | I107: Cov (Pj;Ph*) | J107: =Covarianza entre la Pot Coinc con máx Categ y la Coinc con máx de AT
F108: =COVAR(K$24:XFD$24,K103:XFD103) ->  | I108: Cov (Pj*;Ph*) | J108: =Covarianza entre la Pot Coinc con máx Categ Unif y la Coinc con máx de AT
F110: =F66 -> 0.587108 | H110: FSE(BT)P | I110: Pj | J110: = Potencia promedio coincidente con la máx de la Categoría en Punta
F111: =F67 ->  | I111: Pj* | J111: = Potencia promedio coincidente con la máx de la Categoría Unificada en Punta
C112: ='[2]Balance de Potencia'!$E$690 -> Lunes | D112: ='[2]Balance de Potencia'!$E$689 -> 13:45:00 | E112: =MATCH(C112&ROUND(D112,10),$A$273:$A$944,0) -> 152 | F112: =AVERAGE(K112:XFD112) -> 0.61166 | I112: P(h*) | J112: = Potencia promedio coincidente con el máx de BT en Punta | K112: =IF(K$22="","",OFFSET($A$273,$E112-1,COLUMN()-1,)) -> 1.7588 | L112: =IF(L$22="","",OFFSET($A$273,$E112-1,COLUMN()-1,)) -> 2.5416 | M112: 0.5116 | N112: 1.7927 | O112: 0.2142 | P112: 0.0742 | Q112: 0.148 | R112: 0.2677 | S112: 0.4004 | T112: 0.3558 | U112: 0.1453 | V112: 0.2762 | W112: 0.0625 | X112: 0.3369 | Y112: 1.0374 | Z112: 0.7746 | AA112: 0.1281 | AB112: 0.4213 | AC112: 0.5131 | AD112: 0.4938 | AE112: 0.4118 | AF112: 0.8008 | AG112: 0.6092 | AH112: 0.7976 | AI112: 0.4179
F113: =F69 -> 0.3937120708 | I113: Var(Pj) | J113: = Varianza de la Potencia coincidente con la máx de la Categoría
F114: =F70 ->  | I114: Var(Pj*) | J114: = Varianza de la Potencia coincidente con la máx de la Categoría Unificada
F115: =VAR(K112:XFD112) -> 0.36217082 | I115: Var (Ph*) | J115: =Varianza de la Potencia Coincidente con el máx de BT en Punta
F116: =COVAR(K66:XFD66,K112:XFD112) -> 0.2631544395 | I116: Cov (Pj;Ph*) | J116: =Covarianza entre la Pot Coinc con máx Categ y la Coinc con máx de BT
F117: =COVAR(K67:XFD67,K112:XFD112) ->  | I117: Cov (Pj*;Ph*) | J117: =Covarianza entre la Pot Coinc con máx Categ Unif y la Coinc con máx de BT
F119: =F66 -> 0.587108 | H119: FSE(MT)P | I119: Pj | J119: = Potencia promedio coincidente con la máx de la Categoría en Punta
F120: =F67 ->  | I120: Pj* | J120: = Potencia promedio coincidente con la máx de la Categoría Unificada en Punta
C121: ='[2]Balance de Potencia'!$F$690 -> Lunes | D121: ='[2]Balance de Potencia'!$F$689 -> 13:45:00 | E121: =MATCH(C121&ROUND(D121,10),$A$273:$A$944,0) -> 152 | F121: =AVERAGE(K121:XFD121) -> 0.61166 | I121: P(h*) | J121: = Potencia promedio coincidente con el máx de MT en Punta | K121: =IF(K$22="","",OFFSET($A$273,$E121-1,COLUMN()-1,)) -> 1.7588 | L121: =IF(L$22="","",OFFSET($A$273,$E121-1,COLUMN()-1,)) -> 2.5416 | M121: 0.5116 | N121: 1.7927 | O121: 0.2142 | P121: 0.0742 | Q121: 0.148 | R121: 0.2677 | S121: 0.4004 | T121: 0.3558 | U121: 0.1453 | V121: 0.2762 | W121: 0.0625 | X121: 0.3369 | Y121: 1.0374 | Z121: 0.7746 | AA121: 0.1281 | AB121: 0.4213 | AC121: 0.5131 | AD121: 0.4938 | AE121: 0.4118 | AF121: 0.8008 | AG121: 0.6092 | AH121: 0.7976 | AI121: 0.4179
F122: =F69 -> 0.3937120708 | I122: Var(Pj) | J122: = Varianza de la Potencia coincidente con la máx de la Categoría
F123: =F70 ->  | I123: Var(Pj*) | J123: = Varianza de la Potencia coincidente con la máx de la Categoría Unificada
F124: =VAR(K121:XFD121) -> 0.36217082 | I124: Var (Ph*) | J124: =Varianza de la Potencia Coincidente con el máx de MT en Punta
F125: =COVAR(K66:XFD66,K121:XFD121) -> 0.2631544395 | I125: Cov (Pj;Ph*) | J125: =Covarianza entre la Pot Coinc con máx Categ y la Coinc con máx de MT
F126: =COVAR(K67:XFD67,K121:XFD121) ->  | I126: Cov (Pj*;Ph*) | J126: =Covarianza entre la Pot Coinc con máx Categ Unif y la Coinc con máx de MT
F128: =F66 -> 0.587108 | H128: FSE(AT)P | I128: Pj | J128: = Potencia promedio coincidente con la máx de la Categoría en Punta
F129: =F67 ->  | I129: Pj* | J129: = Potencia promedio coincidente con la máx de la Categoría Unificada en Punta
C130: ='[2]Balance de Potencia'!$G$690 -> Lunes | D130: ='[2]Balance de Potencia'!$G$689 -> 13:45:00 | E130: =MATCH(C130&ROUND(D130,10),$A$273:$A$944,0) -> 152 | F130: =AVERAGE(K130:XFD130) -> 0.61166 | I130: P(h*) | J130: = Potencia promedio coincidente con el máx de AT en Punta | K130: =IF(K$22="","",OFFSET($A$273,$E130-1,COLUMN()-1,)) -> 1.7588 | L130: =IF(L$22="","",OFFSET($A$273,$E130-1,COLUMN()-1,)) -> 2.5416 | M130: 0.5116 | N130: 1.7927 | O130: 0.2142 | P130: 0.0742 | Q130: 0.148 | R130: 0.2677 | S130: 0.4004 | T130: 0.3558 | U130: 0.1453 | V130: 0.2762 | W130: 0.0625 | X130: 0.3369 | Y130: 1.0374 | Z130: 0.7746 | AA130: 0.1281 | AB130: 0.4213 | AC130: 0.5131 | AD130: 0.4938 | AE130: 0.4118 | AF130: 0.8008 | AG130: 0.6092 | AH130: 0.7976 | AI130: 0.4179
F131: =F69 -> 0.3937120708 | I131: Var(Pj) | J131: = Varianza de la Potencia coincidente con la máx de la Categoría
F132: =F70 ->  | I132: Var(Pj*) | J132: = Varianza de la Potencia coincidente con la máx de la Categoría Unificada
F133: =VAR(K130:XFD130) -> 0.36217082 | I133: Var (Ph*) | J133: =Varianza de la Potencia Coincidente con el máx de AT en Punta
F134: =COVAR(K66:XFD66,K130:XFD130) -> 0.2631544395 | I134: Cov (Pj;Ph*) | J134: =Covarianza entre la Pot Coinc con máx Categ y la Coinc con máx de AT
F135: =COVAR(K67:XFD67,K130:XFD130) ->  | I135: Cov (Pj*;Ph*) | J135: =Covarianza entre la Pot Coinc con máx Categ Unif y la Coinc con máx de AT
F137: =F75 -> 0.711436 | H137: FSE(BT)FP | I137: Pj | J137: = Potencia promedio coincidente con la máx de la Categoría en Fuera de Punta
F138: =F76 ->  | I138: Pj* | J138: = Potencia promedio coincidente con la máx de la Categoría Unificada en Fuera de Punta
C139: ='[2]Balance de Potencia'!$E$697 -> Martes | D139: ='[2]Balance de Potencia'!$E$696 -> 20:30:00 | E139: =MATCH(C139&ROUND(D139,10),$A$273:$A$944,0) -> 275 | F139: =AVERAGE(K139:XFD139) -> 0.646852 | I139: P(h*) | J139: = Potencia promedio coincidente con el máx de BT en Fuera de Punta | K139: =IF(K$22="","",OFFSET($A$273,$E139-1,COLUMN()-1,)) -> 0.1744 | L139: =IF(L$22="","",OFFSET($A$273,$E139-1,COLUMN()-1,)) -> 2.5116 | M139: 1.1974 | N139: 0.2653 | O139: 0.3013 | P139: 0.1133 | Q139: 0.444 | R139: 0.1757 | S139: 0.2534 | T139: 0.4745 | U139: 0.176 | V139: 0.3994 | W139: 0.6163 | X139: 0.3537 | Y139: 0.6375 | Z139: 0.5676 | AA139: 0.1948 | AB139: 0.5001 | AC139: 0.4943 | AD139: 0.5434 | AE139: 0.5434 | AF139: 2.8076 | AG139: 0.9425 | AH139: 0.8175 | AI139: 0.6663
F140: =F78 -> 0.3598622157 | I140: Var(Pj) | J140: = Varianza de la Potencia coincidente con la máx de la Categoría
F141: =F79 ->  | I141: Var(Pj*) | J141: = Varianza de la Potencia coincidente con la máx de la Categoría Unificada
F142: =VAR(K139:XFD139) -> 0.4347243443 | I142: Var (Ph*) | J142: =Varianza de la Potencia Coincidente con el máx de BT en Fuera de Punta
F143: =COVAR(K75:XFD75,K139:XFD139) -> 0.3360150049 | I143: Cov (Pj;Ph*) | J143: =Covarianza entre la Pot Coinc con máx Categ y la Coinc con máx de BT
F144: =COVAR(K76:XFD76,K139:XFD139) ->  | I144: Cov (Pj*;Ph*) | J144: =Covarianza entre la Pot Coinc con máx Categ Unif y la Coinc con máx de BT
F146: =F75 -> 0.711436 | H146: FSE(MT)FP | I146: Pj | J146: = Potencia promedio coincidente con la máx de la Categoría en Fuera de Punta
F147: =F76 ->  | I147: Pj* | J147: = Potencia promedio coincidente con la máx de la Categoría Unificada en Fuera de Punta
C148: ='[2]Balance de Potencia'!$F$697 -> Viernes | D148: ='[2]Balance de Potencia'!$F$696 -> 19:15:00 | E148: =MATCH(C148&ROUND(D148,10),$A$273:$A$944,0) -> 558 | F148: =AVERAGE(K148:XFD148) -> 0.612856 | I148: P(h*) | J148: = Potencia promedio coincidente con el máx de MT en Fuera de Punta | K148: =IF(K$22="","",OFFSET($A$273,$E148-1,COLUMN()-1,)) -> 0.1692 | L148: =IF(L$22="","",OFFSET($A$273,$E148-1,COLUMN()-1,)) -> 0.3782 | M148: 1.0005 | N148: 0.217 | O148: 0.3368 | P148: 0.3916 | Q148: 0.5114 | R148: 0.095 | S148: 0.5846 | T148: 0.3875 | U148: 0.1289 | V148: 0.6239 | W148: 0.6339 | X148: 0.2953 | Y148: 0.7984 | Z148: 0.606 | AA148: 0.3176 | AB148: 0.3437 | AC148: 0.4553 | AD148: 0.0957 | AE148: 0.6369 | AF148: 3.8343 | AG148: 0.9947 | AH148: 0.7614 | AI148: 0.7236
F149: =F78 -> 0.3598622157 | I149: Var(Pj) | J149: = Varianza de la Potencia coincidente con la máx de la Categoría
F150: =F79 ->  | I150: Var(Pj*) | J150: = Varianza de la Potencia coincidente con la máx de la Categoría Unificada
F151: =VAR(K148:XFD148) -> 0.5164366584 | I151: Var (Ph*) | J151: =Varianza de la Potencia Coincidente con el máx de MT en Fuera de Punta
F152: =COVAR(K75:XFD75,K148:XFD148) -> 0.235089786 | I152: Cov (Pj;Ph*) | J152: =Covarianza entre la Pot Coinc con máx Categ y la Coinc con máx de MT
F153: =COVAR(K76:XFD76,K148:XFD148) ->  | I153: Cov (Pj*;Ph*) | J153: =Covarianza entre la Pot Coinc con máx Categ Unif y la Coinc con máx de MT
F155: =F75 -> 0.711436 | H155: FSE(AT)FP | I155: Pj | J155: = Potencia promedio coincidente con la máx de la Categoría en Fuera de Punta
F156: =F76 ->  | I156: Pj* | J156: = Potencia promedio coincidente con la máx de la Categoría Unificada en Fuera de Punta
C157: ='[2]Balance de Potencia'!$G$697 -> Viernes | D157: ='[2]Balance de Potencia'!$G$696 -> 19:15:00 | E157: =MATCH(C157&ROUND(D157,10),$A$273:$A$944,0) -> 558 | F157: =AVERAGE(K157:XFD157) -> 0.612856 | I157: P(h*) | J157: = Potencia promedio coincidente con el máx de AT en Fuera de Punta | K157: =IF(K$22="","",OFFSET($A$273,$E157-1,COLUMN()-1,)) -> 0.1692 | L157: =IF(L$22="","",OFFSET($A$273,$E157-1,COLUMN()-1,)) -> 0.3782 | M157: 1.0005 | N157: 0.217 | O157: 0.3368 | P157: 0.3916 | Q157: 0.5114 | R157: 0.095 | S157: 0.5846 | T157: 0.3875 | U157: 0.1289 | V157: 0.6239 | W157: 0.6339 | X157: 0.2953 | Y157: 0.7984 | Z157: 0.606 | AA157: 0.3176 | AB157: 0.3437 | AC157: 0.4553 | AD157: 0.0957 | AE157: 0.6369 | AF157: 3.8343 | AG157: 0.9947 | AH157: 0.7614 | AI157: 0.7236
F158: =F78 -> 0.3598622157 | I158: Var(Pj) | J158: = Varianza de la Potencia coincidente con la máx de la Categoría
F159: =F79 ->  | I159: Var(Pj*) | J159: = Varianza de la Potencia coincidente con la máx de la Categoría Unificada
F160: =VAR(K157:XFD157) -> 0.5164366584 | I160: Var (Ph*) | J160: =Varianza de la Potencia Coincidente con el máx de AT en Punta
F161: =COVAR(K75:XFD75,K157:XFD157) -> 0.235089786 | I161: Cov (Pj;Ph*) | J161: =Covarianza entre la Pot Coinc con máx Categ y la Coinc con máx de AT
F162: =COVAR(K76:XFD76,K157:XFD157) ->  | I162: Cov (Pj*;Ph*) | J162: =Covarianza entre la Pot Coinc con máx Categ Unif y la Coinc con máx de AT
F164: =AVERAGE(K164:XFD164) -> 315.287316 | H164: FdeP | I164: Pj | J164: = Potencia activa | K164: =+IF(SUM(K$273:K$944)=0,"",SUM(K$273:K$944)) -> 490.8836 | L164: =+IF(SUM(L$273:L$944)=0,"",SUM(L$273:L$944)) -> 349.7733 | M164: 493.4154 | N164: 225.1295 | O164: 179.3547 | P164: 152.0985 | Q164: 174.2722 | R164: 149.2244 | S164: 235.2924 | T164: 226.1233 | U164: 161.6484 | V164: 241.7942 | W164: 204.3114 | X164: 215.1019 | Y164: 387.2872 | Z164: 447.8942 | AA164: 177.6979 | AB164: 304.5284 | AC164: 384.3534 | AD164: 526.5168 | AE164: 395.4839 | AF164: 531.1838 | AG164: 447.4299 | AH164: 477.1922 | AI164: 304.192
F165: =AVERAGE(K165:XFD165) ->  | I165: P(h*) | J165: = Potencia aparente | K165: =IF(SUM(K$273:K$944)=0,"",(K164^2+K169^2)^0.5) ->  | L165: =IF(SUM(L$273:L$944)=0,"",(L164^2+L169^2)^0.5) ->  | X165: =IF(SUM(X$273:X$944)=0,"",(X164^2+X169^2)^0.5) -> 
F166: =VAR(K164:XFD164) -> 17425.1697 | I166: Var(Pj) | J166: =Varianza de la Potencia Activa
F167: =VAR(K165:XFD165) ->  | I167: Var(Ph*) | J167: =Varianza de la Potencia Aparente
F168: =COVAR(K164:XFD164,K165:XFD165) ->  | I168: Cov(Pj;Ph*) | J168: =Covarianza entre la Potencia Activa y la Potencia Aparente
J169: =Potencia reactiva | K169: =INDEX([3]resumen!$E$8:$SJ$207,MATCH($F$5&" "&$F$6,[3]resumen!$C$8:$C$207,0),MATCH(K264,[3]resumen!$E$2:$SJ$2,0)) ->  | L169: =INDEX([3]resumen!$E$8:$SJ$207,MATCH($F$5&" "&$F$6,[3]resumen!$C$8:$C$207,0),MATCH(L264,[3]resumen!$E$2:$SJ$2,0)) ->  | M169: =INDEX([3]resumen!$E$8:$SJ$207,MATCH($F$5&" "&$F$6,[3]resumen!$C$8:$C$207,0),MATCH(M264,[3]resumen!$E$2:$SJ$2,0)) ->  | N169: =INDEX([3]resumen!$E$8:$SJ$207,MATCH($F$5&" "&$F$6,[3]resumen!$C$8:$C$207,0),MATCH(N264,[3]resumen!$E$2:$SJ$2,0)) ->  | O169: =INDEX([3]resumen!$E$8:$SJ$207,MATCH($F$5&" "&$F$6,[3]resumen!$C$8:$C$207,0),MATCH(O264,[3]resumen!$E$2:$SJ$2,0)) ->  | P169: =INDEX([3]resumen!$E$8:$SJ$207,MATCH($F$5&" "&$F$6,[3]resumen!$C$8:$C$207,0),MATCH(P264,[3]resumen!$E$2:$SJ$2,0)) ->  | Q169: =INDEX([3]resumen!$E$8:$SJ$207,MATCH($F$5&" "&$F$6,[3]resumen!$C$8:$C$207,0),MATCH(Q264,[3]resumen!$E$2:$SJ$2,0)) ->  | R169: =INDEX([3]resumen!$E$8:$SJ$207,MATCH($F$5&" "&$F$6,[3]resumen!$C$8:$C$207,0),MATCH(R264,[3]resumen!$E$2:$SJ$2,0)) ->  | S169: =INDEX([3]resumen!$E$8:$SJ$207,MATCH($F$5&" "&$F$6,[3]resumen!$C$8:$C$207,0),MATCH(S264,[3]resumen!$E$2:$SJ$2,0)) ->  | T169: =INDEX([3]resumen!$E$8:$SJ$207,MATCH($F$5&" "&$F$6,[3]resumen!$C$8:$C$207,0),MATCH(T264,[3]resumen!$E$2:$SJ$2,0)) ->  | U169: =INDEX([3]resumen!$E$8:$SJ$207,MATCH($F$5&" "&$F$6,[3]resumen!$C$8:$C$207,0),MATCH(U264,[3]resumen!$E$2:$SJ$2,0)) ->  | V169: =INDEX([3]resumen!$E$8:$SJ$207,MATCH($F$5&" "&$F$6,[3]resumen!$C$8:$C$207,0),MATCH(V264,[3]resumen!$E$2:$SJ$2,0)) ->  | W169: =INDEX([3]resumen!$E$8:$SJ$207,MATCH($F$5&" "&$F$6,[3]resumen!$C$8:$C$207,0),MATCH(W264,[3]resumen!$E$2:$SJ$2,0)) ->  | X169: =INDEX([3]resumen!$E$8:$SJ$207,MATCH($F$5&" "&$F$6,[3]resumen!$C$8:$C$207,0),MATCH(X264,[3]resumen!$E$2:$SJ$2,0)) ->  | Y169: =INDEX([3]resumen!$E$8:$SJ$207,MATCH($F$5&" "&$F$6,[3]resumen!$C$8:$C$207,0),MATCH(Y264,[3]resumen!$E$2:$SJ$2,0)) ->  | Z169: =INDEX([3]resumen!$E$8:$SJ$207,MATCH($F$5&" "&$F$6,[3]resumen!$C$8:$C$207,0),MATCH(Z264,[3]resumen!$E$2:$SJ$2,0)) ->  | AA169: =INDEX([3]resumen!$E$8:$SJ$207,MATCH($F$5&" "&$F$6,[3]resumen!$C$8:$C$207,0),MATCH(AA264,[3]resumen!$E$2:$SJ$2,0)) ->  | AB169: =INDEX([3]resumen!$E$8:$SJ$207,MATCH($F$5&" "&$F$6,[3]resumen!$C$8:$C$207,0),MATCH(AB264,[3]resumen!$E$2:$SJ$2,0)) ->  | AC169: =INDEX([3]resumen!$E$8:$SJ$207,MATCH($F$5&" "&$F$6,[3]resumen!$C$8:$C$207,0),MATCH(AC264,[3]resumen!$E$2:$SJ$2,0)) ->  | AD169: =INDEX([3]resumen!$E$8:$SJ$207,MATCH($F$5&" "&$F$6,[3]resumen!$C$8:$C$207,0),MATCH(AD264,[3]resumen!$E$2:$SJ$2,0)) ->  | AE169: =INDEX([3]resumen!$E$8:$SJ$207,MATCH($F$5&" "&$F$6,[3]resumen!$C$8:$C$207,0),MATCH(AE264,[3]resumen!$E$2:$SJ$2,0)) ->  | AF169: =INDEX([3]resumen!$E$8:$SJ$207,MATCH($F$5&" "&$F$6,[3]resumen!$C$8:$C$207,0),MATCH(AF264,[3]resumen!$E$2:$SJ$2,0)) ->  | AG169: =INDEX([3]resumen!$E$8:$SJ$207,MATCH($F$5&" "&$F$6,[3]resumen!$C$8:$C$207,0),MATCH(AG264,[3]resumen!$E$2:$SJ$2,0)) ->  | AH169: =INDEX([3]resumen!$E$8:$SJ$207,MATCH($F$5&" "&$F$6,[3]resumen!$C$8:$C$207,0),MATCH(AH264,[3]resumen!$E$2:$SJ$2,0)) ->  | AI169: =INDEX([3]resumen!$E$8:$SJ$207,MATCH($F$5&" "&$F$6,[3]resumen!$C$8:$C$207,0),MATCH(AI264,[3]resumen!$E$2:$SJ$2,0)) -> 
F170: CATEGORÍAS CON MEDICIÓN DE ENERGÍA
F171: =F23 -> 0.711436 | H171: FSE(BT)P | I171: Pj | J171: = Potencia promedio coincidente con la máx de la Categoría
F172: =F24 ->  | I172: Pj* | J172: = Potencia promedio coincidente con la máx de la Categoría Unificada
C173: ='[2]Balance de Potencia'!$E$690 -> Lunes | D173: ='[2]Balance de Potencia'!$E$689 -> 13:45:00 | E173: =MATCH(C173&ROUND(D173,10),$A$273:$A$944,0) -> 152 | F173: =F112 -> 0.61166 | I173: P(h*) | J173: = Potencia promedio coincidente con el máx de BT en Punta
F174: =F26 -> 0.3598622157 | I174: Var(Pj) | J174: = Varianza de la Potencia coincidente con la máx de la Categoría
F175: =F27 ->  | I175: Var(Pj*) | J175: = Varianza de la Potencia coincidente con la máx de la Categoría Unificada
F176: =F115 -> 0.36217082 | I176: Var (Ph*) | J176: =Varianza de la Potencia Coincidente con el máx de BT en Punta
F177: =COVAR(K23:XFD23,K112:XFD112) -> 0.1424378682 | I177: Cov (Pj;Ph*) | J177: =Covarianza entre la Pot Coinc con máx Categ y la Coinc con máx de BT
F178: =COVAR(K24:XFD24,K112:XFD112) ->  | I178: Cov (Pj*;Ph*) | J178: =Covarianza entre la Pot Coinc con máx Categ Unif y la Coinc con máx de BT
F180: =F23 -> 0.711436 | H180: FSE(MT)P | I180: Pj | J180: = Potencia promedio coincidente con la máx de la Categoría
F181: =F24 ->  | I181: Pj* | J181: = Potencia promedio coincidente con la máx de la Categoría Unificada
C182: ='[2]Balance de Potencia'!$F$690 -> Lunes | D182: ='[2]Balance de Potencia'!$F$689 -> 13:45:00 | E182: =MATCH(C182&ROUND(D182,10),$A$273:$A$944,0) -> 152 | F182: =F121 -> 0.61166 | I182: P(h*) | J182: = Potencia promedio coincidente con el máx de MT en Punta
F183: =F26 -> 0.3598622157 | I183: Var(Pj) | J183: = Varianza de la Potencia coincidente con la máx de la Categoría
F184: =F27 ->  | I184: Var(Pj*) | J184: = Varianza de la Potencia coincidente con la máx de la Categoría Unificada
F185: =F124 -> 0.36217082 | I185: Var (Ph*) | J185: =Varianza de la Potencia Coincidente con el máx de MT en Punta
F186: =COVAR(K23:XFD23,K121:XFD121) -> 0.1424378682 | I186: Cov (Pj;Ph*) | J186: =Covarianza entre la Pot Coinc con máx Categ y la Coinc con máx de MT
F187: =COVAR(K24:XFD24,K121:XFD121) ->  | I187: Cov (Pj*;Ph*) | J187: =Covarianza entre la Pot Coinc con máx Categ Unif y la Coinc con máx de MT
F189: =F23 -> 0.711436 | H189: FSE(AT)P | I189: Pj | J189: = Potencia promedio coincidente con la máx de la Categoría
F190: =F24 ->  | I190: Pj* | J190: = Potencia promedio coincidente con la máx de la Categoría Unificada
C191: ='[2]Balance de Potencia'!$G$690 -> Lunes | D191: ='[2]Balance de Potencia'!$G$689 -> 13:45:00 | E191: =MATCH(C191&ROUND(D191,10),$A$273:$A$944,0) -> 152 | F191: =F130 -> 0.61166 | I191: P(h*) | J191: = Potencia promedio coincidente con el máx de AT en Punta
F192: =F26 -> 0.3598622157 | I192: Var(Pj) | J192: = Varianza de la Potencia coincidente con la máx de la Categoría
F193: =F27 ->  | I193: Var(Pj*) | J193: = Varianza de la Potencia coincidente con la máx de la Categoría Unificada
F194: =F133 -> 0.36217082 | I194: Var (Ph*) | J194: =Varianza de la Potencia Coincidente con el máx de AT en Punta
F195: =COVAR(K23:XFD23,K130:XFD130) -> 0.1424378682 | I195: Cov (Pj;Ph*) | J195: =Covarianza entre la Pot Coinc con máx Categ y la Coinc con máx de AT
F196: =COVAR(K24:XFD24,K130:XFD130) ->  | I196: Cov (Pj*;Ph*) | J196: =Covarianza entre la Pot Coinc con máx Categ Unif y la Coinc con máx de AT
F198: =F23 -> 0.711436 | H198: FSE(BT)FP | I198: Pj | J198: = Potencia promedio coincidente con la máx de la Categoría
F199: =F24 ->  | I199: Pj* | J199: = Potencia promedio coincidente con la máx de la Categoría Unificada
C200: ='[2]Balance de Potencia'!$E$697 -> Martes | D200: ='[2]Balance de Potencia'!$E$696 -> 20:30:00 | E200: =MATCH(C200&ROUND(D200,10),$A$273:$A$944,0) -> 275 | F200: =F139 -> 0.646852 | I200: P(h*) | J200: = Potencia promedio coincidente con el máx de BT en Fuera de Punta
F201: =F26 -> 0.3598622157 | I201: Var(Pj) | J201: = Varianza de la Potencia coincidente con la máx de la Categoría
F202: =F27 ->  | I202: Var(Pj*) | J202: = Varianza de la Potencia coincidente con la máx de la Categoría Unificada
F203: =F142 -> 0.4347243443 | I203: Var (Ph*) | J203: =Varianza de la Potencia Coincidente con el máx de BT en Fuera de Punta
F204: =COVAR(K23:XFD23,K139:XFD139) -> 0.3360150049 | I204: Cov (Pj;Ph*) | J204: =Covarianza entre la Pot Coinc con máx Categ y la Coinc con máx de BT
F205: =COVAR(K24:XFD24,K139:XFD139) ->  | I205: Cov (Pj*;Ph*) | J205: =Covarianza entre la Pot Coinc con máx Categ Unif y la Coinc con máx de BT
F207: =F23 -> 0.711436 | H207: FSE(MT)FP | I207: Pj | J207: = Potencia promedio coincidente con la máx de la Categoría
F208: =F24 ->  | I208: Pj* | J208: = Potencia promedio coincidente con la máx de la Categoría Unificada
C209: ='[2]Balance de Potencia'!$F$697 -> Viernes | D209: ='[2]Balance de Potencia'!$F$696 -> 19:15:00 | E209: =MATCH(C209&ROUND(D209,10),$A$273:$A$944,0) -> 558 | F209: =F148 -> 0.612856 | I209: P(h*) | J209: = Potencia promedio coincidente con el máx de MT en Fuera de Punta
F210: =F26 -> 0.3598622157 | I210: Var(Pj) | J210: = Varianza de la Potencia coincidente con la máx de la Categoría
F211: =F27 ->  | I211: Var(Pj*) | J211: = Varianza de la Potencia coincidente con la máx de la Categoría Unificada
F212: =F151 -> 0.5164366584 | I212: Var (Ph*) | J212: =Varianza de la Potencia Coincidente con el máx de MT en Fuera de Punta
F213: =COVAR(K23:XFD23,K148:XFD148) -> 0.235089786 | I213: Cov (Pj;Ph*) | J213: =Covarianza entre la Pot Coinc con máx Categ y la Coinc con máx de MT
F214: =COVAR(K24:XFD24,K148:XFD148) ->  | I214: Cov (Pj*;Ph*) | J214: =Covarianza entre la Pot Coinc con máx Categ Unif y la Coinc con máx de MT
F216: =F23 -> 0.711436 | H216: FSE(AT)FP | I216: Pj | J216: = Potencia promedio coincidente con la máx de la Categoría
F217: =F24 ->  | I217: Pj* | J217: = Potencia promedio coincidente con la máx de la Categoría Unificada
C218: ='[2]Balance de Potencia'!$G$697 -> Viernes | D218: ='[2]Balance de Potencia'!$G$696 -> 19:15:00 | E218: =MATCH(C218&ROUND(D218,10),$A$273:$A$944,0) -> 558 | F218: =F157 -> 0.612856 | I218: P(h*) | J218: = Potencia promedio coincidente con el máx de AT en Fuera de Punta
F219: =F26 -> 0.3598622157 | I219: Var(Pj) | J219: = Varianza de la Potencia coincidente con la máx de la Categoría
F220: =F27 ->  | I220: Var(Pj*) | J220: = Varianza de la Potencia coincidente con la máx de la Categoría Unificada
F221: =F160 -> 0.5164366584 | I221: Var (Ph*) | J221: =Varianza de la Potencia Coincidente con el máx de AT en Punta
F222: =COVAR(K23:XFD23,K157:XFD157) -> 0.235089786 | I222: Cov (Pj;Ph*) | J222: =Covarianza entre la Pot Coinc con máx Categ y la Coinc con máx de AT
F223: =COVAR(K24:XFD24,K157:XFD157) ->  | I223: Cov (Pj*;Ph*) | J223: =Covarianza entre la Pot Coinc con máx Categ Unif y la Coinc con máx de AT
F224: CATEGORÍAS CON MEDICIÓN DE POTENCIA MÁXIMA
F225: =F37 -> 1.526144 | H225: FSI-P | I225: Pj | J225: = Promedio de la Potencia Máxima de cada usuario
... 713 more rows

Sheet BTS_R 5
B1: =[1]DATOS!$B$3 -> ENSA
B2: Estudio de Caracterización de la Carga
B4: Categoría Unificada | F4: BTS_R
B5: Grupo Homogeneo | F5: BTS_R
B6: Estrato | F6: 5
B7: Identificador hora punta | F7: P
B8: Determinación de Parámetros de las Mediciones del Grupo Homogéneo y Estrato
E10: P | F10: =AVERAGE(K10:XFD10) -> 32.00270357 | H10: Estructura de Consumo | I10: ep | J10: =Energía Promedio Semanal en Punta | K10: =+IF(SUM(K$273:K$944)/4=0,"",SUMIF($E$273:$E$944,$E10,K$273:K$944)/4) -> 51.3082 | L10: =+IF(SUM(L$273:L$944)/4=0,"",SUMIF($E$273:$E$944,$E10,L$273:L$944)/4) -> 48.8789 | M10: 9.242775 | N10: 23.544725 | O10: 32.949275 | P10: 32.949275 | Q10: 25.145775
E11: R | F11: =AVERAGE(K11:XFD11) -> 55.39367857 | I11: er | J11: =Energía Promedio Semanal en Resto | K11: =+IF(SUM(K$273:K$944)/4=0,"",SUMIF($E$273:$E$944,$E11,K$273:K$944)/4) -> 46.7686 | L11: 75.74605 | M11: 34.053225 | N11: 51.43345 | O11: 56.867375 | P11: 56.867375 | Q11: 66.019675
E12: V | F12: =AVERAGE(K12:XFD12) -> 69.48245 | I12: ev | J12: =Energía Promedio Semanal en Valle | K12: =+IF(SUM(K$273:K$944)/4=0,"",SUMIF($E$273:$E$944,$E12,K$273:K$944)/4) -> 33.775775 | L12: 94.048425 | M12: 49.045125 | N12: 58.1355 | O12: 79.794625 | P12: 79.794625 | Q12: 91.783075
F13: =AVERAGE(K13:XFD13) -> 156.8788321 | I13: et | J13: =Energía Promedio Semanal (Total) | K13: =+IF(SUM(K273:K944)/4=0,"",SUM(K273:K944)/4) -> 131.852575 | L13: 218.673375 | M13: 92.341125 | N13: 133.113675 | O13: 169.611275 | P13: 169.611275 | Q13: 182.948525
F14: =VAR(K10:XFD10) -> 215.9782355 | I14: Var (ep) | J14: =Varianza de la Energía Semanal en Punta
F15: =VAR(K11:XFD11) -> 179.4941224 | I15: Var (er) | J15: =Varianza de la Energía Semanal en Resto
F16: =VAR(K12:XFD12) -> 522.4818461 | I16: Var (ev) | J16: =Varianza de la Energía Semanal en Valle
F17: =VAR(K13:XFD13) -> 1696.439416 | I17: Var (et) | J17: =Varianza de la Energía Semanal (Total)
F18: =COVAR(K10:XFD10,$K$13:$XFD$13) -> 296.4196617 | I18: Cov (ep,et) | J18: =Covarianza entre la Energía en Punta y Total
F19: =COVAR(K11:XFD11,$K$13:$XFD$13) -> 465.6346135 | I19: Cov (er,et) | J19: =Covarianza entre la Energía en Resto y Total
F20: =COVAR(K12:XFD12,$K$13:$XFD$13) -> 692.0366533 | I20: Cov (ev,et) | J20: =Covarianza entre la Energía en Valle y Total
F22: =AVERAGE(K22:XFD22) -> 627.5153286 | H22: FC | I22: Pj | J22: = Promedio de la Suma de Potencia de cada usuario | K22: =+IF(SUM(K$273:K$944)=0,"",SUM(K$273:K$944)) -> 527.4103 | L22: 874.6935 | M22: 369.3645 | N22: 532.4547 | O22: 678.4451 | P22: 678.4451 | Q22: 731.7941
C23: =INDEX('[2]Balance de Potencia'!$CC$683:$CV$683,1,MATCH($F$5,'[2]Balance de Potencia'!$CC$5:$CV$5,0)) -> Miércoles | D23: =INDEX('[2]Balance de Potencia'!$CC$682:$CV$682,1,MATCH($F$5,'[2]Balance de Potencia'!$CC$5:$CV$5,0)) -> 21:45:00 | E23: =MATCH(C23&ROUND(D23,10),$A$273:$A$944,0) -> 376 | F23: =AVERAGE(K23:XFD23) -> 1.283128571 | I23: P(h*) | J23: = Potencia promedio coincidente con la máx de la Categoría | K23: =IF(K$22="","",OFFSET($A$273,$E23-1,COLUMN()-1,)) -> 0.2556 | L23: =IF(L$22="","",OFFSET($A$273,$E23-1,COLUMN()-1,)) -> 1.587 | M23: 1.5222 | N23: 2.7334 | O23: 1.1401 | P23: 1.1401 | Q23: 0.6035
C24: =INDEX('[2]Balance de Potencia'!$BY$683:$CA$683,1,MATCH($F$4,'[2]Balance de Potencia'!$BY$5:$CA$5,0)) ->  | D24: =INDEX('[2]Balance de Potencia'!$BY$682:$CA$682,1,MATCH($F$4,'[2]Balance de Potencia'!$BY$5:$CA$5,0)) ->  | E24: =MATCH(C24&ROUND(D24,10),$A$273:$A$944,0) ->  | F24: =AVERAGE(K24:XFD24) ->  | I24: P(h**) | J24: = Potencia promedio coincidente con la máx de la Categoría Unificada | K24: =IF(K$22="","",OFFSET($A$273,$E24-1,COLUMN()-1,)) -> 
F25: =VAR(K22:XFD22) -> 27143.03066 | I25: Var (Pj) | J25: =Varianza de la Potencia Media
F26: =VAR(K23:XFD23) -> 0.6352340857 | I26: Var (Ph*) | J26: =Varianza de la Potencia Coincidente con la máx de la Categ.
F27: =VAR(K24:XFD24) ->  | I27: Var (Ph**) | J27: =Varianza de la Potencia Coincidente con la máx de la Categ.Unificada
F28: =COVAR(K23:XFD23,$K$22:$XFD$22) -> -15.29267104 | I28: Cov (Pj;Ph*) | J28: =Covarianza entre la Potencia Media y la Coincidente
F29: =COVAR(K24:XFD24,$K$22:$XFD$22) ->  | I29: Cov (Pj;Ph**) | J29: =Covarianza entre la Potencia Media y la Coincidente de la Categ. Unificada
F31: =F22 -> 627.5153286 | H31: FC-estrato | I31: Pj | J31: = Promedio de la Suma de Potencia de cada usuario
E32: =MATCH(F32,$F$273:$F$944,0) -> 282 | F32: =F271 -> 1.681471429 | I32: P(h*) | J32: = Potencia promedio coincidente con la máx del estrato | K32: =IF(K$22="","",OFFSET($A$273,$E32-1,COLUMN()-1,)) -> 0.1766 | L32: 1.3657 | M32: 1.1636 | N32: 2.3309 | O32: 1.2311 | P32: 1.2311 | Q32: 4.2713
F33: =F25 -> 27143.03066 | I33: Var (Pj) | J33: =Varianza de la Potencia Media
F34: =VAR(K32:XFD32) -> 1.694529796 | I34: Var (Ph*) | J34: =Varianza de la Potencia Coincidente con la máx del estrato
F35: =COVAR(K32:XFD32,$K$22:$XFD$22) -> 52.67667958 | I35: Cov (Pj;Ph*) | J35: =Covarianza entre la Potencia Media y la Coincidente
F37: =+AVERAGE(K37:XFD37) -> 2.328542857 | H37: FSI | I37: Pj | J37: = Promedio de la Potencia Máxima de cada usuario | K37: =+IF(SUM(K273:K944)=0,"",MAX(K273:K944)) -> 1.914 | L37: 1.8982 | M37: 1.8944 | N37: 2.8409 | O37: 1.596 | P37: 1.596 | Q37: 4.5603
F38: =+AVERAGE(K38:XFD38) -> 2.328542857 | I38: PjFP | J38: = Promedio de la Potencia Máxima de cada usuario en horas FP | K38: =IF(SUM(K273:K944)=0,"",MAX(IF($E273:$E944<>"P",K273:K944,""))) -> 1.914 | L38: =IF(SUM(L273:L944)=0,"",MAX(IF($E273:$E944<>"P",L273:L944,""))) -> 1.8982 | M38: =IF(SUM(M273:M944)=0,"",MAX(IF($E273:$E944<>"P",M273:M944,""))) -> 1.8944 | N38: =IF(SUM(N273:N944)=0,"",MAX(IF($E273:$E944<>"P",N273:N944,""))) -> 2.8409 | O38: =IF(SUM(O273:O944)=0,"",MAX(IF($E273:$E944<>"P",O273:O944,""))) -> 1.596 | P38: =IF(SUM(P273:P944)=0,"",MAX(IF($E273:$E944<>"P",P273:P944,""))) -> 1.596 | Q38: =IF(SUM(Q273:Q944)=0,"",MAX(IF($E273:$E944<>"P",Q273:Q944,""))) -> 4.5603 | R38: =IF(SUM(R273:R944)=0,"",MAX(IF($E273:$E944<>"P",R273:R944,""))) ->  | S38: =IF(SUM(S273:S944)=0,"",MAX(IF($E273:$E944<>"P",S273:S944,""))) ->  | T38: =IF(SUM(T273:T944)=0,"",MAX(IF($E273:$E944<>"P",T273:T944,""))) ->  | U38: =IF(SUM(U273:U944)=0,"",MAX(IF($E273:$E944<>"P",U273:U944,""))) ->  | V38: =IF(SUM(V273:V944)=0,"",MAX(IF($E273:$E944<>"P",V273:V944,""))) ->  | W38: =IF(SUM(W273:W944)=0,"",MAX(IF($E273:$E944<>"P",W273:W944,""))) -> 
F39: =F23 -> 1.283128571 | I39: P(h*) | J39: = Potencia promedio coincidente con la máx de la Categoría
F40: =F24 ->  | I40: P(h**) | J40: = Potencia promedio coincidente con la máx de la Categoría Unificada
F41: =VAR(K37:XFD37) -> 1.143668106 | I41: Var (Pj) | J41: =Varianza de la Potencia Máxima de cada Usuario
F42: =F26 -> 0.6352340857 | I42: Var (Ph*) | J42: =Varianza de la Potencia Coincidente con la máx de la Categ.
F43: =F27 ->  | I43: Var (Ph**) | J43: =Varianza de la Potencia Coincidente con la máx de la Categ. Unificada
F44: =COVAR(K23:XFD23,$K$37:$XFD$37) -> -0.05325218551 | I44: Cov (Pj;Ph*) | J44: =Covarianza entre la Potencia Máxima y la Coincidente
F45: =COVAR(K24:XFD24,$K$37:$XFD$37) ->  | I45: Cov (Pj;Ph**) | J45: =Covarianza entre la Potencia Máxima y la Coincidente de la Categ. Unificada
F47: =F37 -> 2.328542857 | H47: FCT-BT | I47: Pj | J47: = Promedio de la Potencia Máxima de cada usuario
F48: =F85 -> 0.7898142857 | I48: P(h*) | J48: = Potencia promedio coincidente con la máx de la Baja Tensión
F49: =F41 -> 1.143668106 | I49: Var(Pj) | J49: =Varianza de la Potencia Máxima de cada Usuario
F50: =F88 -> 0.2092551948 | I50: Var(Ph*) | J50: =Varianza de la Potencia Coincidente con el máx de BT
F51: =COVAR(K37:XFD37,K85:XFD85) -> -0.1741873478 | I51: Cov(Pj;Ph* | J51: =Covarianza entre la Potencia Máxima y la Coinc con máx de BT
F53: =F37 -> 2.328542857 | H53: FCT-MT | I53: Pj | J53: = Promedio de la Potencia Máxima de cada usuario
F54: =F94 -> 0.7898142857 | I54: P(h*) | J54: = Potencia promedio coincidente con la máx de la Media Tensión
F55: =F41 -> 1.143668106 | I55: Var(Pj) | J55: =Varianza de la Potencia Máxima de cada Usuario
F56: =F97 -> 0.2092551948 | I56: Var(Ph*) | J56: =Varianza de la Potencia Coincidente con el máx de MT
F57: =COVAR(K37:XFD37,K94:XFD94) -> -0.1741873478 | I57: Cov(Pj;Ph* | J57: =Covarianza entre la Potencia Máxima y la Coinc con máx de MT
F59: =F37 -> 2.328542857 | H59: FCT-AT | I59: Pj | J59: = Promedio de la Potencia Máxima de cada usuario
F60: =F103 -> 0.7898142857 | I60: P(h*) | J60: = Potencia promedio coincidente con la máx de la Alta Tensión
F61: =F41 -> 1.143668106 | I61: Var(Pj) | J61: =Varianza de la Potencia Máxima de cada Usuario
F62: =F106 -> 0.2092551948 | I62: Var(Ph*) | J62: =Varianza de la Potencia Coincidente con el máx de AT
F63: =COVAR(K37:XFD37,K103:XFD103) -> -0.1741873478 | I63: Cov(Pj;Ph* | J63: =Covarianza entre la Potencia Máxima y la Coinc con máx de AT
F65: =AVERAGE(K65:XFD65) -> 1.719857143 | H65: FSI-P | I65: Pj | J65: = Promedio de la Potencia Máxima de cada usuario en Punta | K65: =+IF(SUM(K273:K944)=0,"",MAX(IF($E273:$E944=$F$7,K273:K944))) -> 1.8331 | L65: =+IF(SUM(L273:L944)=0,"",MAX(IF($E273:$E944=$F$7,L273:L944))) -> 1.8153 | M65: =+IF(SUM(M273:M944)=0,"",MAX(IF($E273:$E944=$F$7,M273:M944))) -> 0.9194 | N65: =+IF(SUM(N273:N944)=0,"",MAX(IF($E273:$E944=$F$7,N273:N944))) -> 2.2743 | O65: =+IF(SUM(O273:O944)=0,"",MAX(IF($E273:$E944=$F$7,O273:O944))) -> 1.5728 | P65: =+IF(SUM(P273:P944)=0,"",MAX(IF($E273:$E944=$F$7,P273:P944))) -> 1.5728 | Q65: =+IF(SUM(Q273:Q944)=0,"",MAX(IF($E273:$E944=$F$7,Q273:Q944))) -> 2.0513 | R65: =+IF(SUM(R273:R944)=0,"",MAX(IF($E273:$E944=$F$7,R273:R944))) ->  | S65: =+IF(SUM(S273:S944)=0,"",MAX(IF($E273:$E944=$F$7,S273:S944))) ->  | T65: =+IF(SUM(T273:T944)=0,"",MAX(IF($E273:$E944=$F$7,T273:T944))) ->  | U65: =+IF(SUM(U273:U944)=0,"",MAX(IF($E273:$E944=$F$7,U273:U944))) ->  | V65: =+IF(SUM(V273:V944)=0,"",MAX(IF($E273:$E944=$F$7,V273:V944))) ->  | W65: =+IF(SUM(W273:W944)=0,"",MAX(IF($E273:$E944=$F$7,W273:W944))) -> 
C66: =INDEX('[2]Balance de Potencia'!$CC$690:$CV$690,1,MATCH($F$5,'[2]Balance de Potencia'!$CC$5:$CV$5,0)) -> Miércoles | D66: =INDEX('[2]Balance de Potencia'!$CC$689:$CV$689,1,MATCH($F$5,'[2]Balance de Potencia'!$CC$5:$CV$5,0)) -> 15:45:00 | E66: =MATCH(C66&ROUND(D66,10),$A$273:$A$944,0) -> 352 | F66: =AVERAGE(K66:XFD66) -> 1.108528571 | I66: P(h*) | J66: = Potencia promedio coincidente con la máx de la Categoría en Punta | K66: =IF(K$22="","",OFFSET($A$273,$E66-1,COLUMN()-1,)) -> 1.7044 | L66: =IF(L$22="","",OFFSET($A$273,$E66-1,COLUMN()-1,)) -> 1.0325 | M66: 0.1197 | N66: 2.1545 | O66: 1.1364 | P66: 1.1364 | Q66: 0.4758
C67: =INDEX('[2]Balance de Potencia'!$BY$690:$CA$690,1,MATCH($F$4,'[2]Balance de Potencia'!$BY$5:$CA$5,0)) ->  | D67: =INDEX('[2]Balance de Potencia'!$BY$689:$CA$689,1,MATCH($F$4,'[2]Balance de Potencia'!$BY$5:$CA$5,0)) ->  | E67: =MATCH(C67&ROUND(D67,10),$A$273:$A$944,0) ->  | F67: =AVERAGE(K67:XFD67) ->  | I67: P(h**) | J67: = Potencia promedio coincidente con la máx de la Categoría Unificada en Punta | K67: =IF(K$22="","",OFFSET($A$273,$E67-1,COLUMN()-1,)) -> 
F68: =VAR(K65:XFD65) -> 0.1871962962 | I68: Var (Pj) | J68: =Varianza de la Potencia Máxima de cada Usuario en Punta
F69: =VAR(K66:XFD66) -> 0.472430059 | I69: Var (Ph*) | J69: =Varianza de la Potencia Coincidente con la máx de la Categ. en Punta
F70: =VAR(K67:XFD67) ->  | I70: Var (Ph**) | J70: =Varianza de la Potencia Coincidente con la máx de la Categ. Unificada en Punta
F71: =COVAR(K$65:XFD$65,K66:XFD66) -> 0.1733939041 | I71: Cov (Pj;Ph*) | J71: =Covarianza entre la Potencia Máxima y la Coincidente
F72: =COVAR(K$65:XFD$65,K67:XFD67) ->  | I72: Cov (Pj;Ph**) | J72: =Covarianza entre la Potencia Máxima y la Coincidente de la Categ. Unificada
F74: =AVERAGE(K74:XFD74) -> 2.328542857 | H74: FSI-FP | I74: Pj | J74: = Promedio de la Potencia Máxima de cada usuario | K74: =+IF(SUM(K273:K944)=0,"",MAX(IF($E273:$E944<>$F$7,K273:K944))) -> 1.914 | L74: =+IF(SUM(L273:L944)=0,"",MAX(IF($E273:$E944<>$F$7,L273:L944))) -> 1.8982 | M74: =+IF(SUM(M273:M944)=0,"",MAX(IF($E273:$E944<>$F$7,M273:M944))) -> 1.8944 | N74: =+IF(SUM(N273:N944)=0,"",MAX(IF($E273:$E944<>$F$7,N273:N944))) -> 2.8409 | O74: =+IF(SUM(O273:O944)=0,"",MAX(IF($E273:$E944<>$F$7,O273:O944))) -> 1.596 | P74: =+IF(SUM(P273:P944)=0,"",MAX(IF($E273:$E944<>$F$7,P273:P944))) -> 1.596 | Q74: =+IF(SUM(Q273:Q944)=0,"",MAX(IF($E273:$E944<>$F$7,Q273:Q944))) -> 4.5603 | R74: =+IF(SUM(R273:R944)=0,"",MAX(IF($E273:$E944<>$F$7,R273:R944))) ->  | S74: =+IF(SUM(S273:S944)=0,"",MAX(IF($E273:$E944<>$F$7,S273:S944))) ->  | T74: =+IF(SUM(T273:T944)=0,"",MAX(IF($E273:$E944<>$F$7,T273:T944))) ->  | U74: =+IF(SUM(U273:U944)=0,"",MAX(IF($E273:$E944<>$F$7,U273:U944))) ->  | V74: =+IF(SUM(V273:V944)=0,"",MAX(IF($E273:$E944<>$F$7,V273:V944))) ->  | W74: =+IF(SUM(W273:W944)=0,"",MAX(IF($E273:$E944<>$F$7,W273:W944))) -> 
C75: =INDEX('[2]Balance de Potencia'!$CC$697:$CV$697,1,MATCH($F$5,'[2]Balance de Potencia'!$CC$5:$CV$5,0)) -> Miércoles | D75: =INDEX('[2]Balance de Potencia'!$CC$696:$CV$696,1,MATCH($F$5,'[2]Balance de Potencia'!$CC$5:$CV$5,0)) -> 21:45:00 | E75: =MATCH(C75&ROUND(D75,10),$A$273:$A$944,0) -> 376 | F75: =AVERAGE(K75:XFD75) -> 1.283128571 | I75: P(h*) | J75: = Potencia promedio coincidente con la máx de la Categoría | K75: =IF(K$22="","",OFFSET($A$273,$E75-1,COLUMN()-1,)) -> 0.2556 | L75: =IF(L$22="","",OFFSET($A$273,$E75-1,COLUMN()-1,)) -> 1.587 | M75: 1.5222 | N75: 2.7334 | O75: 1.1401 | P75: 1.1401 | Q75: 0.6035
C76: =INDEX('[2]Balance de Potencia'!$BY$697:$CA$697,1,MATCH($F$4,'[2]Balance de Potencia'!$BY$5:$CA$5,0)) ->  | D76: =INDEX('[2]Balance de Potencia'!$BY$696:$CA$696,1,MATCH($F$4,'[2]Balance de Potencia'!$BY$5:$CA$5,0)) ->  | E76: =MATCH(C76&ROUND(D76,10),$A$272:$A$943,0) ->  | F76: =AVERAGE(K76:XFD76) ->  | I76: P(h**) | J76: = Potencia promedio coincidente con la máx de la Categoría Unificada | K76: =IF(K$22="","",OFFSET($A$273,$E76-1,COLUMN()-1,)) -> 
F77: =VAR(K74:XFD74) -> 1.143668106 | I77: Var (Pj) | J77: =Varianza de la Potencia Máxima de cada Usuario
F78: =VAR(K75:XFD75) -> 0.6352340857 | I78: Var (Ph*) | J78: =Varianza de la Potencia Coincidente con la máx de la Categ.
F79: =VAR(K76:XFD76) ->  | I79: Var (Ph**) | J79: =Varianza de la Potencia Coincidente con la máx de la Categ. Unificada
F80: =COVAR(K$74:XFD$74,K75:XFD75) -> -0.05325218551 | I80: Cov (Pj;Ph*) | J80: =Covarianza entre la Potencia Máxima y la Coincidente
F81: =COVAR(K$74:XFD$74,K76:XFD76) ->  | I81: Cov (Pj;Ph**) | J81: =Covarianza entre la Potencia Máxima y la Coincidente de la Categ. Unificada
F83: =F23 -> 1.283128571 | H83: FSE(BT) | I83: Pj | J83: = Potencia promedio coincidente con la máx de la Categoría
F84: =F24 ->  | I84: Pj* | J84: = Potencia promedio coincidente con la máx de la Categoría Unificada
C85: ='[2]Balance de Potencia'!$E$683 -> Lunes | D85: ='[2]Balance de Potencia'!$E$682 -> 13:45:00 | E85: =MATCH(C85&ROUND(D85,10),$A$273:$A$944,0) -> 152 | F85: =AVERAGE(K85:XFD85) -> 0.7898142857 | I85: P(h*) | J85: = Potencia promedio coincidente con el máx de BT | K85: =IF(K$22="","",OFFSET($A$273,$E85-1,COLUMN()-1,)) -> 1.4224 | L85: 1.0993 | M85: 0.1366 | N85: 0.3646 | O85: 0.9912 | P85: 0.9912 | Q85: 0.5234
F86: =F26 -> 0.6352340857 | I86: Var(Pj) | J86: = Varianza de la Potencia coincidente con la máx de la Categoría
F87: =F27 ->  | I87: Var(Pj*) | J87: = Varianza de la Potencia coincidente con la máx de la Categoría Unificada
F88: =VAR(K85:XFD85) -> 0.2092551948 | I88: Var (Ph*) | J88: =Varianza de la Potencia Coincidente con el máx de BT
F89: =COVAR(K$23:XFD$23,K85:XFD85) -> -0.1721917276 | I89: Cov (Pj;Ph*) | J89: =Covarianza entre la Pot Coinc con máx Categ y la Coinc con máx de BT
F90: =COVAR(K$24:XFD$24,K85:XFD85) ->  | I90: Cov (Pj*;Ph*) | J90: =Covarianza entre la Pot Coinc con máx Categ Unif y la Coinc con máx de BT
F92: =F23 -> 1.283128571 | H92: FSE(MT) | I92: Pj | J92: = Potencia promedio coincidente con la máx de la Categoría
F93: =F24 ->  | I93: Pj* | J93: = Potencia promedio coincidente con la máx de la Categoría Unificada
C94: ='[2]Balance de Potencia'!$F$683 -> Lunes | D94: ='[2]Balance de Potencia'!$F$682 -> 13:45:00 | E94: =MATCH(C94&ROUND(D94,10),$A$273:$A$944,0) -> 152 | F94: =AVERAGE(K94:XFD94) -> 0.7898142857 | I94: P(h*) | J94: = Potencia promedio coincidente con el máx de MT | K94: =IF(K$22="","",OFFSET($A$273,$E94-1,COLUMN()-1,)) -> 1.4224 | L94: 1.0993 | M94: 0.1366 | N94: 0.3646 | O94: 0.9912 | P94: 0.9912 | Q94: 0.5234
F95: =F26 -> 0.6352340857 | I95: Var(Pj) | J95: = Varianza de la Potencia coincidente con la máx de la Categoría
F96: =F27 ->  | I96: Var(Pj*) | J96: = Varianza de la Potencia coincidente con la máx de la Categoría Unificada
F97: =VAR(K94:XFD94) -> 0.2092551948 | I97: Var (Ph*) | J97: =Varianza de la Potencia Coincidente con el máx de MT
F98: =COVAR(K$23:XFD$23,K94:XFD94) -> -0.1721917276 | I98: Cov (Pj;Ph*) | J98: =Covarianza entre la Pot Coinc con máx Categ y la Coinc con máx de MT
F99: =COVAR(K$24:XFD$24,K94:XFD94) ->  | I99: Cov (Pj*;Ph*) | J99: =Covarianza entre la Pot Coinc con máx Categ Unif y la Coinc con máx de MT
F101: =F23 -> 1.283128571 | H101: FSE(AT) | I101: Pj | J101: = Potencia promedio coincidente con la máx de la Categoría
F102: =F24 ->  | I102: Pj* | J102: = Potencia promedio coincidente con la máx de la Categoría Unificada
C103: ='[2]Balance de Potencia'!$G$683 -> Lunes | D103: ='[2]Balance de Potencia'!$G$682 -> 13:45:00 | E103: =MATCH(C103&ROUND(D103,10),$A$273:$A$944,0) -> 152 | F103: =AVERAGE(K103:XFD103) -> 0.7898142857 | I103: P(h*) | J103: = Potencia promedio coincidente con el máx de AT | K103: =IF(K$22="","",OFFSET($A$273,$E103-1,COLUMN()-1,)) -> 1.4224 | L103: 1.0993 | M103: 0.1366 | N103: 0.3646 | O103: 0.9912 | P103: 0.9912 | Q103: 0.5234
F104: =F26 -> 0.6352340857 | I104: Var(Pj) | J104: = Varianza de la Potencia coincidente con la máx de la Categoría
F105: =F27 ->  | I105: Var(Pj*) | J105: = Varianza de la Potencia coincidente con la máx de la Categoría Unificada
F106: =VAR(K103:XFD103) -> 0.2092551948 | I106: Var (Ph*) | J106: =Varianza de la Potencia Coincidente con el máx de AT
F107: =COVAR(K$23:XFD$23,K103:XFD103) -> -0.1721917276 | I107: Cov (Pj;Ph*) | J107: =Covarianza entre la Pot Coinc con máx Categ y la Coinc con máx de AT
F108: =COVAR(K$24:XFD$24,K103:XFD103) ->  | I108: Cov (Pj*;Ph*) | J108: =Covarianza entre la Pot Coinc con máx Categ Unif y la Coinc con máx de AT
F110: =F66 -> 1.108528571 | H110: FSE(BT)P | I110: Pj | J110: = Potencia promedio coincidente con la máx de la Categoría en Punta
F111: =F67 ->  | I111: Pj* | J111: = Potencia promedio coincidente con la máx de la Categoría Unificada en Punta
C112: ='[2]Balance de Potencia'!$E$690 -> Lunes | D112: ='[2]Balance de Potencia'!$E$689 -> 13:45:00 | E112: =MATCH(C112&ROUND(D112,10),$A$273:$A$944,0) -> 152 | F112: =AVERAGE(K112:XFD112) -> 0.7898142857 | I112: P(h*) | J112: = Potencia promedio coincidente con el máx de BT en Punta | K112: =IF(K$22="","",OFFSET($A$273,$E112-1,COLUMN()-1,)) -> 1.4224 | L112: =IF(L$22="","",OFFSET($A$273,$E112-1,COLUMN()-1,)) -> 1.0993 | M112: 0.1366 | N112: 0.3646 | O112: 0.9912 | P112: 0.9912 | Q112: 0.5234
F113: =F69 -> 0.472430059 | I113: Var(Pj) | J113: = Varianza de la Potencia coincidente con la máx de la Categoría
F114: =F70 ->  | I114: Var(Pj*) | J114: = Varianza de la Potencia coincidente con la máx de la Categoría Unificada
F115: =VAR(K112:XFD112) -> 0.2092551948 | I115: Var (Ph*) | J115: =Varianza de la Potencia Coincidente con el máx de BT en Punta
F116: =COVAR(K66:XFD66,K112:XFD112) -> 0.1049083853 | I116: Cov (Pj;Ph*) | J116: =Covarianza entre la Pot Coinc con máx Categ y la Coinc con máx de BT
F117: =COVAR(K67:XFD67,K112:XFD112) ->  | I117: Cov (Pj*;Ph*) | J117: =Covarianza entre la Pot Coinc con máx Categ Unif y la Coinc con máx de BT
F119: =F66 -> 1.108528571 | H119: FSE(MT)P | I119: Pj | J119: = Potencia promedio coincidente con la máx de la Categoría en Punta
F120: =F67 ->  | I120: Pj* | J120: = Potencia promedio coincidente con la máx de la Categoría Unificada en Punta
C121: ='[2]Balance de Potencia'!$F$690 -> Lunes | D121: ='[2]Balance de Potencia'!$F$689 -> 13:45:00 | E121: =MATCH(C121&ROUND(D121,10),$A$273:$A$944,0) -> 152 | F121: =AVERAGE(K121:XFD121) -> 0.7898142857 | I121: P(h*) | J121: = Potencia promedio coincidente con el máx de MT en Punta | K121: =IF(K$22="","",OFFSET($A$273,$E121-1,COLUMN()-1,)) -> 1.4224 | L121: =IF(L$22="","",OFFSET($A$273,$E121-1,COLUMN()-1,)) -> 1.0993 | M121: 0.1366 | N121: 0.3646 | O121: 0.9912 | P121: 0.9912 | Q121: 0.5234
F122: =F69 -> 0.472430059 | I122: Var(Pj) | J122: = Varianza de la Potencia coincidente con la máx de la Categoría
F123: =F70 ->  | I123: Var(Pj*) | J123: = Varianza de la Potencia coincidente con la máx de la Categoría Unificada
F124: =VAR(K121:XFD121) -> 0.2092551948 | I124: Var (Ph*) | J124: =Varianza de la Potencia Coincidente con el máx de MT en Punta
F125: =COVAR(K66:XFD66,K121:XFD121) -> 0.1049083853 | I125: Cov (Pj;Ph*) | J125: =Covarianza entre la Pot Coinc con máx Categ y la Coinc con máx de MT
F126: =COVAR(K67:XFD67,K121:XFD121) ->  | I126: Cov (Pj*;Ph*) | J126: =Covarianza entre la Pot Coinc con máx Categ Unif y la Coinc con máx de MT
F128: =F66 -> 1.108528571 | H128: FSE(AT)P | I128: Pj | J128: = Potencia promedio coincidente con la máx de la Categoría en Punta
F129: =F67 ->  | I129: Pj* | J129: = Potencia promedio coincidente con la máx de la Categoría Unificada en Punta
C130: ='[2]Balance de Potencia'!$G$690 -> Lunes | D130: ='[2]Balance de Potencia'!$G$689 -> 13:45:00 | E130: =MATCH(C130&ROUND(D130,10),$A$273:$A$944,0) -> 152 | F130: =AVERAGE(K130:XFD130) -> 0.7898142857 | I130: P(h*) | J130: = Potencia promedio coincidente con el máx de AT en Punta | K130: =IF(K$22="","",OFFSET($A$273,$E130-1,COLUMN()-1,)) -> 1.4224 | L130: =IF(L$22="","",OFFSET($A$273,$E130-1,COLUMN()-1,)) -> 1.0993 | M130: 0.1366 | N130: 0.3646 | O130: 0.9912 | P130: 0.9912 | Q130: 0.5234
F131: =F69 -> 0.472430059 | I131: Var(Pj) | J131: = Varianza de la Potencia coincidente con la máx de la Categoría
F132: =F70 ->  | I132: Var(Pj*) | J132: = Varianza de la Potencia coincidente con la máx de la Categoría Unificada
F133: =VAR(K130:XFD130) -> 0.2092551948 | I133: Var (Ph*) | J133: =Varianza de la Potencia Coincidente con el máx de AT en Punta
F134: =COVAR(K66:XFD66,K130:XFD130) -> 0.1049083853 | I134: Cov (Pj;Ph*) | J134: =Covarianza entre la Pot Coinc con máx Categ y la Coinc con máx de AT
F135: =COVAR(K67:XFD67,K130:XFD130) ->  | I135: Cov (Pj*;Ph*) | J135: =Covarianza entre la Pot Coinc con máx Categ Unif y la Coinc con máx de AT
F137: =F75 -> 1.283128571 | H137: FSE(BT)FP | I137: Pj | J137: = Potencia promedio coincidente con la máx de la Categoría en Fuera de Punta
F138: =F76 ->  | I138: Pj* | J138: = Potencia promedio coincidente con la máx de la Categoría Unificada en Fuera de Punta
C139: ='[2]Balance de Potencia'!$E$697 -> Martes | D139: ='[2]Balance de Potencia'!$E$696 -> 20:30:00 | E139: =MATCH(C139&ROUND(D139,10),$A$273:$A$944,0) -> 275 | F139: =AVERAGE(K139:XFD139) -> 1.347671429 | I139: P(h*) | J139: = Potencia promedio coincidente con el máx de BT en Fuera de Punta | K139: =IF(K$22="","",OFFSET($A$273,$E139-1,COLUMN()-1,)) -> 1.2855 | L139: =IF(L$22="","",OFFSET($A$273,$E139-1,COLUMN()-1,)) -> 1.3405 | M139: 1.4618 | N139: 0.6314 | O139: 0.937 | P139: 0.937 | Q139: 2.8405
F140: =F78 -> 0.6352340857 | I140: Var(Pj) | J140: = Varianza de la Potencia coincidente con la máx de la Categoría
F141: =F79 ->  | I141: Var(Pj*) | J141: = Varianza de la Potencia coincidente con la máx de la Categoría Unificada
F142: =VAR(K139:XFD139) -> 0.515970999 | I142: Var (Ph*) | J142: =Varianza de la Potencia Coincidente con el máx de BT en Fuera de Punta
F143: =COVAR(K75:XFD75,K139:XFD139) -> -0.2638418335 | I143: Cov (Pj;Ph*) | J143: =Covarianza entre la Pot Coinc con máx Categ y la Coinc con máx de BT
F144: =COVAR(K76:XFD76,K139:XFD139) ->  | I144: Cov (Pj*;Ph*) | J144: =Covarianza entre la Pot Coinc con máx Categ Unif y la Coinc con máx de BT
F146: =F75 -> 1.283128571 | H146: FSE(MT)FP | I146: Pj | J146: = Potencia promedio coincidente con la máx de la Categoría en Fuera de Punta
F147: =F76 ->  | I147: Pj* | J147: = Potencia promedio coincidente con la máx de la Categoría Unificada en Fuera de Punta
C148: ='[2]Balance de Potencia'!$F$697 -> Viernes | D148: ='[2]Balance de Potencia'!$F$696 -> 19:15:00 | E148: =MATCH(C148&ROUND(D148,10),$A$273:$A$944,0) -> 558 | F148: =AVERAGE(K148:XFD148) -> 0.9662571429 | I148: P(h*) | J148: = Potencia promedio coincidente con el máx de MT en Fuera de Punta | K148: =IF(K$22="","",OFFSET($A$273,$E148-1,COLUMN()-1,)) -> 1.2057 | L148: =IF(L$22="","",OFFSET($A$273,$E148-1,COLUMN()-1,)) -> 1.3365 | M148: 0.1315 | N148: 0.4466 | O148: 1.3885 | P148: 1.3885 | Q148: 0.8665
F149: =F78 -> 0.6352340857 | I149: Var(Pj) | J149: = Varianza de la Potencia coincidente con la máx de la Categoría
F150: =F79 ->  | I150: Var(Pj*) | J150: = Varianza de la Potencia coincidente con la máx de la Categoría Unificada
F151: =VAR(K148:XFD148) -> 0.2546342062 | I151: Var (Ph*) | J151: =Varianza de la Potencia Coincidente con el máx de MT en Fuera de Punta
F152: =COVAR(K75:XFD75,K148:XFD148) -> -0.1628180602 | I152: Cov (Pj;Ph*) | J152: =Covarianza entre la Pot Coinc con máx Categ y la Coinc con máx de MT
F153: =COVAR(K76:XFD76,K148:XFD148) ->  | I153: Cov (Pj*;Ph*) | J153: =Covarianza entre la Pot Coinc con máx Categ Unif y la Coinc con máx de MT
F155: =F75 -> 1.283128571 | H155: FSE(AT)FP | I155: Pj | J155: = Potencia promedio coincidente con la máx de la Categoría en Fuera de Punta
F156: =F76 ->  | I156: Pj* | J156: = Potencia promedio coincidente con la máx de la Categoría Unificada en Fuera de Punta
C157: ='[2]Balance de Potencia'!$G$697 -> Viernes | D157: ='[2]Balance de Potencia'!$G$696 -> 19:15:00 | E157: =MATCH(C157&ROUND(D157,10),$A$273:$A$944,0) -> 558 | F157: =AVERAGE(K157:XFD157) -> 0.9662571429 | I157: P(h*) | J157: = Potencia promedio coincidente con el máx de AT en Fuera de Punta | K157: =IF(K$22="","",OFFSET($A$273,$E157-1,COLUMN()-1,)) -> 1.2057 | L157: =IF(L$22="","",OFFSET($A$273,$E157-1,COLUMN()-1,)) -> 1.3365 | M157: 0.1315 | N157: 0.4466 | O157: 1.3885 | P157: 1.3885 | Q157: 0.8665
F158: =F78 -> 0.6352340857 | I158: Var(Pj) | J158: = Varianza de la Potencia coincidente con la máx de la Categoría
F159: =F79 ->  | I159: Var(Pj*) | J159: = Varianza de la Potencia coincidente con la máx de la Categoría Unificada
F160: =VAR(K157:XFD157) -> 0.2546342062 | I160: Var (Ph*) | J160: =Varianza de la Potencia Coincidente con el máx de AT en Punta
F161: =COVAR(K75:XFD75,K157:XFD157) -> -0.1628180602 | I161: Cov (Pj;Ph*) | J161: =Covarianza entre la Pot Coinc con máx Categ y la Coinc con máx de AT
F162: =COVAR(K76:XFD76,K157:XFD157) ->  | I162: Cov (Pj*;Ph*) | J162: =Covarianza entre la Pot Coinc con máx Categ Unif y la Coinc con máx de AT
F164: =AVERAGE(K164:XFD164) -> 627.5153286 | H164: FdeP | I164: Pj | J164: = Potencia activa | K164: =+IF(SUM(K$273:K$944)=0,"",SUM(K$273:K$944)) -> 527.4103 | L164: =+IF(SUM(L$273:L$944)=0,"",SUM(L$273:L$944)) -> 874.6935 | M164: 369.3645 | N164: 532.4547 | O164: 678.4451 | P164: 678.4451 | Q164: 731.7941
F165: =AVERAGE(K165:XFD165) ->  | I165: P(h*) | J165: = Potencia aparente | K165: =IF(SUM(K$273:K$944)=0,"",(K164^2+K169^2)^0.5) ->  | L165: =IF(SUM(L$273:L$944)=0,"",(L164^2+L169^2)^0.5) -> 
F166: =VAR(K164:XFD164) -> 27143.03066 | I166: Var(Pj) | J166: =Varianza de la Potencia Activa
F167: =VAR(K165:XFD165) ->  | I167: Var(Ph*) | J167: =Varianza de la Potencia Aparente
F168: =COVAR(K164:XFD164,K165:XFD165) ->  | I168: Cov(Pj;Ph*) | J168: =Covarianza entre la Potencia Activa y la Potencia Aparente
J169: =Potencia reactiva | K169: =INDEX([3]resumen!$E$8:$SJ$207,MATCH($F$5&" "&$F$6,[3]resumen!$C$8:$C$207,0),MATCH(K264,[3]resumen!$E$2:$SJ$2,0)) ->  | L169: =INDEX([3]resumen!$E$8:$SJ$207,MATCH($F$5&" "&$F$6,[3]resumen!$C$8:$C$207,0),MATCH(L264,[3]resumen!$E$2:$SJ$2,0)) ->  | M169: =INDEX([3]resumen!$E$8:$SJ$207,MATCH($F$5&" "&$F$6,[3]resumen!$C$8:$C$207,0),MATCH(M264,[3]resumen!$E$2:$SJ$2,0)) ->  | N169: =INDEX([3]resumen!$E$8:$SJ$207,MATCH($F$5&" "&$F$6,[3]resumen!$C$8:$C$207,0),MATCH(N264,[3]resumen!$E$2:$SJ$2,0)) ->  | O169: =INDEX([3]resumen!$E$8:$SJ$207,MATCH($F$5&" "&$F$6,[3]resumen!$C$8:$C$207,0),MATCH(O264,[3]resumen!$E$2:$SJ$2,0)) ->  | P169: =INDEX([3]resumen!$E$8:$SJ$207,MATCH($F$5&" "&$F$6,[3]resumen!$C$8:$C$207,0),MATCH(P264,[3]resumen!$E$2:$SJ$2,0)) ->  | Q169: =INDEX([3]resumen!$E$8:$SJ$207,MATCH($F$5&" "&$F$6,[3]resumen!$C$8:$C$207,0),MATCH(Q264,[3]resumen!$E$2:$SJ$2,0)) ->  | R169: =INDEX([3]resumen!$E$8:$SJ$207,MATCH($F$5&" "&$F$6,[3]resumen!$C$8:$C$207,0),MATCH(R264,[3]resumen!$E$2:$SJ$2,0)) ->  | S169: =INDEX([3]resumen!$E$8:$SJ$207,MATCH($F$5&" "&$F$6,[3]resumen!$C$8:$C$207,0),MATCH(S264,[3]resumen!$E$2:$SJ$2,0)) ->  | T169: =INDEX([3]resumen!$E$8:$SJ$207,MATCH($F$5&" "&$F$6,[3]resumen!$C$8:$C$207,0),MATCH(T264,[3]resumen!$E$2:$SJ$2,0)) ->  | U169: =INDEX([3]resumen!$E$8:$SJ$207,MATCH($F$5&" "&$F$6,[3]resumen!$C$8:$C$207,0),MATCH(U264,[3]resumen!$E$2:$SJ$2,0)) ->  | V169: =INDEX([3]resumen!$E$8:$SJ$207,MATCH($F$5&" "&$F$6,[3]resumen!$C$8:$C$207,0),MATCH(V264,[3]resumen!$E$2:$SJ$2,0)) ->  | W169: =INDEX([3]resumen!$E$8:$SJ$207,MATCH($F$5&" "&$F$6,[3]resumen!$C$8:$C$207,0),MATCH(W264,[3]resumen!$E$2:$SJ$2,0)) -> 
F170: CATEGORÍAS CON MEDICIÓN DE ENERGÍA
F171: =F23 -> 1.283128571 | H171: FSE(BT)P | I171: Pj | J171: = Potencia promedio coincidente con la máx de la Categoría
F172: =F24 ->  | I172: Pj* | J172: = Potencia promedio coincidente con la máx de la Categoría Unificada
C173: ='[2]Balance de Potencia'!$E$690 -> Lunes | D173: ='[2]Balance de Potencia'!$E$689 -> 13:45:00 | E173: =MATCH(C173&ROUND(D173,10),$A$273:$A$944,0) -> 152 | F173: =F112 -> 0.7898142857 | I173: P(h*) | J173: = Potencia promedio coincidente con el máx de BT en Punta
F174: =F26 -> 0.6352340857 | I174: Var(Pj) | J174: = Varianza de la Potencia coincidente con la máx de la Categoría
F175: =F27 ->  | I175: Var(Pj*) | J175: = Varianza de la Potencia coincidente con la máx de la Categoría Unificada
F176: =F115 -> 0.2092551948 | I176: Var (Ph*) | J176: =Varianza de la Potencia Coincidente con el máx de BT en Punta
F177: =COVAR(K23:XFD23,K112:XFD112) -> -0.1721917276 | I177: Cov (Pj;Ph*) | J177: =Covarianza entre la Pot Coinc con máx Categ y la Coinc con máx de BT
F178: =COVAR(K24:XFD24,K112:XFD112) ->  | I178: Cov (Pj*;Ph*) | J178: =Covarianza entre la Pot Coinc con máx Categ Unif y la Coinc con máx de BT
F180: =F23 -> 1.283128571 | H180: FSE(MT)P | I180: Pj | J180: = Potencia promedio coincidente con la máx de la Categoría
F181: =F24 ->  | I181: Pj* | J181: = Potencia promedio coincidente con la máx de la Categoría Unificada
C182: ='[2]Balance de Potencia'!$F$690 -> Lunes | D182: ='[2]Balance de Potencia'!$F$689 -> 13:45:00 | E182: =MATCH(C182&ROUND(D182,10),$A$273:$A$944,0) -> 152 | F182: =F121 -> 0.7898142857 | I182: P(h*) | J182: = Potencia promedio coincidente con el máx de MT en Punta
F183: =F26 -> 0.6352340857 | I183: Var(Pj) | J183: = Varianza de la Potencia coincidente con la máx de la Categoría
F184: =F27 ->  | I184: Var(Pj*) | J184: = Varianza de la Potencia coincidente con la máx de la Categoría Unificada
F185: =F124 -> 0.2092551948 | I185: Var (Ph*) | J185: =Varianza de la Potencia Coincidente con el máx de MT en Punta
F186: =COVAR(K23:XFD23,K121:XFD121) -> -0.1721917276 | I186: Cov (Pj;Ph*) | J186: =Covarianza entre la Pot Coinc con máx Categ y la Coinc con máx de MT
F187: =COVAR(K24:XFD24,K121:XFD121) ->  | I187: Cov (Pj*;Ph*) | J187: =Covarianza entre la Pot Coinc con máx Categ Unif y la Coinc con máx de MT
F189: =F23 -> 1.283128571 | H189: FSE(AT)P | I189: Pj | J189: = Potencia promedio coincidente con la máx de la Categoría
F190: =F24 ->  | I190: Pj* | J190: = Potencia promedio coincidente con la máx de la Categoría Unificada
C191: ='[2]Balance de Potencia'!$G$690 -> Lunes | D191: ='[2]Balance de Potencia'!$G$689 -> 13:45:00 | E191: =MATCH(C191&ROUND(D191,10),$A$273:$A$944,0) -> 152 | F191: =F130 -> 0.7898142857 | I191: P(h*) | J191: = Potencia promedio coincidente con el máx de AT en Punta
F192: =F26 -> 0.6352340857 | I192: Var(Pj) | J192: = Varianza de la Potencia coincidente con la máx de la Categoría
F193: =F27 ->  | I193: Var(Pj*) | J193: = Varianza de la Potencia coincidente con la máx de la Categoría Unificada
F194: =F133 -> 0.2092551948 | I194: Var (Ph*) | J194: =Varianza de la Potencia Coincidente con el máx de AT en Punta
F195: =COVAR(K23:XFD23,K130:XFD130) -> -0.1721917276 | I195: Cov (Pj;Ph*) | J195: =Covarianza entre la Pot Coinc con máx Categ y la Coinc con máx de AT
F196: =COVAR(K24:XFD24,K130:XFD130) ->  | I196: Cov (Pj*;Ph*) | J196: =Covarianza entre la Pot Coinc con máx Categ Unif y la Coinc con máx de AT
F198: =F23 -> 1.283128571 | H198: FSE(BT)FP | I198: Pj | J198: = Potencia promedio coincidente con la máx de la Categoría
F199: =F24 ->  | I199: Pj* | J199: = Potencia promedio coincidente con la máx de la Categoría Unificada
C200: ='[2]Balance de Potencia'!$E$697 -> Martes | D200: ='[2]Balance de Potencia'!$E$696 -> 20:30:00 | E200: =MATCH(C200&ROUND(D200,10),$A$273:$A$944,0) -> 275 | F200: =F139 -> 1.347671429 | I200: P(h*) | J200: = Potencia promedio coincidente con el máx de BT en Fuera de Punta
F201: =F26 -> 0.6352340857 | I201: Var(Pj) | J201: = Varianza de la Potencia coincidente con la máx de la Categoría
F202: =F27 ->  | I202: Var(Pj*) | J202: = Varianza de la Potencia coincidente con la máx de la Categoría Unificada
F203: =F142 -> 0.515970999 | I203: Var (Ph*) | J203: =Varianza de la Potencia Coincidente con el máx de BT en Fuera de Punta
F204: =COVAR(K23:XFD23,K139:XFD139) -> -0.2638418335 | I204: Cov (Pj;Ph*) | J204: =Covarianza entre la Pot Coinc con máx Categ y la Coinc con máx de BT
F205: =COVAR(K24:XFD24,K139:XFD139) ->  | I205: Cov (Pj*;Ph*) | J205: =Covarianza entre la Pot Coinc con máx Categ Unif y la Coinc con máx de BT
F207: =F23 -> 1.283128571 | H207: FSE(MT)FP | I207: Pj | J207: = Potencia promedio coincidente con la máx de la Categoría
F208: =F24 ->  | I208: Pj* | J208: = Potencia promedio coincidente con la máx de la Categoría Unificada
C209: ='[2]Balance de Potencia'!$F$697 -> Viernes | D209: ='[2]Balance de Potencia'!$F$696 -> 19:15:00 | E209: =MATCH(C209&ROUND(D209,10),$A$273:$A$944,0) -> 558 | F209: =F148 -> 0.9662571429 | I209: P(h*) | J209: = Potencia promedio coincidente con el máx de MT en Fuera de Punta
F210: =F26 -> 0.6352340857 | I210: Var(Pj) | J210: = Varianza de la Potencia coincidente con la máx de la Categoría
F211: =F27 ->  | I211: Var(Pj*) | J211: = Varianza de la Potencia coincidente con la máx de la Categoría Unificada
F212: =F151 -> 0.2546342062 | I212: Var (Ph*) | J212: =Varianza de la Potencia Coincidente con el máx de MT en Fuera de Punta
F213: =COVAR(K23:XFD23,K148:XFD148) -> -0.1628180602 | I213: Cov (Pj;Ph*) | J213: =Covarianza entre la Pot Coinc con máx Categ y la Coinc con máx de MT
F214: =COVAR(K24:XFD24,K148:XFD148) ->  | I214: Cov (Pj*;Ph*) | J214: =Covarianza entre la Pot Coinc con máx Categ Unif y la Coinc con máx de MT
F216: =F23 -> 1.283128571 | H216: FSE(AT)FP | I216: Pj | J216: = Potencia promedio coincidente con la máx de la Categoría
F217: =F24 ->  | I217: Pj* | J217: = Potencia promedio coincidente con la máx de la Categoría Unificada
C218: ='[2]Balance de Potencia'!$G$697 -> Viernes | D218: ='[2]Balance de Potencia'!$G$696 -> 19:15:00 | E218: =MATCH(C218&ROUND(D218,10),$A$273:$A$944,0) -> 558 | F218: =F157 -> 0.9662571429 | I218: P(h*) | J218: = Potencia promedio coincidente con el máx de AT en Fuera de Punta
F219: =F26 -> 0.6352340857 | I219: Var(Pj) | J219: = Varianza de la Potencia coincidente con la máx de la Categoría
F220: =F27 ->  | I220: Var(Pj*) | J220: = Varianza de la Potencia coincidente con la máx de la Categoría Unificada
F221: =F160 -> 0.2546342062 | I221: Var (Ph*) | J221: =Varianza de la Potencia Coincidente con el máx de AT en Punta
F222: =COVAR(K23:XFD23,K157:XFD157) -> -0.1628180602 | I222: Cov (Pj;Ph*) | J222: =Covarianza entre la Pot Coinc con máx Categ y la Coinc con máx de AT
F223: =COVAR(K24:XFD24,K157:XFD157) ->  | I223: Cov (Pj*;Ph*) | J223: =Covarianza entre la Pot Coinc con máx Categ Unif y la Coinc con máx de AT
F224: CATEGORÍAS CON MEDICIÓN DE POTENCIA MÁXIMA
F225: =F37 -> 2.328542857 | H225: FSI-P | I225: Pj | J225: = Promedio de la Potencia Máxima de cada usuario
... 713 more rows

Sheet BTS_R 6
B1: =[1]DATOS!$B$3 -> ENSA
B2: Estudio de Caracterización de la Carga
B4: Categoría Unificada | F4: BTS_R
B5: Grupo Homogeneo | F5: BTS_R
B6: Estrato | F6: 6
B7: Identificador hora punta | F7: P
B8: Determinación de Parámetros de las Mediciones del Grupo Homogéneo y Estrato
E10: P | F10: =AVERAGE(K10:XFD10) -> 42.32105937 | H10: Estructura de Consumo | I10: ep | J10: =Energía Promedio Semanal en Punta | K10: =+IF(SUM(K$273:K$944)/4=0,"",SUMIF($E$273:$E$944,$E10,K$273:K$944)/4) -> 66.354525 | L10: =+IF(SUM(L$273:L$944)/4=0,"",SUMIF($E$273:$E$944,$E10,L$273:L$944)/4) -> 38.835 | M10: 65.172925 | N10: 70.2916 | O10: 17.5032 | P10: 52.9801 | Q10: 19.404425 | R10: 56.9102 | S10: 10.414175 | T10: 52.5431 | U10: 4.71085 | V10: 45.844675 | W10: 45.589025 | X10: 53.269725 | Y10: 57.359825 | Z10: 19.9536
E11: R | F11: =AVERAGE(K11:XFD11) -> 90.74280625 | I11: er | J11: =Energía Promedio Semanal en Resto | K11: =+IF(SUM(K$273:K$944)/4=0,"",SUMIF($E$273:$E$944,$E11,K$273:K$944)/4) -> 110.248525 | L11: 74.8267 | M11: 118.15815 | N11: 119.47115 | O11: 50.1037 | P11: 109.04845 | Q11: 59.972925 | R11: 96.5081 | S11: 32.318575 | T11: 97.855675 | U11: 45.691975 | V11: 77.552325 | W11: 96.729325 | X11: 111.17565 | Y11: 151.6281 | Z11: 100.595575
E12: V | F12: =AVERAGE(K12:XFD12) -> 115.7679328 | I12: ev | J12: =Energía Promedio Semanal en Valle | K12: =+IF(SUM(K$273:K$944)/4=0,"",SUMIF($E$273:$E$944,$E12,K$273:K$944)/4) -> 140.64965 | L12: 101.26645 | M12: 149.6774 | N12: 145.347475 | O12: 65.314425 | P12: 155.907175 | Q12: 81.2704 | R12: 143.82405 | S12: 47.1495 | T12: 98.592025 | U12: 60.7531 | V12: 112.4694 | W12: 125.35375 | X12: 142.728775 | Y12: 182.3493 | Z12: 99.63405
F13: =AVERAGE(K13:XFD13) -> 248.8317984 | I13: et | J13: =Energía Promedio Semanal (Total) | K13: =+IF(SUM(K273:K944)/4=0,"",SUM(K273:K944)/4) -> 317.2527 | L13: 214.92815 | M13: 333.008475 | N13: 335.110225 | O13: 132.921325 | P13: 317.935725 | Q13: 160.64775 | R13: 297.24235 | S13: 89.88225 | T13: 248.9908 | U13: =+IF(SUM(U273:U944)/4=0,"",SUM(U273:U944)/4) -> 111.155925 | V13: 235.8664 | W13: 267.6721 | X13: 307.17415 | Y13: 391.337225 | Z13: 220.183225
F14: =VAR(K10:XFD10) -> 451.2252748 | I14: Var (ep) | J14: =Varianza de la Energía Semanal en Punta
F15: =VAR(K11:XFD11) -> 1006.823834 | I15: Var (er) | J15: =Varianza de la Energía Semanal en Resto
F16: =VAR(K12:XFD12) -> 1502.753576 | I16: Var (ev) | J16: =Varianza de la Energía Semanal en Valle
F17: =VAR(K13:XFD13) -> 7864.414104 | I17: Var (et) | J17: =Varianza de la Energía Semanal (Total)
F18: =COVAR(K10:XFD10,$K$13:$XFD$13) -> 1633.099786 | I18: Cov (ep,et) | J18: =Covarianza entre la Energía en Punta y Total
F19: =COVAR(K11:XFD11,$K$13:$XFD$13) -> 2561.797431 | I19: Cov (er,et) | J19: =Covarianza entre la Energía en Resto y Total
F20: =COVAR(K12:XFD12,$K$13:$XFD$13) -> 3177.991005 | I20: Cov (ev,et) | J20: =Covarianza entre la Energía en Valle y Total
F22: =AVERAGE(K22:XFD22) -> 995.3271938 | H22: FC | I22: Pj | J22: = Promedio de la Suma de Potencia de cada usuario | K22: =+IF(SUM(K$273:K$944)=0,"",SUM(K$273:K$944)) -> 1269.0108 | L22: 859.7126 | M22: 1332.0339 | N22: 1340.4409 | O22: 531.6853 | P22: 1271.7429 | Q22: 642.591 | R22: 1188.9694 | S22: 359.529 | T22: 995.9632 | U22: 444.6237 | V22: 943.4656 | W22: 1070.6884 | X22: 1228.6966 | Y22: 1565.3489 | Z22: 880.7329
C23: =INDEX('[2]Balance de Potencia'!$CC$683:$CV$683,1,MATCH($F$5,'[2]Balance de Potencia'!$CC$5:$CV$5,0)) -> Miércoles | D23: =INDEX('[2]Balance de Potencia'!$CC$682:$CV$682,1,MATCH($F$5,'[2]Balance de Potencia'!$CC$5:$CV$5,0)) -> 21:45:00 | E23: =MATCH(C23&ROUND(D23,10),$A$273:$A$944,0) -> 376 | F23: =AVERAGE(K23:XFD23) -> 2.12363125 | I23: P(h*) | J23: = Potencia promedio coincidente con la máx de la Categoría | K23: =IF(K$22="","",OFFSET($A$273,$E23-1,COLUMN()-1,)) -> 2.2662 | L23: =IF(L$22="","",OFFSET($A$273,$E23-1,COLUMN()-1,)) -> 1.0282 | M23: 2.4988 | N23: 2.4864 | O23: 1.9327 | P23: 2.3425 | Q23: 2.1678 | R23: 2.2075 | S23: 1.1242 | T23: 2.702 | U23: 0.9297 | V23: 1.7494 | W23: 2.6537 | X23: 2.0212 | Y23: 2.7751 | Z23: 3.0927
C24: =INDEX('[2]Balance de Potencia'!$BY$683:$CA$683,1,MATCH($F$4,'[2]Balance de Potencia'!$BY$5:$CA$5,0)) ->  | D24: =INDEX('[2]Balance de Potencia'!$BY$682:$CA$682,1,MATCH($F$4,'[2]Balance de Potencia'!$BY$5:$CA$5,0)) ->  | E24: =MATCH(C24&ROUND(D24,10),$A$273:$A$944,0) ->  | F24: =AVERAGE(K24:XFD24) ->  | I24: P(h**) | J24: = Potencia promedio coincidente con la máx de la Categoría Unificada | K24: =IF(K$22="","",OFFSET($A$273,$E24-1,COLUMN()-1,)) -> 
F25: =VAR(K22:XFD22) -> 125830.6257 | I25: Var (Pj) | J25: =Varianza de la Potencia Media
F26: =VAR(K23:XFD23) -> 0.4093237503 | I26: Var (Ph*) | J26: =Varianza de la Potencia Coincidente con la máx de la Categ.
F27: =VAR(K24:XFD24) ->  | I27: Var (Ph**) | J27: =Varianza de la Potencia Coincidente con la máx de la Categ.Unificada
F28: =COVAR(K23:XFD23,$K$22:$XFD$22) -> 136.1147028 | I28: Cov (Pj;Ph*) | J28: =Covarianza entre la Potencia Media y la Coincidente
F29: =COVAR(K24:XFD24,$K$22:$XFD$22) ->  | I29: Cov (Pj;Ph**) | J29: =Covarianza entre la Potencia Media y la Coincidente de la Categ. Unificada
F31: =F22 -> 995.3271938 | H31: FC-estrato | I31: Pj | J31: = Promedio de la Suma de Potencia de cada usuario
E32: =MATCH(F32,$F$273:$F$944,0) -> 93 | F32: =F271 -> 2.47243125 | I32: P(h*) | J32: = Potencia promedio coincidente con la máx del estrato | K32: =IF(K$22="","",OFFSET($A$273,$E32-1,COLUMN()-1,)) -> 2.2494 | L32: 2.6063 | M32: 2.9707 | N32: 2.7856 | O32: 1.6131 | P32: 2.4295 | Q32: 1.754 | R32: 2.3407 | S32: 1.1008 | T32: 1.7126 | U32: 1.4177 | V32: 2.0149 | W32: 5.819 | X32: 3.2386 | Y32: 3.57 | Z32: 1.936
F33: =F25 -> 125830.6257 | I33: Var (Pj) | J33: =Varianza de la Potencia Media
F34: =VAR(K32:XFD32) -> 1.249817422 | I34: Var (Ph*) | J34: =Varianza de la Potencia Coincidente con la máx del estrato
F35: =COVAR(K32:XFD32,$K$22:$XFD$22) -> 212.8374656 | I35: Cov (Pj;Ph*) | J35: =Covarianza entre la Potencia Media y la Coincidente
F37: =+AVERAGE(K37:XFD37) -> 3.4855 | H37: FSI | I37: Pj | J37: = Promedio de la Potencia Máxima de cada usuario | K37: =+IF(SUM(K273:K944)=0,"",MAX(K273:K944)) -> 2.6786 | L37: 4.6151 | M37: 3.5673 | N37: 3.439 | O37: 2.3594 | P37: 3.4191 | Q37: 2.5895 | R37: 3.0909 | S37: 1.5677 | T37: 3.496 | U37: =+IF(SUM(U273:U944)=0,"",MAX(U273:U944)) -> 1.6193 | V37: 3.3514 | W37: 6.7469 | X37: 4.0871 | Y37: 3.9449 | Z37: 5.1958
F38: =+AVERAGE(K38:XFD38) -> 3.4855 | I38: PjFP | J38: = Promedio de la Potencia Máxima de cada usuario en horas FP | K38: =IF(SUM(K273:K944)=0,"",MAX(IF($E273:$E944<>"P",K273:K944,""))) -> 2.6786 | L38: =IF(SUM(L273:L944)=0,"",MAX(IF($E273:$E944<>"P",L273:L944,""))) -> 4.6151 | M38: =IF(SUM(M273:M944)=0,"",MAX(IF($E273:$E944<>"P",M273:M944,""))) -> 3.5673 | N38: =IF(SUM(N273:N944)=0,"",MAX(IF($E273:$E944<>"P",N273:N944,""))) -> 3.439 | O38: =IF(SUM(O273:O944)=0,"",MAX(IF($E273:$E944<>"P",O273:O944,""))) -> 2.3594 | P38: =IF(SUM(P273:P944)=0,"",MAX(IF($E273:$E944<>"P",P273:P944,""))) -> 3.4191 | Q38: =IF(SUM(Q273:Q944)=0,"",MAX(IF($E273:$E944<>"P",Q273:Q944,""))) -> 2.5895 | R38: =IF(SUM(R273:R944)=0,"",MAX(IF($E273:$E944<>"P",R273:R944,""))) -> 3.0909 | S38: =IF(SUM(S273:S944)=0,"",MAX(IF($E273:$E944<>"P",S273:S944,""))) -> 1.5677 | T38: =IF(SUM(T273:T944)=0,"",MAX(IF($E273:$E944<>"P",T273:T944,""))) -> 3.496 | U38: =IF(SUM(U273:U944)=0,"",MAX(IF($E273:$E944<>"P",U273:U944,""))) -> 1.6193 | V38: =IF(SUM(V273:V944)=0,"",MAX(IF($E273:$E944<>"P",V273:V944,""))) -> 3.3514 | W38: =IF(SUM(W273:W944)=0,"",MAX(IF($E273:$E944<>"P",W273:W944,""))) -> 6.7469 | X38: =IF(SUM(X273:X944)=0,"",MAX(IF($E273:$E944<>"P",X273:X944,""))) -> 4.0871 | Y38: =IF(SUM(Y273:Y944)=0,"",MAX(IF($E273:$E944<>"P",Y273:Y944,""))) -> 3.9449 | Z38: =IF(SUM(Z273:Z944)=0,"",MAX(IF($E273:$E944<>"P",Z273:Z944,""))) -> 5.1958
F39: =F23 -> 2.12363125 | I39: P(h*) | J39: = Potencia promedio coincidente con la máx de la Categoría
F40: =F24 ->  | I40: P(h**) | J40: = Potencia promedio coincidente con la máx de la Categoría Unificada
F41: =VAR(K37:XFD37) -> 1.69870346 | I41: Var (Pj) | J41: =Varianza de la Potencia Máxima de cada Usuario
F42: =F26 -> 0.4093237503 | I42: Var (Ph*) | J42: =Varianza de la Potencia Coincidente con la máx de la Categ.
F43: =F27 ->  | I43: Var (Ph**) | J43: =Varianza de la Potencia Coincidente con la máx de la Categ. Unificada
F44: =COVAR(K23:XFD23,$K$37:$XFD$37) -> 0.4133809263 | I44: Cov (Pj;Ph*) | J44: =Covarianza entre la Potencia Máxima y la Coincidente
F45: =COVAR(K24:XFD24,$K$37:$XFD$37) ->  | I45: Cov (Pj;Ph**) | J45: =Covarianza entre la Potencia Máxima y la Coincidente de la Categ. Unificada
F47: =F37 -> 3.4855 | H47: FCT-BT | I47: Pj | J47: = Promedio de la Potencia Máxima de cada usuario
F48: =F85 -> 1.22965 | I48: P(h*) | J48: = Potencia promedio coincidente con la máx de la Baja Tensión
F49: =F41 -> 1.69870346 | I49: Var(Pj) | J49: =Varianza de la Potencia Máxima de cada Usuario
F50: =F88 -> 0.5506577107 | I50: Var(Ph*) | J50: =Varianza de la Potencia Coincidente con el máx de BT
F51: =COVAR(K37:XFD37,K85:XFD85) -> 0.2563105544 | I51: Cov(Pj;Ph* | J51: =Covarianza entre la Potencia Máxima y la Coinc con máx de BT
F53: =F37 -> 3.4855 | H53: FCT-MT | I53: Pj | J53: = Promedio de la Potencia Máxima de cada usuario
F54: =F94 -> 1.22965 | I54: P(h*) | J54: = Potencia promedio coincidente con la máx de la Media Tensión
F55: =F41 -> 1.69870346 | I55: Var(Pj) | J55: =Varianza de la Potencia Máxima de cada Usuario
F56: =F97 -> 0.5506577107 | I56: Var(Ph*) | J56: =Varianza de la Potencia Coincidente con el máx de MT
F57: =COVAR(K37:XFD37,K94:XFD94) -> 0.2563105544 | I57: Cov(Pj;Ph* | J57: =Covarianza entre la Potencia Máxima y la Coinc con máx de MT
F59: =F37 -> 3.4855 | H59: FCT-AT | I59: Pj | J59: = Promedio de la Potencia Máxima de cada usuario
F60: =F103 -> 1.22965 | I60: P(h*) | J60: = Potencia promedio coincidente con la máx de la Alta Tensión
F61: =F41 -> 1.69870346 | I61: Var(Pj) | J61: =Varianza de la Potencia Máxima de cada Usuario
F62: =F106 -> 0.5506577107 | I62: Var(Ph*) | J62: =Varianza de la Potencia Coincidente con el máx de AT
F63: =COVAR(K37:XFD37,K103:XFD103) -> 0.2563105544 | I63: Cov(Pj;Ph* | J63: =Covarianza entre la Potencia Máxima y la Coinc con máx de AT
F65: =AVERAGE(K65:XFD65) -> 2.369825 | H65: FSI-P | I65: Pj | J65: = Promedio de la Potencia Máxima de cada usuario en Punta | K65: =+IF(SUM(K273:K944)=0,"",MAX(IF($E273:$E944=$F$7,K273:K944))) -> 2.2199 | L65: =+IF(SUM(L273:L944)=0,"",MAX(IF($E273:$E944=$F$7,L273:L944))) -> 2.4631 | M65: =+IF(SUM(M273:M944)=0,"",MAX(IF($E273:$E944=$F$7,M273:M944))) -> 3.5208 | N65: =+IF(SUM(N273:N944)=0,"",MAX(IF($E273:$E944=$F$7,N273:N944))) -> 2.6523 | O65: =+IF(SUM(O273:O944)=0,"",MAX(IF($E273:$E944=$F$7,O273:O944))) -> 1.4805 | P65: =+IF(SUM(P273:P944)=0,"",MAX(IF($E273:$E944=$F$7,P273:P944))) -> 1.9151 | Q65: =+IF(SUM(Q273:Q944)=0,"",MAX(IF($E273:$E944=$F$7,Q273:Q944))) -> 0.9953 | R65: =+IF(SUM(R273:R944)=0,"",MAX(IF($E273:$E944=$F$7,R273:R944))) -> 2.9737 | S65: =+IF(SUM(S273:S944)=0,"",MAX(IF($E273:$E944=$F$7,S273:S944))) -> 0.7307 | T65: =+IF(SUM(T273:T944)=0,"",MAX(IF($E273:$E944=$F$7,T273:T944))) -> 2.7578 | U65: =+IF(SUM(U273:U944)=0,"",MAX(IF($E273:$E944=$F$7,U273:U944))) -> 1.2622 | V65: =+IF(SUM(V273:V944)=0,"",MAX(IF($E273:$E944=$F$7,V273:V944))) -> 2.8246 | W65: =+IF(SUM(W273:W944)=0,"",MAX(IF($E273:$E944=$F$7,W273:W944))) -> 3.5922 | X65: =+IF(SUM(X273:X944)=0,"",MAX(IF($E273:$E944=$F$7,X273:X944))) -> 2.8242 | Y65: =+IF(SUM(Y273:Y944)=0,"",MAX(IF($E273:$E944=$F$7,Y273:Y944))) -> 2.383 | Z65: =+IF(SUM(Z273:Z944)=0,"",MAX(IF($E273:$E944=$F$7,Z273:Z944))) -> 3.3218
C66: =INDEX('[2]Balance de Potencia'!$CC$690:$CV$690,1,MATCH($F$5,'[2]Balance de Potencia'!$CC$5:$CV$5,0)) -> Miércoles | D66: =INDEX('[2]Balance de Potencia'!$CC$689:$CV$689,1,MATCH($F$5,'[2]Balance de Potencia'!$CC$5:$CV$5,0)) -> 15:45:00 | E66: =MATCH(C66&ROUND(D66,10),$A$273:$A$944,0) -> 352 | F66: =AVERAGE(K66:XFD66) -> 1.06304375 | I66: P(h*) | J66: = Potencia promedio coincidente con la máx de la Categoría en Punta | K66: =IF(K$22="","",OFFSET($A$273,$E66-1,COLUMN()-1,)) -> 1.354 | L66: =IF(L$22="","",OFFSET($A$273,$E66-1,COLUMN()-1,)) -> 1.1776 | M66: 1.4153 | N66: 2.3553 | O66: 0.8716 | P66: 1.2138 | Q66: 0.5538 | R66: 1.2842 | S66: 0.422 | T66: 1.0364 | U66: 0.0771 | V66: 1.2459 | W66: 0.5899 | X66: 0.9731 | Y66: 2.1808 | Z66: 0.2579
C67: =INDEX('[2]Balance de Potencia'!$BY$690:$CA$690,1,MATCH($F$4,'[2]Balance de Potencia'!$BY$5:$CA$5,0)) ->  | D67: =INDEX('[2]Balance de Potencia'!$BY$689:$CA$689,1,MATCH($F$4,'[2]Balance de Potencia'!$BY$5:$CA$5,0)) ->  | E67: =MATCH(C67&ROUND(D67,10),$A$273:$A$944,0) ->  | F67: =AVERAGE(K67:XFD67) ->  | I67: P(h**) | J67: = Potencia promedio coincidente con la máx de la Categoría Unificada en Punta | K67: =IF(K$22="","",OFFSET($A$273,$E67-1,COLUMN()-1,)) -> 
F68: =VAR(K65:XFD65) -> 0.7710244767 | I68: Var (Pj) | J68: =Varianza de la Potencia Máxima de cada Usuario en Punta
F69: =VAR(K66:XFD66) -> 0.3870777093 | I69: Var (Ph*) | J69: =Varianza de la Potencia Coincidente con la máx de la Categ. en Punta
F70: =VAR(K67:XFD67) ->  | I70: Var (Ph**) | J70: =Varianza de la Potencia Coincidente con la máx de la Categ. Unificada en Punta
F71: =COVAR(K$65:XFD$65,K66:XFD66) -> 0.1573377795 | I71: Cov (Pj;Ph*) | J71: =Covarianza entre la Potencia Máxima y la Coincidente
F72: =COVAR(K$65:XFD$65,K67:XFD67) ->  | I72: Cov (Pj;Ph**) | J72: =Covarianza entre la Potencia Máxima y la Coincidente de la Categ. Unificada
F74: =AVERAGE(K74:XFD74) -> 3.4855 | H74: FSI-FP | I74: Pj | J74: = Promedio de la Potencia Máxima de cada usuario | K74: =+IF(SUM(K273:K944)=0,"",MAX(IF($E273:$E944<>$F$7,K273:K944))) -> 2.6786 | L74: =+IF(SUM(L273:L944)=0,"",MAX(IF($E273:$E944<>$F$7,L273:L944))) -> 4.6151 | M74: =+IF(SUM(M273:M944)=0,"",MAX(IF($E273:$E944<>$F$7,M273:M944))) -> 3.5673 | N74: =+IF(SUM(N273:N944)=0,"",MAX(IF($E273:$E944<>$F$7,N273:N944))) -> 3.439 | O74: =+IF(SUM(O273:O944)=0,"",MAX(IF($E273:$E944<>$F$7,O273:O944))) -> 2.3594 | P74: =+IF(SUM(P273:P944)=0,"",MAX(IF($E273:$E944<>$F$7,P273:P944))) -> 3.4191 | Q74: =+IF(SUM(Q273:Q944)=0,"",MAX(IF($E273:$E944<>$F$7,Q273:Q944))) -> 2.5895 | R74: =+IF(SUM(R273:R944)=0,"",MAX(IF($E273:$E944<>$F$7,R273:R944))) -> 3.0909 | S74: =+IF(SUM(S273:S944)=0,"",MAX(IF($E273:$E944<>$F$7,S273:S944))) -> 1.5677 | T74: =+IF(SUM(T273:T944)=0,"",MAX(IF($E273:$E944<>$F$7,T273:T944))) -> 3.496 | U74: =+IF(SUM(U273:U944)=0,"",MAX(IF($E273:$E944<>$F$7,U273:U944))) -> 1.6193 | V74: =+IF(SUM(V273:V944)=0,"",MAX(IF($E273:$E944<>$F$7,V273:V944))) -> 3.3514 | W74: =+IF(SUM(W273:W944)=0,"",MAX(IF($E273:$E944<>$F$7,W273:W944))) -> 6.7469 | X74: =+IF(SUM(X273:X944)=0,"",MAX(IF($E273:$E944<>$F$7,X273:X944))) -> 4.0871 | Y74: =+IF(SUM(Y273:Y944)=0,"",MAX(IF($E273:$E944<>$F$7,Y273:Y944))) -> 3.9449 | Z74: =+IF(SUM(Z273:Z944)=0,"",MAX(IF($E273:$E944<>$F$7,Z273:Z944))) -> 5.1958
C75: =INDEX('[2]Balance de Potencia'!$CC$697:$CV$697,1,MATCH($F$5,'[2]Balance de Potencia'!$CC$5:$CV$5,0)) -> Miércoles | D75: =INDEX('[2]Balance de Potencia'!$CC$696:$CV$696,1,MATCH($F$5,'[2]Balance de Potencia'!$CC$5:$CV$5,0)) -> 21:45:00 | E75: =MATCH(C75&ROUND(D75,10),$A$273:$A$944,0) -> 376 | F75: =AVERAGE(K75:XFD75) -> 2.12363125 | I75: P(h*) | J75: = Potencia promedio coincidente con la máx de la Categoría | K75: =IF(K$22="","",OFFSET($A$273,$E75-1,COLUMN()-1,)) -> 2.2662 | L75: =IF(L$22="","",OFFSET($A$273,$E75-1,COLUMN()-1,)) -> 1.0282 | M75: 2.4988 | N75: 2.4864 | O75: 1.9327 | P75: 2.3425 | Q75: 2.1678 | R75: 2.2075 | S75: 1.1242 | T75: 2.702 | U75: 0.9297 | V75: 1.7494 | W75: 2.6537 | X75: 2.0212 | Y75: 2.7751 | Z75: 3.0927
C76: =INDEX('[2]Balance de Potencia'!$BY$697:$CA$697,1,MATCH($F$4,'[2]Balance de Potencia'!$BY$5:$CA$5,0)) ->  | D76: =INDEX('[2]Balance de Potencia'!$BY$696:$CA$696,1,MATCH($F$4,'[2]Balance de Potencia'!$BY$5:$CA$5,0)) ->  | E76: =MATCH(C76&ROUND(D76,10),$A$272:$A$943,0) ->  | F76: =AVERAGE(K76:XFD76) ->  | I76: P(h**) | J76: = Potencia promedio coincidente con la máx de la Categoría Unificada | K76: =IF(K$22="","",OFFSET($A$273,$E76-1,COLUMN()-1,)) -> 
F77: =VAR(K74:XFD74) -> 1.69870346 | I77: Var (Pj) | J77: =Varianza de la Potencia Máxima de cada Usuario
F78: =VAR(K75:XFD75) -> 0.4093237503 | I78: Var (Ph*) | J78: =Varianza de la Potencia Coincidente con la máx de la Categ.
F79: =VAR(K76:XFD76) ->  | I79: Var (Ph**) | J79: =Varianza de la Potencia Coincidente con la máx de la Categ. Unificada
F80: =COVAR(K$74:XFD$74,K75:XFD75) -> 0.4133809263 | I80: Cov (Pj;Ph*) | J80: =Covarianza entre la Potencia Máxima y la Coincidente
F81: =COVAR(K$74:XFD$74,K76:XFD76) ->  | I81: Cov (Pj;Ph**) | J81: =Covarianza entre la Potencia Máxima y la Coincidente de la Categ. Unificada
F83: =F23 -> 2.12363125 | H83: FSE(BT) | I83: Pj | J83: = Potencia promedio coincidente con la máx de la Categoría
F84: =F24 ->  | I84: Pj* | J84: = Potencia promedio coincidente con la máx de la Categoría Unificada
C85: ='[2]Balance de Potencia'!$E$683 -> Lunes | D85: ='[2]Balance de Potencia'!$E$682 -> 13:45:00 | E85: =MATCH(C85&ROUND(D85,10),$A$273:$A$944,0) -> 152 | F85: =AVERAGE(K85:XFD85) -> 1.22965 | I85: P(h*) | J85: = Potencia promedio coincidente con el máx de BT | K85: =IF(K$22="","",OFFSET($A$273,$E85-1,COLUMN()-1,)) -> 1.8384 | L85: 0.8412 | M85: 2.9893 | N85: 1.749 | O85: 1.1063 | P85: 1.7538 | Q85: 0.3908 | R85: 1.562 | S85: 0.2216 | T85: 0.903 | U85: 0.1726 | V85: 1.1077 | W85: 1.6567 | X85: 1.2589 | Y85: 1.6834 | Z85: 0.4397
F86: =F26 -> 0.4093237503 | I86: Var(Pj) | J86: = Varianza de la Potencia coincidente con la máx de la Categoría
F87: =F27 ->  | I87: Var(Pj*) | J87: = Varianza de la Potencia coincidente con la máx de la Categoría Unificada
F88: =VAR(K85:XFD85) -> 0.5506577107 | I88: Var (Ph*) | J88: =Varianza de la Potencia Coincidente con el máx de BT
F89: =COVAR(K$23:XFD$23,K85:XFD85) -> 0.2106041103 | I89: Cov (Pj;Ph*) | J89: =Covarianza entre la Pot Coinc con máx Categ y la Coinc con máx de BT
F90: =COVAR(K$24:XFD$24,K85:XFD85) ->  | I90: Cov (Pj*;Ph*) | J90: =Covarianza entre la Pot Coinc con máx Categ Unif y la Coinc con máx de BT
F92: =F23 -> 2.12363125 | H92: FSE(MT) | I92: Pj | J92: = Potencia promedio coincidente con la máx de la Categoría
F93: =F24 ->  | I93: Pj* | J93: = Potencia promedio coincidente con la máx de la Categoría Unificada
C94: ='[2]Balance de Potencia'!$F$683 -> Lunes | D94: ='[2]Balance de Potencia'!$F$682 -> 13:45:00 | E94: =MATCH(C94&ROUND(D94,10),$A$273:$A$944,0) -> 152 | F94: =AVERAGE(K94:XFD94) -> 1.22965 | I94: P(h*) | J94: = Potencia promedio coincidente con el máx de MT | K94: =IF(K$22="","",OFFSET($A$273,$E94-1,COLUMN()-1,)) -> 1.8384 | L94: 0.8412 | M94: 2.9893 | N94: 1.749 | O94: 1.1063 | P94: 1.7538 | Q94: 0.3908 | R94: 1.562 | S94: 0.2216 | T94: 0.903 | U94: 0.1726 | V94: 1.1077 | W94: 1.6567 | X94: 1.2589 | Y94: 1.6834 | Z94: 0.4397
F95: =F26 -> 0.4093237503 | I95: Var(Pj) | J95: = Varianza de la Potencia coincidente con la máx de la Categoría
F96: =F27 ->  | I96: Var(Pj*) | J96: = Varianza de la Potencia coincidente con la máx de la Categoría Unificada
F97: =VAR(K94:XFD94) -> 0.5506577107 | I97: Var (Ph*) | J97: =Varianza de la Potencia Coincidente con el máx de MT
F98: =COVAR(K$23:XFD$23,K94:XFD94) -> 0.2106041103 | I98: Cov (Pj;Ph*) | J98: =Covarianza entre la Pot Coinc con máx Categ y la Coinc con máx de MT
F99: =COVAR(K$24:XFD$24,K94:XFD94) ->  | I99: Cov (Pj*;Ph*) | J99: =Covarianza entre la Pot Coinc con máx Categ Unif y la Coinc con máx de MT
F101: =F23 -> 2.12363125 | H101: FSE(AT) | I101: Pj | J101: = Potencia promedio coincidente con la máx de la Categoría
F102: =F24 ->  | I102: Pj* | J102: = Potencia promedio coincidente con la máx de la Categoría Unificada
C103: ='[2]Balance de Potencia'!$G$683 -> Lunes | D103: ='[2]Balance de Potencia'!$G$682 -> 13:45:00 | E103: =MATCH(C103&ROUND(D103,10),$A$273:$A$944,0) -> 152 | F103: =AVERAGE(K103:XFD103) -> 1.22965 | I103: P(h*) | J103: = Potencia promedio coincidente con el máx de AT | K103: =IF(K$22="","",OFFSET($A$273,$E103-1,COLUMN()-1,)) -> 1.8384 | L103: 0.8412 | M103: 2.9893 | N103: 1.749 | O103: 1.1063 | P103: 1.7538 | Q103: 0.3908 | R103: 1.562 | S103: 0.2216 | T103: 0.903 | U103: 0.1726 | V103: 1.1077 | W103: 1.6567 | X103: 1.2589 | Y103: 1.6834 | Z103: 0.4397
F104: =F26 -> 0.4093237503 | I104: Var(Pj) | J104: = Varianza de la Potencia coincidente con la máx de la Categoría
F105: =F27 ->  | I105: Var(Pj*) | J105: = Varianza de la Potencia coincidente con la máx de la Categoría Unificada
F106: =VAR(K103:XFD103) -> 0.5506577107 | I106: Var (Ph*) | J106: =Varianza de la Potencia Coincidente con el máx de AT
F107: =COVAR(K$23:XFD$23,K103:XFD103) -> 0.2106041103 | I107: Cov (Pj;Ph*) | J107: =Covarianza entre la Pot Coinc con máx Categ y la Coinc con máx de AT
F108: =COVAR(K$24:XFD$24,K103:XFD103) ->  | I108: Cov (Pj*;Ph*) | J108: =Covarianza entre la Pot Coinc con máx Categ Unif y la Coinc con máx de AT
F110: =F66 -> 1.06304375 | H110: FSE(BT)P | I110: Pj | J110: = Potencia promedio coincidente con la máx de la Categoría en Punta
F111: =F67 ->  | I111: Pj* | J111: = Potencia promedio coincidente con la máx de la Categoría Unificada en Punta
C112: ='[2]Balance de Potencia'!$E$690 -> Lunes | D112: ='[2]Balance de Potencia'!$E$689 -> 13:45:00 | E112: =MATCH(C112&ROUND(D112,10),$A$273:$A$944,0) -> 152 | F112: =AVERAGE(K112:XFD112) -> 1.22965 | I112: P(h*) | J112: = Potencia promedio coincidente con el máx de BT en Punta | K112: =IF(K$22="","",OFFSET($A$273,$E112-1,COLUMN()-1,)) -> 1.8384 | L112: =IF(L$22="","",OFFSET($A$273,$E112-1,COLUMN()-1,)) -> 0.8412 | M112: 2.9893 | N112: 1.749 | O112: 1.1063 | P112: 1.7538 | Q112: 0.3908 | R112: 1.562 | S112: 0.2216 | T112: 0.903 | U112: 0.1726 | V112: 1.1077 | W112: 1.6567 | X112: 1.2589 | Y112: 1.6834 | Z112: 0.4397
F113: =F69 -> 0.3870777093 | I113: Var(Pj) | J113: = Varianza de la Potencia coincidente con la máx de la Categoría
F114: =F70 ->  | I114: Var(Pj*) | J114: = Varianza de la Potencia coincidente con la máx de la Categoría Unificada
F115: =VAR(K112:XFD112) -> 0.5506577107 | I115: Var (Ph*) | J115: =Varianza de la Potencia Coincidente con el máx de BT en Punta
F116: =COVAR(K66:XFD66,K112:XFD112) -> 0.2900145797 | I116: Cov (Pj;Ph*) | J116: =Covarianza entre la Pot Coinc con máx Categ y la Coinc con máx de BT
F117: =COVAR(K67:XFD67,K112:XFD112) ->  | I117: Cov (Pj*;Ph*) | J117: =Covarianza entre la Pot Coinc con máx Categ Unif y la Coinc con máx de BT
F119: =F66 -> 1.06304375 | H119: FSE(MT)P | I119: Pj | J119: = Potencia promedio coincidente con la máx de la Categoría en Punta
F120: =F67 ->  | I120: Pj* | J120: = Potencia promedio coincidente con la máx de la Categoría Unificada en Punta
C121: ='[2]Balance de Potencia'!$F$690 -> Lunes | D121: ='[2]Balance de Potencia'!$F$689 -> 13:45:00 | E121: =MATCH(C121&ROUND(D121,10),$A$273:$A$944,0) -> 152 | F121: =AVERAGE(K121:XFD121) -> 1.22965 | I121: P(h*) | J121: = Potencia promedio coincidente con el máx de MT en Punta | K121: =IF(K$22="","",OFFSET($A$273,$E121-1,COLUMN()-1,)) -> 1.8384 | L121: =IF(L$22="","",OFFSET($A$273,$E121-1,COLUMN()-1,)) -> 0.8412 | M121: 2.9893 | N121: 1.749 | O121: 1.1063 | P121: 1.7538 | Q121: 0.3908 | R121: 1.562 | S121: 0.2216 | T121: 0.903 | U121: 0.1726 | V121: 1.1077 | W121: 1.6567 | X121: 1.2589 | Y121: 1.6834 | Z121: 0.4397
F122: =F69 -> 0.3870777093 | I122: Var(Pj) | J122: = Varianza de la Potencia coincidente con la máx de la Categoría
F123: =F70 ->  | I123: Var(Pj*) | J123: = Varianza de la Potencia coincidente con la máx de la Categoría Unificada
F124: =VAR(K121:XFD121) -> 0.5506577107 | I124: Var (Ph*) | J124: =Varianza de la Potencia Coincidente con el máx de MT en Punta
F125: =COVAR(K66:XFD66,K121:XFD121) -> 0.2900145797 | I125: Cov (Pj;Ph*) | J125: =Covarianza entre la Pot Coinc con máx Categ y la Coinc con máx de MT
F126: =COVAR(K67:XFD67,K121:XFD121) ->  | I126: Cov (Pj*;Ph*) | J126: =Covarianza entre la Pot Coinc con máx Categ Unif y la Coinc con máx de MT
F128: =F66 -> 1.06304375 | H128: FSE(AT)P | I128: Pj | J128: = Potencia promedio coincidente con la máx de la Categoría en Punta
F129: =F67 ->  | I129: Pj* | J129: = Potencia promedio coincidente con la máx de la Categoría Unificada en Punta
C130: ='[2]Balance de Potencia'!$G$690 -> Lunes | D130: ='[2]Balance de Potencia'!$G$689 -> 13:45:00 | E130: =MATCH(C130&ROUND(D130,10),$A$273:$A$944,0) -> 152 | F130: =AVERAGE(K130:XFD130) -> 1.22965 | I130: P(h*) | J130: = Potencia promedio coincidente con el máx de AT en Punta | K130: =IF(K$22="","",OFFSET($A$273,$E130-1,COLUMN()-1,)) -> 1.8384 | L130: =IF(L$22="","",OFFSET($A$273,$E130-1,COLUMN()-1,)) -> 0.8412 | M130: 2.9893 | N130: 1.749 | O130: 1.1063 | P130: 1.7538 | Q130: 0.3908 | R130: 1.562 | S130: 0.2216 | T130: 0.903 | U130: 0.1726 | V130: 1.1077 | W130: 1.6567 | X130: 1.2589 | Y130: 1.6834 | Z130: 0.4397
F131: =F69 -> 0.3870777093 | I131: Var(Pj) | J131: = Varianza de la Potencia coincidente con la máx de la Categoría
F132: =F70 ->  | I132: Var(Pj*) | J132: = Varianza de la Potencia coincidente con la máx de la Categoría Unificada
F133: =VAR(K130:XFD130) -> 0.5506577107 | I133: Var (Ph*) | J133: =Varianza de la Potencia Coincidente con el máx de AT en Punta
F134: =COVAR(K66:XFD66,K130:XFD130) -> 0.2900145797 | I134: Cov (Pj;Ph*) | J134: =Covarianza entre la Pot Coinc con máx Categ y la Coinc con máx de AT
F135: =COVAR(K67:XFD67,K130:XFD130) ->  | I135: Cov (Pj*;Ph*) | J135: =Covarianza entre la Pot Coinc con máx Categ Unif y la Coinc con máx de AT
F137: =F75 -> 2.12363125 | H137: FSE(BT)FP | I137: Pj | J137: = Potencia promedio coincidente con la máx de la Categoría en Fuera de Punta
F138: =F76 ->  | I138: Pj* | J138: = Potencia promedio coincidente con la máx de la Categoría Unificada en Fuera de Punta
